Workbook

Sheet 0. Intro
B2: If the eBOM opens to this page first, it means Excel Macro's have not been enabled.
B4: Excel Macros provide improved functionality for this file, and it will not work properly unless they are enabled.
B8: This may be caused by one of the following warnings: | T8: Simply click 'Enable Content'
C9: Follow the steps below each warning to enable Macros.
C14: Find out more here: | E14: https://docs.microsoft.com/en-us/deployoffice/security/internet-macros-blocked#remove-mark-of-the-web-from-a-file
C16: 1. Close the file
C17: 2. Right click on the Excel file and click 'Properties'
C18: 3. Tick 'Unblock' and click 'OK'
C19: 4. Re-open file
T23: This prompt is for the excel file to connect to our website to check if this version is the latest. A message will flag if the excel is not the latest version.
T26: If 'cancel' is clicked, the workbook is still 100% functional.

Sheet 1. Start
L1: Release
E3: =z_Title -> Roller Shade Calculator | Q3: UnitStorage: | R3: Metric
E4: =z_LastUpdate&": "&"18-Apr-24" -> Release: 18-Apr-24 | G4: NOTE: Macros MUST be enabled via the bar above when file opens.
G5: =IFERROR(IF(CurrentVersionReturn=TRUE(),"Current Version.","Please download the latest version from the Rollease Acmeda Document Library "),"") -> Current Version.
C7: =z_Inputs -> INPUTS | K7: =z_Outputs -> OUTPUTS | Q7: =z_Language -> Language | R7: =z_NoteSelect -> Select from dropdown list. | S7: English
C8: =z_Region -> Region | D8: =z_NoteSelect -> Select from dropdown list. | E8: Global | G8: =z_Selectwb -> Select Weight Bar | H8: =z_NoteSelect -> Select from dropdown list. | I8: D30 Medium Bottom Rail | K8: =z_fabricwbmass -> Fabric + Weight Bar Mass | L8: =IFERROR(o_fabric_wb_mass*IF(i_units_Out="Metric",1,INDEX(T_Units[Factor],MATCH("kg",T_Units[Metric],0))),"-") -> -
C9: =z_Units -> Units | D9: =z_NoteSelect -> Select from dropdown list. | E9: Metric | G9: =z_SelectBallast -> Select Ballast | H9: =z_NoteSelect -> Select from dropdown list. | K9: =z_ControlCapacity -> Control Holding Capacity | L9: =IFERROR(Control_BoosterCapacity_kg*IF(i_units_Out="Metric",1,INDEX(T_Units[Factor],MATCH("kg",T_Units[Metric],0))),"") -> 
C10: Tube Deflection Limit | E10: 0.105 | G10: =z_wbBallastWeight -> Weight Bar + Ballast Total Weight | I10: =IFERROR(wb_Ballast_UnitMass*1000*IF(i_units_Out="Metric",1,INDEX(T_Units[Factor],MATCH("g/m",T_Units[Metric],0))),"") -> 306 | K10: =z_TubeRotations -> # Tube Rotations | L10: =IFERROR(ROUND(Tube_Rotations,1)&" "&z_Turns,"") ->  | T10: covered chain lookup | U10: =INDEX(T_Controls[ChainCoveredLength],MATCH(i_Control,T_Controls[Description],0)) ->  | V10: mm
C11: # Pre-wraps | E11: 1 | G11: =z_CustomWeight -> Custom Weight | H11: =IFERROR(z_EnterValue&" ("&INDEX(T_Units[],5,MATCH(i_units_Out,T_Units[#Headers],0))&")","") -> Enter value (g/m) | K11: =z_rollDiameter -> Fabric Roll Diameter | L11: =IFERROR(((Tube_Rotations+i_pwa)*Fabric_Thickness*2+Tube_OD)*IF(i_units_Out="Metric",1,INDEX(T_Units[Factor],MATCH("mm",T_Units[Metric],0))),"") ->  | T11: Chain clearance | U11: 15 | V11: mm
C13: =z_inputWidth -> Input Width | D13: =IFERROR(z_EnterValue&" ("&INDEX(T_Units[],1,MATCH(i_units_Out,T_Units[#Headers],0))&")","") -> Enter value (mm) | G13: =z_SelectTube -> Select Tube | H13: =z_NoteSelect -> Select from dropdown list. | K13: =z_TubeDeflection -> Tube Deflection | L13: =IFERROR(ROUND(Tube_Deflection_units,IF(i_units_Out="Metric",1,2))&" "&INDEX(T_Units[],1,MATCH(i_units_Out,T_Units[#Headers],0))&" ("&ROUND(o_TubeDeflectionPct,4)*100&"%)","") ->  | U13: =Control_D*Control_Ratio*PI()*_xlfn.SINGLE(Tube_Rotations)+o_CoveredChainLookup+o_ChainClearance -> 
C14: =z_InputDrop -> Input Drop | D14: =IFERROR(z_EnterValue&" ("&INDEX(T_Units[],1,MATCH(i_units_Out,T_Units[#Headers],0))&")","") -> Enter value (mm) | G14: =z_RecTube -> Suggested Tube | I14: =IF(OR(i_width="",i_Drop="",Fabric_Density="",Fabric_Thickness="",i_wb=""),z_FinishInputs,o_RecTubeOptimised) -> Complete inputs for recommendation. | L14: =IFERROR(ROUND(Tube_Deflection_units,2),"") ->  | U14: =U13/2 -> 
T15: =(0.5*(Control_D*Control_Ratio*PI()*@Tube_Rotations)-0.5*Control_D*PI()+Control_D)
C16: =z_SelectFabric -> Select Fabric | D16: ="Type to filter list, DEL to reset" -> Type to filter list, DEL to reset | G16: =z_SelectControlType -> Select Control Type | H16: =z_NoteSelect -> Select from dropdown list. | K16: =z_UserEffortLift -> User Effort (Lifting) | L16: =IFERROR(IF(i_ControlType="Clutch",MAX(_LiveData!X6:X93)*IF(i_units_Out="Metric",1,INDEX(T_Units[Factor],MATCH("kg",T_Units[Metric],0))),""),"") ->  | T16: need to indicate full ballast length with ESA selection
C17: =z_FabricDensity -> Fabric Density | E17: =IFERROR(ROUND(INDEX(INDIRECT("T_Fabric[Density_"&i_units_Out&"]"),MATCH(i_Fabric,T_Fabric[Description],0)),IF(i_units_Out="Metric",0,2)),"") ->  | G17: =z_SelectControl -> Select Control | H17: =IF(AND(i_Tube="",i_ControlType<>""),z_NoteSelectTube,z_NoteSelect) -> Select from dropdown list. | K17: =z_UserEffortLowering -> User Effort (Lowering) | L17: =IFERROR(IF(i_ControlType="Clutch",MAX(_LiveData!Y5:Y94)*IF(i_units_Out="Metric",1,INDEX(T_Units[Factor],MATCH("kg",T_Units[Metric],0))),""),"") -> 
C18: =z_FabricThickness -> Fabric Thickness | E18: =IFERROR(ROUND(INDEX(INDIRECT("T_Fabric[Thickness_"&i_units_Out&"]"),MATCH(i_Fabric,T_Fabric[Description],0)),IF(i_units_Out="Metric",2,3)),"") ->  | G18: =z_TubeAdaptor -> Tube Adaptor | I18: =o_Adaptor ->  | K18: =z_ChainLength -> Min. Chain Length for Ball stop | L18: =IFERROR(IF(i_units_Out="Metric",ROUND(U13,0)&" mm",TEXT(U13/25.4,"0"&IF(ABS(U13/25.4-ROUND(U13/25.4,0))>1/32,"-0/"&CHOOSE(ROUND(MOD(U13/25.4,1)*16,0),16,8,16,4,16,8,16,2,16,8,16,4,16,8,16),))&CHAR(34)),"") ->  | P18: TO DO:
C19: =z_CustomFabDensity -> Custom Fabric Density | D19: =IFERROR(z_EnterValue&" ("&INDEX(T_Units[],4,MATCH(i_units_Out,T_Units[#Headers],0))&")","") -> Enter value (g/m²) | G19: =z_MotorRPM -> Enter Custom Motor rpm | H19: =IF(i_ControlType=z_Motor,Control_RPM_Default&" rpm","") ->  | K19: =z_ChainLoopLength -> Loop Length | L19: =IFERROR(IF(i_units_Out="Metric",ROUND(U14,0)&" mm",TEXT(U14/25.4,"0"&IF(ABS(U14/25.4-ROUND(U14/25.4,0))>1/32,"-0/"&CHOOSE(ROUND(MOD(U14/25.4,1)*16,0),16,8,16,4,16,8,16,2,16,8,16,4,16,8,16),))&CHAR(34)),"") ->  | P19: need to validate user effort & preturns calculations, current data innaccurate
C20: =z_CustomFabThickness -> Custom Fabric Thickness | D20: =IFERROR(z_EnterValue&" ("&INDEX(T_Units[],1,MATCH(i_units_Out,T_Units[#Headers],0))&")","") -> Enter value (mm) | G20: =z_selectBooster -> Select Booster | H20: =IF(o_BoosterListCount>=2,"Select a Booster.","No Booster options.") -> No Booster options. | K20: =z_fabricwbtubemass -> Fabric + Weight Bar + Tube Mass | L20: =IFERROR(o_fabric_wb_T_Mass_TOTAL*IF(i_units_Out="Metric",1,INDEX(T_Units[Factor],MATCH("kg",T_Units[Metric],0))),"") ->  | P20: need to double check all regions for brackets options & ALL Hardware configurations.
G21: =z_BoosterPreturns -> Booster Pre-turns | H21: =IFERROR(IF(ISTEXT(o_PreturnsEst),o_PreturnsEst,"Estimated "&ROUND(o_PreturnsEst,0)&" turns (Enter this value)"),"") ->  | K21: =z_ShadeTorque -> Shade Torque | L21: =IFERROR(o_tMax_Sum,"") -> 
C22: Can fabric be railroaded? | E22: =IFERROR(IF(i_Fabric<>"",INDEX(T_Fabric[RRYesNo],MATCH(i_Fabric,T_Fabric[Description],0)),"-"),"") -> - | G22: =z_MaxBoosterPreturns -> Max Booster Pre-turns | I22: =IFERROR(IF(OR(i_Booster=z_None,i_Booster=z_NoOptions,i_Booster="",i_Booster=z_SelectaControl),"",ROUNDUP(Booster_MaxTurns-_xlfn.SINGLE(Tube_Rotations),0)&" "&z_Turns),"") ->  | K22: =z_MotorDropS -> Motor Run Time for Drop | L22: =IFERROR(IF(i_ControlType=z_Motor,ROUND(_xlfn.SINGLE(Tube_Rotations)/(Control_RPM/60),0)&" "&z_Seconds,""),"") ->  | P22: complete dictionary for languages
C23: =z_FabricWidth -> Fabric roll width | E23: =IFERROR(IF(i_Fabric<>"",INDEX(INDIRECT("T_Fabric[RollWidth_"&i_units_Out&"]"),MATCH(i_Fabric,T_Fabric[Description],0)),"-"),z_NoData) -> - | G23: =z_ESA_BoosterType -> Booster Type | H23: =IF(AND(i_ControlType="Easy Spring Air",NOT(ISERROR(L_CompatibleESABooster))),z_NoteSelect,"") ->  | K23: BLANK. FREE TO USE | L23: BLANK. FREE TO USE
G24: =z_ESA_Position -> Booster Position | I24: =o_BoosterPosition2 ->  | K24: BLANK. FREE TO USE | L24: BLANK. FREE TO USE
C25: =IF(Design_Width<=1.2,z_minSystemWidth,"") -> Refer to Product Spec for minimum System widths | G25: =z_ESA_preTurn -> Booster Pre-turns | I25: =IFERROR(ROUND(o_BoosterPreTurn2,0),"") ->  | K25: BLANK. FREE TO USE | L25: BLANK. FREE TO USE
G26: =z_SelectBracket -> Select Top Hardware System | H26: =z_NoteSelect -> Select from dropdown list. | K26: =z_BktRollDiameter -> Bracket Max Roll Diameter | L26: =IFERROR(o_MaxRollDia_Units,"") -> 
C28: FOR LINK SYSTEMS ONLY | P28: can the US infinite link be used with the 2" tube?
C29: Input Shade 2 Width | D29: =IFERROR(z_EnterValue&" ("&INDEX(T_Units[],1,MATCH(i_units_Out,T_Units[#Headers],0))&")","") -> Enter value (mm) | G29: Select Link System | H29: =IF(i_wb="","Select Weight Bar.",IF(i_Tube="","Select Tube.",z_NoteSelect)) -> Select Tube. | K29: Link Torque Required | L29: =o_LinkTorqueReqd -> 
C30: Input shade 3 Width | D30: =IFERROR(z_EnterValue&" ("&INDEX(T_Units[],1,MATCH(i_units_Out,T_Units[#Headers],0))&")","") -> Enter value (mm) | K30: Link System Torque Capacity | L30: =IFERROR(INDEX(T_Links[Torque],MATCH(i_LinkSystem,T_Links[Description],0)),"") -> 
K32: Tube Deflection for Shade 2 | L32: =IFERROR(ROUND(Tube_Deflection2_Units,IF(i_units_Out="Metric",1,2))&" "&INDEX(T_Units[],1,MATCH(i_units_Out,T_Units[#Headers],0))&" ("&ROUND(o_TubeDeflectionPct2,4)*100&"%)","") -> 
L33: =IFERROR(ROUND(Tube_Deflection2_Units,2),"") -> 
K35: Tube Deflection for Shade 3 | L35: =IFERROR(ROUND(Tube_Deflection3_Units,IF(i_units_Out="Metric",1,2))&" "&INDEX(T_Units[],1,MATCH(i_units_Out,T_Units[#Headers],0))&" ("&ROUND(o_TubeDeflectionPct3,4)*100&"%)","") -> 
L36: =IFERROR(ROUND(Tube_Deflection3_Units,2),"") -> 
K39: Output String: | P39: total weight does not include bracket weight, or motor mass.
C40: Import String: | D40: (Double click & paste output string here) | K40: =_xlfn.TEXTJOIN(";",FALSE,i_Units,i_TubeDeflectionLimit,i_pwa,i_width,i_Drop,i_Fabric,i_Fdensity_Custom,i_FThickness_Custom,i_wb,i_Ballast,i_wbballast_Custom,i_Tube,i_ControlType,i_Control,i_Booster,i_bracket) -> Metric;0.105;1;;;;;;D30 Medium Bottom Rail;;;;;;; | Q40: Units;Width;Drop;Fabric;Density;Thickness;WeightBar;Ballast;CustomWeight;Tube;ControlType;Control;Booster;Brackets
C42: Note on Deflection Limit; 0.1% = 1 mm/m, 0.2% = 2 mm/m etc.
C46: NOTE: Microsoft Excel 2021 or Excel 365 required for complete functionality. MACROS MUST BE ENABLED.
C47: DISCLAIMER: Rollease Acmeda has used reasonable care in preparing the information included in this workbook, but makes no representations or warranties as to the completeness or accuracy of the information. Information is supplied upon the condition that the persons receiving the information will make their own determination as to is suitability for their purposes prior to use. Rollease Acmeda assumes no liability whatsoever for any damages incurred by you resulting from errors in or omissions from the information included herein. All output data is theoretical, any specific requirements should always be physically tested & validated. Rollease Acmeda reserves the right to make changes without further notice to any products to improve the reliability, function or design.
C49: Zip Thickness | E49: 1.45
C50: Zip Roll Diameter | E50: =IFERROR(((Tube_Rotations+IF(i_pwa="Yes",1,0))*ZipThickness*2+Tube_OD)*IF(i_units_Out="Metric",1,INDEX(T_Units[Factor],MATCH("mm",T_Units[Metric],0))),"") -> 
C51: Tube Deflection (Zipscreen ONLY) | E51: =IFERROR(ROUND(Tube_Deflection_units,2),"") -> 

Sheet 2. System Charts
C3: =z_TableSetup -> TABLE SETUP | L3: =z_Fabric -> Fabric | O3: =IF(i_Fabric="",z_SelectFabric,i_Fabric) -> Select Fabric | T3: =IFERROR(z_Density&": "&ROUND(INDEX(INDIRECT("T_Fabric[Density_"&i_Units&"]"),MATCH(i_Fabric,T_Fabric[Description],0)),IF(i_Units="Metric",0,2))&" "&INDEX(INDIRECT("T_Units["&i_Units&"]"),MATCH("g/m²",T_Units[Metric],0)),"") -> 
D4: =z_WidthStart -> Width Start | E4: 0.6 | F4: m | T4: =IFERROR(z_Thickness&": "&ROUND(INDEX(INDIRECT("T_Fabric[Thickness_"&i_Units&"]"),MATCH(i_Fabric,T_Fabric[Description],0)),IF(i_Units="Metric",2,3))&" "&INDEX(INDIRECT("T_Units["&i_Units&"]"),MATCH("mm",T_Units[Metric],0)),"") -> 
D5: =z_WidthIncrement -> Width Increment | E5: 0.2 | F5: m | L5: =z_Tube -> Tube | O5: =IF(i_Tube="",z_SelectTube,i_Tube) -> Select Tube
D6: =z_DropStart -> Drop Start | E6: 0.6 | F6: m | L6: =z_WeightBar -> Weight Bar | O6: =IF(i_wb="",z_Selectwb,i_wb) -> D30 Medium Bottom Rail
D7: =z_DropIncrement -> Drop Increment | E7: 0.2 | F7: m | L7: =z_Ballast -> Ballast | O7: =IF(i_Ballast<>0,i_Ballast,"No Ballast") -> No Ballast
L8: =z_Control -> Control | O8: =IF(i_Control="",z_SelectaControl,i_Control&" "&IF(AND(i_Booster<>"",i_Booster<>"No suitable options."),"w/ "&i_Booster,"")) -> Select a Control.
D10: =z_TubeRotations -> # Tube Rotations | E10: =z_rollDiameter&" ("&INDEX(INDIRECT("T_Units["&i_Units&"]"),MATCH("mm",T_Units[Metric],0))&")" -> Fabric Roll Diameter (mm) | F10: Motor Run Time (s) | K10: =z_Width -> WIDTH | AL10: =z_Width -> WIDTH
C11: m | G11: in | K11: m | L11: =ROUND(width_Start,2) -> 0.6 | M11: =ROUND(L11+width_inc,2) -> 0.8 | N11: =ROUND(M11+width_inc,2) -> 1 | O11: =ROUND(N11+width_inc,2) -> 1.2 | P11: =ROUND(O11+width_inc,2) -> 1.4 | Q11: =ROUND(P11+width_inc,2) -> 1.6 | R11: =ROUND(Q11+width_inc,2) -> 1.8 | S11: =ROUND(R11+width_inc,2) -> 2 | T11: =ROUND(S11+width_inc,2) -> 2.2 | U11: =ROUND(T11+width_inc,2) -> 2.4 | V11: =ROUND(U11+width_inc,2) -> 2.6 | W11: =ROUND(V11+width_inc,2) -> 2.8 | X11: =ROUND(W11+width_inc,2) -> 3 | Y11: =ROUND(X11+width_inc,2) -> 3.2 | Z11: =ROUND(Y11+width_inc,2) -> 3.4 | AA11: =ROUND(Z11+width_inc,2) -> 3.6 | AB11: =ROUND(AA11+width_inc,2) -> 3.8 | AC11: =ROUND(AB11+width_inc,2) -> 4 | AD11: =ROUND(AC11+width_inc,2) -> 4.2 | AE11: =ROUND(AD11+width_inc,2) -> 4.4 | AF11: =ROUND(AE11+width_inc,2) -> 4.6 | AL11: m | AM11: =ROUND(width_Start,2) -> 0.6 | AN11: =ROUND(AM11+width_inc,2) -> 0.8 | AO11: =ROUND(AN11+width_inc,2) -> 1 | AP11: =ROUND(AO11+width_inc,2) -> 1.2 | AQ11: =ROUND(AP11+width_inc,2) -> 1.4 | AR11: =ROUND(AQ11+width_inc,2) -> 1.6 | AS11: =ROUND(AR11+width_inc,2) -> 1.8 | AT11: =ROUND(AS11+width_inc,2) -> 2 | AU11: =ROUND(AT11+width_inc,2) -> 2.2 | AV11: =ROUND(AU11+width_inc,2) -> 2.4 | AW11: =ROUND(AV11+width_inc,2) -> 2.6 | AX11: =ROUND(AW11+width_inc,2) -> 2.8 | AY11: =ROUND(AX11+width_inc,2) -> 3 | AZ11: =ROUND(AY11+width_inc,2) -> 3.2 | BA11: =ROUND(AZ11+width_inc,2) -> 3.4 | BB11: =ROUND(BA11+width_inc,2) -> 3.6 | BC11: =ROUND(BB11+width_inc,2) -> 3.8 | BD11: =ROUND(BC11+width_inc,2) -> 4 | BE11: =ROUND(BD11+width_inc,2) -> 4.2 | BF11: =ROUND(BE11+width_inc,2) -> 4.4 | BG11: =ROUND(BF11+width_inc,2) -> 4.6
C12: =ROUND(drop_start,2) -> 0.6 | D12: =IFERROR((-Tube_OD+SQRT(Tube_OD^2-4*Fabric_Thickness*-K12*1000/PI()))/(2*Fabric_Thickness),"") ->  | E12: =IFERROR((((-Tube_OD+SQRT(Tube_OD^2-4*Fabric_Thickness*-K12*1000/PI()))/(2*Fabric_Thickness)+i_pwa)*Fabric_Thickness*2+Tube_OD)*IF(i_Units="Metric",1,INDEX(T_Units[Factor],MATCH("mm",T_Units[Metric],0))),"") ->  | F12: =IFERROR(D12/(Control_RPM/60),"") ->  | G12: =ROUNDUP(C12/0.0254,0) -> 24 | J12: =z_Drop -> DROP | K12: =ROUND(drop_start,2) -> 0.6 | L12: =IFERROR((5/384)*((g*(Fabric_Density*$K12+Tube_UnitMass+wb_UnitMass+Ballast_UnitMass)*L$11^4)/Tube_IE)*1000,"") ->  | V12: =IFERROR((5/384)*((g*(Fabric_Density*$K12+Tube_UnitMass+wb_UnitMass+Ballast_UnitMass)*V$11^4)/Tube_IE)*1000,"") ->  | AG12: =ROUNDUP(K12/0.0254,0) -> 24 | AK12: =z_Drop -> DROP | AL12: =ROUND(drop_start,2) -> 0.6 | AM12: =IFERROR(IF(($AL12*AM$11*Fabric_Density)+(AM$11*wb_Ballast_UnitMass)<Control_Capacity_kg,1,IF(($AL12*AM$11*Fabric_Density)+(AM$11*wb_Ballast_UnitMass)<Control_BoosterCapacity_kg,2,IF(($AL12*AM$11*Fabric_Density)+(AM$11*wb_Ballast_UnitMass)>Control_BoosterCapacity_kg,3,""))),"") ->  | AW12: =IFERROR(IF(($AL12*AW$11*Fabric_Density)+(AW$11*wb_Ballast_UnitMass)<Control_Capacity_kg,1,IF(($AL12*AW$11*Fabric_Density)+(AW$11*wb_Ballast_UnitMass)<Control_BoosterCapacity_kg,2,IF(($AL12*AW$11*Fabric_Density)+(AW$11*wb_Ballast_UnitMass)>Control_BoosterCapacity_kg,3,""))),"") ->  | BH12: =ROUNDUP(AL12/0.0254,0) -> 24
C13: =ROUND(C12+Drop_inc,2) -> 0.8 | E13: =IFERROR((((-Tube_OD+SQRT(Tube_OD^2-4*Fabric_Thickness*-K13*1000/PI()))/(2*Fabric_Thickness)+i_pwa)*Fabric_Thickness*2+Tube_OD)*IF(i_Units="Metric",1,INDEX(T_Units[Factor],MATCH("mm",T_Units[Metric],0))),"") ->  | G13: 32 | K13: =ROUND(K12+Drop_inc,2) -> 0.8 | AG13: 32 | AL13: =ROUND(AL12+Drop_inc,2) -> 0.8 | BH13: 32
C14: 1 | E14: =IFERROR((((-Tube_OD+SQRT(Tube_OD^2-4*Fabric_Thickness*-K14*1000/PI()))/(2*Fabric_Thickness)+i_pwa)*Fabric_Thickness*2+Tube_OD)*IF(i_Units="Metric",1,INDEX(T_Units[Factor],MATCH("mm",T_Units[Metric],0))),"") ->  | G14: 40 | K14: 1 | AG14: 40 | AL14: 1 | BH14: 40
C15: 1.2 | E15: =IFERROR((((-Tube_OD+SQRT(Tube_OD^2-4*Fabric_Thickness*-K15*1000/PI()))/(2*Fabric_Thickness)+i_pwa)*Fabric_Thickness*2+Tube_OD)*IF(i_Units="Metric",1,INDEX(T_Units[Factor],MATCH("mm",T_Units[Metric],0))),"") ->  | G15: 48 | K15: 1.2 | AG15: 48 | AL15: 1.2 | BH15: 48
C16: 1.4 | E16: =IFERROR((((-Tube_OD+SQRT(Tube_OD^2-4*Fabric_Thickness*-K16*1000/PI()))/(2*Fabric_Thickness)+i_pwa)*Fabric_Thickness*2+Tube_OD)*IF(i_Units="Metric",1,INDEX(T_Units[Factor],MATCH("mm",T_Units[Metric],0))),"") ->  | G16: 56 | K16: 1.4 | AG16: 56 | AL16: 1.4 | BH16: 56
C17: 1.6 | E17: =IFERROR((((-Tube_OD+SQRT(Tube_OD^2-4*Fabric_Thickness*-K17*1000/PI()))/(2*Fabric_Thickness)+i_pwa)*Fabric_Thickness*2+Tube_OD)*IF(i_Units="Metric",1,INDEX(T_Units[Factor],MATCH("mm",T_Units[Metric],0))),"") ->  | G17: 63 | K17: 1.6 | AG17: 63 | AL17: 1.6 | BH17: 63
C18: 1.8 | E18: =IFERROR((((-Tube_OD+SQRT(Tube_OD^2-4*Fabric_Thickness*-K18*1000/PI()))/(2*Fabric_Thickness)+i_pwa)*Fabric_Thickness*2+Tube_OD)*IF(i_Units="Metric",1,INDEX(T_Units[Factor],MATCH("mm",T_Units[Metric],0))),"") ->  | G18: 71 | K18: 1.8 | AG18: 71 | AL18: 1.8 | BH18: 71
C19: 2 | E19: =IFERROR((((-Tube_OD+SQRT(Tube_OD^2-4*Fabric_Thickness*-K19*1000/PI()))/(2*Fabric_Thickness)+i_pwa)*Fabric_Thickness*2+Tube_OD)*IF(i_Units="Metric",1,INDEX(T_Units[Factor],MATCH("mm",T_Units[Metric],0))),"") ->  | G19: 79 | K19: 2 | AG19: 79 | AL19: 2 | BH19: 79
C20: 2.2 | E20: =IFERROR((((-Tube_OD+SQRT(Tube_OD^2-4*Fabric_Thickness*-K20*1000/PI()))/(2*Fabric_Thickness)+i_pwa)*Fabric_Thickness*2+Tube_OD)*IF(i_Units="Metric",1,INDEX(T_Units[Factor],MATCH("mm",T_Units[Metric],0))),"") ->  | G20: 87 | K20: 2.2 | AG20: 87 | AL20: 2.2 | BH20: 87
C21: 2.4 | E21: =IFERROR((((-Tube_OD+SQRT(Tube_OD^2-4*Fabric_Thickness*-K21*1000/PI()))/(2*Fabric_Thickness)+i_pwa)*Fabric_Thickness*2+Tube_OD)*IF(i_Units="Metric",1,INDEX(T_Units[Factor],MATCH("mm",T_Units[Metric],0))),"") ->  | G21: 95 | K21: 2.4 | AG21: 95 | AL21: 2.4 | BH21: 95
C22: 2.6 | E22: =IFERROR((((-Tube_OD+SQRT(Tube_OD^2-4*Fabric_Thickness*-K22*1000/PI()))/(2*Fabric_Thickness)+i_pwa)*Fabric_Thickness*2+Tube_OD)*IF(i_Units="Metric",1,INDEX(T_Units[Factor],MATCH("mm",T_Units[Metric],0))),"") ->  | G22: 103 | K22: 2.6 | L22: =IFERROR((5/384)*((g*(Fabric_Density*$K22+Tube_UnitMass+wb_UnitMass+Ballast_UnitMass)*L$11^4)/Tube_IE)*1000,"") ->  | V22: =IFERROR((5/384)*((g*(Fabric_Density*$K22+Tube_UnitMass+wb_UnitMass+Ballast_UnitMass)*V$11^4)/Tube_IE)*1000,"") ->  | AG22: 103 | AL22: 2.6 | AM22: =IFERROR(IF(($AL22*AM$11*Fabric_Density)+(AM$11*wb_Ballast_UnitMass)<Control_Capacity_kg,1,IF(($AL22*AM$11*Fabric_Density)+(AM$11*wb_Ballast_UnitMass)<Control_BoosterCapacity_kg,2,IF(($AL22*AM$11*Fabric_Density)+(AM$11*wb_Ballast_UnitMass)>Control_BoosterCapacity_kg,3,""))),"") ->  | AW22: =IFERROR(IF(($AL22*AW$11*Fabric_Density)+(AW$11*wb_Ballast_UnitMass)<Control_Capacity_kg,1,IF(($AL22*AW$11*Fabric_Density)+(AW$11*wb_Ballast_UnitMass)<Control_BoosterCapacity_kg,2,IF(($AL22*AW$11*Fabric_Density)+(AW$11*wb_Ballast_UnitMass)>Control_BoosterCapacity_kg,3,""))),"") ->  | BH22: 103
C23: 2.8 | E23: =IFERROR((((-Tube_OD+SQRT(Tube_OD^2-4*Fabric_Thickness*-K23*1000/PI()))/(2*Fabric_Thickness)+i_pwa)*Fabric_Thickness*2+Tube_OD)*IF(i_Units="Metric",1,INDEX(T_Units[Factor],MATCH("mm",T_Units[Metric],0))),"") ->  | G23: 111 | K23: 2.8 | AG23: 111 | AL23: 2.8 | BH23: 111
C24: 3 | E24: =IFERROR((((-Tube_OD+SQRT(Tube_OD^2-4*Fabric_Thickness*-K24*1000/PI()))/(2*Fabric_Thickness)+i_pwa)*Fabric_Thickness*2+Tube_OD)*IF(i_Units="Metric",1,INDEX(T_Units[Factor],MATCH("mm",T_Units[Metric],0))),"") ->  | G24: 119 | K24: 3 | AG24: 119 | AL24: 3 | BH24: 119
C25: 3.2 | E25: =IFERROR((((-Tube_OD+SQRT(Tube_OD^2-4*Fabric_Thickness*-K25*1000/PI()))/(2*Fabric_Thickness)+i_pwa)*Fabric_Thickness*2+Tube_OD)*IF(i_Units="Metric",1,INDEX(T_Units[Factor],MATCH("mm",T_Units[Metric],0))),"") ->  | G25: 126 | K25: 3.2 | AG25: 126 | AL25: 3.2 | BH25: 126
C26: 3.4 | E26: =IFERROR((((-Tube_OD+SQRT(Tube_OD^2-4*Fabric_Thickness*-K26*1000/PI()))/(2*Fabric_Thickness)+i_pwa)*Fabric_Thickness*2+Tube_OD)*IF(i_Units="Metric",1,INDEX(T_Units[Factor],MATCH("mm",T_Units[Metric],0))),"") ->  | G26: 134 | K26: 3.4 | AG26: 134 | AL26: 3.4 | BH26: 134
C27: 3.6 | E27: =IFERROR((((-Tube_OD+SQRT(Tube_OD^2-4*Fabric_Thickness*-K27*1000/PI()))/(2*Fabric_Thickness)+i_pwa)*Fabric_Thickness*2+Tube_OD)*IF(i_Units="Metric",1,INDEX(T_Units[Factor],MATCH("mm",T_Units[Metric],0))),"") ->  | G27: 142 | K27: 3.6 | AG27: 142 | AL27: 3.6 | BH27: 142
L28: =ROUNDUP(L$11/0.0254,0) -> 24 | M28: =ROUNDUP(M$11/0.0254,0) -> 32 | N28: 40 | O28: 48 | P28: 56 | Q28: 63 | R28: 71 | S28: 79 | T28: 87 | U28: 95 | V28: 103 | W28: 111 | X28: 119 | Y28: 126 | Z28: 134 | AA28: 142 | AB28: 150 | AC28: 158 | AD28: 166 | AE28: 174 | AF28: 182 | AG28: in | AM28: =ROUNDUP(AM$11/0.0254,0) -> 24 | AN28: =ROUNDUP(AN$11/0.0254,0) -> 32 | AO28: 40 | AP28: 48 | AQ28: 56 | AR28: 63 | AS28: 71 | AT28: 79 | AU28: 87 | AV28: 95 | AW28: 103 | AX28: 111 | AY28: 119 | AZ28: 126 | BA28: 134 | BB28: 142 | BC28: 150 | BD28: 158 | BE28: 166 | BF28: 174 | BG28: 182 | BH28: in
O30: =z_ChartNote1 -> Allowable tube deflection & within control capacity | AP30: =z_ChartNote3 -> Control Capacity Only (excluding tube deflection, user effort & other factors)
O32: =z_ChartNote2 -> Allowable tube deflection outside of control capacity | AP32: =z_ChartNote4 -> Control Capacity with spring assist (if selected)

Sheet 3. Hardware Options
E1: HIDE | J1: HIDE | O1: HIDE | T1: HIDE
B2: =z_ProductOptionsText1 -> Put an 'X' in the hide column to remove from dropdown options.
B4: =z_Tube -> Tube | C4: =z_Show -> Show | D4: =z_Hide -> Hide | G4: =z_WeightBar -> Weight Bar | H4: =z_Show -> Show | I4: =z_Hide -> Hide | L4: =z_Control -> Control | M4: =z_Show -> Show | N4: =z_Hide -> Hide | Q4: =z_TopHardware -> Top Hardware | R4: =z_Show -> Show | S4: =z_Hide -> Hide
B5: =T_Tubes[Description] -> 1" | C5: =IF(D5<>"","","X") -> X | E5: =IF(D5<>"","Hide","Show") -> Show | G5: =T_WeightBars[Description] -> _Custom Weight Bar Data | H5: =IF(I5<>"","","X") -> X | J5: =IF(I5<>"","Hide","Show") -> Show | L5: =T_Controls[Description] -> G200 | M5: =IF(N5<>"","","X") -> X | O5: =IF(N5<>"","Hide","Show") -> Show | Q5: =T_Brackets[Description] -> SLxx650xx Skyline Bracket | 32mm | 1-1/4" | R5: =IF(S5<>"","","X") -> X | T5: =IF(S5<>"","Hide","Show") -> Show
B6: 1-1/8" | C6: =IF(D6<>"","","X") -> X | E6: =IF(D6<>"","Hide","Show") -> Show | G6: Internal Hem Bar | H6: =IF(I6<>"","","X") -> X | J6: =IF(I6<>"","Hide","Show") -> Show | L6: G400 | M6: =IF(N6<>"","","X") -> X | O6: =IF(N6<>"","Hide","Show") -> Show | Q6: SLxx660xx Skyline Bracket | 38mm | 1-1/2" | R6: X | T6: =IF(S6<>"","Hide","Show") -> Show
B7: 1-1/4" | C7: X | E7: Show | G7: External Hem Bar | H7: X | J7: Show | L7: R8 | M7: X | O7: Show | Q7: SLxx680xx Skyline Bracket | 50mm | 2" | R7: X | T7: Show
B8: 1-1/2" | C8: X | E8: Show | G8: Fabric Wrap Hem Bar | H8: X | J8: Show | L8: R16 | M8: X | O8: Show | Q8: SLxx690xx Skyline Bracket | 73mm | 2-1/2" | R8: X | T8: Show
B9: 2" | C9: X | E9: Show | G9: Mini Bottom Rail | H9: X | J9: Show | L9: R24 | M9: X | O9: Show | Q9: RB360 | 1-1/2"" | R9: X | T9: Show
B10: 2-1/2" | C10: X | E10: Show | G10: Flat Bottom Rail | H10: X | J10: Show | L10: RB08 | S35 | M10: X | O10: Show | Q10: RB380 | 2" | R10: =IF(S10<>"","","X") -> X | T10: Show
B11: 3-1/4" | C11: X | E11: Show | G11: Round Bottom Rail | H11: X | J11: Show | L11: RB07 | S45 | M11: X | O11: Show | Q11: RB390 | 2-7/8" | R11: X | T11: Show
B12: S35 STD | C12: X | E12: Show | G12: Oval Bottom Rail | H12: X | J12: Show | L12: RB08 | S40 & S45 | M12: X | O12: Show | Q12: RB560 | 1-1/2" | R12: X | T12: Show
B13: S35 HD | C13: X | E13: Show | G13: D30 Medium Bottom Rail | H13: X | J13: Show | L13: RB09 | S45 | M13: X | O13: Show | Q13: RB580 | 2" | R13: X | T13: Show
B14: S40 STD | C14: X | E14: Show | G14: Bottom Up Weight Bar | H14: X | J14: Show | L14: RB09 w/ Guide | S45 | M14: X | O14: Show | Q14: RB590 | 2-7/8" | R14: X | T14: Show
B15: S40 HD | C15: X | E15: Show | G15: F4115 Heavy Duty Bottom Rail | H15: X | J15: Show | L15: RB09 Geared | S45 | M15: X | O15: Show | Q15: RBGAL | R15: X | T15: Show
B16: S45 | LIGHT | C16: X | E16: Show | G16: F56 HD Weight Bar | H16: =IF(I16<>"","","X") -> X | J16: =IF(I16<>"","Hide","Show") -> Show | L16: RB09 Geared w/ Guide | S45 | M16: X | O16: Show | Q16: LX Bracket 30mm | S35 | R16: X | T16: Show
B17: S45 | STD | C17: X | E17: Show | G17: F72 HD Weight Bar | H17: X | J17: Show | L17: RB10 | S60 | M17: X | O17: Show | Q17: LX/VX/AX Bracket 40mm Proj. | R17: X | T17: Show
B18: S45 | HD | C18: X | E18: Show | L18: SL10 | M18: X | O18: Show | Q18: LX/VX/AX Bracket 55mm Proj. | R18: X | T18: Show
B19: S60 | 60 STD | C19: X | E19: Show | L19: SL15 | M19: X | O19: Show | Q19: Slimline-X Double Easy-Lock Bracket | S40/S45 | R19: X | T19: Show
B20: S60 | 80 HD | C20: X | E20: Show | L20: SL20 | M20: X | O20: Show | Q20: Square-X Double Easy-Lock Bracket | S40/S45 | R20: X | T20: Show
B21: 63 STD Aluminium | C21: X | E21: Show | L21: SL30 | M21: X | O21: Show | Q21: Slim Profile Double Bracket | S40/S45 | R21: X | T21: Show
B22: 78 STD Aluminium | C22: X | E22: Show | L22: Easy Spring Air | 1.5" | M22: X | O22: Show | Q22: Skyline Bracket | Double Universal | 38mm | R22: X | T22: Show
B23: 78 HD Aluminium | C23: X | E23: Show | L23: Easy Spring Air | S45 | M23: X | O23: Show | Q23: Skyline Bracket | Double Universal | 48mm | R23: X | T23: Show
B24: 78 STEEL | C24: X | E24: Show | L24: Easy Spring Air | 2" | M24: X | O24: Show | Q24: Skyline Bracket | Double Vertical or Horizontal | R24: X | T24: Show
B25: S100 | 110 STD | C25: X | E25: Show | L25: Automate | 0.5 Nm | 20 rpm | M25: X | O25: Show | Q25: 60mm Bracket | S60 | R25: X | T25: Show
B26: S100 | 130 HD | C26: X | E26: Show | L26: Automate | 1.1 Nm | 20 rpm | M26: X | O26: Show | Q26: 80mm Bracket | S60 | R26: =IF(S26<>"","","X") -> X | T26: Show
B27: S100 | 160 XHD | C27: X | E27: Show | L27: Automate | 2 Nm | 20 rpm | M27: X | O27: Show | Q27: Double Bracket | S60 | R27: X | T27: Show
L28: Automate | 3 Nm | 28 rpm | M28: X | O28: Show | Q28: Extreme | Top/Face Bracket | S100 | R28: X | T28: Show
L29: Automate | 6 Nm | 33 rpm | M29: X | O29: Show | Q29: Extreme | Recess Bracket | S100 | R29: X | T29: Show
L30: Automate | 10 Nm | 9 rpm | M30: X | O30: Show | Q30: External Open Bracket | Round | R30: X | T30: Show
L31: Automate | 15 Nm | 15 rpm | M31: X | O31: Show | Q31: External Open Bracket | Square | R31: X | T31: Show
L32: Automate | 30 Nm | 15 rpm | M32: X | O32: Show | Q32: Box 120 | R32: X | T32: Show
L33: Automate | 50 Nm | 12 rpm | M33: X | O33: Show | Q33: Extreme | Box 190 Cassette | R33: X | T33: Show
Q34: Extreme | Zipscreen Open Bracket | R34: X | T34: Show
Q35: Cassette 80 | R35: X | T35: Show
Q36: Cassette 100 | R36: X | T36: Show
Q37: Cassette 120 | R37: X | T37: Show
Q38: Square Cassette 110 | R38: X | T38: Show
Q39: 3" Fascia | R39: X | T39: Show
Q40: 4" Fascia | R40: X | T40: Show
Q41: 5" Fascia - Single Roll | R41: X | T41: Show
Q42: 5" Fascia - Double Roll | R42: X | T42: Show
Q43: P95 | R43: =IF(S43<>"","","X") -> X | T43: Show
Q44: FRS100 | R44: X | T44: Show
Q45: FRS120 | R45: X | T45: Show
Q46: CF90 | R46: =IF(S46<>"","","X") -> X | T46: =IF(S46<>"","Hide","Show") -> Show

Sheet 4. Custom Fabric
C2: Fabric Description | D2: METRIC | F2: IMPERIAL
D3: Thickness (mm) | E3: Density (gsm) | F3: Thickness (in) | G3: Density (oz/yd²)
B4: 1
B5: 2
B6: 3
B7: 4
B8: 5
B9: 6
B10: 7
B11: 8
B12: 9
B13: 10
B14: 11
B15: 12
B16: 13
B17: 14
B18: 15

Sheet _ReferenceData (hidden)
C3: Material Data | G3: kg/m³ | H3: GPa | AK3: Include Control Check if selected | AM3: =i_ControlType -> 0
C4: Material | G4: Density | H4: Young's Modulus
C5: Aluminium | G5: 2710 | H5: =68*10^9 -> 68000000000 | W5: =INDEX(Tube_Description,MATCH(TRUE,$S$15:$S$37<Deflection_limit*$S$7,0)) ->  | AM5: =IF(i_ControlType<>"",MATCH(i_ControlType,$E$96:$E$125,0),"") -> 
C6: Steel | G6: 7860 | H6: =200*10^9 -> 200000000000 | S6: rec start factor
S7: =IF(U11=1,1,0.8) -> 0.8
AE8: turn target
Q9: WEIGHT FACTORED | T9: includes width vs tube length check | AE9: 18
N10: Width input (m) | P10: OPTIONS Show On/Off | Q10: =IFERROR(INDEX(Tube_Description,MATCH(SMALL($Q$15:$Q$37,Tube_Count-$U$11+1),$Q$15:$Q$37,0)),IF(AND(i_Tube="",U11>0),"Select a tube.","No suitable options.")) -> No suitable options. | U10: COUNT | V10: Recommended Tube | W10: =IFERROR(INDEX(Tube_Description,MATCH(SMALL($T$15:$T$37,Tube_Count-$U$11+1),$T$15:$T$37,0)),IF(AND(i_Tube="",U11>0),"Select a tube.","No suitable options.")) -> No suitable options. | X10: old rec
H11: MUST UPDATE CONTROL vs. TUBE COMPATIBILITY HEADERS | N11: =Design_Width_MAX -> 0 | Q11: (Span/Def) * Weight | S11: limit is: (mm) | T11: tube on/off here | U11: =COUNTIF($T$15:$T$37,">0") -> 0 | W11: =IFERROR(INDEX(Tube_Description,MATCH(1,$T$15:$T$37,0)),"No suitable options.") | AN11: new rec
C12: =i_Category -> Internal | E12: =i_Region -> Global | Q12: Tube Outputs | S12: =Design_Width*Deflection_limit -> 0 | AD12: =IFERROR(INDEX(Tube_Description,MATCH($Y15,$AD$15:$AD$37,0)),z_NoOptions) -> No suitable options. | AE12: # turns dif | AF12: ascending | AG12: ascending | AI12: ascending | AN12: =IFERROR(AN15,IF(AND(i_Tube="",U11>0),"Select a tube.","No suitable options.")) -> No suitable options. | AP12: LINK COMPATIBILITY.
C13: Tubes | I13: mm | J13: kg/m | K13: (mm⁴) | L13: (Nm²) | M13: m² | N13: m | O13: N | S13: mm | T13: =COUNT($T$15:$T$37) -> 0 | AB13: weight factor only list
C14: ESA Check | D14: System OnOff | E14: Region | F14: Region OnOff | G14: Codes | H14: Description | I14: Tube OD | J14: Mass/m | K14: I_min | L14: EI | M14: Max Area | N14: MaxLength | O14: NumTurns | S14: Deflection | T14: Span/Def. | U14: TUBE RANK | W14: OUTPUT LIST | Y14: # | AF14: RANK # TURNS | AG14: RANK DEFLECTION | AH14: tube weights of OK deflection | AI14: RANK WEIGHT | AK14: new ranks | AP14: S60 Multi-Link | AQ14: Easy-Link Skyline | AR14: Easy-Link | AS14: Easy-Link Uni-Joint | AT14: Infinite Link
C15: =IF(i_ControlType="Easy Spring Air",0,1) -> 1 | D15: 1 | E15: US | F15: =IF(i_Region="Global",1,IF(OR(i_Region=E15,E15="Global"),1,0)) -> 1 | G15: RTEA1 | H15: 1" | I15: 26.7 | J15: 0.28 | K15: 8191 | L15: =(K15*10^-12)*AL_E -> 556.988 | N15: 3.658 | O15: =(-T_Tubes[[#This Row],[Tube OD]]+SQRT(T_Tubes[[#This Row],[Tube OD]]^2+4*Fabric_Thickness*Design_Drop*1000/PI()))/(2*Fabric_Thickness) ->  | P15: =IF(INDEX('3. Hardware Options'!$E$5:$E$27,MATCH(T_Tubes[[#This Row],[Description]],'3. Hardware Options'!$B$5:$B$27,0))="Show",1*SUMPRODUCT(D15,F15,C15),0) -> 1 | Q15: =((Design_Width_MAX/S15)*IFERROR(SUMPRODUCT(D15,F15,P15),"-")*IF((S15>Design_Width_MAX*Deflection_limit),0,1)*IF(T_Tubes[[#This Row],[MaxLength]]>=Design_Width_MAX,1,0))*T_Tubes[[#This Row],[Mass/m]] ->  | R15: =IF($Q15,1+(COUNTIF($Q$15:$Q$37,"<"&$Q15)-COUNTIF($Q$15:$Q$37,"<0.00001")),IF(SheetStatus="Release - FFA",999-COUNTIF($T$15:$T15,"=0")+1,"")) ->  | S15: =(5/384)*((g*(Fabric_Density*Design_Drop+$J15+wb_UnitMass+Ballast_UnitMass)*Design_Width_MAX^4)/$L15)*1000 ->  | T15: =((Design_Width_MAX/S15)*IFERROR(SUMPRODUCT(D15,F15,P15),"-")*IF((S15>Design_Width_MAX*Deflection_limit),0,1)*IF(T_Tubes[[#This Row],[MaxLength]]>=Design_Width_MAX,1,0)) ->  | U15: =IF($T15,1+(COUNTIF($T$15:$T$37,"<"&$T15)-COUNTIF($T$15:$T$37,"<0.00001")),IF(SheetStatus="Release - FFA",999-COUNTIF($T$15:$T15,"=0")+1,"")) ->  | W15: =IFERROR(INDEX(Tube_Description,MATCH($Y15,$U$15:$U$37,0)),z_NoOptions) -> No suitable options. | Y15: 1 | AB15: =IFERROR(INDEX(Tube_Description,MATCH($Y15,$R$15:$R$37,0)),z_NoOptions) -> No suitable options. | AC15: =((Design_Width_MAX/S15)*IFERROR(SUMPRODUCT(D15,F15,P15,C15),"-")*IF((S15>Design_Width_MAX*Deflection_limit*$S$7),0,1)*IF(T_Tubes[[#This Row],[MaxLength]]>=Design_Width_MAX,1,0)) ->  | AD15: =IF($AC15,1+(COUNTIF($AC$15:$AC$37,"<"&$AC15)-COUNTIF($AC$15:$AC$37,"<0.00001")),IF(SheetStatus="Release - FFA",999-COUNTIF($T$15:$T15,"=0")+1,"")) ->  | AE15: =IF(T15<>0,ABS(T_Tubes[[#This Row],[NumTurns]]-$AE$9),"") ->  | AF15: =IFERROR(_xlfn.RANK.AVG(AE15,$AE$15:$AE$37,1),"") ->  | AG15: =IF($AC15,1+(COUNTIF($AC$15:$AC$37,"<"&$AC15)-COUNTIF($AC$15:$AC$37,"<0.00001")),IF(SheetStatus="Release - FFA",999-COUNTIF($AC$15:$AC15,"=0")+1,"0")) ->  | AH15: =IF(AC15<>0,T_Tubes[[#This Row],[Mass/m]],"") ->  | AI15: =IFERROR(_xlfn.RANK.AVG(AH15,$AH$15:$AH$37,1),"") ->  | AJ15: =IFERROR(IF(AF15*AG15*AI15=0,"",(AF15^2*AG15*SQRT(AI15))+RAND()),"") ->  | AK15: =IFERROR(_xlfn.RANK.AVG(AJ15,$AJ$15:$AJ$37,1),"") ->  | AN15: =IFERROR(INDEX(Tube_Description,MATCH($Y15,$AK$15:$AK$37,0)),z_NoOptions) -> No suitable options.
C16: =IF(i_ControlType="Easy Spring Air",0,1) -> 1 | D16: 1 | E16: US | F16: 1 | G16: RTEA2 | H16: 1-1/8" | I16: 29.5 | J16: 0.3 | K16: 11101 | L16: 754.868 | N16: 4.878 | O16: =(-T_Tubes[[#This Row],[Tube OD]]+SQRT(T_Tubes[[#This Row],[Tube OD]]^2+4*Fabric_Thickness*Design_Drop*1000/PI()))/(2*Fabric_Thickness) ->  | P16: =IF(INDEX('3. Hardware Options'!$E$5:$E$27,MATCH(T_Tubes[[#This Row],[Description]],'3. Hardware Options'!$B$5:$B$27,0))="Show",1*SUMPRODUCT(D16,F16,C16),0) -> 1 | Q16: =((Design_Width_MAX/S16)*IFERROR(SUMPRODUCT(D16,F16,P16),"-")*IF((S16>Design_Width_MAX*Deflection_limit),0,1)*IF(T_Tubes[[#This Row],[MaxLength]]>=Design_Width_MAX,1,0))*T_Tubes[[#This Row],[Mass/m]] ->  | R16: =IF($Q16,1+(COUNTIF($Q$15:$Q$37,"<"&$Q16)-COUNTIF($Q$15:$Q$37,"<0.00001")),IF(SheetStatus="Release - FFA",999-COUNTIF($T$15:$T16,"=0")+1,"")) ->  | T16: =((Design_Width_MAX/S16)*IFERROR(SUMPRODUCT(D16,F16,P16),"-")*IF((S16>Design_Width_MAX*Deflection_limit),0,1)*IF(T_Tubes[[#This Row],[MaxLength]]>=Design_Width_MAX,1,0)) ->  | U16: =IF($T16,1+(COUNTIF($T$15:$T$37,"<"&$T16)-COUNTIF($T$15:$T$37,"<0.00001")),IF(SheetStatus="Release - FFA",999-COUNTIF($T$15:$T16,"=0")+1,"")) ->  | W16: =IFERROR(INDEX(Tube_Description,MATCH($Y16,$U$15:$U$37,0)),"") ->  | Y16: =IF(Y15+1<=$U$11,Y15+1,999-COUNT($Y$15:Y15)+$U$11) -> 998 | AB16: =IFERROR(INDEX(Tube_Description,MATCH($Y16,$R$15:$R$37,0)),"") ->  | AC16: =((Design_Width_MAX/S16)*IFERROR(SUMPRODUCT(D16,F16,P16,C16),"-")*IF((S16>Design_Width_MAX*Deflection_limit*$S$7),0,1)*IF(T_Tubes[[#This Row],[MaxLength]]>=Design_Width_MAX,1,0)) ->  | AD16: =IF($AC16,1+(COUNTIF($AC$15:$AC$37,"<"&$AC16)-COUNTIF($AC$15:$AC$37,"<0.00001")),IF(SheetStatus="Release - FFA",999-COUNTIF($T$15:$T16,"=0")+1,"")) ->  | AE16: =IF(T16<>0,ABS(T_Tubes[[#This Row],[NumTurns]]-$AE$9),"") ->  | AG16: =IF($AC16,1+(COUNTIF($AC$15:$AC$37,"<"&$AC16)-COUNTIF($AC$15:$AC$37,"<0.00001")),IF(SheetStatus="Release - FFA",999-COUNTIF($AC$15:$AC16,"=0")+1,"0")) ->  | AH16: =IF(AC16<>0,T_Tubes[[#This Row],[Mass/m]],"") ->  | AJ16: =IFERROR(IF(AF16*AG16*AI16=0,"",(AF16^2*AG16*SQRT(AI16))+RAND()),"") ->  | AN16: =IFERROR(INDEX(Tube_Description,MATCH($Y16,$AK$15:$AK$37,0)),"") -> 
C17: =IF(i_ControlType="Easy Spring Air",0,1) -> 1 | D17: 1 | E17: US | F17: 1 | G17: RTEA3 | H17: 1-1/4" | I17: 32.76 | J17: 0.3556 | K17: 15608.7 | L17: 1061.3916 | N17: 4.878 | O17: =(-T_Tubes[[#This Row],[Tube OD]]+SQRT(T_Tubes[[#This Row],[Tube OD]]^2+4*Fabric_Thickness*Design_Drop*1000/PI()))/(2*Fabric_Thickness) ->  | P17: =IF(INDEX('3. Hardware Options'!$E$5:$E$27,MATCH(T_Tubes[[#This Row],[Description]],'3. Hardware Options'!$B$5:$B$27,0))="Show",1*SUMPRODUCT(D17,F17,C17),0) -> 1 | Q17: =((Design_Width_MAX/S17)*IFERROR(SUMPRODUCT(D17,F17,P17),"-")*IF((S17>Design_Width_MAX*Deflection_limit),0,1)*IF(T_Tubes[[#This Row],[MaxLength]]>=Design_Width_MAX,1,0))*T_Tubes[[#This Row],[Mass/m]] ->  | R17: =IF($Q17,1+(COUNTIF($Q$15:$Q$37,"<"&$Q17)-COUNTIF($Q$15:$Q$37,"<0.00001")),IF(SheetStatus="Release - FFA",999-COUNTIF($T$15:$T17,"=0")+1,"")) ->  | T17: =((Design_Width_MAX/S17)*IFERROR(SUMPRODUCT(D17,F17,P17),"-")*IF((S17>Design_Width_MAX*Deflection_limit),0,1)*IF(T_Tubes[[#This Row],[MaxLength]]>=Design_Width_MAX,1,0)) ->  | U17: =IF($T17,1+(COUNTIF($T$15:$T$37,"<"&$T17)-COUNTIF($T$15:$T$37,"<0.00001")),IF(SheetStatus="Release - FFA",999-COUNTIF($T$15:$T17,"=0")+1,"")) ->  | Y17: =IF(Y16+1<=$U$11,Y16+1,999-COUNT($Y$15:Y16)+$U$11) -> 997 | AC17: =((Design_Width_MAX/S17)*IFERROR(SUMPRODUCT(D17,F17,P17,C17),"-")*IF((S17>Design_Width_MAX*Deflection_limit*$S$7),0,1)*IF(T_Tubes[[#This Row],[MaxLength]]>=Design_Width_MAX,1,0)) ->  | AD17: =IF($AC17,1+(COUNTIF($AC$15:$AC$37,"<"&$AC17)-COUNTIF($AC$15:$AC$37,"<0.00001")),IF(SheetStatus="Release - FFA",999-COUNTIF($T$15:$T17,"=0")+1,"")) ->  | AE17: =IF(T17<>0,ABS(T_Tubes[[#This Row],[NumTurns]]-$AE$9),"") ->  | AG17: =IF($AC17,1+(COUNTIF($AC$15:$AC$37,"<"&$AC17)-COUNTIF($AC$15:$AC$37,"<0.00001")),IF(SheetStatus="Release - FFA",999-COUNTIF($AC$15:$AC17,"=0")+1,"0")) ->  | AH17: =IF(AC17<>0,T_Tubes[[#This Row],[Mass/m]],"") -> 
C18: =IF(i_Region="AU",0,1) -> 1 | D18: 1 | E18: Global | F18: 1 | G18: RTEA4 | H18: 1-1/2" | I18: 38.6 | J18: 0.425 | K18: 26222.6 | L18: =(K18*10^-12)*AL_E -> 1783.1368 | N18: 4.878 | O18: =(-T_Tubes[[#This Row],[Tube OD]]+SQRT(T_Tubes[[#This Row],[Tube OD]]^2+4*Fabric_Thickness*Design_Drop*1000/PI()))/(2*Fabric_Thickness) ->  | P18: =IF(INDEX('3. Hardware Options'!$E$5:$E$27,MATCH(T_Tubes[[#This Row],[Description]],'3. Hardware Options'!$B$5:$B$27,0))="Show",1*SUMPRODUCT(D18,F18,C18),0) -> 1 | Q18: =((Design_Width_MAX/S18)*IFERROR(SUMPRODUCT(D18,F18,P18),"-")*IF((S18>Design_Width_MAX*Deflection_limit),0,1)*IF(T_Tubes[[#This Row],[MaxLength]]>=Design_Width_MAX,1,0))*T_Tubes[[#This Row],[Mass/m]] ->  | R18: =IF($Q18,1+(COUNTIF($Q$15:$Q$37,"<"&$Q18)-COUNTIF($Q$15:$Q$37,"<0.00001")),IF(SheetStatus="Release - FFA",999-COUNTIF($T$15:$T18,"=0")+1,"")) ->  | T18: =((Design_Width_MAX/S18)*IFERROR(SUMPRODUCT(D18,F18,P18),"-")*IF((S18>Design_Width_MAX*Deflection_limit),0,1)*IF(T_Tubes[[#This Row],[MaxLength]]>=Design_Width_MAX,1,0)) ->  | U18: =IF($T18,1+(COUNTIF($T$15:$T$37,"<"&$T18)-COUNTIF($T$15:$T$37,"<0.00001")),IF(SheetStatus="Release - FFA",999-COUNTIF($T$15:$T18,"=0")+1,"")) ->  | Y18: =IF(Y17+1<=$U$11,Y17+1,999-COUNT($Y$15:Y17)+$U$11) -> 996 | AC18: =((Design_Width_MAX/S18)*IFERROR(SUMPRODUCT(D18,F18,P18,C18),"-")*IF((S18>Design_Width_MAX*Deflection_limit*$S$7),0,1)*IF(T_Tubes[[#This Row],[MaxLength]]>=Design_Width_MAX,1,0)) ->  | AD18: =IF($AC18,1+(COUNTIF($AC$15:$AC$37,"<"&$AC18)-COUNTIF($AC$15:$AC$37,"<0.00001")),IF(SheetStatus="Release - FFA",999-COUNTIF($T$15:$T18,"=0")+1,"")) ->  | AE18: =IF(T18<>0,ABS(T_Tubes[[#This Row],[NumTurns]]-$AE$9),"") ->  | AG18: =IF($AC18,1+(COUNTIF($AC$15:$AC$37,"<"&$AC18)-COUNTIF($AC$15:$AC$37,"<0.00001")),IF(SheetStatus="Release - FFA",999-COUNTIF($AC$15:$AC18,"=0")+1,"0")) ->  | AH18: =IF(AC18<>0,T_Tubes[[#This Row],[Mass/m]],"") ->  | AQ18: 1 | AR18: 1 | AS18: 1 | AT18: 1
C19: =IF(i_Region="AU",0,1) -> 1 | D19: 1 | E19: Global | F19: 1 | G19: RTEA5 | H19: 2" | I19: 50.8 | J19: 0.736 | K19: 74380.6 | L19: 5057.8808 | N19: 4.878 | O19: =(-T_Tubes[[#This Row],[Tube OD]]+SQRT(T_Tubes[[#This Row],[Tube OD]]^2+4*Fabric_Thickness*Design_Drop*1000/PI()))/(2*Fabric_Thickness) ->  | P19: =IF(INDEX('3. Hardware Options'!$E$5:$E$27,MATCH(T_Tubes[[#This Row],[Description]],'3. Hardware Options'!$B$5:$B$27,0))="Show",1*SUMPRODUCT(D19,F19,C19),0) -> 1 | Q19: =((Design_Width_MAX/S19)*IFERROR(SUMPRODUCT(D19,F19,P19),"-")*IF((S19>Design_Width_MAX*Deflection_limit),0,1)*IF(T_Tubes[[#This Row],[MaxLength]]>=Design_Width_MAX,1,0))*T_Tubes[[#This Row],[Mass/m]] ->  | R19: =IF($Q19,1+(COUNTIF($Q$15:$Q$37,"<"&$Q19)-COUNTIF($Q$15:$Q$37,"<0.00001")),IF(SheetStatus="Release - FFA",999-COUNTIF($T$15:$T19,"=0")+1,"")) ->  | T19: =((Design_Width_MAX/S19)*IFERROR(SUMPRODUCT(D19,F19,P19),"-")*IF((S19>Design_Width_MAX*Deflection_limit),0,1)*IF(T_Tubes[[#This Row],[MaxLength]]>=Design_Width_MAX,1,0)) ->  | U19: =IF($T19,1+(COUNTIF($T$15:$T$37,"<"&$T19)-COUNTIF($T$15:$T$37,"<0.00001")),IF(SheetStatus="Release - FFA",999-COUNTIF($T$15:$T19,"=0")+1,"")) ->  | Y19: =IF(Y18+1<=$U$11,Y18+1,999-COUNT($Y$15:Y18)+$U$11) -> 995 | AC19: =((Design_Width_MAX/S19)*IFERROR(SUMPRODUCT(D19,F19,P19,C19),"-")*IF((S19>Design_Width_MAX*Deflection_limit*$S$7),0,1)*IF(T_Tubes[[#This Row],[MaxLength]]>=Design_Width_MAX,1,0)) ->  | AD19: =IF($AC19,1+(COUNTIF($AC$15:$AC$37,"<"&$AC19)-COUNTIF($AC$15:$AC$37,"<0.00001")),IF(SheetStatus="Release - FFA",999-COUNTIF($T$15:$T19,"=0")+1,"")) ->  | AE19: =IF(T19<>0,ABS(T_Tubes[[#This Row],[NumTurns]]-$AE$9),"") ->  | AG19: =IF($AC19,1+(COUNTIF($AC$15:$AC$37,"<"&$AC19)-COUNTIF($AC$15:$AC$37,"<0.00001")),IF(SheetStatus="Release - FFA",999-COUNTIF($AC$15:$AC19,"=0")+1,"0")) ->  | AH19: =IF(AC19<>0,T_Tubes[[#This Row],[Mass/m]],"") ->  | AQ19: 1
C20: =IF(i_ControlType="Easy Spring Air",0,1) -> 1 | D20: 1 | E20: Global | F20: 1 | G20: RTEA6 | H20: 2-1/2" | I20: 65.2 | J20: 1.31 | K20: 224028 | L20: 15233.904 | N20: 4.878 | O20: =(-T_Tubes[[#This Row],[Tube OD]]+SQRT(T_Tubes[[#This Row],[Tube OD]]^2+4*Fabric_Thickness*Design_Drop*1000/PI()))/(2*Fabric_Thickness) ->  | P20: =IF(INDEX('3. Hardware Options'!$E$5:$E$27,MATCH(T_Tubes[[#This Row],[Description]],'3. Hardware Options'!$B$5:$B$27,0))="Show",1*SUMPRODUCT(D20,F20,C20),0) -> 1 | Q20: =((Design_Width_MAX/S20)*IFERROR(SUMPRODUCT(D20,F20,P20),"-")*IF((S20>Design_Width_MAX*Deflection_limit),0,1)*IF(T_Tubes[[#This Row],[MaxLength]]>=Design_Width_MAX,1,0))*T_Tubes[[#This Row],[Mass/m]] ->  | R20: =IF($Q20,1+(COUNTIF($Q$15:$Q$37,"<"&$Q20)-COUNTIF($Q$15:$Q$37,"<0.00001")),IF(SheetStatus="Release - FFA",999-COUNTIF($T$15:$T20,"=0")+1,"")) ->  | T20: =((Design_Width_MAX/S20)*IFERROR(SUMPRODUCT(D20,F20,P20),"-")*IF((S20>Design_Width_MAX*Deflection_limit),0,1)*IF(T_Tubes[[#This Row],[MaxLength]]>=Design_Width_MAX,1,0)) ->  | U20: =IF($T20,1+(COUNTIF($T$15:$T$37,"<"&$T20)-COUNTIF($T$15:$T$37,"<0.00001")),IF(SheetStatus="Release - FFA",999-COUNTIF($T$15:$T20,"=0")+1,"")) ->  | Y20: =IF(Y19+1<=$U$11,Y19+1,999-COUNT($Y$15:Y19)+$U$11) -> 994 | AC20: =((Design_Width_MAX/S20)*IFERROR(SUMPRODUCT(D20,F20,P20,C20),"-")*IF((S20>Design_Width_MAX*Deflection_limit*$S$7),0,1)*IF(T_Tubes[[#This Row],[MaxLength]]>=Design_Width_MAX,1,0)) ->  | AD20: =IF($AC20,1+(COUNTIF($AC$15:$AC$37,"<"&$AC20)-COUNTIF($AC$15:$AC$37,"<0.00001")),IF(SheetStatus="Release - FFA",999-COUNTIF($T$15:$T20,"=0")+1,"")) ->  | AE20: =IF(T20<>0,ABS(T_Tubes[[#This Row],[NumTurns]]-$AE$9),"") ->  | AG20: =IF($AC20,1+(COUNTIF($AC$15:$AC$37,"<"&$AC20)-COUNTIF($AC$15:$AC$37,"<0.00001")),IF(SheetStatus="Release - FFA",999-COUNTIF($AC$15:$AC20,"=0")+1,"0")) ->  | AH20: =IF(AC20<>0,T_Tubes[[#This Row],[Mass/m]],"") ->  | AQ20: 1
C21: 1 | D21: 1 | E21: US | F21: 1 | G21: RTEA7 | H21: 3-1/4" | I21: 83.1 | J21: 3.08 | K21: 798623 | L21: 54306.364 | N21: 4.878 | O21: =(-T_Tubes[[#This Row],[Tube OD]]+SQRT(T_Tubes[[#This Row],[Tube OD]]^2+4*Fabric_Thickness*Design_Drop*1000/PI()))/(2*Fabric_Thickness) ->  | P21: =IF(INDEX('3. Hardware Options'!$E$5:$E$27,MATCH(T_Tubes[[#This Row],[Description]],'3. Hardware Options'!$B$5:$B$27,0))="Show",1*SUMPRODUCT(D21,F21,C21),0) -> 1 | Q21: =((Design_Width_MAX/S21)*IFERROR(SUMPRODUCT(D21,F21,P21),"-")*IF((S21>Design_Width_MAX*Deflection_limit),0,1)*IF(T_Tubes[[#This Row],[MaxLength]]>=Design_Width_MAX,1,0))*T_Tubes[[#This Row],[Mass/m]] ->  | R21: =IF($Q21,1+(COUNTIF($Q$15:$Q$37,"<"&$Q21)-COUNTIF($Q$15:$Q$37,"<0.00001")),IF(SheetStatus="Release - FFA",999-COUNTIF($T$15:$T21,"=0")+1,"")) ->  | T21: =((Design_Width_MAX/S21)*IFERROR(SUMPRODUCT(D21,F21,P21),"-")*IF((S21>Design_Width_MAX*Deflection_limit),0,1)*IF(T_Tubes[[#This Row],[MaxLength]]>=Design_Width_MAX,1,0)) ->  | U21: =IF($T21,1+(COUNTIF($T$15:$T$37,"<"&$T21)-COUNTIF($T$15:$T$37,"<0.00001")),IF(SheetStatus="Release - FFA",999-COUNTIF($T$15:$T21,"=0")+1,"")) ->  | Y21: =IF(Y20+1<=$U$11,Y20+1,999-COUNT($Y$15:Y20)+$U$11) -> 993 | AC21: =((Design_Width_MAX/S21)*IFERROR(SUMPRODUCT(D21,F21,P21,C21),"-")*IF((S21>Design_Width_MAX*Deflection_limit*$S$7),0,1)*IF(T_Tubes[[#This Row],[MaxLength]]>=Design_Width_MAX,1,0)) ->  | AD21: =IF($AC21,1+(COUNTIF($AC$15:$AC$37,"<"&$AC21)-COUNTIF($AC$15:$AC$37,"<0.00001")),IF(SheetStatus="Release - FFA",999-COUNTIF($T$15:$T21,"=0")+1,"")) ->  | AE21: =IF(T21<>0,ABS(T_Tubes[[#This Row],[NumTurns]]-$AE$9),"") ->  | AG21: =IF($AC21,1+(COUNTIF($AC$15:$AC$37,"<"&$AC21)-COUNTIF($AC$15:$AC$37,"<0.00001")),IF(SheetStatus="Release - FFA",999-COUNTIF($AC$15:$AC21,"=0")+1,"0")) ->  | AH21: =IF(AC21<>0,T_Tubes[[#This Row],[Mass/m]],"") -> 
C22: 1 | D22: 1 | E22: AU | F22: 1 | G22: RB93-0333 | H22: S35 STD | I22: 32.9 | J22: 0.31 | K22: 14029 | L22: 953.972 | N22: 5.8 | O22: =(-T_Tubes[[#This Row],[Tube OD]]+SQRT(T_Tubes[[#This Row],[Tube OD]]^2+4*Fabric_Thickness*Design_Drop*1000/PI()))/(2*Fabric_Thickness) ->  | P22: =IF(INDEX('3. Hardware Options'!$E$5:$E$27,MATCH(T_Tubes[[#This Row],[Description]],'3. Hardware Options'!$B$5:$B$27,0))="Show",1*SUMPRODUCT(D22,F22,C22),0) -> 1 | Q22: =((Design_Width_MAX/S22)*IFERROR(SUMPRODUCT(D22,F22,P22),"-")*IF((S22>Design_Width_MAX*Deflection_limit),0,1)*IF(T_Tubes[[#This Row],[MaxLength]]>=Design_Width_MAX,1,0))*T_Tubes[[#This Row],[Mass/m]] ->  | R22: =IF($Q22,1+(COUNTIF($Q$15:$Q$37,"<"&$Q22)-COUNTIF($Q$15:$Q$37,"<0.00001")),IF(SheetStatus="Release - FFA",999-COUNTIF($T$15:$T22,"=0")+1,"")) ->  | T22: =((Design_Width_MAX/S22)*IFERROR(SUMPRODUCT(D22,F22,P22),"-")*IF((S22>Design_Width_MAX*Deflection_limit),0,1)*IF(T_Tubes[[#This Row],[MaxLength]]>=Design_Width_MAX,1,0)) ->  | U22: =IF($T22,1+(COUNTIF($T$15:$T$37,"<"&$T22)-COUNTIF($T$15:$T$37,"<0.00001")),IF(SheetStatus="Release - FFA",999-COUNTIF($T$15:$T22,"=0")+1,"")) ->  | Y22: =IF(Y21+1<=$U$11,Y21+1,999-COUNT($Y$15:Y21)+$U$11) -> 992 | AC22: =((Design_Width_MAX/S22)*IFERROR(SUMPRODUCT(D22,F22,P22,C22),"-")*IF((S22>Design_Width_MAX*Deflection_limit*$S$7),0,1)*IF(T_Tubes[[#This Row],[MaxLength]]>=Design_Width_MAX,1,0)) ->  | AD22: =IF($AC22,1+(COUNTIF($AC$15:$AC$37,"<"&$AC22)-COUNTIF($AC$15:$AC$37,"<0.00001")),IF(SheetStatus="Release - FFA",999-COUNTIF($T$15:$T22,"=0")+1,"")) ->  | AE22: =IF(T22<>0,ABS(T_Tubes[[#This Row],[NumTurns]]-$AE$9),"") ->  | AG22: =IF($AC22,1+(COUNTIF($AC$15:$AC$37,"<"&$AC22)-COUNTIF($AC$15:$AC$37,"<0.00001")),IF(SheetStatus="Release - FFA",999-COUNTIF($AC$15:$AC22,"=0")+1,"0")) ->  | AH22: =IF(AC22<>0,T_Tubes[[#This Row],[Mass/m]],"") -> 
C23: 1 | D23: 1 | E23: AU | F23: 1 | G23: RB93-0335 | H23: S35 HD | I23: 34 | J23: 0.46 | K23: 21925 | L23: 1490.9 | N23: 5.8 | O23: =(-T_Tubes[[#This Row],[Tube OD]]+SQRT(T_Tubes[[#This Row],[Tube OD]]^2+4*Fabric_Thickness*Design_Drop*1000/PI()))/(2*Fabric_Thickness) ->  | P23: =IF(INDEX('3. Hardware Options'!$E$5:$E$27,MATCH(T_Tubes[[#This Row],[Description]],'3. Hardware Options'!$B$5:$B$27,0))="Show",1*SUMPRODUCT(D23,F23,C23),0) -> 1 | Q23: =((Design_Width_MAX/S23)*IFERROR(SUMPRODUCT(D23,F23,P23),"-")*IF((S23>Design_Width_MAX*Deflection_limit),0,1)*IF(T_Tubes[[#This Row],[MaxLength]]>=Design_Width_MAX,1,0))*T_Tubes[[#This Row],[Mass/m]] ->  | R23: =IF($Q23,1+(COUNTIF($Q$15:$Q$37,"<"&$Q23)-COUNTIF($Q$15:$Q$37,"<0.00001")),IF(SheetStatus="Release - FFA",999-COUNTIF($T$15:$T23,"=0")+1,"")) ->  | T23: =((Design_Width_MAX/S23)*IFERROR(SUMPRODUCT(D23,F23,P23),"-")*IF((S23>Design_Width_MAX*Deflection_limit),0,1)*IF(T_Tubes[[#This Row],[MaxLength]]>=Design_Width_MAX,1,0)) ->  | U23: =IF($T23,1+(COUNTIF($T$15:$T$37,"<"&$T23)-COUNTIF($T$15:$T$37,"<0.00001")),IF(SheetStatus="Release - FFA",999-COUNTIF($T$15:$T23,"=0")+1,"")) ->  | Y23: =IF(Y22+1<=$U$11,Y22+1,999-COUNT($Y$15:Y22)+$U$11) -> 991 | AC23: =((Design_Width_MAX/S23)*IFERROR(SUMPRODUCT(D23,F23,P23,C23),"-")*IF((S23>Design_Width_MAX*Deflection_limit*$S$7),0,1)*IF(T_Tubes[[#This Row],[MaxLength]]>=Design_Width_MAX,1,0)) ->  | AD23: =IF($AC23,1+(COUNTIF($AC$15:$AC$37,"<"&$AC23)-COUNTIF($AC$15:$AC$37,"<0.00001")),IF(SheetStatus="Release - FFA",999-COUNTIF($T$15:$T23,"=0")+1,"")) ->  | AE23: =IF(T23<>0,ABS(T_Tubes[[#This Row],[NumTurns]]-$AE$9),"") ->  | AG23: =IF($AC23,1+(COUNTIF($AC$15:$AC$37,"<"&$AC23)-COUNTIF($AC$15:$AC$37,"<0.00001")),IF(SheetStatus="Release - FFA",999-COUNTIF($AC$15:$AC23,"=0")+1,"0")) ->  | AH23: =IF(AC23<>0,T_Tubes[[#This Row],[Mass/m]],"") -> 
C24: 1 | D24: 1 | E24: AU | F24: 1 | G24: RB93-0440 | H24: S40 STD | I24: 39.4 | J24: 0.35 | K24: 22294 | L24: 1515.992 | N24: 5.8 | O24: =(-T_Tubes[[#This Row],[Tube OD]]+SQRT(T_Tubes[[#This Row],[Tube OD]]^2+4*Fabric_Thickness*Design_Drop*1000/PI()))/(2*Fabric_Thickness) ->  | P24: =IF(INDEX('3. Hardware Options'!$E$5:$E$27,MATCH(T_Tubes[[#This Row],[Description]],'3. Hardware Options'!$B$5:$B$27,0))="Show",1*SUMPRODUCT(D24,F24,C24),0) -> 1 | Q24: =((Design_Width_MAX/S24)*IFERROR(SUMPRODUCT(D24,F24,P24),"-")*IF((S24>Design_Width_MAX*Deflection_limit),0,1)*IF(T_Tubes[[#This Row],[MaxLength]]>=Design_Width_MAX,1,0))*T_Tubes[[#This Row],[Mass/m]] ->  | R24: =IF($Q24,1+(COUNTIF($Q$15:$Q$37,"<"&$Q24)-COUNTIF($Q$15:$Q$37,"<0.00001")),IF(SheetStatus="Release - FFA",999-COUNTIF($T$15:$T24,"=0")+1,"")) ->  | T24: =((Design_Width_MAX/S24)*IFERROR(SUMPRODUCT(D24,F24,P24),"-")*IF((S24>Design_Width_MAX*Deflection_limit),0,1)*IF(T_Tubes[[#This Row],[MaxLength]]>=Design_Width_MAX,1,0)) ->  | U24: =IF($T24,1+(COUNTIF($T$15:$T$37,"<"&$T24)-COUNTIF($T$15:$T$37,"<0.00001")),IF(SheetStatus="Release - FFA",999-COUNTIF($T$15:$T24,"=0")+1,"")) ->  | Y24: =IF(Y23+1<=$U$11,Y23+1,999-COUNT($Y$15:Y23)+$U$11) -> 990 | AC24: =((Design_Width_MAX/S24)*IFERROR(SUMPRODUCT(D24,F24,P24,C24),"-")*IF((S24>Design_Width_MAX*Deflection_limit*$S$7),0,1)*IF(T_Tubes[[#This Row],[MaxLength]]>=Design_Width_MAX,1,0)) ->  | AD24: =IF($AC24,1+(COUNTIF($AC$15:$AC$37,"<"&$AC24)-COUNTIF($AC$15:$AC$37,"<0.00001")),IF(SheetStatus="Release - FFA",999-COUNTIF($T$15:$T24,"=0")+1,"")) ->  | AE24: =IF(T24<>0,ABS(T_Tubes[[#This Row],[NumTurns]]-$AE$9),"") ->  | AG24: =IF($AC24,1+(COUNTIF($AC$15:$AC$37,"<"&$AC24)-COUNTIF($AC$15:$AC$37,"<0.00001")),IF(SheetStatus="Release - FFA",999-COUNTIF($AC$15:$AC24,"=0")+1,"0")) ->  | AH24: =IF(AC24<>0,T_Tubes[[#This Row],[Mass/m]],"") ->  | AR24: 1 | AS24: 1
C25: 1 | D25: 1 | E25: AU | F25: 1 | G25: RB91-024x | H25: S40 HD | I25: 39.9 | J25: 0.54 | K25: 32347 | L25: 2199.596 | N25: 5.8 | O25: =(-T_Tubes[[#This Row],[Tube OD]]+SQRT(T_Tubes[[#This Row],[Tube OD]]^2+4*Fabric_Thickness*Design_Drop*1000/PI()))/(2*Fabric_Thickness) ->  | P25: =IF(INDEX('3. Hardware Options'!$E$5:$E$27,MATCH(T_Tubes[[#This Row],[Description]],'3. Hardware Options'!$B$5:$B$27,0))="Show",1*SUMPRODUCT(D25,F25,C25),0) -> 1 | Q25: =((Design_Width_MAX/S25)*IFERROR(SUMPRODUCT(D25,F25,P25),"-")*IF((S25>Design_Width_MAX*Deflection_limit),0,1)*IF(T_Tubes[[#This Row],[MaxLength]]>=Design_Width_MAX,1,0))*T_Tubes[[#This Row],[Mass/m]] ->  | R25: =IF($Q25,1+(COUNTIF($Q$15:$Q$37,"<"&$Q25)-COUNTIF($Q$15:$Q$37,"<0.00001")),IF(SheetStatus="Release - FFA",999-COUNTIF($T$15:$T25,"=0")+1,"")) ->  | T25: =((Design_Width_MAX/S25)*IFERROR(SUMPRODUCT(D25,F25,P25),"-")*IF((S25>Design_Width_MAX*Deflection_limit),0,1)*IF(T_Tubes[[#This Row],[MaxLength]]>=Design_Width_MAX,1,0)) ->  | U25: =IF($T25,1+(COUNTIF($T$15:$T$37,"<"&$T25)-COUNTIF($T$15:$T$37,"<0.00001")),IF(SheetStatus="Release - FFA",999-COUNTIF($T$15:$T25,"=0")+1,"")) ->  | Y25: =IF(Y24+1<=$U$11,Y24+1,999-COUNT($Y$15:Y24)+$U$11) -> 989 | AC25: =((Design_Width_MAX/S25)*IFERROR(SUMPRODUCT(D25,F25,P25,C25),"-")*IF((S25>Design_Width_MAX*Deflection_limit*$S$7),0,1)*IF(T_Tubes[[#This Row],[MaxLength]]>=Design_Width_MAX,1,0)) ->  | AD25: =IF($AC25,1+(COUNTIF($AC$15:$AC$37,"<"&$AC25)-COUNTIF($AC$15:$AC$37,"<0.00001")),IF(SheetStatus="Release - FFA",999-COUNTIF($T$15:$T25,"=0")+1,"")) ->  | AE25: =IF(T25<>0,ABS(T_Tubes[[#This Row],[NumTurns]]-$AE$9),"") ->  | AG25: =IF($AC25,1+(COUNTIF($AC$15:$AC$37,"<"&$AC25)-COUNTIF($AC$15:$AC$37,"<0.00001")),IF(SheetStatus="Release - FFA",999-COUNTIF($AC$15:$AC25,"=0")+1,"0")) ->  | AH25: =IF(AC25<>0,T_Tubes[[#This Row],[Mass/m]],"") ->  | AR25: 1 | AS25: 1
C26: 1 | D26: 1 | E26: Global | F26: 1 | G26: RB93-0443 | H26: S45 | LIGHT | I26: 43.25 | J26: 0.4138 | K26: 33442.06 | L26: 2274.06008 | N26: 5.8 | O26: =(-T_Tubes[[#This Row],[Tube OD]]+SQRT(T_Tubes[[#This Row],[Tube OD]]^2+4*Fabric_Thickness*Design_Drop*1000/PI()))/(2*Fabric_Thickness) ->  | P26: =IF(INDEX('3. Hardware Options'!$E$5:$E$27,MATCH(T_Tubes[[#This Row],[Description]],'3. Hardware Options'!$B$5:$B$27,0))="Show",1*SUMPRODUCT(D26,F26,C26),0) -> 1 | Q26: =((Design_Width_MAX/S26)*IFERROR(SUMPRODUCT(D26,F26,P26),"-")*IF((S26>Design_Width_MAX*Deflection_limit),0,1)*IF(T_Tubes[[#This Row],[MaxLength]]>=Design_Width_MAX,1,0))*T_Tubes[[#This Row],[Mass/m]] ->  | R26: =IF($Q26,1+(COUNTIF($Q$15:$Q$37,"<"&$Q26)-COUNTIF($Q$15:$Q$37,"<0.00001")),IF(SheetStatus="Release - FFA",999-COUNTIF($T$15:$T26,"=0")+1,"")) ->  | T26: =((Design_Width_MAX/S26)*IFERROR(SUMPRODUCT(D26,F26,P26),"-")*IF((S26>Design_Width_MAX*Deflection_limit),0,1)*IF(T_Tubes[[#This Row],[MaxLength]]>=Design_Width_MAX,1,0)) ->  | U26: =IF($T26,1+(COUNTIF($T$15:$T$37,"<"&$T26)-COUNTIF($T$15:$T$37,"<0.00001")),IF(SheetStatus="Release - FFA",999-COUNTIF($T$15:$T26,"=0")+1,"")) ->  | Y26: =IF(Y25+1<=$U$11,Y25+1,999-COUNT($Y$15:Y25)+$U$11) -> 988 | AC26: =((Design_Width_MAX/S26)*IFERROR(SUMPRODUCT(D26,F26,P26,C26),"-")*IF((S26>Design_Width_MAX*Deflection_limit*$S$7),0,1)*IF(T_Tubes[[#This Row],[MaxLength]]>=Design_Width_MAX,1,0)) ->  | AD26: =IF($AC26,1+(COUNTIF($AC$15:$AC$37,"<"&$AC26)-COUNTIF($AC$15:$AC$37,"<0.00001")),IF(SheetStatus="Release - FFA",999-COUNTIF($T$15:$T26,"=0")+1,"")) ->  | AE26: =IF(T26<>0,ABS(T_Tubes[[#This Row],[NumTurns]]-$AE$9),"") ->  | AG26: =IF($AC26,1+(COUNTIF($AC$15:$AC$37,"<"&$AC26)-COUNTIF($AC$15:$AC$37,"<0.00001")),IF(SheetStatus="Release - FFA",999-COUNTIF($AC$15:$AC26,"=0")+1,"0")) ->  | AH26: =IF(AC26<>0,T_Tubes[[#This Row],[Mass/m]],"") ->  | AR26: 1 | AS26: 1
C27: 1 | D27: 1 | E27: Global | F27: 1 | G27: RB93-0444 | H27: S45 | STD | I27: 44.15 | J27: 0.6019 | K27: 49036.01 | L27: 3334.44868 | N27: 5.8 | O27: =(-T_Tubes[[#This Row],[Tube OD]]+SQRT(T_Tubes[[#This Row],[Tube OD]]^2+4*Fabric_Thickness*Design_Drop*1000/PI()))/(2*Fabric_Thickness) ->  | P27: =IF(INDEX('3. Hardware Options'!$E$5:$E$27,MATCH(T_Tubes[[#This Row],[Description]],'3. Hardware Options'!$B$5:$B$27,0))="Show",1*SUMPRODUCT(D27,F27,C27),0) -> 1 | Q27: =((Design_Width_MAX/S27)*IFERROR(SUMPRODUCT(D27,F27,P27),"-")*IF((S27>Design_Width_MAX*Deflection_limit),0,1)*IF(T_Tubes[[#This Row],[MaxLength]]>=Design_Width_MAX,1,0))*T_Tubes[[#This Row],[Mass/m]] ->  | R27: =IF($Q27,1+(COUNTIF($Q$15:$Q$37,"<"&$Q27)-COUNTIF($Q$15:$Q$37,"<0.00001")),IF(SheetStatus="Release - FFA",999-COUNTIF($T$15:$T27,"=0")+1,"")) ->  | T27: =((Design_Width_MAX/S27)*IFERROR(SUMPRODUCT(D27,F27,P27),"-")*IF((S27>Design_Width_MAX*Deflection_limit),0,1)*IF(T_Tubes[[#This Row],[MaxLength]]>=Design_Width_MAX,1,0)) ->  | U27: =IF($T27,1+(COUNTIF($T$15:$T$37,"<"&$T27)-COUNTIF($T$15:$T$37,"<0.00001")),IF(SheetStatus="Release - FFA",999-COUNTIF($T$15:$T27,"=0")+1,"")) ->  | Y27: =IF(Y26+1<=$U$11,Y26+1,999-COUNT($Y$15:Y26)+$U$11) -> 987 | AC27: =((Design_Width_MAX/S27)*IFERROR(SUMPRODUCT(D27,F27,P27,C27),"-")*IF((S27>Design_Width_MAX*Deflection_limit*$S$7),0,1)*IF(T_Tubes[[#This Row],[MaxLength]]>=Design_Width_MAX,1,0)) ->  | AD27: =IF($AC27,1+(COUNTIF($AC$15:$AC$37,"<"&$AC27)-COUNTIF($AC$15:$AC$37,"<0.00001")),IF(SheetStatus="Release - FFA",999-COUNTIF($T$15:$T27,"=0")+1,"")) ->  | AE27: =IF(T27<>0,ABS(T_Tubes[[#This Row],[NumTurns]]-$AE$9),"") ->  | AG27: =IF($AC27,1+(COUNTIF($AC$15:$AC$37,"<"&$AC27)-COUNTIF($AC$15:$AC$37,"<0.00001")),IF(SheetStatus="Release - FFA",999-COUNTIF($AC$15:$AC27,"=0")+1,"0")) ->  | AH27: =IF(AC27<>0,T_Tubes[[#This Row],[Mass/m]],"") ->  | AR27: 1 | AS27: 1
C28: 1 | D28: 1 | E28: Global | F28: 1 | G28: RB93-0449 | H28: S45 | HD | I28: 49 | J28: 1.0462 | K28: 100660.56 | L28: 6844.91808 | N28: 5.8 | O28: =(-T_Tubes[[#This Row],[Tube OD]]+SQRT(T_Tubes[[#This Row],[Tube OD]]^2+4*Fabric_Thickness*Design_Drop*1000/PI()))/(2*Fabric_Thickness) ->  | P28: =IF(INDEX('3. Hardware Options'!$E$5:$E$27,MATCH(T_Tubes[[#This Row],[Description]],'3. Hardware Options'!$B$5:$B$27,0))="Show",1*SUMPRODUCT(D28,F28,C28),0) -> 1 | Q28: =((Design_Width_MAX/S28)*IFERROR(SUMPRODUCT(D28,F28,P28),"-")*IF((S28>Design_Width_MAX*Deflection_limit),0,1)*IF(T_Tubes[[#This Row],[MaxLength]]>=Design_Width_MAX,1,0))*T_Tubes[[#This Row],[Mass/m]] ->  | R28: =IF($Q28,1+(COUNTIF($Q$15:$Q$37,"<"&$Q28)-COUNTIF($Q$15:$Q$37,"<0.00001")),IF(SheetStatus="Release - FFA",999-COUNTIF($T$15:$T28,"=0")+1,"")) ->  | T28: =((Design_Width_MAX/S28)*IFERROR(SUMPRODUCT(D28,F28,P28),"-")*IF((S28>Design_Width_MAX*Deflection_limit),0,1)*IF(T_Tubes[[#This Row],[MaxLength]]>=Design_Width_MAX,1,0)) ->  | U28: =IF($T28,1+(COUNTIF($T$15:$T$37,"<"&$T28)-COUNTIF($T$15:$T$37,"<0.00001")),IF(SheetStatus="Release - FFA",999-COUNTIF($T$15:$T28,"=0")+1,"")) ->  | Y28: =IF(Y27+1<=$U$11,Y27+1,999-COUNT($Y$15:Y27)+$U$11) -> 986 | AC28: =((Design_Width_MAX/S28)*IFERROR(SUMPRODUCT(D28,F28,P28,C28),"-")*IF((S28>Design_Width_MAX*Deflection_limit*$S$7),0,1)*IF(T_Tubes[[#This Row],[MaxLength]]>=Design_Width_MAX,1,0)) ->  | AD28: =IF($AC28,1+(COUNTIF($AC$15:$AC$37,"<"&$AC28)-COUNTIF($AC$15:$AC$37,"<0.00001")),IF(SheetStatus="Release - FFA",999-COUNTIF($T$15:$T28,"=0")+1,"")) ->  | AE28: =IF(T28<>0,ABS(T_Tubes[[#This Row],[NumTurns]]-$AE$9),"") ->  | AG28: =IF($AC28,1+(COUNTIF($AC$15:$AC$37,"<"&$AC28)-COUNTIF($AC$15:$AC$37,"<0.00001")),IF(SheetStatus="Release - FFA",999-COUNTIF($AC$15:$AC28,"=0")+1,"0")) ->  | AH28: =IF(AC28<>0,T_Tubes[[#This Row],[Mass/m]],"") ->  | AR28: 1 | AS28: 1
C29: =IF(i_ControlType="Easy Spring Air",0,1) -> 1 | D29: 1 | E29: Global | F29: 1 | G29: RB91-0260 | H29: S60 | 60 STD | I29: 60 | J29: 1.19 | K29: 174117 | L29: 11839.956 | N29: 5.8 | O29: =(-T_Tubes[[#This Row],[Tube OD]]+SQRT(T_Tubes[[#This Row],[Tube OD]]^2+4*Fabric_Thickness*Design_Drop*1000/PI()))/(2*Fabric_Thickness) ->  | P29: =IF(INDEX('3. Hardware Options'!$E$5:$E$27,MATCH(T_Tubes[[#This Row],[Description]],'3. Hardware Options'!$B$5:$B$27,0))="Show",1*SUMPRODUCT(D29,F29,C29),0) -> 1 | Q29: =((Design_Width_MAX/S29)*IFERROR(SUMPRODUCT(D29,F29,P29),"-")*IF((S29>Design_Width_MAX*Deflection_limit),0,1)*IF(T_Tubes[[#This Row],[MaxLength]]>=Design_Width_MAX,1,0))*T_Tubes[[#This Row],[Mass/m]] ->  | R29: =IF($Q29,1+(COUNTIF($Q$15:$Q$37,"<"&$Q29)-COUNTIF($Q$15:$Q$37,"<0.00001")),IF(SheetStatus="Release - FFA",999-COUNTIF($T$15:$T29,"=0")+1,"")) ->  | T29: =((Design_Width_MAX/S29)*IFERROR(SUMPRODUCT(D29,F29,P29),"-")*IF((S29>Design_Width_MAX*Deflection_limit),0,1)*IF(T_Tubes[[#This Row],[MaxLength]]>=Design_Width_MAX,1,0)) ->  | U29: =IF($T29,1+(COUNTIF($T$15:$T$37,"<"&$T29)-COUNTIF($T$15:$T$37,"<0.00001")),IF(SheetStatus="Release - FFA",999-COUNTIF($T$15:$T29,"=0")+1,"")) ->  | Y29: =IF(Y28+1<=$U$11,Y28+1,999-COUNT($Y$15:Y28)+$U$11) -> 985 | AC29: =((Design_Width_MAX/S29)*IFERROR(SUMPRODUCT(D29,F29,P29,C29),"-")*IF((S29>Design_Width_MAX*Deflection_limit*$S$7),0,1)*IF(T_Tubes[[#This Row],[MaxLength]]>=Design_Width_MAX,1,0)) ->  | AD29: =IF($AC29,1+(COUNTIF($AC$15:$AC$37,"<"&$AC29)-COUNTIF($AC$15:$AC$37,"<0.00001")),IF(SheetStatus="Release - FFA",999-COUNTIF($T$15:$T29,"=0")+1,"")) ->  | AE29: =IF(T29<>0,ABS(T_Tubes[[#This Row],[NumTurns]]-$AE$9),"") ->  | AG29: =IF($AC29,1+(COUNTIF($AC$15:$AC$37,"<"&$AC29)-COUNTIF($AC$15:$AC$37,"<0.00001")),IF(SheetStatus="Release - FFA",999-COUNTIF($AC$15:$AC29,"=0")+1,"0")) ->  | AH29: =IF(AC29<>0,T_Tubes[[#This Row],[Mass/m]],"") ->  | AP29: =IF(i_Control=RB09_S45,,1) -> 1
C30: 1 | D30: 1 | E30: Global | F30: 1 | G30: RB91-0280 | H30: S60 | 80 HD | I30: 80 | J30: 2.04 | K30: 486059 | L30: =(K30*10^-12)*AL_E -> 33052.012 | N30: 5.8 | O30: =(-T_Tubes[[#This Row],[Tube OD]]+SQRT(T_Tubes[[#This Row],[Tube OD]]^2+4*Fabric_Thickness*Design_Drop*1000/PI()))/(2*Fabric_Thickness) ->  | P30: =IF(INDEX('3. Hardware Options'!$E$5:$E$27,MATCH(T_Tubes[[#This Row],[Description]],'3. Hardware Options'!$B$5:$B$27,0))="Show",1*SUMPRODUCT(D30,F30,C30),0) -> 1 | Q30: =((Design_Width_MAX/S30)*IFERROR(SUMPRODUCT(D30,F30,P30),"-")*IF((S30>Design_Width_MAX*Deflection_limit),0,1)*IF(T_Tubes[[#This Row],[MaxLength]]>=Design_Width_MAX,1,0))*T_Tubes[[#This Row],[Mass/m]] ->  | R30: =IF($Q30,1+(COUNTIF($Q$15:$Q$37,"<"&$Q30)-COUNTIF($Q$15:$Q$37,"<0.00001")),IF(SheetStatus="Release - FFA",999-COUNTIF($T$15:$T30,"=0")+1,"")) ->  | T30: =((Design_Width_MAX/S30)*IFERROR(SUMPRODUCT(D30,F30,P30),"-")*IF((S30>Design_Width_MAX*Deflection_limit),0,1)*IF(T_Tubes[[#This Row],[MaxLength]]>=Design_Width_MAX,1,0)) ->  | U30: =IF($T30,1+(COUNTIF($T$15:$T$37,"<"&$T30)-COUNTIF($T$15:$T$37,"<0.00001")),IF(SheetStatus="Release - FFA",999-COUNTIF($T$15:$T30,"=0")+1,"")) ->  | Y30: =IF(Y29+1<=$U$11,Y29+1,999-COUNT($Y$15:Y29)+$U$11) -> 984 | AC30: =((Design_Width_MAX/S30)*IFERROR(SUMPRODUCT(D30,F30,P30,C30),"-")*IF((S30>Design_Width_MAX*Deflection_limit*$S$7),0,1)*IF(T_Tubes[[#This Row],[MaxLength]]>=Design_Width_MAX,1,0)) ->  | AD30: =IF($AC30,1+(COUNTIF($AC$15:$AC$37,"<"&$AC30)-COUNTIF($AC$15:$AC$37,"<0.00001")),IF(SheetStatus="Release - FFA",999-COUNTIF($T$15:$T30,"=0")+1,"")) ->  | AE30: =IF(T30<>0,ABS(T_Tubes[[#This Row],[NumTurns]]-$AE$9),"") ->  | AG30: =IF($AC30,1+(COUNTIF($AC$15:$AC$37,"<"&$AC30)-COUNTIF($AC$15:$AC$37,"<0.00001")),IF(SheetStatus="Release - FFA",999-COUNTIF($AC$15:$AC30,"=0")+1,"0")) ->  | AH30: =IF(AC30<>0,T_Tubes[[#This Row],[Mass/m]],"") ->  | AP30: 1
C31: 1 | D31: 1 | E31: Global | F31: 1 | G31: RE01-0363 | H31: 63 STD Aluminium | I31: 65 | J31: 1.073 | K31: 179064 | L31: =(K31*10^-12)*AL_E -> 12176.352 | M31: 12 | N31: 5.8 | O31: =(-T_Tubes[[#This Row],[Tube OD]]+SQRT(T_Tubes[[#This Row],[Tube OD]]^2+4*Fabric_Thickness*Design_Drop*1000/PI()))/(2*Fabric_Thickness) ->  | P31: =IF(INDEX('3. Hardware Options'!$E$5:$E$27,MATCH(T_Tubes[[#This Row],[Description]],'3. Hardware Options'!$B$5:$B$27,0))="Show",1*SUMPRODUCT(D31,F31,C31),0) -> 1 | Q31: =((Design_Width_MAX/S31)*IFERROR(SUMPRODUCT(D31,F31,P31),"-")*IF((S31>Design_Width_MAX*Deflection_limit),0,1)*IF(T_Tubes[[#This Row],[MaxLength]]>=Design_Width_MAX,1,0))*T_Tubes[[#This Row],[Mass/m]] ->  | R31: =IF($Q31,1+(COUNTIF($Q$15:$Q$37,"<"&$Q31)-COUNTIF($Q$15:$Q$37,"<0.00001")),IF(SheetStatus="Release - FFA",999-COUNTIF($T$15:$T31,"=0")+1,"")) ->  | S31: =(5/384)*((g*(Fabric_Density*Design_Drop+$J31+wb_UnitMass+Ballast_UnitMass)*Design_Width_MAX^4)/$L31)*1000 ->  | T31: =((Design_Width_MAX/S31)*IFERROR(SUMPRODUCT(D31,F31,P31),"-")*IF((S31>Design_Width_MAX*Deflection_limit),0,1)*IF(T_Tubes[[#This Row],[MaxLength]]>=Design_Width_MAX,1,0)) ->  | U31: =IF($T31,1+(COUNTIF($T$15:$T$37,"<"&$T31)-COUNTIF($T$15:$T$37,"<0.00001")),IF(SheetStatus="Release - FFA",999-COUNTIF($T$15:$T31,"=0")+1,"")) ->  | Y31: =IF(Y30+1<=$U$11,Y30+1,999-COUNT($Y$15:Y30)+$U$11) -> 983 | AC31: =((Design_Width_MAX/S31)*IFERROR(SUMPRODUCT(D31,F31,P31,C31),"-")*IF((S31>Design_Width_MAX*Deflection_limit*$S$7),0,1)*IF(T_Tubes[[#This Row],[MaxLength]]>=Design_Width_MAX,1,0)) ->  | AD31: =IF($AC31,1+(COUNTIF($AC$15:$AC$37,"<"&$AC31)-COUNTIF($AC$15:$AC$37,"<0.00001")),IF(SheetStatus="Release - FFA",999-COUNTIF($T$15:$T31,"=0")+1,"")) ->  | AE31: =IF(T31<>0,ABS(T_Tubes[[#This Row],[NumTurns]]-$AE$9),"") ->  | AG31: =IF($AC31,1+(COUNTIF($AC$15:$AC$37,"<"&$AC31)-COUNTIF($AC$15:$AC$37,"<0.00001")),IF(SheetStatus="Release - FFA",999-COUNTIF($AC$15:$AC31,"=0")+1,"0")) ->  | AH31: =IF(AC31<>0,T_Tubes[[#This Row],[Mass/m]],"") -> 
C32: 1 | D32: 1 | E32: Global | F32: 1 | G32: RE01-0378 | H32: 78 STD Aluminium | I32: 80 | J32: 1.4836 | K32: 373912 | L32: 25426.016 | M32: 12 | N32: 5.8 | O32: =(-T_Tubes[[#This Row],[Tube OD]]+SQRT(T_Tubes[[#This Row],[Tube OD]]^2+4*Fabric_Thickness*Design_Drop*1000/PI()))/(2*Fabric_Thickness) ->  | P32: =IF(INDEX('3. Hardware Options'!$E$5:$E$27,MATCH(T_Tubes[[#This Row],[Description]],'3. Hardware Options'!$B$5:$B$27,0))="Show",1*SUMPRODUCT(D32,F32,C32),0) -> 1 | Q32: =((Design_Width_MAX/S32)*IFERROR(SUMPRODUCT(D32,F32,P32),"-")*IF((S32>Design_Width_MAX*Deflection_limit),0,1)*IF(T_Tubes[[#This Row],[MaxLength]]>=Design_Width_MAX,1,0))*T_Tubes[[#This Row],[Mass/m]] ->  | R32: =IF($Q32,1+(COUNTIF($Q$15:$Q$37,"<"&$Q32)-COUNTIF($Q$15:$Q$37,"<0.00001")),IF(SheetStatus="Release - FFA",999-COUNTIF($T$15:$T32,"=0")+1,"")) ->  | T32: =((Design_Width_MAX/S32)*IFERROR(SUMPRODUCT(D32,F32,P32),"-")*IF((S32>Design_Width_MAX*Deflection_limit),0,1)*IF(T_Tubes[[#This Row],[MaxLength]]>=Design_Width_MAX,1,0)) ->  | U32: =IF($T32,1+(COUNTIF($T$15:$T$37,"<"&$T32)-COUNTIF($T$15:$T$37,"<0.00001")),IF(SheetStatus="Release - FFA",999-COUNTIF($T$15:$T32,"=0")+1,"")) ->  | Y32: =IF(Y31+1<=$U$11,Y31+1,999-COUNT($Y$15:Y31)+$U$11) -> 982 | AC32: =((Design_Width_MAX/S32)*IFERROR(SUMPRODUCT(D32,F32,P32,C32),"-")*IF((S32>Design_Width_MAX*Deflection_limit*$S$7),0,1)*IF(T_Tubes[[#This Row],[MaxLength]]>=Design_Width_MAX,1,0)) ->  | AD32: =IF($AC32,1+(COUNTIF($AC$15:$AC$37,"<"&$AC32)-COUNTIF($AC$15:$AC$37,"<0.00001")),IF(SheetStatus="Release - FFA",999-COUNTIF($T$15:$T32,"=0")+1,"")) ->  | AE32: =IF(T32<>0,ABS(T_Tubes[[#This Row],[NumTurns]]-$AE$9),"") ->  | AG32: =IF($AC32,1+(COUNTIF($AC$15:$AC$37,"<"&$AC32)-COUNTIF($AC$15:$AC$37,"<0.00001")),IF(SheetStatus="Release - FFA",999-COUNTIF($AC$15:$AC32,"=0")+1,"0")) ->  | AH32: =IF(AC32<>0,T_Tubes[[#This Row],[Mass/m]],"") -> 
C33: 1 | D33: 1 | E33: Global | F33: 1 | G33: RE01-0379 | H33: 78 HD Aluminium | I33: 81.6 | J33: 2.039 | K33: 563190 | L33: =(K33*10^-12)*AL_E -> 38296.92 | M33: 14 | N33: 5.8 | O33: =(-T_Tubes[[#This Row],[Tube OD]]+SQRT(T_Tubes[[#This Row],[Tube OD]]^2+4*Fabric_Thickness*Design_Drop*1000/PI()))/(2*Fabric_Thickness) ->  | P33: =IF(INDEX('3. Hardware Options'!$E$5:$E$27,MATCH(T_Tubes[[#This Row],[Description]],'3. Hardware Options'!$B$5:$B$27,0))="Show",1*SUMPRODUCT(D33,F33,C33),0) -> 1 | Q33: =((Design_Width_MAX/S33)*IFERROR(SUMPRODUCT(D33,F33,P33),"-")*IF((S33>Design_Width_MAX*Deflection_limit),0,1)*IF(T_Tubes[[#This Row],[MaxLength]]>=Design_Width_MAX,1,0))*T_Tubes[[#This Row],[Mass/m]] ->  | R33: =IF($Q33,1+(COUNTIF($Q$15:$Q$37,"<"&$Q33)-COUNTIF($Q$15:$Q$37,"<0.00001")),IF(SheetStatus="Release - FFA",999-COUNTIF($T$15:$T33,"=0")+1,"")) ->  | T33: =((Design_Width_MAX/S33)*IFERROR(SUMPRODUCT(D33,F33,P33),"-")*IF((S33>Design_Width_MAX*Deflection_limit),0,1)*IF(T_Tubes[[#This Row],[MaxLength]]>=Design_Width_MAX,1,0)) ->  | U33: =IF($T33,1+(COUNTIF($T$15:$T$37,"<"&$T33)-COUNTIF($T$15:$T$37,"<0.00001")),IF(SheetStatus="Release - FFA",999-COUNTIF($T$15:$T33,"=0")+1,"")) ->  | Y33: =IF(Y32+1<=$U$11,Y32+1,999-COUNT($Y$15:Y32)+$U$11) -> 981 | AC33: =((Design_Width_MAX/S33)*IFERROR(SUMPRODUCT(D33,F33,P33,C33),"-")*IF((S33>Design_Width_MAX*Deflection_limit*$S$7),0,1)*IF(T_Tubes[[#This Row],[MaxLength]]>=Design_Width_MAX,1,0)) ->  | AD33: =IF($AC33,1+(COUNTIF($AC$15:$AC$37,"<"&$AC33)-COUNTIF($AC$15:$AC$37,"<0.00001")),IF(SheetStatus="Release - FFA",999-COUNTIF($T$15:$T33,"=0")+1,"")) ->  | AE33: =IF(T33<>0,ABS(T_Tubes[[#This Row],[NumTurns]]-$AE$9),"") ->  | AG33: =IF($AC33,1+(COUNTIF($AC$15:$AC$37,"<"&$AC33)-COUNTIF($AC$15:$AC$37,"<0.00001")),IF(SheetStatus="Release - FFA",999-COUNTIF($AC$15:$AC33,"=0")+1,"0")) ->  | AH33: =IF(AC33<>0,T_Tubes[[#This Row],[Mass/m]],"") -> 
C34: 1 | D34: 1 | E34: Global | F34: 1 | G34: AW92-0901 | H34: 78 STEEL | I34: 78 | J34: 2.3477 | K34: 180026 | L34: =(K34*10^-12)*Steel_E -> 36005.2 | M34: 12 | N34: 5.8 | O34: =(-T_Tubes[[#This Row],[Tube OD]]+SQRT(T_Tubes[[#This Row],[Tube OD]]^2+4*Fabric_Thickness*Design_Drop*1000/PI()))/(2*Fabric_Thickness) ->  | P34: =IF(INDEX('3. Hardware Options'!$E$5:$E$27,MATCH(T_Tubes[[#This Row],[Description]],'3. Hardware Options'!$B$5:$B$27,0))="Show",1*SUMPRODUCT(D34,F34,C34),0) -> 1 | Q34: =((Design_Width_MAX/S34)*IFERROR(SUMPRODUCT(D34,F34,P34),"-")*IF((S34>Design_Width_MAX*Deflection_limit),0,1)*IF(T_Tubes[[#This Row],[MaxLength]]>=Design_Width_MAX,1,0))*T_Tubes[[#This Row],[Mass/m]] ->  | R34: =IF($Q34,1+(COUNTIF($Q$15:$Q$37,"<"&$Q34)-COUNTIF($Q$15:$Q$37,"<0.00001")),IF(SheetStatus="Release - FFA",999-COUNTIF($T$15:$T34,"=0")+1,"")) ->  | T34: =((Design_Width_MAX/S34)*IFERROR(SUMPRODUCT(D34,F34,P34),"-")*IF((S34>Design_Width_MAX*Deflection_limit),0,1)*IF(T_Tubes[[#This Row],[MaxLength]]>=Design_Width_MAX,1,0)) ->  | U34: =IF($T34,1+(COUNTIF($T$15:$T$37,"<"&$T34)-COUNTIF($T$15:$T$37,"<0.00001")),IF(SheetStatus="Release - FFA",999-COUNTIF($T$15:$T34,"=0")+1,"")) ->  | Y34: =IF(Y33+1<=$U$11,Y33+1,999-COUNT($Y$15:Y33)+$U$11) -> 980 | AC34: =((Design_Width_MAX/S34)*IFERROR(SUMPRODUCT(D34,F34,P34,C34),"-")*IF((S34>Design_Width_MAX*Deflection_limit*$S$7),0,1)*IF(T_Tubes[[#This Row],[MaxLength]]>=Design_Width_MAX,1,0)) ->  | AD34: =IF($AC34,1+(COUNTIF($AC$15:$AC$37,"<"&$AC34)-COUNTIF($AC$15:$AC$37,"<0.00001")),IF(SheetStatus="Release - FFA",999-COUNTIF($T$15:$T34,"=0")+1,"")) ->  | AE34: =IF(T34<>0,ABS(T_Tubes[[#This Row],[NumTurns]]-$AE$9),"") ->  | AG34: =IF($AC34,1+(COUNTIF($AC$15:$AC$37,"<"&$AC34)-COUNTIF($AC$15:$AC$37,"<0.00001")),IF(SheetStatus="Release - FFA",999-COUNTIF($AC$15:$AC34,"=0")+1,"0")) ->  | AH34: =IF(AC34<>0,T_Tubes[[#This Row],[Mass/m]],"") -> 
C35: 1 | D35: 1 | E35: Global | F35: 1 | G35: RB93-0110 | H35: S100 | 110 STD | I35: 110 | J35: 2.9984 | K35: 1445059.06 | L35: 98264.01608 | M35: 200 | N35: 6 | O35: =(-T_Tubes[[#This Row],[Tube OD]]+SQRT(T_Tubes[[#This Row],[Tube OD]]^2+4*Fabric_Thickness*Design_Drop*1000/PI()))/(2*Fabric_Thickness) ->  | P35: =IF(INDEX('3. Hardware Options'!$E$5:$E$27,MATCH(T_Tubes[[#This Row],[Description]],'3. Hardware Options'!$B$5:$B$27,0))="Show",1*SUMPRODUCT(D35,F35,C35),0) -> 1 | Q35: =((Design_Width_MAX/S35)*IFERROR(SUMPRODUCT(D35,F35,P35),"-")*IF((S35>Design_Width_MAX*Deflection_limit),0,1)*IF(T_Tubes[[#This Row],[MaxLength]]>=Design_Width_MAX,1,0))*T_Tubes[[#This Row],[Mass/m]] ->  | R35: =IF($Q35,1+(COUNTIF($Q$15:$Q$37,"<"&$Q35)-COUNTIF($Q$15:$Q$37,"<0.00001")),IF(SheetStatus="Release - FFA",999-COUNTIF($T$15:$T35,"=0")+1,"")) ->  | T35: =((Design_Width_MAX/S35)*IFERROR(SUMPRODUCT(D35,F35,P35),"-")*IF((S35>Design_Width_MAX*Deflection_limit),0,1)*IF(T_Tubes[[#This Row],[MaxLength]]>=Design_Width_MAX,1,0)) ->  | U35: =IF($T35,1+(COUNTIF($T$15:$T$37,"<"&$T35)-COUNTIF($T$15:$T$37,"<0.00001")),IF(SheetStatus="Release - FFA",999-COUNTIF($T$15:$T35,"=0")+1,"")) ->  | Y35: =IF(Y34+1<=$U$11,Y34+1,999-COUNT($Y$15:Y34)+$U$11) -> 979 | AC35: =((Design_Width_MAX/S35)*IFERROR(SUMPRODUCT(D35,F35,P35,C35),"-")*IF((S35>Design_Width_MAX*Deflection_limit*$S$7),0,1)*IF(T_Tubes[[#This Row],[MaxLength]]>=Design_Width_MAX,1,0)) ->  | AD35: =IF($AC35,1+(COUNTIF($AC$15:$AC$37,"<"&$AC35)-COUNTIF($AC$15:$AC$37,"<0.00001")),IF(SheetStatus="Release - FFA",999-COUNTIF($T$15:$T35,"=0")+1,"")) ->  | AE35: =IF(T35<>0,ABS(T_Tubes[[#This Row],[NumTurns]]-$AE$9),"") ->  | AG35: =IF($AC35,1+(COUNTIF($AC$15:$AC$37,"<"&$AC35)-COUNTIF($AC$15:$AC$37,"<0.00001")),IF(SheetStatus="Release - FFA",999-COUNTIF($AC$15:$AC35,"=0")+1,"0")) ->  | AH35: =IF(AC35<>0,T_Tubes[[#This Row],[Mass/m]],"") -> 
C36: 1 | D36: 1 | E36: Global | F36: 1 | G36: RB93-0130 | H36: S100 | 130 HD | I36: 130 | J36: 5.0403 | K36: 3288498.77 | L36: 223617.9164 | M36: 200 | N36: 7 | O36: =(-T_Tubes[[#This Row],[Tube OD]]+SQRT(T_Tubes[[#This Row],[Tube OD]]^2+4*Fabric_Thickness*Design_Drop*1000/PI()))/(2*Fabric_Thickness) ->  | P36: =IF(INDEX('3. Hardware Options'!$E$5:$E$27,MATCH(T_Tubes[[#This Row],[Description]],'3. Hardware Options'!$B$5:$B$27,0))="Show",1*SUMPRODUCT(D36,F36,C36),0) -> 1 | Q36: =((Design_Width_MAX/S36)*IFERROR(SUMPRODUCT(D36,F36,P36),"-")*IF((S36>Design_Width_MAX*Deflection_limit),0,1)*IF(T_Tubes[[#This Row],[MaxLength]]>=Design_Width_MAX,1,0))*T_Tubes[[#This Row],[Mass/m]] ->  | R36: =IF($Q36,1+(COUNTIF($Q$15:$Q$37,"<"&$Q36)-COUNTIF($Q$15:$Q$37,"<0.00001")),IF(SheetStatus="Release - FFA",999-COUNTIF($T$15:$T36,"=0")+1,"")) ->  | T36: =((Design_Width_MAX/S36)*IFERROR(SUMPRODUCT(D36,F36,P36),"-")*IF((S36>Design_Width_MAX*Deflection_limit),0,1)*IF(T_Tubes[[#This Row],[MaxLength]]>=Design_Width_MAX,1,0)) ->  | U36: =IF($T36,1+(COUNTIF($T$15:$T$37,"<"&$T36)-COUNTIF($T$15:$T$37,"<0.00001")),IF(SheetStatus="Release - FFA",999-COUNTIF($T$15:$T36,"=0")+1,"")) ->  | Y36: =IF(Y35+1<=$U$11,Y35+1,999-COUNT($Y$15:Y35)+$U$11) -> 978 | AC36: =((Design_Width_MAX/S36)*IFERROR(SUMPRODUCT(D36,F36,P36,C36),"-")*IF((S36>Design_Width_MAX*Deflection_limit*$S$7),0,1)*IF(T_Tubes[[#This Row],[MaxLength]]>=Design_Width_MAX,1,0)) ->  | AD36: =IF($AC36,1+(COUNTIF($AC$15:$AC$37,"<"&$AC36)-COUNTIF($AC$15:$AC$37,"<0.00001")),IF(SheetStatus="Release - FFA",999-COUNTIF($T$15:$T36,"=0")+1,"")) ->  | AE36: =IF(T36<>0,ABS(T_Tubes[[#This Row],[NumTurns]]-$AE$9),"") ->  | AG36: =IF($AC36,1+(COUNTIF($AC$15:$AC$37,"<"&$AC36)-COUNTIF($AC$15:$AC$37,"<0.00001")),IF(SheetStatus="Release - FFA",999-COUNTIF($AC$15:$AC36,"=0")+1,"0")) ->  | AH36: =IF(AC36<>0,T_Tubes[[#This Row],[Mass/m]],"") -> 
C37: 1 | D37: 1 | E37: Global | F37: 1 | G37: RB93-0160 | H37: S100 | 160 XHD | I37: 160 | J37: 5.3699 | K37: 5628857.2 | L37: 382762.2896 | M37: 200 | N37: 7 | O37: =(-T_Tubes[[#This Row],[Tube OD]]+SQRT(T_Tubes[[#This Row],[Tube OD]]^2+4*Fabric_Thickness*Design_Drop*1000/PI()))/(2*Fabric_Thickness) ->  | P37: =IF(INDEX('3. Hardware Options'!$E$5:$E$27,MATCH(T_Tubes[[#This Row],[Description]],'3. Hardware Options'!$B$5:$B$27,0))="Show",1*SUMPRODUCT(D37,F37,C37),0) -> 1 | Q37: =((Design_Width_MAX/S37)*IFERROR(SUMPRODUCT(D37,F37,P37),"-")*IF((S37>Design_Width_MAX*Deflection_limit),0,1)*IF(T_Tubes[[#This Row],[MaxLength]]>=Design_Width_MAX,1,0))*T_Tubes[[#This Row],[Mass/m]] ->  | R37: =IF($Q37,1+(COUNTIF($Q$15:$Q$37,"<"&$Q37)-COUNTIF($Q$15:$Q$37,"<0.00001")),IF(SheetStatus="Release - FFA",999-COUNTIF($T$15:$T37,"=0")+1,"")) ->  | T37: =((Design_Width_MAX/S37)*IFERROR(SUMPRODUCT(D37,F37,P37),"-")*IF((S37>Design_Width_MAX*Deflection_limit),0,1)*IF(T_Tubes[[#This Row],[MaxLength]]>=Design_Width_MAX,1,0)) ->  | U37: =IF($T37,1+(COUNTIF($T$15:$T$37,"<"&$T37)-COUNTIF($T$15:$T$37,"<0.00001")),IF(SheetStatus="Release - FFA",999-COUNTIF($T$15:$T37,"=0")+1,"")) ->  | Y37: =IF(Y36+1<=$U$11,Y36+1,999-COUNT($Y$15:Y36)+$U$11) -> 977 | AC37: =((Design_Width_MAX/S37)*IFERROR(SUMPRODUCT(D37,F37,P37,C37),"-")*IF((S37>Design_Width_MAX*Deflection_limit*$S$7),0,1)*IF(T_Tubes[[#This Row],[MaxLength]]>=Design_Width_MAX,1,0)) ->  | AD37: =IF($AC37,1+(COUNTIF($AC$15:$AC$37,"<"&$AC37)-COUNTIF($AC$15:$AC$37,"<0.00001")),IF(SheetStatus="Release - FFA",999-COUNTIF($T$15:$T37,"=0")+1,"")) ->  | AE37: =IF(T37<>0,ABS(T_Tubes[[#This Row],[NumTurns]]-$AE$9),"") ->  | AG37: =IF($AC37,1+(COUNTIF($AC$15:$AC$37,"<"&$AC37)-COUNTIF($AC$15:$AC$37,"<0.00001")),IF(SheetStatus="Release - FFA",999-COUNTIF($AC$15:$AC37,"=0")+1,"0")) ->  | AH37: =IF(AC37<>0,T_Tubes[[#This Row],[Mass/m]],"") -> 
K40: =i_Control -> 0 | M40: Count | O40: R24 has a spring assist | P40: G200 | Q40: G400 | T40: R24 | U40: RB08 | S35 | V40: RB07 | S45 | W40: RB08 | S40 & S45 | X40: RB09 | S45 | Y40: RB10 | S60
M41: =SUM(L44:L69) -> 1 | O41: Clutch Compatibility ->
C42: Boosters | G42: (Nm/Turn) | I42: (Nm) | J42: mm
C43: System | E43: Codes | F43: Description | G43: Spring Rate | H43: Max Turns | I43: T_Max | J43: Length | K43: BoosterCount | L43: Compat on/off | N43: Booster LIST | P43: G200 | Q43: G400 | R43: R24 | S43: RB07 | S45 | T43: RB08 | S40 & S45 | U43: RB09 | S45 | V43: RB09 w/ Guide | S45 | W43: RB09 Geared | S45 | X43: RB09 Geared w/ Guide | S45 | Y43: RB10 | S60
F44: =z_None -> None | G44: 1e-09 | H44: 0.0001 | I44: =H44*G44 -> 1e-13 | K44: 0 | L44: =IFERROR(IF(o_BoosterRequired="Yes",0,1),1) -> 1 | N44: =IFERROR(IF(i_ControlType=z_Motor,"",IF(i_Control="",z_SelectaControl,_xlfn._xlws.FILTER($F$44:$F$69,L44:L69))),z_NoOptions) -> Select a Control. | P44: 1 | Q44: 1 | R44: 1 | S44: 1 | T44: 1 | U44: 1 | V44: 1 | W44: 1 | X44: 1 | Y44: 1
F45: Spring Assist 36" | G45: 0.023 | H45: 56 | I45: =H45*G45 -> 1.288 | K45: 1 | L45: =IFERROR(IF(SheetStatus="Release - FFA",1,INDEX($P45:$Y45,MATCH(i_Control,$P$43:$Y$43,0))),"") ->  | P45: 1 | Q45: 1 | R45: 1
F46: Spring Assist 45" | G46: 0.045 | H46: 56 | I46: 2.52 | K46: 1 | P46: 1 | Q46: 1 | R46: 1
E47: RB12-4501-SHORT | F47: Easy Spring Ultra - Short | G47: 0.018 | H47: 26 | I47: =H47*G47 -> 0.468 | K47: 1
E48: RB12-4501-LITE | F48: Easy Spring Ultra - Light | G48: 0.015 | H48: 40 | I48: =H48*G48 -> 0.6 | K48: 1
E49: RB12-4501-STD | F49: Easy Spring Ultra - STD | G49: 0.0267 | H49: 40 | I49: =H49*G49 -> 1.068 | K49: 1
E50: RB12-4501-HD | F50: Easy Spring Ultra - HD | G50: 0.0467 | H50: 38 | I50: =H50*G50 -> 1.7746 | K50: 1
E51: RB04-3512-xxx100 | F51: Easy-Lift Retro-Fit Spring Assist | S35 | G51: 0.0177 | H51: 35 | I51: =H51*G51 -> 0.6195 | K51: 1
E52: RB04-4091-xxx001/2 | F52: Standard Easy-Lift Retrofit Booster | S40 | G52: 0.0206 | H52: 45 | I52: 0.927 | K52: 1 | S52: 1 | T52: 1
E53: RB04-4092-xxx001/2 | F53: Heavy Duty Easy-Lift Retrofit Booster | S40 | G53: 0.0481 | H53: 38 | I53: 1.8278 | K53: 1 | S53: 1 | T53: 1
E54: RB04-4391-xxx001/2 | F54: Standard Easy-Lift Retro-Fit Booster | S45 | G54: 0.0206 | H54: 45 | I54: =H54*G54 -> 0.927 | K54: 1 | S54: 1 | T54: 1 | U54: 1 | V54: 1 | W54: 1 | X54: 1
E55: RB04-4392-xxx001/2 | F55: Heavy Duty Easy-Lift Retro-Fit Booster | S45 | G55: 0.0481 | H55: 38 | I55: =H55*G55 -> 1.8278 | K55: 1 | S55: 1 | T55: 1 | U55: 1 | V55: 1 | W55: 1 | X55: 1
E56: RB10-6040-xxx011/2 | F56: Light RB10 Retro-Fit Booster | S60 | G56: 0.0495 | H56: 40 | I56: =H56*G56 -> 1.98 | K56: 1 | Y56: 1
E57: RB10-6040-xxx031/2 | F57: Standard RB10 Retro-Fit Booster | S60 | G57: 0.0839 | H57: 38 | I57: =H57*G57 -> 3.1882 | K57: 1 | Y57: 1
E58: RB10-6040-xxx041/2 | F58: Heavy Duty RB10 Retro-Fit Booster | S60 | G58: 0.1442 | H58: 31 | I58: =H58*G58 -> 4.4702 | K58: 1 | Y58: 1
E59: RB10-6040-xxx051 | F59: Extra Heavy Duty RB10 Retro-Fit Booster | S60 | G59: 0.2534 | H59: 25 | I59: 6.335 | K59: 1
F60: COMPACT RE01 Spring | G60: 0.055 | H60: 25 | I60: =H60*G60 -> 1.375 | K60: 1
F61: Short RE01 Spring | G61: 0.0832 | H61: 25 | I61: 2.08 | K61: 1
F62: X-Light RE01 Spring | G62: 0.0288 | H62: 57 | I62: 1.6416 | K62: 1
F63: Light RE01 Spring | G63: 0.0495 | H63: 40 | I63: 1.98 | K63: 1
F64: Medium Light RE01 Spring | G64: 0.06113 | H64: 43 | I64: 2.62859 | K64: 1
E65: RB10-6040-xxx031/2 | F65: Standard RE01 Spring | G65: 0.0839 | H65: 38 | I65: 3.1882 | K65: 1
E66: RB10-6040-xxx041/2 | F66: Heavy Duty RE01 Spring | G66: 0.1442 | H66: 31 | I66: 4.4702 | K66: 1
F67: X-Heavy RE01 Spring | G67: 0.2534 | H67: 25 | I67: 6.335 | K67: 1
F68: Dual Heavy RE01 Springs | G68: =0.1442*2 -> 0.2884 | H68: 31 | I68: 8.9404 | K68: 2
F69: Dual X-Heavy RE01 Springs | G69: =G67*2 -> 0.5068 | H69: =H67 -> 25 | I69: 12.67 | K69: 2
M72: COUNT
M73: =SUM($L$76:$L$89) -> 13
C74: Weight Bar | G74: (mm²) | H74: g/m | J74: Region | K74: OPTIONS | L74: TOTAL
C75: Column1 | D75: Region | E75: Codes | F75: Description | G75: CSA | H75: Mass/m | J75: on/off | K75: on/off | L75: on/off | M75: Weight Bar LIST
D76: Global | E76: All | F76: =z_CustomWBData -> _Custom Weight Bar Data | H76: =IFERROR(IF(i_wbballast_Custom>0,i_wbballast_Custom/IF(i_Units="Metric",1,INDEX(T_Units[Factor],MATCH("g/m",T_Units[Metric],0))),"-"),"-") -> - | J76: =IF(i_Region="Global",1,IF(OR(i_Region=D76,D76="Global"),1,0)) -> 1 | K76: =IF(INDEX('3. Hardware Options'!$J$5:$J$27,MATCH(T_WeightBars[[#This Row],[Description]],'3. Hardware Options'!$G$5:$G$27,0))="Show",1,0) -> 1 | L76: =SUMPRODUCT(J76,K76) -> 1 | M76: =_xlfn._xlws.FILTER($F$76:$F$88,$L$76:$L$88) -> _Custom Weight Bar Data
D77: US | E77: Internal | F77: Internal Hem Bar | H77: 186 | J77: 1 | K77: =IF(INDEX('3. Hardware Options'!$J$5:$J$27,MATCH(T_WeightBars[[#This Row],[Description]],'3. Hardware Options'!$G$5:$G$27,0))="Show",1,0) -> 1 | L77: =SUMPRODUCT(J77,K77) -> 1 | M77: Internal Hem Bar
D78: US | E78: Internal | F78: External Hem Bar | H78: 250 | J78: =IF(i_Region="Global",1,IF(OR(i_Region=D78,D78="Global"),1,0)) -> 1 | K78: =IF(INDEX('3. Hardware Options'!$J$5:$J$27,MATCH(T_WeightBars[[#This Row],[Description]],'3. Hardware Options'!$G$5:$G$27,0))="Show",1,0) -> 1 | L78: =SUMPRODUCT(J78,K78) -> 1 | M78: External Hem Bar
D79: US | E79: Internal | F79: Fabric Wrap Hem Bar | H79: 235 | J79: =IF(i_Region="Global",1,IF(OR(i_Region=D79,D79="Global"),1,0)) -> 1 | K79: =IF(INDEX('3. Hardware Options'!$J$5:$J$27,MATCH(T_WeightBars[[#This Row],[Description]],'3. Hardware Options'!$G$5:$G$27,0))="Show",1,0) -> 1 | L79: =SUMPRODUCT(J79,K79) -> 1 | M79: Fabric Wrap Hem Bar
D80: AU | E80: Internal | F80: Mini Bottom Rail | H80: 190 | J80: 1 | K80: =IF(INDEX('3. Hardware Options'!$J$5:$J$27,MATCH(T_WeightBars[[#This Row],[Description]],'3. Hardware Options'!$G$5:$G$27,0))="Show",1,0) -> 1 | L80: 1 | M80: Mini Bottom Rail
D81: AU | E81: Internal | F81: Flat Bottom Rail | G81: 89 | H81: 240 | J81: 1 | K81: =IF(INDEX('3. Hardware Options'!$J$5:$J$27,MATCH(T_WeightBars[[#This Row],[Description]],'3. Hardware Options'!$G$5:$G$27,0))="Show",1,0) -> 1 | L81: 1 | M81: Flat Bottom Rail
D82: AU | E82: Internal | F82: Round Bottom Rail | G82: 98 | H82: 260 | J82: 1 | K82: =IF(INDEX('3. Hardware Options'!$J$5:$J$27,MATCH(T_WeightBars[[#This Row],[Description]],'3. Hardware Options'!$G$5:$G$27,0))="Show",1,0) -> 1 | L82: 1 | M82: Round Bottom Rail
D83: AU | E83: Internal | F83: Oval Bottom Rail | G83: 105 | H83: 280 | J83: 1 | K83: =IF(INDEX('3. Hardware Options'!$J$5:$J$27,MATCH(T_WeightBars[[#This Row],[Description]],'3. Hardware Options'!$G$5:$G$27,0))="Show",1,0) -> 1 | L83: 1 | M83: Oval Bottom Rail
D84: Global | E84: Internal | F84: D30 Medium Bottom Rail | G84: 107 | H84: 306 | J84: 1 | K84: =IF(INDEX('3. Hardware Options'!$J$5:$J$27,MATCH(T_WeightBars[[#This Row],[Description]],'3. Hardware Options'!$G$5:$G$27,0))="Show",1,0) -> 1 | L84: 1 | M84: D30 Medium Bottom Rail
D85: Global | E85: Internal | F85: Bottom Up Weight Bar | G85: 160 | H85: 433 | J85: 1 | K85: =IF(INDEX('3. Hardware Options'!$J$5:$J$27,MATCH(T_WeightBars[[#This Row],[Description]],'3. Hardware Options'!$G$5:$G$27,0))="Show",1,0) -> 1 | L85: 1 | M85: Bottom Up Weight Bar
D86: Global | E86: Internal | F86: F4115 Heavy Duty Bottom Rail | G86: 206 | H86: 540 | J86: 1 | K86: =IF(INDEX('3. Hardware Options'!$J$5:$J$27,MATCH(T_WeightBars[[#This Row],[Description]],'3. Hardware Options'!$G$5:$G$27,0))="Show",1,0) -> 1 | L86: 1 | M86: F4115 Heavy Duty Bottom Rail
D87: Global | E87: Internal | F87: F56 HD Weight Bar | H87: 1295 | J87: 1 | K87: =IF(INDEX('3. Hardware Options'!$J$5:$J$27,MATCH(T_WeightBars[[#This Row],[Description]],'3. Hardware Options'!$G$5:$G$27,0))="Show",1,0) -> 1 | L87: 1 | M87: F56 HD Weight Bar
D88: Global | E88: Internal | F88: F72 HD Weight Bar | H88: 2012 | J88: 1 | K88: =IF(INDEX('3. Hardware Options'!$J$5:$J$27,MATCH(T_WeightBars[[#This Row],[Description]],'3. Hardware Options'!$G$5:$G$27,0))="Show",1,0) -> 1 | L88: 1 | M88: F72 HD Weight Bar
Q89: OLD =IF(T_Controls[@[Capacity (kg)]]>o_fabric_wb_mass,1,0)
S90: Adaptor?
L91: =o_tMax_Sum ->  | M91: Nm (required holding capacity) | S91: =IFERROR(IF(i_ControlType="Motor",z_ReferCatalogue,INDEX(T_Adaptors[Adaptor Code],MATCH(INDEX($T$96:$T$112,MATCH(i_Control,$F$96:$F$112,0)),T_Adaptors[ID],0))),"") -> 
F92: **if changing descriptions here, MUST update the descriptions in the bracket & springs compatibility lookup table header | L92: =o_fabric_wb_mass ->  | M92: kg
K93: selected tube | L93: =i_Tube -> 0 | R93: List Length | S93: =IF(SUM($T$96:$T$124)=0,1,COUNTIF($T$96:$T$124,">0")) ->  | V93: CONTROL vs. TUBE COMPATIBILITY
C94: T_Controls | G94: (mm) | H94: (Nm) | I94: (Nm) | J94: (Nm) | K94: Default | M94: OPTIONS | N94: (mm) | V94: 1 | W94: 2 | X94: 3 | Y94: 4 | Z94: 5 | AA94: 6 | AB94: 7
C95: Region | E95: Control Type | F95: Description | G95: Diameter | H95: Holding Capacity | I95: Holding Capacity MAX | J95: Gear Ratio | K95: Friction | L95: rpm | M95: Capacity (kg) | N95: ChainCoveredLength | O95: Control OnOff | P95: Type OnOff | Q95: Tube OnOff | R95: Region OnOff | S95: holding OK? | T95: TOTAL | U95: CONTROL LIST | W95: 1" | X95: 1-1/8" | Y95: 1-1/4" | Z95: 1-1/2" | AA95: 2" | AB95: 2-1/2" | AC95: 3-1/4" | AD95: S35 STD | AE95: S35 HD | AF95: S40 STD | AG95: S40 HD | AH95: S45 | LIGHT | AI95: S45 | STD | AJ95: S45 | HD | AK95: S60 | 60 STD | AL95: S60 | 80 HD | AM95: 63 STD Aluminium | AN95: 78 STD Aluminium | AO95: 78 HD Aluminium | AP95: 78 STEEL | AQ95: S100 | 110 STD | AR95: S100 | 130 HD | AS95: S100 | 160 XHD
C96: Global | D96: Skyline | E96: =z_Clutch -> Clutch | F96: G200 | G96: 58.42 | H96: 2.04 | I96: =G200_Capacity+$I$46 -> 4.56 | J96: 1.77 | K96: 0.23 | M96: =IFERROR(IF($H96<>"",(($H96)/((Tube_OD/2/1000)))/g,""),"-") -> - | N96: 172 | O96: =IF(INDEX('3. Hardware Options'!$O$5:$O$53,MATCH(T_Controls[[#This Row],[Description]],'3. Hardware Options'!$L$5:$L$49,0))="Show",1,0) -> 1 | P96: =IF(i_ControlType=T_Controls[[#This Row],[Control Type]],1,0) -> 0 | Q96: =INDEX(W96:AS96,,MATCH(i_Tube,$W$95:$AS$95,0)) ->  | R96: =IF(i_Region="Global",1,IF(OR(i_Region=C96,C96="Global"),1,0)) -> 1 | S96: =IF(T_Controls[Holding Capacity MAX]>o_tMax_Sum,1,0) -> 0 | T96: =IF(AND(i_ControlType=T_Controls[[#This Row],[Control Type]],SheetStatus="Release - FFA"),1,SUMPRODUCT(P96,Q96,S96,O96,R96)) ->  | U96: =IFERROR(IF(i_ControlType="","",IF(SUM($T$96:$T$124)=0,z_NoOptions,_xlfn._xlws.FILTER(T_Controls[Description],$T$96:$T$124))),"") ->  | Z96: 1 | AA96: 2 | AB96: 3
C97: Global | D97: Skyline | E97: Clutch | F97: G400 | G97: 81.28 | H97: 4.5 | I97: =G400_Capacity+$I$46 -> 7.02 | J97: 1.77 | K97: 0.23 | M97: - | N97: 228 | O97: =IF(INDEX('3. Hardware Options'!$O$5:$O$53,MATCH(T_Controls[[#This Row],[Description]],'3. Hardware Options'!$L$5:$L$49,0))="Show",1,0) -> 1 | P97: =IF(i_ControlType=T_Controls[[#This Row],[Control Type]],1,0) -> 0 | Q97: =INDEX(W97:AS97,,MATCH(i_Tube,$W$95:$AS$95,0)) ->  | R97: 1 | S97: 0 | T97: =IF(AND(i_ControlType=T_Controls[[#This Row],[Control Type]],SheetStatus="Release - FFA"),1,SUMPRODUCT(P97,Q97,S97,O97,R97)) ->  | Z97: 1 | AA97: 2 | AB97: 3 | AC97: 3
C98: US | D98: R-Series | E98: Clutch | F98: R8 | G98: 40.64 | H98: 0.5 | I98: =T_Controls[[#This Row],[Holding Capacity]] -> 0.5 | J98: 1 | K98: 0.23 | M98: - | N98: 120 | O98: =IF(INDEX('3. Hardware Options'!$O$5:$O$53,MATCH(T_Controls[[#This Row],[Description]],'3. Hardware Options'!$L$5:$L$49,0))="Show",1,0) -> 1 | P98: =IF(i_ControlType=T_Controls[[#This Row],[Control Type]],1,0) -> 0 | Q98: =INDEX(W98:AS98,,MATCH(i_Tube,$W$95:$AS$95,0)) ->  | R98: 1 | S98: 0 | T98: =IF(AND(i_ControlType=T_Controls[[#This Row],[Control Type]],SheetStatus="Release - FFA"),1,SUMPRODUCT(P98,Q98,S98,O98,R98)) ->  | W98: 1 | X98: 1 | Y98: 1 | Z98: 1
C99: US | D99: R-Series | E99: Clutch | F99: R16 | G99: 58.42 | H99: 1.36 | I99: =T_Controls[[#This Row],[Holding Capacity]] -> 1.36 | J99: 1 | K99: 0.23 | M99: - | N99: 178 | O99: =IF(INDEX('3. Hardware Options'!$O$5:$O$53,MATCH(T_Controls[[#This Row],[Description]],'3. Hardware Options'!$L$5:$L$49,0))="Show",1,0) -> 1 | P99: =IF(i_ControlType=T_Controls[[#This Row],[Control Type]],1,0) -> 0 | Q99: =INDEX(W99:AS99,,MATCH(i_Tube,$W$95:$AS$95,0)) ->  | R99: 1 | S99: 0 | T99: =IF(AND(i_ControlType=T_Controls[[#This Row],[Control Type]],SheetStatus="Release - FFA"),1,SUMPRODUCT(P99,Q99,S99,O99,R99)) ->  | Z99: 1 | AA99: 2 | AB99: 3
C100: US | D100: R-Series | E100: Clutch | F100: R24 | G100: 81.58 | H100: 2.04 | I100: =T_Controls[[#This Row],[Holding Capacity]]+$I$46 -> 4.56 | J100: 1 | K100: 0.23 | M100: - | N100: 229 | O100: =IF(INDEX('3. Hardware Options'!$O$5:$O$53,MATCH(T_Controls[[#This Row],[Description]],'3. Hardware Options'!$L$5:$L$49,0))="Show",1,0) -> 1 | P100: =IF(i_ControlType=T_Controls[[#This Row],[Control Type]],1,0) -> 0 | Q100: =INDEX(W100:AS100,,MATCH(i_Tube,$W$95:$AS$95,0)) ->  | R100: 1 | S100: 0 | T100: =IF(AND(i_ControlType=T_Controls[[#This Row],[Control Type]],SheetStatus="Release - FFA"),1,SUMPRODUCT(P100,Q100,S100,O100,R100)) ->  | Z100: 1 | AA100: 2 | AB100: 3
C101: AU | E101: Clutch | F101: RB08 | S35 | G101: 37.9 | H101: 1 | I101: =T_Controls[[#This Row],[Holding Capacity]] -> 1 | J101: 1 | K101: 0.2 | M101: - | N101: 50 | O101: =IF(INDEX('3. Hardware Options'!$O$5:$O$53,MATCH(T_Controls[[#This Row],[Description]],'3. Hardware Options'!$L$5:$L$49,0))="Show",1,0) -> 1 | P101: =IF(i_ControlType=T_Controls[[#This Row],[Control Type]],1,0) -> 0 | Q101: =INDEX(W101:AS101,,MATCH(i_Tube,$W$95:$AS$95,0)) ->  | R101: 1 | S101: 0 | T101: =IF(AND(i_ControlType=T_Controls[[#This Row],[Control Type]],SheetStatus="Release - FFA"),1,SUMPRODUCT(P101,Q101,S101,O101,R101)) ->  | AD101: 1 | AE101: 1 | AF101: 1 | AG101: 1
C102: AU | E102: Clutch | F102: RB07 | S45 | G102: 45.6 | H102: 1 | I102: =T_Controls[[#This Row],[Holding Capacity]]+$I$55 -> 2.8278 | J102: 1 | K102: 0.2 | M102: - | N102: 136 | O102: =IF(INDEX('3. Hardware Options'!$O$5:$O$53,MATCH(T_Controls[[#This Row],[Description]],'3. Hardware Options'!$L$5:$L$49,0))="Show",1,0) -> 1 | P102: =IF(i_ControlType=T_Controls[[#This Row],[Control Type]],1,0) -> 0 | Q102: =INDEX(W102:AS102,,MATCH(i_Tube,$W$95:$AS$95,0)) ->  | R102: 1 | S102: 0 | T102: =IF(AND(i_ControlType=T_Controls[[#This Row],[Control Type]],SheetStatus="Release - FFA"),1,SUMPRODUCT(P102,Q102,S102,O102,R102)) ->  | AH102: 1 | AI102: 1 | AJ102: 1
C103: AU | E103: Clutch | F103: RB08 | S40 & S45 | G103: 45.6 | H103: 1 | I103: =T_Controls[[#This Row],[Holding Capacity]]+$I$55 -> 2.8278 | J103: 1 | K103: 0.2 | M103: - | N103: 58 | O103: =IF(INDEX('3. Hardware Options'!$O$5:$O$53,MATCH(T_Controls[[#This Row],[Description]],'3. Hardware Options'!$L$5:$L$49,0))="Show",1,0) -> 1 | P103: =IF(i_ControlType=T_Controls[[#This Row],[Control Type]],1,0) -> 0 | Q103: =INDEX(W103:AS103,,MATCH(i_Tube,$W$95:$AS$95,0)) ->  | R103: 1 | S103: 0 | T103: =IF(AND(i_ControlType=T_Controls[[#This Row],[Control Type]],SheetStatus="Release - FFA"),1,SUMPRODUCT(P103,Q103,S103,O103,R103)) ->  | AF103: 1 | AG103: 1 | AH103: 1 | AI103: 1 | AJ103: 1
C104: Global | E104: Clutch | F104: RB09 | S45 | G104: 46 | H104: 1 | I104: =T_Controls[[#This Row],[Holding Capacity]]+$I$55 -> 2.8278 | J104: 1 | K104: 0.2 | M104: - | N104: 59 | O104: =IF(INDEX('3. Hardware Options'!$O$5:$O$53,MATCH(T_Controls[[#This Row],[Description]],'3. Hardware Options'!$L$5:$L$49,0))="Show",1,0) -> 1 | P104: =IF(i_ControlType=T_Controls[[#This Row],[Control Type]],1,0) -> 0 | Q104: =INDEX(W104:AS104,,MATCH(i_Tube,$W$95:$AS$95,0)) ->  | R104: 1 | S104: 0 | T104: =IF(AND(i_ControlType=T_Controls[[#This Row],[Control Type]],SheetStatus="Release - FFA"),1,SUMPRODUCT(P104,Q104,S104,O104,R104)) ->  | AH104: 1 | AI104: 1 | AJ104: 1 | AK104: 9
C105: Global | E105: Clutch | F105: RB09 w/ Guide | S45 | G105: 46 | H105: 1 | I105: =T_Controls[[#This Row],[Holding Capacity]]+$I$55 -> 2.8278 | J105: 1 | K105: 0.2 | M105: - | N105: 135 | O105: =IF(INDEX('3. Hardware Options'!$O$5:$O$53,MATCH(T_Controls[[#This Row],[Description]],'3. Hardware Options'!$L$5:$L$49,0))="Show",1,0) -> 1 | P105: =IF(i_ControlType=T_Controls[[#This Row],[Control Type]],1,0) -> 0 | Q105: =INDEX(W105:AS105,,MATCH(i_Tube,$W$95:$AS$95,0)) ->  | R105: =IF(i_Region="Global",1,IF(OR(i_Region=C105,C105="Global"),1,0)) -> 1 | S105: 0 | T105: =IF(AND(i_ControlType=T_Controls[[#This Row],[Control Type]],SheetStatus="Release - FFA"),1,SUMPRODUCT(P105,Q105,S105,O105,R105)) ->  | AH105: 1 | AI105: 1 | AJ105: 1 | AK105: 9
C106: AU | E106: Clutch | F106: RB09 Geared | S45 | G106: 46 | H106: 1.2 | I106: =T_Controls[[#This Row],[Holding Capacity]]+$I$55 -> 3.0278 | J106: 1.6 | K106: 0.2 | M106: - | N106: 59 | O106: =IF(INDEX('3. Hardware Options'!$O$5:$O$53,MATCH(T_Controls[[#This Row],[Description]],'3. Hardware Options'!$L$5:$L$49,0))="Show",1,0) -> 1 | P106: =IF(i_ControlType=T_Controls[[#This Row],[Control Type]],1,0) -> 0 | Q106: =INDEX(W106:AS106,,MATCH(i_Tube,$W$95:$AS$95,0)) ->  | R106: 1 | S106: 0 | T106: =IF(AND(i_ControlType=T_Controls[[#This Row],[Control Type]],SheetStatus="Release - FFA"),1,SUMPRODUCT(P106,Q106,S106,O106,R106)) ->  | AH106: 1 | AI106: 1 | AJ106: 1 | AK106: 9
C107: AU | E107: Clutch | F107: RB09 Geared w/ Guide | S45 | G107: 46 | H107: 1.2 | I107: =T_Controls[[#This Row],[Holding Capacity]]+$I$55 -> 3.0278 | J107: 1.6 | K107: 0.2 | M107: - | N107: 135 | O107: =IF(INDEX('3. Hardware Options'!$O$5:$O$53,MATCH(T_Controls[[#This Row],[Description]],'3. Hardware Options'!$L$5:$L$49,0))="Show",1,0) -> 1 | P107: =IF(i_ControlType=T_Controls[[#This Row],[Control Type]],1,0) -> 0 | Q107: =INDEX(W107:AS107,,MATCH(i_Tube,$W$95:$AS$95,0)) ->  | R107: =IF(i_Region="Global",1,IF(OR(i_Region=C107,C107="Global"),1,0)) -> 1 | S107: 0 | T107: =IF(AND(i_ControlType=T_Controls[[#This Row],[Control Type]],SheetStatus="Release - FFA"),1,SUMPRODUCT(P107,Q107,S107,O107,R107)) ->  | AH107: 1 | AI107: 1 | AJ107: 1 | AK107: 9
C108: AU | E108: Clutch | F108: RB10 | S60 | G108: 46 | H108: 1 | I108: =T_Controls[[#This Row],[Holding Capacity]]+$I$58 -> 5.4702 | J108: 1 | K108: 0.2 | M108: - | N108: 121 | O108: =IF(INDEX('3. Hardware Options'!$O$5:$O$53,MATCH(T_Controls[[#This Row],[Description]],'3. Hardware Options'!$L$5:$L$49,0))="Show",1,0) -> 1 | P108: =IF(i_ControlType=T_Controls[[#This Row],[Control Type]],1,0) -> 0 | Q108: =INDEX(W108:AS108,,MATCH(i_Tube,$W$95:$AS$95,0)) ->  | R108: 1 | S108: 0 | T108: =IF(AND(i_ControlType=T_Controls[[#This Row],[Control Type]],SheetStatus="Release - FFA"),1,SUMPRODUCT(P108,Q108,S108,O108,R108)) ->  | AK108: 8 | AL108: 8
C109: Global | D109: Skyline | E109: Clutch | F109: SL10 | G109: 39.37 | H109: 0.71 | I109: =T_Controls[[#This Row],[Holding Capacity]] -> 0.71 | J109: 1 | K109: 0.23 | M109: - | N109: 118 | O109: =IF(INDEX('3. Hardware Options'!$O$5:$O$53,MATCH(T_Controls[[#This Row],[Description]],'3. Hardware Options'!$L$5:$L$49,0))="Show",1,0) -> 1 | P109: =IF(i_ControlType=T_Controls[[#This Row],[Control Type]],1,0) -> 0 | Q109: =INDEX(W108:AS108,,MATCH(i_Tube,$W$95:$AS$95,0)) ->  | R109: 1 | S109: 0 | T109: =IF(AND(i_ControlType=T_Controls[[#This Row],[Control Type]],SheetStatus="Release - FFA"),1,SUMPRODUCT(P109,Q109,S109,O109,R109)) ->  | W109: 1 | X109: 1 | Y109: 4 | Z109: 7 | AF109: 5 | AG109: 5 | AH109: 6 | AI109: 6 | AJ109: 6
C110: Global | D110: Skyline | E110: Clutch | F110: SL15 | G110: 46.61 | H110: 1.06 | I110: =T_Controls[[#This Row],[Holding Capacity]] -> 1.06 | J110: 1 | K110: 0.23 | M110: - | N110: 135 | O110: =IF(INDEX('3. Hardware Options'!$O$5:$O$53,MATCH(T_Controls[[#This Row],[Description]],'3. Hardware Options'!$L$5:$L$49,0))="Show",1,0) -> 1 | P110: =IF(i_ControlType=T_Controls[[#This Row],[Control Type]],1,0) -> 0 | Q110: =INDEX(W110:AS110,,MATCH(i_Tube,$W$95:$AS$95,0)) ->  | R110: 1 | S110: 0 | T110: =IF(AND(i_ControlType=T_Controls[[#This Row],[Control Type]],SheetStatus="Release - FFA"),1,SUMPRODUCT(P110,Q110,S110,O110,R110)) ->  | X110: 1 | Y110: 4 | Z110: 7 | AF110: 5 | AG110: 5 | AH110: 6 | AI110: 6 | AJ110: 6
C111: Global | D111: Skyline | E111: Clutch | F111: SL20 | G111: 57.15 | H111: 1.69 | I111: =T_Controls[[#This Row],[Holding Capacity]] -> 1.69 | J111: 1 | K111: 0.23 | M111: - | N111: 169 | O111: =IF(INDEX('3. Hardware Options'!$O$5:$O$53,MATCH(T_Controls[[#This Row],[Description]],'3. Hardware Options'!$L$5:$L$49,0))="Show",1,0) -> 1 | P111: =IF(i_ControlType=T_Controls[[#This Row],[Control Type]],1,0) -> 0 | Q111: =INDEX(W111:AS111,,MATCH(i_Tube,$W$95:$AS$95,0)) ->  | R111: 1 | S111: 0 | T111: =IF(AND(i_ControlType=T_Controls[[#This Row],[Control Type]],SheetStatus="Release - FFA"),1,SUMPRODUCT(P111,Q111,S111,O111,R111)) ->  | Z111: 1 | AA111: 2 | AB111: 3
C112: Global | D112: Skyline | E112: Clutch | F112: SL30 | G112: 81.28 | H112: 2.54 | I112: =T_Controls[[#This Row],[Holding Capacity]] -> 2.54 | J112: 1 | K112: 0.23 | M112: - | N112: 228 | O112: =IF(INDEX('3. Hardware Options'!$O$5:$O$53,MATCH(T_Controls[[#This Row],[Description]],'3. Hardware Options'!$L$5:$L$49,0))="Show",1,0) -> 1 | P112: =IF(i_ControlType=T_Controls[[#This Row],[Control Type]],1,0) -> 0 | Q112: =INDEX(W112:AS112,,MATCH(i_Tube,$W$95:$AS$95,0)) ->  | R112: 1 | S112: 0 | T112: =IF(AND(i_ControlType=T_Controls[[#This Row],[Control Type]],SheetStatus="Release - FFA"),1,SUMPRODUCT(P112,Q112,S112,O112,R112)) ->  | Z112: 1 | AA112: 2 | AB112: 3 | AC112: 3
C113: US | E113: Easy Spring Air | F113: Easy Spring Air | 1.5" | H113: =_SpringData_L0!$O$2 -> 1.57190625 | I113: =_SpringData_L0!$O$2 -> 1.57190625 | J113: 1 | M113: =IFERROR(IF($H113<>"",(($H113)/((Tube_OD/2/1000)))/g,""),"-") -> - | O113: =IF(INDEX('3. Hardware Options'!$O$5:$O$53,MATCH(T_Controls[[#This Row],[Description]],'3. Hardware Options'!$L$5:$L$49,0))="Show",1,0) -> 1 | P113: =IF(i_ControlType=T_Controls[[#This Row],[Control Type]],1,0) -> 0 | Q113: =INDEX(W113:AS113,,MATCH(i_Tube,$W$95:$AS$95,0)) ->  | R113: 1 | S113: 0 | T113: =IF(AND(i_ControlType=T_Controls[[#This Row],[Control Type]],SheetStatus="Release - FFA"),1,SUMPRODUCT(P113,Q113,S113,O113,R113)) ->  | Z113: 1
C114: Global | E114: Easy Spring Air | F114: Easy Spring Air | S45 | H114: =_SpringData_L0!$O$2 -> 1.57190625 | I114: =_SpringData_L0!$O$2 -> 1.57190625 | J114: 1 | M114: =IFERROR(IF($H114<>"",(($H114)/((Tube_OD/2/1000)))/g,""),"-") -> - | O114: =IF(INDEX('3. Hardware Options'!$O$5:$O$53,MATCH(T_Controls[[#This Row],[Description]],'3. Hardware Options'!$L$5:$L$49,0))="Show",1,0) -> 1 | P114: =IF(i_ControlType=T_Controls[[#This Row],[Control Type]],1,0) -> 0 | Q114: =INDEX(W114:AS114,,MATCH(i_Tube,$W$95:$AS$95,0)) ->  | R114: 1 | S114: 0 | T114: =IF(AND(i_ControlType=T_Controls[[#This Row],[Control Type]],SheetStatus="Release - FFA"),1,SUMPRODUCT(P114,Q114,S114,O114,R114)) ->  | AH114: 1 | AI114: 1 | AJ114: 1
C115: US | E115: Easy Spring Air | F115: Easy Spring Air | 2" | H115: =_SpringData_L0!$O$2 -> 1.57190625 | I115: =_SpringData_L0!$O$2 -> 1.57190625 | J115: 1 | M115: =IFERROR(IF($H115<>"",(($H115)/((Tube_OD/2/1000)))/g,""),"-") -> - | O115: =IF(INDEX('3. Hardware Options'!$O$5:$O$53,MATCH(T_Controls[[#This Row],[Description]],'3. Hardware Options'!$L$5:$L$49,0))="Show",1,0) -> 1 | P115: =IF(i_ControlType=T_Controls[[#This Row],[Control Type]],1,0) -> 0 | Q115: =INDEX(W115:AS115,,MATCH(i_Tube,$W$95:$AS$95,0)) ->  | R115: 1 | S115: 0 | T115: =IF(AND(i_ControlType=T_Controls[[#This Row],[Control Type]],SheetStatus="Release - FFA"),1,SUMPRODUCT(P115,Q115,S115,O115,R115)) ->  | AA115: 1
C116: US | E116: =z_Motor -> Motor | F116: Automate | 0.5 Nm | 20 rpm | G116: =Tube_OD ->  | H116: 0.5 | I116: =T_Controls[[#This Row],[Holding Capacity]] -> 0.5 | J116: 1 | K116: 1e-05 | L116: 20 | M116: - | O116: =IF(INDEX('3. Hardware Options'!$O$5:$O$53,MATCH(T_Controls[[#This Row],[Description]],'3. Hardware Options'!$L$5:$L$49,0))="Show",1,0) -> 1 | P116: =IF(i_ControlType=T_Controls[[#This Row],[Control Type]],1,0) -> 0 | Q116: =INDEX(W116:AS116,,MATCH(i_Tube,$W$95:$AS$95,0)) ->  | R116: 1 | S116: 0 | T116: =IF(AND(i_ControlType=T_Controls[[#This Row],[Control Type]],SheetStatus="Release - FFA"),1,SUMPRODUCT(P116,Q116,S116,O116,R116)) ->  | W116: 1 | X116: 1 | Y116: 1 | Z116: 1 | AD116: 1
C117: Global | E117: Motor | F117: Automate | 1.1 Nm | 20 rpm | H117: 1.1 | I117: =T_Controls[[#This Row],[Holding Capacity]] -> 1.1 | J117: 1 | K117: 1e-05 | L117: 20 | M117: - | O117: =IF(INDEX('3. Hardware Options'!$O$5:$O$53,MATCH(T_Controls[[#This Row],[Description]],'3. Hardware Options'!$L$5:$L$49,0))="Show",1,0) -> 1 | P117: =IF(i_ControlType=T_Controls[[#This Row],[Control Type]],1,0) -> 0 | Q117: =INDEX(W117:AS117,,MATCH(i_Tube,$W$95:$AS$95,0)) ->  | R117: 1 | S117: 0 | T117: =IF(AND(i_ControlType=T_Controls[[#This Row],[Control Type]],SheetStatus="Release - FFA"),1,SUMPRODUCT(P117,Q117,S117,O117,R117)) ->  | Y117: 1 | Z117: 1 | AD117: 1 | AE117: 1 | AF117: 1 | AG117: 1 | AH117: 1 | AI117: 1 | AJ117: 1
C118: Global | E118: Motor | F118: Automate | 2 Nm | 20 rpm | H118: 2 | I118: =T_Controls[[#This Row],[Holding Capacity]] -> 2 | J118: 1 | K118: 1e-05 | L118: 20 | M118: - | O118: =IF(INDEX('3. Hardware Options'!$O$5:$O$53,MATCH(T_Controls[[#This Row],[Description]],'3. Hardware Options'!$L$5:$L$49,0))="Show",1,0) -> 1 | P118: =IF(i_ControlType=T_Controls[[#This Row],[Control Type]],1,0) -> 0 | Q118: =INDEX(W118:AS118,,MATCH(i_Tube,$W$95:$AS$95,0)) ->  | R118: 1 | S118: 0 | T118: =IF(AND(i_ControlType=T_Controls[[#This Row],[Control Type]],SheetStatus="Release - FFA"),1,SUMPRODUCT(P118,Q118,S118,O118,R118)) ->  | Z118: 1 | AA118: 1 | AH118: 1 | AI118: 1 | AJ118: 1
C119: Global | E119: Motor | F119: Automate | 3 Nm | 28 rpm | H119: 3 | I119: =T_Controls[[#This Row],[Holding Capacity]] -> 3 | J119: 1 | K119: 1e-05 | L119: 28 | M119: - | O119: =IF(INDEX('3. Hardware Options'!$O$5:$O$53,MATCH(T_Controls[[#This Row],[Description]],'3. Hardware Options'!$L$5:$L$49,0))="Show",1,0) -> 1 | P119: =IF(i_ControlType=T_Controls[[#This Row],[Control Type]],1,0) -> 0 | Q119: =INDEX(W119:AS119,,MATCH(i_Tube,$W$95:$AS$95,0)) ->  | R119: 1 | S119: 0 | T119: =IF(AND(i_ControlType=T_Controls[[#This Row],[Control Type]],SheetStatus="Release - FFA"),1,SUMPRODUCT(P119,Q119,S119,O119,R119)) ->  | AA119: 1 | AB119: 1 | AH119: 1 | AI119: 1 | AJ119: 1 | AK119: 1 | AL119: 1
C120: Global | E120: Motor | F120: Automate | 6 Nm | 33 rpm | H120: 6 | I120: =T_Controls[[#This Row],[Holding Capacity]] -> 6 | J120: 1 | K120: 1e-05 | L120: 33 | M120: - | O120: =IF(INDEX('3. Hardware Options'!$O$5:$O$53,MATCH(T_Controls[[#This Row],[Description]],'3. Hardware Options'!$L$5:$L$49,0))="Show",1,0) -> 1 | P120: =IF(i_ControlType=T_Controls[[#This Row],[Control Type]],1,0) -> 0 | Q120: =INDEX(W120:AS120,,MATCH(i_Tube,$W$95:$AS$95,0)) ->  | R120: 1 | S120: 0 | T120: =IF(AND(i_ControlType=T_Controls[[#This Row],[Control Type]],SheetStatus="Release - FFA"),1,SUMPRODUCT(P120,Q120,S120,O120,R120)) ->  | AA120: 1 | AB120: 1 | AH120: 1 | AI120: 1 | AJ120: 1 | AK120: 1 | AL120: 1
C121: Global | E121: Motor | F121: Automate | 10 Nm | 9 rpm | H121: 10 | I121: =T_Controls[[#This Row],[Holding Capacity]] -> 10 | J121: 1 | K121: 0 | L121: 9 | M121: - | O121: =IF(INDEX('3. Hardware Options'!$O$5:$O$53,MATCH(T_Controls[[#This Row],[Description]],'3. Hardware Options'!$L$5:$L$49,0))="Show",1,0) -> 1 | P121: =IF(i_ControlType=T_Controls[[#This Row],[Control Type]],1,0) -> 0 | Q121: =INDEX(W121:AS121,,MATCH(i_Tube,$W$95:$AS$95,0)) ->  | R121: 1 | S121: 0 | T121: =IF(AND(i_ControlType=T_Controls[[#This Row],[Control Type]],SheetStatus="Release - FFA"),1,SUMPRODUCT(P121,Q121,S121,O121,R121)) ->  | AB121: 1 | AC121: 1 | AK121: 1 | AL121: 1 | AM121: =IFERROR(IF(FIND("S60",i_bracket)>0,0,1),"") ->  | AN121: 1 | AO121: 1 | AP121: 1
C122: Global | E122: Motor | F122: Automate | 15 Nm | 15 rpm | H122: 15 | I122: =T_Controls[[#This Row],[Holding Capacity]] -> 15 | J122: 1 | K122: 1e-05 | L122: 15 | M122: - | O122: =IF(INDEX('3. Hardware Options'!$O$5:$O$53,MATCH(T_Controls[[#This Row],[Description]],'3. Hardware Options'!$L$5:$L$49,0))="Show",1,0) -> 1 | P122: =IF(i_ControlType=T_Controls[[#This Row],[Control Type]],1,0) -> 0 | Q122: =INDEX(W122:AS122,,MATCH(i_Tube,$W$95:$AS$95,0)) ->  | R122: 1 | S122: 0 | T122: =IF(AND(i_ControlType=T_Controls[[#This Row],[Control Type]],SheetStatus="Release - FFA"),1,SUMPRODUCT(P122,Q122,S122,O122,R122)) ->  | AB122: 1 | AC122: 1 | AK122: 1 | AL122: 1 | AM122: =IFERROR(IF(FIND("S60",i_bracket)>0,0,1),1) -> 1 | AN122: 1 | AO122: 1 | AP122: 1
C123: Global | E123: Motor | F123: Automate | 30 Nm | 15 rpm | H123: 30 | I123: =T_Controls[[#This Row],[Holding Capacity]] -> 30 | J123: 1 | K123: 1e-05 | L123: 15 | M123: - | O123: =IF(INDEX('3. Hardware Options'!$O$5:$O$53,MATCH(T_Controls[[#This Row],[Description]],'3. Hardware Options'!$L$5:$L$49,0))="Show",1,0) -> 1 | P123: =IF(i_ControlType=T_Controls[[#This Row],[Control Type]],1,0) -> 0 | Q123: =INDEX(W123:AS123,,MATCH(i_Tube,$W$95:$AS$95,0)) ->  | R123: 1 | S123: 0 | T123: =IF(AND(i_ControlType=T_Controls[[#This Row],[Control Type]],SheetStatus="Release - FFA"),1,SUMPRODUCT(P123,Q123,S123,O123,R123)) ->  | AQ123: 1 | AR123: 1 | AS123: 1
C124: Global | E124: Motor | F124: Automate | 50 Nm | 12 rpm | H124: 50 | I124: =T_Controls[[#This Row],[Holding Capacity]] -> 50 | J124: 1 | K124: 1e-05 | L124: 12 | M124: - | O124: =IF(INDEX('3. Hardware Options'!$O$5:$O$53,MATCH(T_Controls[[#This Row],[Description]],'3. Hardware Options'!$L$5:$L$49,0))="Show",1,0) -> 1 | P124: =IF(i_ControlType=T_Controls[[#This Row],[Control Type]],1,0) -> 0 | Q124: =INDEX(W124:AS124,,MATCH(i_Tube,$W$95:$AS$95,0)) ->  | R124: 1 | S124: 0 | T124: =IF(AND(i_ControlType=T_Controls[[#This Row],[Control Type]],SheetStatus="Release - FFA"),1,SUMPRODUCT(P124,Q124,S124,O124,R124)) ->  | AQ124: 1 | AR124: 1 | AS124: 1
W125: List of Compatible Tube if Control is Selected
W126: =_xlfn._xlws.FILTER(Tube_ControlCompatibility,Tube_ControlCompatibility_Check=1,"") -> 
C128: Spools | G128: (mm)
C129: System | E129: Codes | F129: Description | G129: OD
C130: 1-1/4" | F130: Rollease - 1-1/4" | G130: 36.96
C131: 1-1/2" | F131: Rollease - 1-1/2" | G131: 42.67
C132: 2" | F132: Rollease - 2" | G132: 55.88
F135: if selected weight bar is less than 500g/m, add 1x ballast | I135: custom rules per row
F136: =wb_UnitMass -> 0.306
I137: =i_Ballast -> 0
D138: =IF(AND(i_ControlType="Easy Spring Air",wb_UnitMass<0.5,i_wb<>z_CustomWBData),0,1) | J138: list length | K138: =IF(SUM($I$141:$I$147)=0,1,COUNTIF($I$141:$I$147,">0")) -> 3
C139: Ballast | G139: (kg/m)
C140: Weight Bar | D140: ESA Check | E140: Codes | F140: Description | G140: Mass/m | I140: on/off | K140: BALLAST LIST
D141: 1 | F141: No Ballast | G141: 0 | I141: =IF(i_wb<>z_CustomEntry,1*T_Ballast[[#This Row],[ESA Check]],0) -> 1 | K141: =IFERROR(_xlfn._xlws.FILTER(Ballast_Description,$I$141:$I$147),"") -> No Ballast
C142: =IF(AND(i_wb<>"",i_wb<>$F$87,i_wb<>$F$88,i_wb<>$F$77),i_wb,"") -> D30 Medium Bottom Rail | D142: =IF(OR(i_wb=T_Ballast[[#This Row],[Weight Bar]],AND(i_ControlType="Easy Spring Air",wb_UnitMass<0.5,i_wb<>z_CustomWBData)),1,0) -> 1 | E142: VB05-0301 | F142: Tiltrod Metal O Style (x1) | G142: 0.23 | I142: =IF(i_wb=T_Ballast[[#This Row],[Weight Bar]],1*T_Ballast[[#This Row],[ESA Check]],0) -> 1 | K142: Tiltrod Metal O Style (x1)
C143: =IF(AND(i_wb<>"",i_wb<>$F$87,i_wb<>$F$88,i_wb<>$F$77),i_wb,"") -> D30 Medium Bottom Rail | D143: =IF(AND(i_ControlType="Easy Spring Air",wb_UnitMass<0.5,i_wb<>z_CustomWBData),0,1) -> 1 | E143: VB05-0301 | F143: Tiltrod Metal O Style (x2) | G143: =G142*2 -> 0.46 | I143: =IF(i_wb=T_Ballast[[#This Row],[Weight Bar]],1*T_Ballast[[#This Row],[ESA Check]],0) -> 1 | K143: Tiltrod Metal O Style (x2)
C144: F56 HD Weight Bar | D144: =IF(AND(i_ControlType="Easy Spring Air",wb_UnitMass<0.5,i_wb<>z_CustomWBData),0,1) -> 1 | F144: 20mm x 5mm Flat Bar (x1) | G144: 0.8 | I144: =IF(i_wb=T_Ballast[[#This Row],[Weight Bar]],1,0) -> 0
C145: F56 HD Weight Bar | D145: =IF(AND(i_ControlType="Easy Spring Air",wb_UnitMass<0.5,i_wb<>z_CustomWBData),0,1) -> 1 | F145: 20mm x 5mm Flat Bar (x2) | G145: 1.6 | I145: =IF(i_wb=T_Ballast[[#This Row],[Weight Bar]],1,0) -> 0
C146: F72 HD Weight Bar | D146: =IF(AND(i_ControlType="Easy Spring Air",wb_UnitMass<0.5,i_wb<>z_CustomWBData),0,1) -> 1 | F146: 25mm x 8mm Flat Bar (x1) | G146: 1.6 | I146: =IF(i_wb=T_Ballast[[#This Row],[Weight Bar]],1,0) -> 0
C147: F72 HD Weight Bar | D147: =IF(AND(i_ControlType="Easy Spring Air",wb_UnitMass<0.5,i_wb<>z_CustomWBData),0,1) -> 1 | F147: 25mm x 8mm Flat Bar (x2) | G147: 3.2 | I147: =IF(i_wb=T_Ballast[[#This Row],[Weight Bar]],1,0) -> 0
O150: list length
O151: =IF(SUM(O154:O195)=0,1,SUM(O154:O195)) -> 1
C152: Brackets | G152: mm | H152: mm | K152: OPTIONS
C153: Column2 | D153: Column1 | E153: Region | F153: Codes | G153: Description | H153: Pitch | I153: Max Roll Diameter | K153: ShowHide Check | L153: RegionCheck | M153: Roll Diameter Check | N153: Clutch Check | O153: TOTAL | P153: BRACKET LIST | Q153: G200 | R153: G400 | S153: R3 | T153: R8 | U153: R16 | V153: R24 | W153: Easy Spring Air | 1.5" | X153: Easy Spring Air | S45 | Y153: Easy Spring Air | 2" | Z153: RB08 | S35 | AA153: RB07 | S45 | AB153: RB08 | S40 & S45 | AC153: RB09 | S45 | AD153: RB09 w/ Guide | S45 | AE153: RB09 Geared | S45 | AF153: RB09 Geared w/ Guide | S45 | AG153: RB10 | S60 | AH153: SL10 | AI153: SL15 | AJ153: SL20 | AK153: SL30 | AL153: Automate | 0.5 Nm | 20 rpm | AM153: Automate | 1.1 Nm | 20 rpm | AN153: Automate | 2 Nm | 20 rpm | AO153: Automate | 3 Nm | 28 rpm | AP153: Automate | 6 Nm | 33 rpm | AQ153: Automate | 10 Nm | 9 rpm | AR153: Automate | 15 Nm | 15 rpm | AS153: Automate | 30 Nm | 15 rpm | AT153: Automate | 50 Nm | 12 rpm | AV153: # options
C154: Bracket | D154: Skyline | E154: US | F154: SLxx650xx | G154: SLxx650xx Skyline Bracket | 32mm | 1-1/4" | I154: 59 | K154: =IF(INDEX(HO_TH_Show,MATCH(T_Brackets[[#This Row],[Description]],HO_TH_Desc,0))="Show",1,0) -> 1 | L154: =IF(i_Region="Global",1,IF(OR(i_Region=E154,E154="Global"),1,0)) -> 1 | M154: =IFERROR(IF(INDIRECT("o_"&T_Brackets[[#This Row],[Column2]]&"ActualRoll_mm")<T_Brackets[[#This Row],[Max Roll Diameter]],1,0),0) -> 0 | N154: =IFERROR(INDEX($Q154:$AT154,,MATCH(i_Control,$Q$153:$AT$153,0)),0) -> 0 | O154: =IF(AND(K154<>0,SheetStatus="Release - FFA"),1,SUMPRODUCT(M154,N154,K154,L154)) -> 0 | P154: =IFERROR(IF(i_Control="",z_SelectaControl,_xlfn._xlws.FILTER($G$154:$G$195,$O$154:$O$195)),z_NoOptions) -> Select a Control. | W154: 1 | X154: 1 | Y154: 1 | AH154: 1 | AV154: =SUM(Q154:AT154) -> 4
C155: Bracket | D155: Skyline | E155: Global | F155: SLxx660xx | G155: SLxx660xx Skyline Bracket | 38mm | 1-1/2" | I155: 76.2 | K155: =IF(INDEX(HO_TH_Show,MATCH(T_Brackets[[#This Row],[Description]],HO_TH_Desc,0))="Show",1,0) -> 1 | L155: 1 | M155: =IFERROR(IF(INDIRECT("o_"&T_Brackets[[#This Row],[Column2]]&"ActualRoll_mm")<T_Brackets[[#This Row],[Max Roll Diameter]],1,0),0) -> 0 | N155: =IFERROR(INDEX($Q155:$AT155,,MATCH(i_Control,$Q$153:$AT$153,0)),0) -> 0 | O155: 0 | Q155: 1 | W155: 1 | X155: 1 | Y155: 1 | AH155: 1 | AI155: 1 | AJ155: 1 | AL155: 1 | AM155: 1 | AN155: 1 | AV155: 10
C156: Bracket | D156: Skyline | E156: Global | F156: SLxx680xx | G156: SLxx680xx Skyline Bracket | 50mm | 2" | I156: 101.6 | K156: =IF(INDEX(HO_TH_Show,MATCH(T_Brackets[[#This Row],[Description]],HO_TH_Desc,0))="Show",1,0) -> 1 | L156: 1 | M156: =IFERROR(IF(INDIRECT("o_"&T_Brackets[[#This Row],[Column2]]&"ActualRoll_mm")<T_Brackets[[#This Row],[Max Roll Diameter]],1,0),0) -> 0 | N156: =IFERROR(INDEX($Q156:$AT156,,MATCH(i_Control,$Q$153:$AT$153,0)),0) -> 0 | O156: 0 | Q156: 1 | R156: 1 | W156: 1 | X156: 1 | Y156: 1 | AH156: 1 | AI156: 1 | AJ156: 1 | AK156: 1 | AL156: 1 | AM156: 1 | AN156: 1 | AV156: 12
C157: Bracket | D157: Skyline | E157: Global | F157: SLxx690xx | G157: SLxx690xx Skyline Bracket | 73mm | 2-1/2" | I157: 127.5 | K157: =IF(INDEX(HO_TH_Show,MATCH(T_Brackets[[#This Row],[Description]],HO_TH_Desc,0))="Show",1,0) -> 1 | L157: 1 | M157: =IFERROR(IF(INDIRECT("o_"&T_Brackets[[#This Row],[Column2]]&"ActualRoll_mm")<T_Brackets[[#This Row],[Max Roll Diameter]],1,0),0) -> 0 | N157: =IFERROR(INDEX($Q157:$AT157,,MATCH(i_Control,$Q$153:$AT$153,0)),0) -> 0 | O157: 0 | Q157: 1 | R157: 1 | W157: 1 | X157: 1 | Y157: 1 | AH157: 1 | AI157: 1 | AJ157: 1 | AK157: 1 | AL157: 1 | AM157: 1 | AN157: 1 | AV157: 12
C158: Bracket | D158: R-Series | E158: US | G158: RB360 | 1-1/2"" | I158: 69 | K158: =IF(INDEX(HO_TH_Show,MATCH(T_Brackets[[#This Row],[Description]],HO_TH_Desc,0))="Show",1,0) -> 1 | L158: 1 | M158: =IFERROR(IF(INDIRECT("o_"&T_Brackets[[#This Row],[Column2]]&"ActualRoll_mm")<T_Brackets[[#This Row],[Max Roll Diameter]],1,0),0) -> 0 | N158: =IFERROR(INDEX($Q158:$AT158,,MATCH(i_Control,$Q$153:$AT$153,0)),0) -> 0 | O158: 0 | S158: 1 | T158: 1 | AV158: 2
C159: Bracket | D159: R-Series | E159: US | G159: RB380 | 2" | I159: 92 | K159: =IF(INDEX(HO_TH_Show,MATCH(T_Brackets[[#This Row],[Description]],HO_TH_Desc,0))="Show",1,0) -> 1 | L159: 1 | M159: =IFERROR(IF(INDIRECT("o_"&T_Brackets[[#This Row],[Column2]]&"ActualRoll_mm")<T_Brackets[[#This Row],[Max Roll Diameter]],1,0),0) -> 0 | N159: =IFERROR(INDEX($Q159:$AT159,,MATCH(i_Control,$Q$153:$AT$153,0)),0) -> 0 | O159: 0 | S159: 1 | T159: 1 | AV159: 2
C160: Bracket | D160: R-Series | E160: US | G160: RB390 | 2-7/8" | I160: 101 | K160: =IF(INDEX(HO_TH_Show,MATCH(T_Brackets[[#This Row],[Description]],HO_TH_Desc,0))="Show",1,0) -> 1 | L160: 1 | M160: =IFERROR(IF(INDIRECT("o_"&T_Brackets[[#This Row],[Column2]]&"ActualRoll_mm")<T_Brackets[[#This Row],[Max Roll Diameter]],1,0),0) -> 0 | N160: =IFERROR(INDEX($Q160:$AT160,,MATCH(i_Control,$Q$153:$AT$153,0)),0) -> 0 | O160: 0 | S160: 1 | T160: 1 | AV160: 2
C161: Bracket | D161: R-Series | E161: US | G161: RB560 | 1-1/2" | I161: 76 | K161: =IF(INDEX(HO_TH_Show,MATCH(T_Brackets[[#This Row],[Description]],HO_TH_Desc,0))="Show",1,0) -> 1 | L161: 1 | M161: =IFERROR(IF(INDIRECT("o_"&T_Brackets[[#This Row],[Column2]]&"ActualRoll_mm")<T_Brackets[[#This Row],[Max Roll Diameter]],1,0),0) -> 0 | N161: =IFERROR(INDEX($Q161:$AT161,,MATCH(i_Control,$Q$153:$AT$153,0)),0) -> 0 | O161: 0 | U161: 1 | AV161: 1
C162: Bracket | D162: R-Series | E162: US | G162: RB580 | 2" | I162: 101 | K162: =IF(INDEX(HO_TH_Show,MATCH(T_Brackets[[#This Row],[Description]],HO_TH_Desc,0))="Show",1,0) -> 1 | L162: 1 | M162: =IFERROR(IF(INDIRECT("o_"&T_Brackets[[#This Row],[Column2]]&"ActualRoll_mm")<T_Brackets[[#This Row],[Max Roll Diameter]],1,0),0) -> 0 | N162: =IFERROR(INDEX($Q162:$AT162,,MATCH(i_Control,$Q$153:$AT$153,0)),0) -> 0 | O162: 0 | U162: 1 | V162: 1 | AV162: 2
C163: Bracket | D163: R-Series | E163: US | G163: RB590 | 2-7/8" | I163: 139 | K163: =IF(INDEX(HO_TH_Show,MATCH(T_Brackets[[#This Row],[Description]],HO_TH_Desc,0))="Show",1,0) -> 1 | L163: 1 | M163: =IFERROR(IF(INDIRECT("o_"&T_Brackets[[#This Row],[Column2]]&"ActualRoll_mm")<T_Brackets[[#This Row],[Max Roll Diameter]],1,0),0) -> 0 | N163: =IFERROR(INDEX($Q163:$AT163,,MATCH(i_Control,$Q$153:$AT$153,0)),0) -> 0 | O163: 0 | U163: 1 | V163: 1 | AV163: 2
C164: Bracket | D164: R-Series | E164: US | G164: RBGAL | I164: 101 | K164: =IF(INDEX(HO_TH_Show,MATCH(T_Brackets[[#This Row],[Description]],HO_TH_Desc,0))="Show",1,0) -> 1 | L164: 1 | M164: =IFERROR(IF(INDIRECT("o_"&T_Brackets[[#This Row],[Column2]]&"ActualRoll_mm")<T_Brackets[[#This Row],[Max Roll Diameter]],1,0),0) -> 0 | N164: =IFERROR(INDEX($Q164:$AT164,,MATCH(i_Control,$Q$153:$AT$153,0)),0) -> 0 | O164: 0 | U164: 1 | V164: 1 | AV164: 2
C165: Bracket | E165: AU | F165: RB08-8345 | G165: LX Bracket 30mm | S35 | I165: 57 | K165: =IF(INDEX(HO_TH_Show,MATCH(T_Brackets[[#This Row],[Description]],HO_TH_Desc,0))="Show",1,0) -> 1 | L165: 1 | M165: =IFERROR(IF(INDIRECT("o_"&T_Brackets[[#This Row],[Column2]]&"ActualRoll_mm")<T_Brackets[[#This Row],[Max Roll Diameter]],1,0),0) -> 0 | N165: =IFERROR(INDEX($Q165:$AT165,,MATCH(i_Control,$Q$153:$AT$153,0)),0) -> 0 | O165: 0 | Z165: 1 | AL165: 1 | AM165: 1 | AN165: 1 | AV165: 4
C166: Bracket | E166: Global | G166: LX/VX/AX Bracket 40mm Proj. | I166: 77 | K166: =IF(INDEX(HO_TH_Show,MATCH(T_Brackets[[#This Row],[Description]],HO_TH_Desc,0))="Show",1,0) -> 1 | L166: 1 | M166: =IFERROR(IF(INDIRECT("o_"&T_Brackets[[#This Row],[Column2]]&"ActualRoll_mm")<T_Brackets[[#This Row],[Max Roll Diameter]],1,0),0) -> 0 | N166: =IFERROR(INDEX($Q166:$AT166,,MATCH(i_Control,$Q$153:$AT$153,0)),0) -> 0 | O166: 0 | Q166: 1 | W166: 1 | X166: 1 | Y166: 1 | AA166: 1 | AB166: 1 | AC166: =IF(i_Tube=S60_STD,"",1) -> 1 | AD166: =IF(i_Tube=S60_STD,"",1) -> 1 | AE166: =IF(i_Tube=S60_STD,"",1) -> 1 | AF166: =IF(i_Tube=S60_STD,"",1) -> 1 | AH166: 1 | AI166: 1 | AJ166: 1 | AL166: 1 | AM166: 1 | AN166: 1 | AO166: 1 | AP166: 1 | AV166: 18
C167: Bracket | E167: Global | G167: LX/VX/AX Bracket 55mm Proj. | I167: 105 | K167: =IF(INDEX(HO_TH_Show,MATCH(T_Brackets[[#This Row],[Description]],HO_TH_Desc,0))="Show",1,0) -> 1 | L167: 1 | M167: =IFERROR(IF(INDIRECT("o_"&T_Brackets[[#This Row],[Column2]]&"ActualRoll_mm")<T_Brackets[[#This Row],[Max Roll Diameter]],1,0),0) -> 0 | N167: =IFERROR(INDEX($Q167:$AT167,,MATCH(i_Control,$Q$153:$AT$153,0)),0) -> 0 | O167: 0 | Q167: 1 | R167: 1 | W167: 1 | X167: 1 | Y167: 1 | AA167: 1 | AB167: 1 | AC167: 1 | AD167: 1 | AE167: 1 | AF167: 1 | AH167: 1 | AI167: 1 | AJ167: 1 | AK167: 1 | AL167: 1 | AM167: 1 | AN167: 1 | AO167: 1 | AP167: 1 | AV167: 20
C168: Bracket | E168: Global | F168: RB0x-8380-xxx115 | G168: Slimline-X Double Easy-Lock Bracket | S40/S45 | I168: 65 | K168: =IF(INDEX(HO_TH_Show,MATCH(T_Brackets[[#This Row],[Description]],HO_TH_Desc,0))="Show",1,0) -> 1 | L168: 1 | M168: =IFERROR(IF(INDIRECT("o_"&T_Brackets[[#This Row],[Column2]]&"ActualRoll_mm")<T_Brackets[[#This Row],[Max Roll Diameter]],1,0),0) -> 0 | N168: =IFERROR(INDEX($Q168:$AT168,,MATCH(i_Control,$Q$153:$AT$153,0)),0) -> 0 | O168: 0 | AB168: 1 | AC168: 1 | AD168: 1 | AE168: 1 | AF168: 1 | AM168: 1 | AN168: 1 | AV168: 7
C169: Bracket | E169: Global | F169: RB0x-8384-xxx122 | G169: Square-X Double Easy-Lock Bracket | S40/S45 | I169: 70 | K169: =IF(INDEX(HO_TH_Show,MATCH(T_Brackets[[#This Row],[Description]],HO_TH_Desc,0))="Show",1,0) -> 1 | L169: 1 | M169: =IFERROR(IF(INDIRECT("o_"&T_Brackets[[#This Row],[Column2]]&"ActualRoll_mm")<T_Brackets[[#This Row],[Max Roll Diameter]],1,0),0) -> 0 | N169: =IFERROR(INDEX($Q169:$AT169,,MATCH(i_Control,$Q$153:$AT$153,0)),0) -> 0 | O169: 0 | AB169: 1 | AC169: 1 | AD169: 1 | AE169: 1 | AF169: 1 | AM169: 1 | AN169: 1 | AV169: 7
C170: Bracket | E170: Global | F170: RB08-83xx | RB09-83xx | G170: Slim Profile Double Bracket | S40/S45 | I170: 70 | K170: =IF(INDEX(HO_TH_Show,MATCH(T_Brackets[[#This Row],[Description]],HO_TH_Desc,0))="Show",1,0) -> 1 | L170: 1 | M170: =IFERROR(IF(INDIRECT("o_"&T_Brackets[[#This Row],[Column2]]&"ActualRoll_mm")<T_Brackets[[#This Row],[Max Roll Diameter]],1,0),0) -> 0 | N170: =IFERROR(INDEX($Q170:$AT170,,MATCH(i_Control,$Q$153:$AT$153,0)),0) -> 0 | O170: 0 | AB170: 1 | AC170: 1 | AD170: 1 | AE170: 1 | AF170: 1 | AM170: 1 | AN170: 1 | AV170: 7
C171: Bracket | D171: Skyline | E171: Global | G171: Skyline Bracket | Double Universal | 38mm | I171: 60 | K171: =IF(INDEX(HO_TH_Show,MATCH(T_Brackets[[#This Row],[Description]],HO_TH_Desc,0))="Show",1,0) -> 1 | L171: 1 | M171: =IFERROR(IF(INDIRECT("o_"&T_Brackets[[#This Row],[Column2]]&"ActualRoll_mm")<T_Brackets[[#This Row],[Max Roll Diameter]],1,0),0) -> 0 | N171: =IFERROR(INDEX($Q171:$AT171,,MATCH(i_Control,$Q$153:$AT$153,0)),0) -> 0 | O171: 0 | W171: 1 | X171: 1 | Y171: 1 | AL171: 1 | AM171: 1 | AN171: 1 | AV171: 6
C172: Bracket | D172: Skyline | E172: Global | G172: Skyline Bracket | Double Universal | 48mm | I172: 68 | K172: =IF(INDEX(HO_TH_Show,MATCH(T_Brackets[[#This Row],[Description]],HO_TH_Desc,0))="Show",1,0) -> 1 | L172: 1 | M172: =IFERROR(IF(INDIRECT("o_"&T_Brackets[[#This Row],[Column2]]&"ActualRoll_mm")<T_Brackets[[#This Row],[Max Roll Diameter]],1,0),0) -> 0 | N172: =IFERROR(INDEX($Q172:$AT172,,MATCH(i_Control,$Q$153:$AT$153,0)),0) -> 0 | O172: 0 | W172: 1 | X172: 1 | Y172: 1 | AL172: 1 | AM172: 1 | AN172: 1 | AV172: 6
C173: Bracket | D173: Skyline | E173: Global | G173: Skyline Bracket | Double Vertical or Horizontal | I173: 76 | K173: =IF(INDEX(HO_TH_Show,MATCH(T_Brackets[[#This Row],[Description]],HO_TH_Desc,0))="Show",1,0) -> 1 | L173: 1 | M173: =IFERROR(IF(INDIRECT("o_"&T_Brackets[[#This Row],[Column2]]&"ActualRoll_mm")<T_Brackets[[#This Row],[Max Roll Diameter]],1,0),0) -> 0 | N173: =IFERROR(INDEX($Q173:$AT173,,MATCH(i_Control,$Q$153:$AT$153,0)),0) -> 0 | O173: 0 | W173: 1 | X173: 1 | Y173: 1 | AL173: 1 | AM173: 1 | AN173: 1 | AV173: 6
C174: Bracket | E174: Global | G174: 60mm Bracket | S60 | I174: 104 | K174: =IF(INDEX(HO_TH_Show,MATCH(T_Brackets[[#This Row],[Description]],HO_TH_Desc,0))="Show",1,0) -> 1 | L174: 1 | M174: =IFERROR(IF(INDIRECT("o_"&T_Brackets[[#This Row],[Column2]]&"ActualRoll_mm")<T_Brackets[[#This Row],[Max Roll Diameter]],1,0),0) -> 0 | N174: =IFERROR(INDEX($Q174:$AT174,,MATCH(i_Control,$Q$153:$AT$153,0)),0) -> 0 | O174: 0 | AG174: 1 | AQ174: 1 | AR174: =IFERROR(IF(FIND("63 STD",i_Tube)>0,0,1),1) -> 1 | AV174: 3
C175: Bracket | E175: Global | G175: 80mm Bracket | S60 | I175: 168 | K175: =IF(INDEX(HO_TH_Show,MATCH(T_Brackets[[#This Row],[Description]],HO_TH_Desc,0))="Show",1,0) -> 1 | L175: 1 | M175: =IFERROR(IF(INDIRECT("o_"&T_Brackets[[#This Row],[Column2]]&"ActualRoll_mm")<T_Brackets[[#This Row],[Max Roll Diameter]],1,0),0) -> 0 | N175: =IFERROR(INDEX($Q175:$AT175,,MATCH(i_Control,$Q$153:$AT$153,0)),0) -> 0 | O175: 0 | AQ175: 1 | AR175: =IFERROR(IF(FIND("63 STD",i_Tube)>0,0,1),1) -> 1 | AV175: 2
C176: Bracket | E176: Global | F176: RB56-732x | G176: Double Bracket | S60 | I176: 90 | K176: =IF(INDEX(HO_TH_Show,MATCH(T_Brackets[[#This Row],[Description]],HO_TH_Desc,0))="Show",1,0) -> 1 | L176: 1 | M176: =IFERROR(IF(INDIRECT("o_"&T_Brackets[[#This Row],[Column2]]&"ActualRoll_mm")<T_Brackets[[#This Row],[Max Roll Diameter]],1,0),0) -> 0 | N176: =IFERROR(INDEX($Q176:$AT176,,MATCH(i_Control,$Q$153:$AT$153,0)),0) -> 0 | O176: 0 | AQ176: 1 | AR176: =IFERROR(IF(FIND("63 STD",i_Tube)>0,0,1),1) -> 1 | AV176: 2
C177: Bracket | E177: Global | F177: RB80-1201 | G177: Extreme | Top/Face Bracket | S100 | I177: 180 | K177: =IF(INDEX(HO_TH_Show,MATCH(T_Brackets[[#This Row],[Description]],HO_TH_Desc,0))="Show",1,0) -> 1 | L177: 1 | M177: =IFERROR(IF(INDIRECT("o_"&T_Brackets[[#This Row],[Column2]]&"ActualRoll_mm")<T_Brackets[[#This Row],[Max Roll Diameter]],1,0),0) -> 0 | N177: =IFERROR(INDEX($Q177:$AT177,,MATCH(i_Control,$Q$153:$AT$153,0)),0) -> 0 | O177: 0 | AS177: 1 | AT177: 1 | AV177: 2
C178: Bracket | E178: Global | F178: RB80-0478 | G178: Extreme | Recess Bracket | S100 | I178: 190 | K178: =IF(INDEX(HO_TH_Show,MATCH(T_Brackets[[#This Row],[Description]],HO_TH_Desc,0))="Show",1,0) -> 1 | L178: 1 | M178: =IFERROR(IF(INDIRECT("o_"&T_Brackets[[#This Row],[Column2]]&"ActualRoll_mm")<T_Brackets[[#This Row],[Max Roll Diameter]],1,0),0) -> 0 | N178: =IFERROR(INDEX($Q178:$AT178,,MATCH(i_Control,$Q$153:$AT$153,0)),0) -> 0 | O178: 0 | AS178: 1 | AT178: 1 | AV178: 2
C179: Bracket | E179: Global | F179: RE01-3020 | G179: External Open Bracket | Round | I179: 130 | K179: =IF(INDEX(HO_TH_Show,MATCH(T_Brackets[[#This Row],[Description]],HO_TH_Desc,0))="Show",1,0) -> 1 | L179: 1 | M179: =IFERROR(IF(INDIRECT("o_"&T_Brackets[[#This Row],[Column2]]&"ActualRoll_mm")<T_Brackets[[#This Row],[Max Roll Diameter]],1,0),0) -> 0 | N179: =IFERROR(INDEX($Q179:$AT179,,MATCH(i_Control,$Q$153:$AT$153,0)),0) -> 0 | O179: 0 | AR179: =IFERROR(IF(FIND("S60",i_Tube)>0,0,1),1) -> 1 | AV179: 1
C180: Bracket | E180: Global | F180: RE01-3030 | G180: External Open Bracket | Square | I180: 130 | K180: =IF(INDEX(HO_TH_Show,MATCH(T_Brackets[[#This Row],[Description]],HO_TH_Desc,0))="Show",1,0) -> 1 | L180: 1 | M180: =IFERROR(IF(INDIRECT("o_"&T_Brackets[[#This Row],[Column2]]&"ActualRoll_mm")<T_Brackets[[#This Row],[Max Roll Diameter]],1,0),0) -> 0 | N180: =IFERROR(INDEX($Q180:$AT180,,MATCH(i_Control,$Q$153:$AT$153,0)),0) -> 0 | O180: 0 | AR180: =IFERROR(IF(FIND("S60",i_Tube)>0,0,1),1) -> 1 | AV180: 1
C181: Cassette | E181: Global | F181: RE01-1101 | G181: Box 120 | I181: 110 | K181: =IF(INDEX(HO_TH_Show,MATCH(T_Brackets[[#This Row],[Description]],HO_TH_Desc,0))="Show",1,0) -> 1 | L181: 1 | M181: =IFERROR(IF(INDIRECT("o_"&T_Brackets[[#This Row],[Column2]]&"ActualRoll_mm")<T_Brackets[[#This Row],[Max Roll Diameter]],1,0),0) -> 0 | N181: =IFERROR(INDEX($Q181:$AT181,,MATCH(i_Control,$Q$153:$AT$153,0)),0) -> 0 | O181: 0 | AR181: =IFERROR(IF(FIND("S60",i_Tube)>0,0,1),1) -> 1 | AV181: 1
C182: Cassette | E182: Global | F182: RE01-1105 | G182: Extreme | Box 190 Cassette | I182: 155 | K182: =IF(INDEX(HO_TH_Show,MATCH(T_Brackets[[#This Row],[Description]],HO_TH_Desc,0))="Show",1,0) -> 1 | L182: 1 | M182: =IFERROR(IF(INDIRECT("o_"&T_Brackets[[#This Row],[Column2]]&"ActualRoll_mm")<T_Brackets[[#This Row],[Max Roll Diameter]],1,0),0) -> 0 | N182: =IFERROR(INDEX($Q182:$AT182,,MATCH(i_Control,$Q$153:$AT$153,0)),0) -> 0 | O182: 0 | AS182: 1 | AT182: 1 | AV182: 2
C183: Cassette | E183: Global | F183: SB05-1301 | G183: Extreme | Zipscreen Open Bracket | I183: 170 | K183: =IF(INDEX(HO_TH_Show,MATCH(T_Brackets[[#This Row],[Description]],HO_TH_Desc,0))="Show",1,0) -> 1 | L183: 1 | M183: =IFERROR(IF(INDIRECT("o_"&T_Brackets[[#This Row],[Column2]]&"ActualRoll_mm")<T_Brackets[[#This Row],[Max Roll Diameter]],1,0),0) -> 0 | N183: =IFERROR(INDEX($Q183:$AT183,,MATCH(i_Control,$Q$153:$AT$153,0)),0) -> 0 | O183: 0 | AS183: 1 | AT183: 1 | AV183: 2
C184: Cassette | E184: US | G184: Cassette 80 | I184: 41 | K184: =IF(INDEX(HO_TH_Show,MATCH(T_Brackets[[#This Row],[Description]],HO_TH_Desc,0))="Show",1,0) -> 1 | L184: 1 | M184: =IFERROR(IF(INDIRECT("o_"&T_Brackets[[#This Row],[Column2]]&"ActualRoll_mm")<T_Brackets[[#This Row],[Max Roll Diameter]],1,0),0) -> 0 | N184: =IFERROR(INDEX($Q184:$AT184,,MATCH(i_Control,$Q$153:$AT$153,0)),0) -> 0 | O184: 0 | S184: 1 | T184: 1 | W184: 1 | X184: 1 | Y184: 1 | AH184: 1 | AL184: 1 | AM184: 1 | AV184: 8
C185: Cassette | E185: US | G185: Cassette 100 | I185: 64 | K185: =IF(INDEX(HO_TH_Show,MATCH(T_Brackets[[#This Row],[Description]],HO_TH_Desc,0))="Show",1,0) -> 1 | L185: 1 | M185: =IFERROR(IF(INDIRECT("o_"&T_Brackets[[#This Row],[Column2]]&"ActualRoll_mm")<T_Brackets[[#This Row],[Max Roll Diameter]],1,0),0) -> 0 | N185: =IFERROR(INDEX($Q185:$AT185,,MATCH(i_Control,$Q$153:$AT$153,0)),0) -> 0 | O185: 0 | Q185: 1 | T185: 1 | U185: 1 | W185: 1 | X185: 1 | Y185: 1 | AH185: 1 | AI185: 1 | AL185: 1 | AM185: 1 | AV185: 10
C186: Cassette | E186: US | G186: Cassette 120 | I186: 73 | K186: =IF(INDEX(HO_TH_Show,MATCH(T_Brackets[[#This Row],[Description]],HO_TH_Desc,0))="Show",1,0) -> 1 | L186: 1 | M186: =IFERROR(IF(INDIRECT("o_"&T_Brackets[[#This Row],[Column2]]&"ActualRoll_mm")<T_Brackets[[#This Row],[Max Roll Diameter]],1,0),0) -> 0 | N186: =IFERROR(INDEX($Q186:$AT186,,MATCH(i_Control,$Q$153:$AT$153,0)),0) -> 0 | O186: 0 | Q186: 1 | T186: 1 | U186: 1 | W186: 1 | X186: 1 | Y186: 1 | AH186: 1 | AI186: 1 | AJ186: 1 | AL186: 1 | AM186: 1 | AV186: 11
C187: Cassette | E187: US | G187: Square Cassette 110 | I187: 73 | K187: =IF(INDEX(HO_TH_Show,MATCH(T_Brackets[[#This Row],[Description]],HO_TH_Desc,0))="Show",1,0) -> 1 | L187: 1 | M187: =IFERROR(IF(INDIRECT("o_"&T_Brackets[[#This Row],[Column2]]&"ActualRoll_mm")<T_Brackets[[#This Row],[Max Roll Diameter]],1,0),0) -> 0 | N187: =IFERROR(INDEX($Q187:$AT187,,MATCH(i_Control,$Q$153:$AT$153,0)),0) -> 0 | O187: 0 | Q187: 1 | W187: 1 | X187: 1 | Y187: 1 | AH187: 1 | AI187: 1 | AJ187: 1 | AL187: 1 | AM187: 1 | AN187: 1 | AO187: 1 | AP187: 1 | AQ187: 1 | AV187: 13
C188: Cassette | E188: US | G188: 3" Fascia | I188: 70 | K188: =IF(INDEX(HO_TH_Show,MATCH(T_Brackets[[#This Row],[Description]],HO_TH_Desc,0))="Show",1,0) -> 1 | L188: 1 | M188: =IFERROR(IF(INDIRECT("o_"&T_Brackets[[#This Row],[Column2]]&"ActualRoll_mm")<T_Brackets[[#This Row],[Max Roll Diameter]],1,0),0) -> 0 | N188: =IFERROR(INDEX($Q188:$AT188,,MATCH(i_Control,$Q$153:$AT$153,0)),0) -> 0 | O188: 0 | T188: 1 | U188: 1 | W188: 1 | X188: 1 | Y188: 1 | AL188: 1 | AM188: 1 | AN188: 1 | AO188: 1 | AP188: 1 | AV188: 10
C189: Cassette | E189: US | G189: 4" Fascia | I189: 95 | K189: =IF(INDEX(HO_TH_Show,MATCH(T_Brackets[[#This Row],[Description]],HO_TH_Desc,0))="Show",1,0) -> 1 | L189: 1 | M189: =IFERROR(IF(INDIRECT("o_"&T_Brackets[[#This Row],[Column2]]&"ActualRoll_mm")<T_Brackets[[#This Row],[Max Roll Diameter]],1,0),0) -> 0 | N189: =IFERROR(INDEX($Q189:$AT189,,MATCH(i_Control,$Q$153:$AT$153,0)),0) -> 0 | O189: 0 | Q189: 1 | U189: 1 | V189: 1 | W189: 1 | X189: 1 | Y189: 1 | AL189: 1 | AM189: 1 | AN189: 1 | AO189: 1 | AP189: 1 | AV189: 11
C190: Cassette | E190: US | G190: 5" Fascia - Single Roll | I190: 120.7 | K190: =IF(INDEX(HO_TH_Show,MATCH(T_Brackets[[#This Row],[Description]],HO_TH_Desc,0))="Show",1,0) -> 1 | L190: 1 | M190: =IFERROR(IF(INDIRECT("o_"&T_Brackets[[#This Row],[Column2]]&"ActualRoll_mm")<T_Brackets[[#This Row],[Max Roll Diameter]],1,0),0) -> 0 | N190: =IFERROR(INDEX($Q190:$AT190,,MATCH(i_Control,$Q$153:$AT$153,0)),0) -> 0 | O190: 0 | Q190: 1 | R190: 1 | U190: 1 | V190: 1 | W190: 1 | X190: 1 | Y190: 1 | AI190: 1 | AJ190: 1 | AK190: 1 | AN190: 1 | AO190: 1 | AP190: 1 | AV190: 13
C191: Cassette | E191: US | G191: 5" Fascia - Double Roll | I191: 70 | K191: =IF(INDEX(HO_TH_Show,MATCH(T_Brackets[[#This Row],[Description]],HO_TH_Desc,0))="Show",1,0) -> 1 | L191: 1 | M191: =IFERROR(IF(INDIRECT("o_"&T_Brackets[[#This Row],[Column2]]&"ActualRoll_mm")<T_Brackets[[#This Row],[Max Roll Diameter]],1,0),0) -> 0 | N191: =IFERROR(INDEX($Q191:$AT191,,MATCH(i_Control,$Q$153:$AT$153,0)),0) -> 0 | O191: 0 | W191: 1 | X191: 1 | Y191: 1 | AN191: 1 | AO191: 1 | AP191: 1 | AV191: 6
C192: Cassette | E192: Global | G192: P95 | I192: 78 | K192: =IF(INDEX(HO_TH_Show,MATCH(T_Brackets[[#This Row],[Description]],HO_TH_Desc,0))="Show",1,0) -> 1 | L192: 1 | M192: =IFERROR(IF(INDIRECT("o_"&T_Brackets[[#This Row],[Column2]]&"ActualRoll_mm")<T_Brackets[[#This Row],[Max Roll Diameter]],1,0),0) -> 0 | N192: =IFERROR(INDEX($Q192:$AT192,,MATCH(i_Control,$Q$153:$AT$153,0)),0) -> 0 | O192: 0 | W192: 1 | X192: 1 | Y192: 1 | AH192: 1 | AI192: 1 | AL192: 1 | AM192: 1 | AN192: 1 | AO192: 1 | AP192: 1 | AV192: 10
C193: Cassette | E193: AU | G193: FRS100 | I193: 107 | K193: =IF(INDEX(HO_TH_Show,MATCH(T_Brackets[[#This Row],[Description]],HO_TH_Desc,0))="Show",1,0) -> 1 | L193: 1 | M193: =IFERROR(IF(INDIRECT("o_"&T_Brackets[[#This Row],[Column2]]&"ActualRoll_mm")<T_Brackets[[#This Row],[Max Roll Diameter]],1,0),0) -> 0 | N193: =IFERROR(INDEX($Q193:$AT193,,MATCH(i_Control,$Q$153:$AT$153,0)),0) -> 0 | O193: 0 | W193: 1 | X193: 1 | Y193: 1 | AA193: 1 | AB193: 1 | AC193: =IF(i_Tube=S60_STD,"",1) -> 1 | AD193: =IF(i_Tube=S60_STD,"",1) -> 1 | AE193: =IF(i_Tube=S60_STD,"",1) -> 1 | AF193: =IF(i_Tube=S60_STD,"",1) -> 1 | AM193: 1 | AN193: 1 | AV193: 11
C194: Cassette | E194: AU | G194: FRS120 | I194: 105 | K194: =IF(INDEX(HO_TH_Show,MATCH(T_Brackets[[#This Row],[Description]],HO_TH_Desc,0))="Show",1,0) -> 1 | L194: 1 | M194: =IFERROR(IF(INDIRECT("o_"&T_Brackets[[#This Row],[Column2]]&"ActualRoll_mm")<T_Brackets[[#This Row],[Max Roll Diameter]],1,0),0) -> 0 | N194: =IFERROR(INDEX($Q194:$AT194,,MATCH(i_Control,$Q$153:$AT$153,0)),0) -> 0 | O194: 0 | W194: 1 | X194: 1 | Y194: 1 | AG194: 1 | AM194: 1 | AN194: 1 | AV194: 6
C195: Cassette | E195: Global | G195: CF90 | I195: 77 | K195: =IF(INDEX(HO_TH_Show,MATCH(T_Brackets[[#This Row],[Description]],HO_TH_Desc,0))="Show",1,0) -> 1 | L195: 1 | M195: =IFERROR(IF(INDIRECT("o_"&T_Brackets[[#This Row],[Column2]]&"ActualRoll_mm")<T_Brackets[[#This Row],[Max Roll Diameter]],1,0),0) -> 0 | N195: =IFERROR(INDEX($Q195:$AT195,,MATCH(i_Control,$Q$153:$AT$153,0)),0) -> 0 | O195: 0 | W195: 1 | X195: 1 | Y195: 1 | AA195: 1 | AB195: 1 | AC195: 1 | AD195: 1 | AE195: 1 | AF195: 1 | AL195: 1 | AM195: 1 | AN195: 1 | AO195: 1 | AP195: 1 | AV195: 14
F200: Link Selection Active? | G200: =o_LinkActive -> No | H200: Link Torque Required | J200: o_tmax_sum
F201: i_Tube | G201: =i_Tube -> 0 | H201: =o_LinkTorqueReqd ->  | I201: Nm | J201: =o_tMax_Sum ->  | K201: Nm | N201: List Length
N202: =IF(SUM($L$205:$L$210)=0,1,COUNTIF($L$205:$L$210,">0")) -> 
C203: LINK OPTIONS | G203: (N/m)
C204: Column2 | D204: Column1 | E204: Column3 | F204: Description | G204: Torque | H204: TubeCompatibility | J204: Link Torque Check | L204: on/off | N204: Output LIST
F205: No Link System Compatible | G205: - | H205: 1 | J205: =IF(SUM(L206:L210)=0,1,0) ->  | L205: =PRODUCT((H205:J205)) ->  | N205: =IFERROR(IF(o_LinkActive="Yes",_xlfn._xlws.FILTER($F$205:$F$210,$L$205:$L$210),""),"") -> 
F206: Infinite Link | G206: 2 | H206: =INDEX(T_LinkTubeCompat[],MATCH(i_Tube,Tube_Description,0),MATCH(T_Links[[#This Row],[Description]],T_LinkTubeCompat[#Headers],0)) ->  | J206: =IF(G206:G210>o_LinkTorqueReqd,1,0) -> 0 | L206: =PRODUCT((H206:J206)) -> 
F207: Easy-Link Skyline | G207: 2 | H207: =INDEX(T_LinkTubeCompat[],MATCH(i_Tube,Tube_Description,0),MATCH(T_Links[[#This Row],[Description]],T_LinkTubeCompat[#Headers],0)) ->  | J207: 0
F208: Easy-Link | G208: 3 | H208: =INDEX(T_LinkTubeCompat[],MATCH(i_Tube,Tube_Description,0),MATCH(T_Links[[#This Row],[Description]],T_LinkTubeCompat[#Headers],0)) ->  | J208: 0
F209: Easy-Link Uni-Joint | G209: 2.5 | H209: =INDEX(T_LinkTubeCompat[],MATCH(i_Tube,Tube_Description,0),MATCH(T_Links[[#This Row],[Description]],T_LinkTubeCompat[#Headers],0)) ->  | J209: 0
F210: S60 Multi-Link | G210: 14 | H210: =INDEX(T_LinkTubeCompat[],MATCH(i_Tube,Tube_Description,0),MATCH(T_Links[[#This Row],[Description]],T_LinkTubeCompat[#Headers],0)) ->  | J210: 0
H214: todo: error check for no compatible tubes.
C217: Adaptor Code | D217: ID
C218: No Adaptor Required | D218: 1
C219: RA2 | D219: 2
C220: RA25 | D220: 3
... 44 more rows

Sheet _Chart Formatting_WIP (hidden)
K7: Tube | L7: =i_Tube -> 0
K10: Tube Border (0 = No border, 1 = Right, 2 = Bottom, 3 = Right & Bottom) | AI10: Tube Compatibility (1 = Within Tube Deflection, 0 = Outside Tube Deflection) | BG10: Tube Deflection (From generated system charts)
K11: =AI11 -> m | L11: =AJ11 -> 0.6 | M11: =AK11 -> 0.8 | N11: 1 | O11: 1.2 | P11: 1.4 | Q11: 1.6 | R11: 1.8 | S11: 2 | T11: 2.2 | U11: 2.4 | V11: 2.6 | W11: 2.8 | X11: 3 | Y11: 3.2 | Z11: 3.4 | AA11: 3.6 | AB11: 3.8 | AC11: 4 | AD11: 4.2 | AE11: 4.4 | AF11: 4.6 | AI11: =BG11 -> m | AJ11: =BH11 -> 0.6 | AK11: 0.8 | AL11: 1 | AM11: 1.2 | AN11: 1.4 | AO11: 1.6 | AP11: 1.8 | AQ11: 2 | AR11: 2.2 | AS11: 2.4 | AT11: 2.6 | AU11: 2.8 | AV11: 3 | AW11: 3.2 | AX11: 3.4 | AY11: 3.6 | AZ11: 3.8 | BA11: 4 | BB11: 4.2 | BC11: 4.4 | BD11: 4.6 | BG11: ='2. System Charts'!K11 -> m | BH11: ='2. System Charts'!L11 -> 0.6 | BI11: ='2. System Charts'!M11 -> 0.8 | BJ11: ='2. System Charts'!N11 -> 1 | BK11: ='2. System Charts'!O11 -> 1.2 | BL11: ='2. System Charts'!P11 -> 1.4 | BM11: ='2. System Charts'!Q11 -> 1.6 | BN11: ='2. System Charts'!R11 -> 1.8 | BO11: ='2. System Charts'!S11 -> 2 | BP11: ='2. System Charts'!T11 -> 2.2 | BQ11: ='2. System Charts'!U11 -> 2.4 | BR11: ='2. System Charts'!V11 -> 2.6 | BS11: ='2. System Charts'!W11 -> 2.8 | BT11: ='2. System Charts'!X11 -> 3 | BU11: ='2. System Charts'!Y11 -> 3.2 | BV11: ='2. System Charts'!Z11 -> 3.4 | BW11: ='2. System Charts'!AA11 -> 3.6 | BX11: ='2. System Charts'!AB11 -> 3.8 | BY11: ='2. System Charts'!AC11 -> 4 | BZ11: ='2. System Charts'!AD11 -> 4.2 | CA11: ='2. System Charts'!AE11 -> 4.4 | CB11: ='2. System Charts'!AF11 -> 4.6
K12: 0.6 | L12: =IF(AND(AJ12=AK12,AJ12=AJ13),0,IF(AND(AJ12<>AK12,AJ12=AJ13),1,IF(AND(AJ12=AK12,AJ12<>AJ13),2,IF(AND(AJ12<>AK12,AJ12<>AK13),3,"")))) -> 0 | M12: =IF(AND(AK12=AL12,AK12=AK13),0,IF(AND(AK12<>AL12,AK12=AK13),1,IF(AND(AK12=AL12,AK12<>AK13),2,IF(AND(AK12<>AL12,AK12<>AL13),3,"")))) -> 0 | N12: =IF(AND(AL12=AM12,AL12=AL13),0,IF(AND(AL12<>AM12,AL12=AL13),1,IF(AND(AL12=AM12,AL12<>AL13),2,IF(AND(AL12<>AM12,AL12<>AM13),3,"")))) -> 0 | O12: =IF(AND(AM12=AN12,AM12=AM13),0,IF(AND(AM12<>AN12,AM12=AM13),1,IF(AND(AM12=AN12,AM12<>AM13),2,IF(AND(AM12<>AN12,AM12<>AN13),3,"")))) -> 0 | P12: =IF(AND(AN12=AO12,AN12=AN13),0,IF(AND(AN12<>AO12,AN12=AN13),1,IF(AND(AN12=AO12,AN12<>AN13),2,IF(AND(AN12<>AO12,AN12<>AO13),3,"")))) -> 0 | Q12: =IF(AND(AO12=AP12,AO12=AO13),0,IF(AND(AO12<>AP12,AO12=AO13),1,IF(AND(AO12=AP12,AO12<>AO13),2,IF(AND(AO12<>AP12,AO12<>AP13),3,"")))) -> 0 | R12: =IF(AND(AP12=AQ12,AP12=AP13),0,IF(AND(AP12<>AQ12,AP12=AP13),1,IF(AND(AP12=AQ12,AP12<>AP13),2,IF(AND(AP12<>AQ12,AP12<>AQ13),3,"")))) -> 0 | S12: =IF(AND(AQ12=AR12,AQ12=AQ13),0,IF(AND(AQ12<>AR12,AQ12=AQ13),1,IF(AND(AQ12=AR12,AQ12<>AQ13),2,IF(AND(AQ12<>AR12,AQ12<>AR13),3,"")))) -> 0 | T12: =IF(AND(AR12=AS12,AR12=AR13),0,IF(AND(AR12<>AS12,AR12=AR13),1,IF(AND(AR12=AS12,AR12<>AR13),2,IF(AND(AR12<>AS12,AR12<>AS13),3,"")))) -> 0 | U12: =IF(AND(AS12=AT12,AS12=AS13),0,IF(AND(AS12<>AT12,AS12=AS13),1,IF(AND(AS12=AT12,AS12<>AS13),2,IF(AND(AS12<>AT12,AS12<>AT13),3,"")))) -> 0 | V12: =IF(AND(AT12=AU12,AT12=AT13),0,IF(AND(AT12<>AU12,AT12=AT13),1,IF(AND(AT12=AU12,AT12<>AT13),2,IF(AND(AT12<>AU12,AT12<>AU13),3,"")))) -> 0 | W12: =IF(AND(AU12=AV12,AU12=AU13),0,IF(AND(AU12<>AV12,AU12=AU13),1,IF(AND(AU12=AV12,AU12<>AU13),2,IF(AND(AU12<>AV12,AU12<>AV13),3,"")))) -> 0 | X12: =IF(AND(AV12=AW12,AV12=AV13),0,IF(AND(AV12<>AW12,AV12=AV13),1,IF(AND(AV12=AW12,AV12<>AV13),2,IF(AND(AV12<>AW12,AV12<>AW13),3,"")))) -> 0 | Y12: =IF(AND(AW12=AX12,AW12=AW13),0,IF(AND(AW12<>AX12,AW12=AW13),1,IF(AND(AW12=AX12,AW12<>AW13),2,IF(AND(AW12<>AX12,AW12<>AX13),3,"")))) -> 0 | Z12: =IF(AND(AX12=AY12,AX12=AX13),0,IF(AND(AX12<>AY12,AX12=AX13),1,IF(AND(AX12=AY12,AX12<>AX13),2,IF(AND(AX12<>AY12,AX12<>AY13),3,"")))) -> 0 | AA12: =IF(AND(AY12=AZ12,AY12=AY13),0,IF(AND(AY12<>AZ12,AY12=AY13),1,IF(AND(AY12=AZ12,AY12<>AY13),2,IF(AND(AY12<>AZ12,AY12<>AZ13),3,"")))) -> 0 | AB12: =IF(AND(AZ12=BA12,AZ12=AZ13),0,IF(AND(AZ12<>BA12,AZ12=AZ13),1,IF(AND(AZ12=BA12,AZ12<>AZ13),2,IF(AND(AZ12<>BA12,AZ12<>BA13),3,"")))) -> 0 | AC12: =IF(AND(BA12=BB12,BA12=BA13),0,IF(AND(BA12<>BB12,BA12=BA13),1,IF(AND(BA12=BB12,BA12<>BA13),2,IF(AND(BA12<>BB12,BA12<>BB13),3,"")))) -> 0 | AD12: =IF(AND(BB12=BC12,BB12=BB13),0,IF(AND(BB12<>BC12,BB12=BB13),1,IF(AND(BB12=BC12,BB12<>BB13),2,IF(AND(BB12<>BC12,BB12<>BC13),3,"")))) -> 0 | AE12: =IF(AND(BC12=BD12,BC12=BC13),0,IF(AND(BC12<>BD12,BC12=BC13),1,IF(AND(BC12=BD12,BC12<>BC13),2,IF(AND(BC12<>BD12,BC12<>BD13),3,"")))) -> 0 | AF12: =IF(AND(BD12=BE12,BD12=BD13),0,IF(AND(BD12<>BE12,BD12=BD13),1,IF(AND(BD12=BE12,BD12<>BD13),2,IF(AND(BD12<>BE12,BD12<>BE13),3,"")))) -> 0 | AI12: =BG12 -> 0.6 | AJ12: =IF(BH12<=BH$11/(1/Deflection_Limit2),1,0) -> 0 | AK12: =IF(BI12<=BI$11/(1/Deflection_Limit2),1,0) -> 0 | AL12: =IF(BJ12<=BJ$11/(1/Deflection_Limit2),1,0) -> 0 | AM12: =IF(BK12<=BK$11/(1/Deflection_Limit2),1,0) -> 0 | AN12: =IF(BL12<=BL$11/(1/Deflection_Limit2),1,0) -> 0 | AO12: =IF(BM12<=BM$11/(1/Deflection_Limit2),1,0) -> 0 | AP12: =IF(BN12<=BN$11/(1/Deflection_Limit2),1,0) -> 0 | AQ12: =IF(BO12<=BO$11/(1/Deflection_Limit2),1,0) -> 0 | AR12: =IF(BP12<=BP$11/(1/Deflection_Limit2),1,0) -> 0 | AS12: =IF(BQ12<=BQ$11/(1/Deflection_Limit2),1,0) -> 0 | AT12: =IF(BR12<=BR$11/(1/Deflection_Limit2),1,0) -> 0 | AU12: =IF(BS12<=BS$11/(1/Deflection_Limit2),1,0) -> 0 | AV12: =IF(BT12<=BT$11/(1/Deflection_Limit2),1,0) -> 0 | AW12: =IF(BU12<=BU$11/(1/Deflection_Limit2),1,0) -> 0 | AX12: =IF(BV12<=BV$11/(1/Deflection_Limit2),1,0) -> 0 | AY12: =IF(BW12<=BW$11/(1/Deflection_Limit2),1,0) -> 0 | AZ12: =IF(BX12<=BX$11/(1/Deflection_Limit2),1,0) -> 0 | BA12: =IF(BY12<=BY$11/(1/Deflection_Limit2),1,0) -> 0 | BB12: =IF(BZ12<=BZ$11/(1/Deflection_Limit2),1,0) -> 0 | BC12: =IF(CA12<=CA$11/(1/Deflection_Limit2),1,0) -> 0 | BD12: =IF(CB12<=CB$11/(1/Deflection_Limit2),1,0) -> 0 | BG12: ='2. System Charts'!K12 -> 0.6 | BH12: ='2. System Charts'!L12 ->  | BI12: ='2. System Charts'!M12 ->  | BJ12: ='2. System Charts'!N12 ->  | BK12: ='2. System Charts'!O12 ->  | BL12: ='2. System Charts'!P12 ->  | BM12: ='2. System Charts'!Q12 ->  | BN12: ='2. System Charts'!R12 ->  | BO12: ='2. System Charts'!S12 ->  | BP12: ='2. System Charts'!T12 ->  | BQ12: ='2. System Charts'!U12 ->  | BR12: ='2. System Charts'!V12 ->  | BS12: ='2. System Charts'!W12 ->  | BT12: ='2. System Charts'!X12 ->  | BU12: ='2. System Charts'!Y12 ->  | BV12: ='2. System Charts'!Z12 ->  | BW12: ='2. System Charts'!AA12 ->  | BX12: ='2. System Charts'!AB12 ->  | BY12: ='2. System Charts'!AC12 ->  | BZ12: ='2. System Charts'!AD12 ->  | CA12: ='2. System Charts'!AE12 ->  | CB12: ='2. System Charts'!AF12 -> 
K13: 0.8 | L13: =IF(AND(AJ13=AK13,AJ13=AJ14),0,IF(AND(AJ13<>AK13,AJ13=AJ14),1,IF(AND(AJ13=AK13,AJ13<>AJ14),2,IF(AND(AJ13<>AK13,AJ13<>AK14),3,"")))) -> 0 | M13: 0 | N13: 0 | O13: 0 | P13: 0 | Q13: 0 | R13: 0 | S13: 0 | T13: 0 | U13: 0 | V13: 0 | W13: 0 | X13: 0 | Y13: 0 | Z13: 0 | AA13: 0 | AB13: 0 | AC13: 0 | AD13: 0 | AE13: 0 | AF13: 0 | AI13: 0.8 | AJ13: 0 | AK13: 0 | AL13: 0 | AM13: 0 | AN13: 0 | AO13: 0 | AP13: 0 | AQ13: 0 | AR13: 0 | AS13: 0 | AT13: 0 | AU13: 0 | AV13: 0 | AW13: 0 | AX13: 0 | AY13: 0 | AZ13: 0 | BA13: 0 | BB13: 0 | BC13: 0 | BD13: 0 | BG13: ='2. System Charts'!K13 -> 0.8 | BH13: ='2. System Charts'!L13 ->  | BI13: ='2. System Charts'!M13 ->  | BJ13: ='2. System Charts'!N13 ->  | BK13: ='2. System Charts'!O13 ->  | BL13: ='2. System Charts'!P13 ->  | BM13: ='2. System Charts'!Q13 ->  | BN13: ='2. System Charts'!R13 ->  | BO13: ='2. System Charts'!S13 ->  | BP13: ='2. System Charts'!T13 ->  | BQ13: ='2. System Charts'!U13 ->  | BR13: ='2. System Charts'!V13 ->  | BS13: ='2. System Charts'!W13 ->  | BT13: ='2. System Charts'!X13 ->  | BU13: ='2. System Charts'!Y13 ->  | BV13: ='2. System Charts'!Z13 ->  | BW13: ='2. System Charts'!AA13 ->  | BX13: ='2. System Charts'!AB13 ->  | BY13: ='2. System Charts'!AC13 ->  | BZ13: ='2. System Charts'!AD13 ->  | CA13: ='2. System Charts'!AE13 ->  | CB13: ='2. System Charts'!AF13 -> 
K14: 1 | L14: 0 | M14: 0 | N14: 0 | O14: 0 | P14: 0 | Q14: 0 | R14: 0 | S14: 0 | T14: 0 | U14: 0 | V14: 0 | W14: 0 | X14: 0 | Y14: 0 | Z14: 0 | AA14: 0 | AB14: 0 | AC14: 0 | AD14: 0 | AE14: 0 | AF14: 0 | AI14: 1 | AJ14: 0 | AK14: 0 | AL14: 0 | AM14: 0 | AN14: 0 | AO14: 0 | AP14: 0 | AQ14: 0 | AR14: 0 | AS14: 0 | AT14: 0 | AU14: 0 | AV14: 0 | AW14: 0 | AX14: 0 | AY14: 0 | AZ14: 0 | BA14: 0 | BB14: 0 | BC14: 0 | BD14: 0 | BG14: ='2. System Charts'!K14 -> 1 | BH14: ='2. System Charts'!L14 ->  | BI14: ='2. System Charts'!M14 ->  | BJ14: ='2. System Charts'!N14 ->  | BK14: ='2. System Charts'!O14 ->  | BL14: ='2. System Charts'!P14 ->  | BM14: ='2. System Charts'!Q14 ->  | BN14: ='2. System Charts'!R14 ->  | BO14: ='2. System Charts'!S14 ->  | BP14: ='2. System Charts'!T14 ->  | BQ14: ='2. System Charts'!U14 ->  | BR14: ='2. System Charts'!V14 ->  | BS14: ='2. System Charts'!W14 ->  | BT14: ='2. System Charts'!X14 ->  | BU14: ='2. System Charts'!Y14 ->  | BV14: ='2. System Charts'!Z14 ->  | BW14: ='2. System Charts'!AA14 ->  | BX14: ='2. System Charts'!AB14 ->  | BY14: ='2. System Charts'!AC14 ->  | BZ14: ='2. System Charts'!AD14 ->  | CA14: ='2. System Charts'!AE14 ->  | CB14: ='2. System Charts'!AF14 -> 
K15: 1.2 | L15: 0 | M15: 0 | N15: 0 | O15: 0 | P15: 0 | Q15: 0 | R15: 0 | S15: 0 | T15: 0 | U15: 0 | V15: 0 | W15: 0 | X15: 0 | Y15: 0 | Z15: 0 | AA15: 0 | AB15: 0 | AC15: 0 | AD15: 0 | AE15: 0 | AF15: 0 | AI15: 1.2 | AJ15: 0 | AK15: 0 | AL15: 0 | AM15: 0 | AN15: 0 | AO15: 0 | AP15: 0 | AQ15: 0 | AR15: 0 | AS15: 0 | AT15: 0 | AU15: 0 | AV15: 0 | AW15: 0 | AX15: 0 | AY15: 0 | AZ15: 0 | BA15: 0 | BB15: 0 | BC15: 0 | BD15: 0 | BG15: ='2. System Charts'!K15 -> 1.2 | BH15: ='2. System Charts'!L15 ->  | BI15: ='2. System Charts'!M15 ->  | BJ15: ='2. System Charts'!N15 ->  | BK15: ='2. System Charts'!O15 ->  | BL15: ='2. System Charts'!P15 ->  | BM15: ='2. System Charts'!Q15 ->  | BN15: ='2. System Charts'!R15 ->  | BO15: ='2. System Charts'!S15 ->  | BP15: ='2. System Charts'!T15 ->  | BQ15: ='2. System Charts'!U15 ->  | BR15: ='2. System Charts'!V15 ->  | BS15: ='2. System Charts'!W15 ->  | BT15: ='2. System Charts'!X15 ->  | BU15: ='2. System Charts'!Y15 ->  | BV15: ='2. System Charts'!Z15 ->  | BW15: ='2. System Charts'!AA15 ->  | BX15: ='2. System Charts'!AB15 ->  | BY15: ='2. System Charts'!AC15 ->  | BZ15: ='2. System Charts'!AD15 ->  | CA15: ='2. System Charts'!AE15 ->  | CB15: ='2. System Charts'!AF15 -> 
K16: 1.4 | L16: 0 | M16: 0 | N16: 0 | O16: 0 | P16: 0 | Q16: 0 | R16: 0 | S16: 0 | T16: 0 | U16: 0 | V16: 0 | W16: 0 | X16: 0 | Y16: 0 | Z16: 0 | AA16: 0 | AB16: 0 | AC16: 0 | AD16: 0 | AE16: 0 | AF16: 0 | AI16: 1.4 | AJ16: 0 | AK16: 0 | AL16: 0 | AM16: 0 | AN16: 0 | AO16: 0 | AP16: 0 | AQ16: 0 | AR16: 0 | AS16: 0 | AT16: 0 | AU16: 0 | AV16: 0 | AW16: 0 | AX16: 0 | AY16: 0 | AZ16: 0 | BA16: 0 | BB16: 0 | BC16: 0 | BD16: 0 | BG16: ='2. System Charts'!K16 -> 1.4 | BH16: ='2. System Charts'!L16 ->  | BI16: ='2. System Charts'!M16 ->  | BJ16: ='2. System Charts'!N16 ->  | BK16: ='2. System Charts'!O16 ->  | BL16: ='2. System Charts'!P16 ->  | BM16: ='2. System Charts'!Q16 ->  | BN16: ='2. System Charts'!R16 ->  | BO16: ='2. System Charts'!S16 ->  | BP16: ='2. System Charts'!T16 ->  | BQ16: ='2. System Charts'!U16 ->  | BR16: ='2. System Charts'!V16 ->  | BS16: ='2. System Charts'!W16 ->  | BT16: ='2. System Charts'!X16 ->  | BU16: ='2. System Charts'!Y16 ->  | BV16: ='2. System Charts'!Z16 ->  | BW16: ='2. System Charts'!AA16 ->  | BX16: ='2. System Charts'!AB16 ->  | BY16: ='2. System Charts'!AC16 ->  | BZ16: ='2. System Charts'!AD16 ->  | CA16: ='2. System Charts'!AE16 ->  | CB16: ='2. System Charts'!AF16 -> 
K17: 1.6 | L17: 0 | M17: 0 | N17: 0 | O17: 0 | P17: 0 | Q17: 0 | R17: 0 | S17: 0 | T17: 0 | U17: 0 | V17: 0 | W17: 0 | X17: 0 | Y17: 0 | Z17: 0 | AA17: 0 | AB17: 0 | AC17: 0 | AD17: 0 | AE17: 0 | AF17: 0 | AI17: 1.6 | AJ17: 0 | AK17: 0 | AL17: 0 | AM17: 0 | AN17: 0 | AO17: 0 | AP17: 0 | AQ17: 0 | AR17: 0 | AS17: 0 | AT17: 0 | AU17: 0 | AV17: 0 | AW17: 0 | AX17: 0 | AY17: 0 | AZ17: 0 | BA17: 0 | BB17: 0 | BC17: 0 | BD17: 0 | BG17: ='2. System Charts'!K17 -> 1.6 | BH17: ='2. System Charts'!L17 ->  | BI17: ='2. System Charts'!M17 ->  | BJ17: ='2. System Charts'!N17 ->  | BK17: ='2. System Charts'!O17 ->  | BL17: ='2. System Charts'!P17 ->  | BM17: ='2. System Charts'!Q17 ->  | BN17: ='2. System Charts'!R17 ->  | BO17: ='2. System Charts'!S17 ->  | BP17: ='2. System Charts'!T17 ->  | BQ17: ='2. System Charts'!U17 ->  | BR17: ='2. System Charts'!V17 ->  | BS17: ='2. System Charts'!W17 ->  | BT17: ='2. System Charts'!X17 ->  | BU17: ='2. System Charts'!Y17 ->  | BV17: ='2. System Charts'!Z17 ->  | BW17: ='2. System Charts'!AA17 ->  | BX17: ='2. System Charts'!AB17 ->  | BY17: ='2. System Charts'!AC17 ->  | BZ17: ='2. System Charts'!AD17 ->  | CA17: ='2. System Charts'!AE17 ->  | CB17: ='2. System Charts'!AF17 -> 
K18: 1.8 | L18: 0 | M18: 0 | N18: 0 | O18: 0 | P18: 0 | Q18: 0 | R18: 0 | S18: 0 | T18: 0 | U18: 0 | V18: 0 | W18: 0 | X18: 0 | Y18: 0 | Z18: 0 | AA18: 0 | AB18: 0 | AC18: 0 | AD18: 0 | AE18: 0 | AF18: 0 | AI18: 1.8 | AJ18: 0 | AK18: 0 | AL18: 0 | AM18: 0 | AN18: 0 | AO18: 0 | AP18: 0 | AQ18: 0 | AR18: 0 | AS18: 0 | AT18: 0 | AU18: 0 | AV18: 0 | AW18: 0 | AX18: 0 | AY18: 0 | AZ18: 0 | BA18: 0 | BB18: 0 | BC18: 0 | BD18: 0 | BG18: ='2. System Charts'!K18 -> 1.8 | BH18: ='2. System Charts'!L18 ->  | BI18: ='2. System Charts'!M18 ->  | BJ18: ='2. System Charts'!N18 ->  | BK18: ='2. System Charts'!O18 ->  | BL18: ='2. System Charts'!P18 ->  | BM18: ='2. System Charts'!Q18 ->  | BN18: ='2. System Charts'!R18 ->  | BO18: ='2. System Charts'!S18 ->  | BP18: ='2. System Charts'!T18 ->  | BQ18: ='2. System Charts'!U18 ->  | BR18: ='2. System Charts'!V18 ->  | BS18: ='2. System Charts'!W18 ->  | BT18: ='2. System Charts'!X18 ->  | BU18: ='2. System Charts'!Y18 ->  | BV18: ='2. System Charts'!Z18 ->  | BW18: ='2. System Charts'!AA18 ->  | BX18: ='2. System Charts'!AB18 ->  | BY18: ='2. System Charts'!AC18 ->  | BZ18: ='2. System Charts'!AD18 ->  | CA18: ='2. System Charts'!AE18 ->  | CB18: ='2. System Charts'!AF18 -> 
K19: 2 | L19: 0 | M19: 0 | N19: 0 | O19: 0 | P19: 0 | Q19: 0 | R19: 0 | S19: 0 | T19: 0 | U19: 0 | V19: 0 | W19: 0 | X19: 0 | Y19: 0 | Z19: 0 | AA19: 0 | AB19: 0 | AC19: 0 | AD19: 0 | AE19: 0 | AF19: 0 | AI19: 2 | AJ19: 0 | AK19: 0 | AL19: 0 | AM19: 0 | AN19: 0 | AO19: 0 | AP19: 0 | AQ19: 0 | AR19: 0 | AS19: 0 | AT19: 0 | AU19: 0 | AV19: 0 | AW19: 0 | AX19: 0 | AY19: 0 | AZ19: 0 | BA19: 0 | BB19: 0 | BC19: 0 | BD19: 0 | BG19: ='2. System Charts'!K19 -> 2 | BH19: ='2. System Charts'!L19 ->  | BI19: ='2. System Charts'!M19 ->  | BJ19: ='2. System Charts'!N19 ->  | BK19: ='2. System Charts'!O19 ->  | BL19: ='2. System Charts'!P19 ->  | BM19: ='2. System Charts'!Q19 ->  | BN19: ='2. System Charts'!R19 ->  | BO19: ='2. System Charts'!S19 ->  | BP19: ='2. System Charts'!T19 ->  | BQ19: ='2. System Charts'!U19 ->  | BR19: ='2. System Charts'!V19 ->  | BS19: ='2. System Charts'!W19 ->  | BT19: ='2. System Charts'!X19 ->  | BU19: ='2. System Charts'!Y19 ->  | BV19: ='2. System Charts'!Z19 ->  | BW19: ='2. System Charts'!AA19 ->  | BX19: ='2. System Charts'!AB19 ->  | BY19: ='2. System Charts'!AC19 ->  | BZ19: ='2. System Charts'!AD19 ->  | CA19: ='2. System Charts'!AE19 ->  | CB19: ='2. System Charts'!AF19 -> 
K20: 2.2 | L20: 0 | M20: 0 | N20: 0 | O20: 0 | P20: 0 | Q20: 0 | R20: 0 | S20: 0 | T20: 0 | U20: 0 | V20: 0 | W20: 0 | X20: 0 | Y20: 0 | Z20: 0 | AA20: 0 | AB20: 0 | AC20: 0 | AD20: 0 | AE20: 0 | AF20: 0 | AI20: 2.2 | AJ20: 0 | AK20: 0 | AL20: 0 | AM20: 0 | AN20: 0 | AO20: 0 | AP20: 0 | AQ20: 0 | AR20: 0 | AS20: 0 | AT20: 0 | AU20: 0 | AV20: 0 | AW20: 0 | AX20: 0 | AY20: 0 | AZ20: 0 | BA20: 0 | BB20: 0 | BC20: 0 | BD20: 0 | BG20: ='2. System Charts'!K20 -> 2.2 | BH20: ='2. System Charts'!L20 ->  | BI20: ='2. System Charts'!M20 ->  | BJ20: ='2. System Charts'!N20 ->  | BK20: ='2. System Charts'!O20 ->  | BL20: ='2. System Charts'!P20 ->  | BM20: ='2. System Charts'!Q20 ->  | BN20: ='2. System Charts'!R20 ->  | BO20: ='2. System Charts'!S20 ->  | BP20: ='2. System Charts'!T20 ->  | BQ20: ='2. System Charts'!U20 ->  | BR20: ='2. System Charts'!V20 ->  | BS20: ='2. System Charts'!W20 ->  | BT20: ='2. System Charts'!X20 ->  | BU20: ='2. System Charts'!Y20 ->  | BV20: ='2. System Charts'!Z20 ->  | BW20: ='2. System Charts'!AA20 ->  | BX20: ='2. System Charts'!AB20 ->  | BY20: ='2. System Charts'!AC20 ->  | BZ20: ='2. System Charts'!AD20 ->  | CA20: ='2. System Charts'!AE20 ->  | CB20: ='2. System Charts'!AF20 -> 
K21: 2.4 | L21: 0 | M21: 0 | N21: 0 | O21: 0 | P21: 0 | Q21: 0 | R21: 0 | S21: 0 | T21: 0 | U21: 0 | V21: 0 | W21: 0 | X21: 0 | Y21: 0 | Z21: 0 | AA21: 0 | AB21: 0 | AC21: 0 | AD21: 0 | AE21: 0 | AF21: 0 | AI21: 2.4 | AJ21: 0 | AK21: 0 | AL21: 0 | AM21: 0 | AN21: 0 | AO21: 0 | AP21: 0 | AQ21: 0 | AR21: 0 | AS21: 0 | AT21: 0 | AU21: 0 | AV21: 0 | AW21: 0 | AX21: 0 | AY21: 0 | AZ21: 0 | BA21: 0 | BB21: 0 | BC21: 0 | BD21: 0 | BG21: ='2. System Charts'!K21 -> 2.4 | BH21: ='2. System Charts'!L21 ->  | BI21: ='2. System Charts'!M21 ->  | BJ21: ='2. System Charts'!N21 ->  | BK21: ='2. System Charts'!O21 ->  | BL21: ='2. System Charts'!P21 ->  | BM21: ='2. System Charts'!Q21 ->  | BN21: ='2. System Charts'!R21 ->  | BO21: ='2. System Charts'!S21 ->  | BP21: ='2. System Charts'!T21 ->  | BQ21: ='2. System Charts'!U21 ->  | BR21: ='2. System Charts'!V21 ->  | BS21: ='2. System Charts'!W21 ->  | BT21: ='2. System Charts'!X21 ->  | BU21: ='2. System Charts'!Y21 ->  | BV21: ='2. System Charts'!Z21 ->  | BW21: ='2. System Charts'!AA21 ->  | BX21: ='2. System Charts'!AB21 ->  | BY21: ='2. System Charts'!AC21 ->  | BZ21: ='2. System Charts'!AD21 ->  | CA21: ='2. System Charts'!AE21 ->  | CB21: ='2. System Charts'!AF21 -> 
K22: 2.6 | L22: 0 | M22: 0 | N22: 0 | O22: 0 | P22: 0 | Q22: 0 | R22: 0 | S22: 0 | T22: 0 | U22: 0 | V22: 0 | W22: 0 | X22: 0 | Y22: 0 | Z22: 0 | AA22: 0 | AB22: 0 | AC22: 0 | AD22: 0 | AE22: 0 | AF22: 0 | AI22: 2.6 | AJ22: 0 | AK22: 0 | AL22: 0 | AM22: 0 | AN22: 0 | AO22: 0 | AP22: 0 | AQ22: 0 | AR22: 0 | AS22: 0 | AT22: 0 | AU22: 0 | AV22: 0 | AW22: 0 | AX22: 0 | AY22: 0 | AZ22: 0 | BA22: 0 | BB22: 0 | BC22: 0 | BD22: 0 | BG22: ='2. System Charts'!K22 -> 2.6 | BH22: ='2. System Charts'!L22 ->  | BI22: ='2. System Charts'!M22 ->  | BJ22: ='2. System Charts'!N22 ->  | BK22: ='2. System Charts'!O22 ->  | BL22: ='2. System Charts'!P22 ->  | BM22: ='2. System Charts'!Q22 ->  | BN22: ='2. System Charts'!R22 ->  | BO22: ='2. System Charts'!S22 ->  | BP22: ='2. System Charts'!T22 ->  | BQ22: ='2. System Charts'!U22 ->  | BR22: ='2. System Charts'!V22 ->  | BS22: ='2. System Charts'!W22 ->  | BT22: ='2. System Charts'!X22 ->  | BU22: ='2. System Charts'!Y22 ->  | BV22: ='2. System Charts'!Z22 ->  | BW22: ='2. System Charts'!AA22 ->  | BX22: ='2. System Charts'!AB22 ->  | BY22: ='2. System Charts'!AC22 ->  | BZ22: ='2. System Charts'!AD22 ->  | CA22: ='2. System Charts'!AE22 ->  | CB22: ='2. System Charts'!AF22 -> 
K23: 2.8 | L23: 0 | M23: 0 | N23: 0 | O23: 0 | P23: 0 | Q23: 0 | R23: 0 | S23: 0 | T23: 0 | U23: 0 | V23: 0 | W23: 0 | X23: 0 | Y23: 0 | Z23: 0 | AA23: 0 | AB23: 0 | AC23: 0 | AD23: 0 | AE23: 0 | AF23: 0 | AI23: 2.8 | AJ23: 0 | AK23: 0 | AL23: 0 | AM23: 0 | AN23: 0 | AO23: 0 | AP23: 0 | AQ23: 0 | AR23: 0 | AS23: 0 | AT23: 0 | AU23: 0 | AV23: 0 | AW23: 0 | AX23: 0 | AY23: 0 | AZ23: 0 | BA23: 0 | BB23: 0 | BC23: 0 | BD23: 0 | BG23: ='2. System Charts'!K23 -> 2.8 | BH23: ='2. System Charts'!L23 ->  | BI23: ='2. System Charts'!M23 ->  | BJ23: ='2. System Charts'!N23 ->  | BK23: ='2. System Charts'!O23 ->  | BL23: ='2. System Charts'!P23 ->  | BM23: ='2. System Charts'!Q23 ->  | BN23: ='2. System Charts'!R23 ->  | BO23: ='2. System Charts'!S23 ->  | BP23: ='2. System Charts'!T23 ->  | BQ23: ='2. System Charts'!U23 ->  | BR23: ='2. System Charts'!V23 ->  | BS23: ='2. System Charts'!W23 ->  | BT23: ='2. System Charts'!X23 ->  | BU23: ='2. System Charts'!Y23 ->  | BV23: ='2. System Charts'!Z23 ->  | BW23: ='2. System Charts'!AA23 ->  | BX23: ='2. System Charts'!AB23 ->  | BY23: ='2. System Charts'!AC23 ->  | BZ23: ='2. System Charts'!AD23 ->  | CA23: ='2. System Charts'!AE23 ->  | CB23: ='2. System Charts'!AF23 -> 
K24: 3 | L24: 0 | M24: 0 | N24: 0 | O24: 0 | P24: 0 | Q24: 0 | R24: 0 | S24: 0 | T24: 0 | U24: 0 | V24: 0 | W24: 0 | X24: 0 | Y24: 0 | Z24: 0 | AA24: 0 | AB24: 0 | AC24: 0 | AD24: 0 | AE24: 0 | AF24: 0 | AI24: 3 | AJ24: 0 | AK24: 0 | AL24: 0 | AM24: 0 | AN24: 0 | AO24: 0 | AP24: 0 | AQ24: 0 | AR24: 0 | AS24: 0 | AT24: 0 | AU24: 0 | AV24: 0 | AW24: 0 | AX24: 0 | AY24: 0 | AZ24: 0 | BA24: 0 | BB24: 0 | BC24: 0 | BD24: 0 | BG24: ='2. System Charts'!K24 -> 3 | BH24: ='2. System Charts'!L24 ->  | BI24: ='2. System Charts'!M24 ->  | BJ24: ='2. System Charts'!N24 ->  | BK24: ='2. System Charts'!O24 ->  | BL24: ='2. System Charts'!P24 ->  | BM24: ='2. System Charts'!Q24 ->  | BN24: ='2. System Charts'!R24 ->  | BO24: ='2. System Charts'!S24 ->  | BP24: ='2. System Charts'!T24 ->  | BQ24: ='2. System Charts'!U24 ->  | BR24: ='2. System Charts'!V24 ->  | BS24: ='2. System Charts'!W24 ->  | BT24: ='2. System Charts'!X24 ->  | BU24: ='2. System Charts'!Y24 ->  | BV24: ='2. System Charts'!Z24 ->  | BW24: ='2. System Charts'!AA24 ->  | BX24: ='2. System Charts'!AB24 ->  | BY24: ='2. System Charts'!AC24 ->  | BZ24: ='2. System Charts'!AD24 ->  | CA24: ='2. System Charts'!AE24 ->  | CB24: ='2. System Charts'!AF24 -> 
K25: 3.2 | L25: 0 | M25: 0 | N25: 0 | O25: 0 | P25: 0 | Q25: 0 | R25: 0 | S25: 0 | T25: 0 | U25: 0 | V25: 0 | W25: 0 | X25: 0 | Y25: 0 | Z25: 0 | AA25: 0 | AB25: 0 | AC25: 0 | AD25: 0 | AE25: 0 | AF25: 0 | AI25: 3.2 | AJ25: 0 | AK25: 0 | AL25: 0 | AM25: 0 | AN25: 0 | AO25: 0 | AP25: 0 | AQ25: 0 | AR25: 0 | AS25: 0 | AT25: 0 | AU25: 0 | AV25: 0 | AW25: 0 | AX25: 0 | AY25: 0 | AZ25: 0 | BA25: 0 | BB25: 0 | BC25: 0 | BD25: 0 | BG25: ='2. System Charts'!K25 -> 3.2 | BH25: ='2. System Charts'!L25 ->  | BI25: ='2. System Charts'!M25 ->  | BJ25: ='2. System Charts'!N25 ->  | BK25: ='2. System Charts'!O25 ->  | BL25: ='2. System Charts'!P25 ->  | BM25: ='2. System Charts'!Q25 ->  | BN25: ='2. System Charts'!R25 ->  | BO25: ='2. System Charts'!S25 ->  | BP25: ='2. System Charts'!T25 ->  | BQ25: ='2. System Charts'!U25 ->  | BR25: ='2. System Charts'!V25 ->  | BS25: ='2. System Charts'!W25 ->  | BT25: ='2. System Charts'!X25 ->  | BU25: ='2. System Charts'!Y25 ->  | BV25: ='2. System Charts'!Z25 ->  | BW25: ='2. System Charts'!AA25 ->  | BX25: ='2. System Charts'!AB25 ->  | BY25: ='2. System Charts'!AC25 ->  | BZ25: ='2. System Charts'!AD25 ->  | CA25: ='2. System Charts'!AE25 ->  | CB25: ='2. System Charts'!AF25 -> 
K26: 3.4 | L26: 0 | M26: 0 | N26: 0 | O26: 0 | P26: 0 | Q26: 0 | R26: 0 | S26: 0 | T26: 0 | U26: 0 | V26: 0 | W26: 0 | X26: 0 | Y26: 0 | Z26: 0 | AA26: 0 | AB26: 0 | AC26: 0 | AD26: 0 | AE26: 0 | AF26: 0 | AI26: 3.4 | AJ26: 0 | AK26: 0 | AL26: 0 | AM26: 0 | AN26: 0 | AO26: 0 | AP26: 0 | AQ26: 0 | AR26: 0 | AS26: 0 | AT26: 0 | AU26: 0 | AV26: 0 | AW26: 0 | AX26: 0 | AY26: 0 | AZ26: 0 | BA26: 0 | BB26: 0 | BC26: 0 | BD26: 0 | BG26: ='2. System Charts'!K26 -> 3.4 | BH26: ='2. System Charts'!L26 ->  | BI26: ='2. System Charts'!M26 ->  | BJ26: ='2. System Charts'!N26 ->  | BK26: ='2. System Charts'!O26 ->  | BL26: ='2. System Charts'!P26 ->  | BM26: ='2. System Charts'!Q26 ->  | BN26: ='2. System Charts'!R26 ->  | BO26: ='2. System Charts'!S26 ->  | BP26: ='2. System Charts'!T26 ->  | BQ26: ='2. System Charts'!U26 ->  | BR26: ='2. System Charts'!V26 ->  | BS26: ='2. System Charts'!W26 ->  | BT26: ='2. System Charts'!X26 ->  | BU26: ='2. System Charts'!Y26 ->  | BV26: ='2. System Charts'!Z26 ->  | BW26: ='2. System Charts'!AA26 ->  | BX26: ='2. System Charts'!AB26 ->  | BY26: ='2. System Charts'!AC26 ->  | BZ26: ='2. System Charts'!AD26 ->  | CA26: ='2. System Charts'!AE26 ->  | CB26: ='2. System Charts'!AF26 -> 
K27: 3.6 | L27: 0 | M27: 0 | N27: 0 | O27: 0 | P27: 0 | Q27: 0 | R27: 0 | S27: 0 | T27: 0 | U27: 0 | V27: 0 | W27: 0 | X27: 0 | Y27: 0 | Z27: 0 | AA27: 0 | AB27: 0 | AC27: 0 | AD27: 0 | AE27: 0 | AF27: 0 | AI27: 3.6 | AJ27: 0 | AK27: 0 | AL27: 0 | AM27: 0 | AN27: 0 | AO27: 0 | AP27: 0 | AQ27: 0 | AR27: 0 | AS27: 0 | AT27: 0 | AU27: 0 | AV27: 0 | AW27: 0 | AX27: 0 | AY27: 0 | AZ27: 0 | BA27: 0 | BB27: 0 | BC27: 0 | BD27: 0 | BG27: ='2. System Charts'!K27 -> 3.6 | BH27: ='2. System Charts'!L27 ->  | BI27: ='2. System Charts'!M27 ->  | BJ27: ='2. System Charts'!N27 ->  | BK27: ='2. System Charts'!O27 ->  | BL27: ='2. System Charts'!P27 ->  | BM27: ='2. System Charts'!Q27 ->  | BN27: ='2. System Charts'!R27 ->  | BO27: ='2. System Charts'!S27 ->  | BP27: ='2. System Charts'!T27 ->  | BQ27: ='2. System Charts'!U27 ->  | BR27: ='2. System Charts'!V27 ->  | BS27: ='2. System Charts'!W27 ->  | BT27: ='2. System Charts'!X27 ->  | BU27: ='2. System Charts'!Y27 ->  | BV27: ='2. System Charts'!Z27 ->  | BW27: ='2. System Charts'!AA27 ->  | BX27: ='2. System Charts'!AB27 ->  | BY27: ='2. System Charts'!AC27 ->  | BZ27: ='2. System Charts'!AD27 ->  | CA27: ='2. System Charts'!AE27 ->  | CB27: ='2. System Charts'!AF27 -> 

Sheet _SpringData_L0 (hidden)
D1: Ideal Rate | E1: =ESA_IdealSpringRate ->  | H1: RAW SPRING DATA
G2: Check Ideal Rate is above LL | O2: =MAX(O4:O110) -> 1.57190625
D3: LL Spring Rate | E3: UL Spring Rate | F3: Local Switch | G3: Booster Rate Check | H3: Options | I3: Booster | J3: Wire ø (mm) | K3: mean coil ID | L3: Position | M3: Number of coils | N3: Max Turns | O3: T_Max | P3: Nom. Spring Rate | Q3: Bending stress (Mpa) | R3: Min blind width w idler(TBC) mm | S3: Min. Width (m) | T3: 38.6 | U3: Rate Var % | V3: Spring Flag | W3: mod of Elast | X3: 207000 | Z3: internal coil ID | AA3: 19
D4: =IF(input_BlindWidth=0.4,B8,B7) -> 0.001151003274 | E4: 0.002638616758 | F4: =IF(G4<>"",IF(islandFilter_option="yes",IF(AND(MATCH(I4,list_boosterDescription,0)>=MATCH(islandfilter_colMax,list_boosterIndex,0),MATCH(I4,list_boosterDescription,0)>=MATCH(islandfilter_rowMax,list_boosterIndex,0)),"y",""),"y"),"") ->  | G4: =IF(P4<>"",IF(OR(input_idealSpringRate>_SpringData_L0!E4,input_idealSpringRate<_SpringData_L0!$D$4),"n",IF(AND(input_idealSpringRate<_SpringData_L0!E4,input_idealSpringRate>_SpringData_L0!D4*$B$12),"y","n")),"") ->  | H4: 205 | I4: Micro | J4: 0.8 | K4: =J4+$AA$3 -> 19.8 | L4: 5 | M4: 167.5 | N4: 35 | O4: =IFERROR(($X$3*$J4^4*$N4)/(10.8*$M4*$K4*1000),"") -> 0.08285039449 | P4: =IFERROR(O4/N4,"") -> 0.002367154128 | Q4: =32000*$O4/(PI()*$J4^3) -> 1648.256228 | R4: =_xlfn.XLOOKUP(I4,T_minESABlindWidth[Description],INDIRECT(_xlfn.CONCAT("T_minESABlindWidth[",i_idler,"]"))) -> 400 | S4: =R4*0.001 -> 0.4 | U4: =IFERROR(ABS((P4-$E$1)/$E$1),"") ->  | V4: y
D5: =IF(LEN(E4)>0,E4*$B$11,"") -> 0.0009235158652 | E5: =IF(P5<>"",IF(AND(P5<>"",P5=""),P6*2,AVERAGE(P5:P6)),"") -> 0.003402871672 | G5: =IF(P5<>"",IF(OR(input_idealSpringRate>_SpringData_L0!E5,input_idealSpringRate<_SpringData_L0!$D$4),"n",IF(AND(input_idealSpringRate<_SpringData_L0!E5,input_idealSpringRate>_SpringData_L0!D5*$B$12),"y","n")),"") ->  | H5: 204 | I5: Micro | J5: 0.8 | K5: 19.8 | L5: 4 | M5: 136.25 | N5: 35 | O5: =IFERROR(($X$3*$J5^4*$N5)/(10.8*$M5*$K5*1000),"") -> 0.1018527786 | P5: =IFERROR(O5/N5,"") -> 0.002910079387 | Q5: 2026.296647 | R5: =_xlfn.XLOOKUP(I5,T_minESABlindWidth[Description],INDIRECT(_xlfn.CONCAT("T_minESABlindWidth[",i_idler,"]"))) -> 400 | S5: 0.4 | V5: y
A6: LOWER LIMITS | D6: 0.001191005085 | E6: 0.004049440165 | G6: =IF(P6<>"",IF(OR(input_idealSpringRate>_SpringData_L0!E6,input_idealSpringRate<_SpringData_L0!$D$4),"n",IF(AND(input_idealSpringRate<_SpringData_L0!E6,input_idealSpringRate>_SpringData_L0!D6*$B$12),"y","n")),"") ->  | H6: 107 | I6: Small | J6: 1 | K6: 20 | L6: 13 | M6: 246 | N6: 54 | O6: 0.2103658537 | P6: 0.003895663957 | Q6: 2142.76899 | R6: =_xlfn.XLOOKUP(I6,T_minESABlindWidth[Description],INDIRECT(_xlfn.CONCAT("T_minESABlindWidth[",i_idler,"]"))) -> 600 | S6: 0.6 | V6: y
A7: Blind Width = 0.4 | B7: =E4-(E5-D5)*0.6 -> 0.001151003274 | D7: 0.001417304058 | E7: 0.004383354219 | G7: =IF(P7<>"",IF(OR(input_idealSpringRate>_SpringData_L0!E7,input_idealSpringRate<_SpringData_L0!$D$4),"n",IF(AND(input_idealSpringRate<_SpringData_L0!E7,input_idealSpringRate>_SpringData_L0!D7*$B$12),"y","n")),"") ->  | H7: 106 | I7: Small | J7: 1 | K7: 20 | L7: 12 | M7: 228 | N7: 51 | O7: 0.2143640351 | P7: 0.004203216374 | Q7: 2183.494132 | R7: =_xlfn.XLOOKUP(I7,T_minESABlindWidth[Description],INDIRECT(_xlfn.CONCAT("T_minESABlindWidth[",i_idler,"]"))) -> 600 | S7: 0.6 | V7: y
A8: Blind Width <> 0.4 | B8: 0.0009 | D8: 0.001534173977 | E8: 0.004777405754 | G8: =IF(P8<>"",IF(OR(input_idealSpringRate>_SpringData_L0!E8,input_idealSpringRate<_SpringData_L0!$D$4),"n",IF(AND(input_idealSpringRate<_SpringData_L0!E8,input_idealSpringRate>_SpringData_L0!D8*$B$12),"y","n")),"") ->  | H8: 105 | I8: Small | J8: 1 | K8: 20 | L8: 11 | M8: 210 | N8: 47 | O8: 0.214484127 | P8: 0.004563492063 | Q8: 2184.717378 | R8: =_xlfn.XLOOKUP(I8,T_minESABlindWidth[Description],INDIRECT(_xlfn.CONCAT("T_minESABlindWidth[",i_idler,"]"))) -> 600 | S8: 0.6 | V8: y
D9: 0.001672092014 | E9: 0.00524949114 | G9: =IF(P9<>"",IF(OR(input_idealSpringRate>_SpringData_L0!E9,input_idealSpringRate<_SpringData_L0!$D$4),"n",IF(AND(input_idealSpringRate<_SpringData_L0!E9,input_idealSpringRate>_SpringData_L0!D9*$B$12),"y","n")),"") ->  | H9: 104 | I9: Small | J9: 1 | K9: 20 | L9: 10 | M9: 192 | N9: 43 | O9: 0.2146267361 | P9: 0.004991319444 | Q9: 2186.169982 | R9: =_xlfn.XLOOKUP(I9,T_minESABlindWidth[Description],INDIRECT(_xlfn.CONCAT("T_minESABlindWidth[",i_idler,"]"))) -> 600 | S9: 0.6 | V9: y
A10: FOR LL Check | D10: 0.001837321899 | E10: 0.005825412614 | G10: =IF(P10<>"",IF(OR(input_idealSpringRate>_SpringData_L0!E10,input_idealSpringRate<_SpringData_L0!$D$4),"n",IF(AND(input_idealSpringRate<_SpringData_L0!E10,input_idealSpringRate>_SpringData_L0!D10*$B$12),"y","n")),"") ->  | H10: 103 | I10: Small | J10: 1 | K10: 20 | L10: 9 | M10: 174 | N10: 39 | O10: 0.2147988506 | P10: 0.005507662835 | Q10: 2187.923126 | R10: =_xlfn.XLOOKUP(I10,T_minESABlindWidth[Description],INDIRECT(_xlfn.CONCAT("T_minESABlindWidth[",i_idler,"]"))) -> 600 | S10: 0.6 | V10: y
A11: LL Fudge | B11: 0.35 | D11: 0.002038894415 | E11: 0.006543803419 | G11: =IF(P11<>"",IF(OR(input_idealSpringRate>_SpringData_L0!E11,input_idealSpringRate<_SpringData_L0!$D$4),"n",IF(AND(input_idealSpringRate<_SpringData_L0!E11,input_idealSpringRate>_SpringData_L0!D11*$B$12),"y","n")),"") ->  | H11: 102 | I11: Small | J11: 1 | K11: 20 | L11: 8 | M11: 156 | N11: 35 | O11: 0.2150106838 | P11: 0.006143162393 | Q11: 2190.080841 | R11: =_xlfn.XLOOKUP(I11,T_minESABlindWidth[Description],INDIRECT(_xlfn.CONCAT("T_minESABlindWidth[",i_idler,"]"))) -> 600 | S11: 0.6 | V11: y
A12: Check for LL (0 = OFF, 1 = ON) | B12: 1 | D12: 0.002290331197 | E12: 0.007465277778 | G12: =IF(P12<>"",IF(OR(input_idealSpringRate>_SpringData_L0!E12,input_idealSpringRate<_SpringData_L0!$D$4),"n",IF(AND(input_idealSpringRate<_SpringData_L0!E12,input_idealSpringRate>_SpringData_L0!D12*$B$12),"y","n")),"") ->  | H12: 101 | I12: Small | J12: 1 | K12: 20 | L12: 7 | M12: 138 | N12: 31 | O12: 0.2152777778 | P12: 0.006944444444 | Q12: 2192.801438 | R12: =_xlfn.XLOOKUP(I12,T_minESABlindWidth[Description],INDIRECT(_xlfn.CONCAT("T_minESABlindWidth[",i_idler,"]"))) -> 600 | S12: 0.6 | V12: y
D13: 0.002612847222 | E13: 0.008109216126 | G13: =IF(P13<>"",IF(OR(input_idealSpringRate>_SpringData_L0!E13,input_idealSpringRate<_SpringData_L0!$D$4),"n",IF(AND(input_idealSpringRate<_SpringData_L0!E13,input_idealSpringRate>_SpringData_L0!D13*$B$12),"y","n")),"") ->  | H13: 100 | I13: Small | J13: 1 | K13: 20 | L13: 6 | M13: 120 | N13: 27 | O13: 0.215625 | P13: 0.007986111111 | Q13: 2196.338215 | R13: =_xlfn.XLOOKUP(I13,T_minESABlindWidth[Description],INDIRECT(_xlfn.CONCAT("T_minESABlindWidth[",i_idler,"]"))) -> 600 | S13: 0.6 | V13: y
A14: FOR ISLAND FILTER | D14: 0.002838225644 | E14: 0.008567574037 | G14: =IF(P14<>"",IF(OR(input_idealSpringRate>_SpringData_L0!E14,input_idealSpringRate<_SpringData_L0!$D$4),"n",IF(AND(input_idealSpringRate<_SpringData_L0!E14,input_idealSpringRate>_SpringData_L0!D14*$B$12),"y","n")),"") ->  | H14: 18 | I14: Light | J14: 1.2 | K14: 20.2 | L14: 13 | M14: 239 | N14: 44 | O14: 0.3622221302 | P14: 0.00823232114 | Q14: 2135.164538 | R14: =_xlfn.XLOOKUP(I14,T_minESABlindWidth[Description],INDIRECT(_xlfn.CONCAT("T_minESABlindWidth[",i_idler,"]"))) -> 600 | S14: 0.6 | T14: 1.913148422 | U14: =IFERROR(ABS((P14-$E$1)/$E$1),"") ->  | V14: y
A15: Column Max | B15: =IF(INDEX(islandFilter_columns,,MATCH(input_BlindWidth,header_chartCol,0))<>"",INDEX(islandFilter_columns,,MATCH(input_BlindWidth,header_chartCol,0)),INDEX(list_boosterIndex,1)) ->  | D15: 0.002998650913 | E15: 0.009149125885 | G15: =IF(P15<>"",IF(OR(input_idealSpringRate>_SpringData_L0!E15,input_idealSpringRate<_SpringData_L0!$D$4),"n",IF(AND(input_idealSpringRate<_SpringData_L0!E15,input_idealSpringRate>_SpringData_L0!D15*$B$12),"y","n")),"") ->  | H15: 17 | I15: Light | J15: 1.2 | K15: 20.2 | L15: 12 | M15: 221 | N15: 43 | O15: 0.3828215582 | P15: 0.008902826934 | Q15: 2256.590493 | R15: =_xlfn.XLOOKUP(I15,T_minESABlindWidth[Description],INDIRECT(_xlfn.CONCAT("T_minESABlindWidth[",i_idler,"]"))) -> 600 | S15: 0.6 | T15: 2.021948409 | V15: y
A16: Row Max | B16: =IF(INDEX(islandFilter_rows,MATCH(input_BlindDrop,header_chartRow,0))<>"",INDEX(islandFilter_rows,MATCH(input_BlindDrop,header_chartRow,0),),INDEX(list_boosterIndex,1)) ->  | D16: 0.00320219406 | E16: 0.009520077008 | G16: =IF(P16<>"",IF(OR(input_idealSpringRate>_SpringData_L0!E16,input_idealSpringRate<_SpringData_L0!$D$4),"n",IF(AND(input_idealSpringRate<_SpringData_L0!E16,input_idealSpringRate>_SpringData_L0!D16*$B$12),"y","n")),"") ->  | H16: 5 | I16: Mini | J16: 1 | K16: 20 | L16: 5 | M16: 102 | N16: 24 | O16: 0.2254901961 | P16: 0.009395424837 | Q16: 2296.824277 | R16: =_xlfn.XLOOKUP(I16,T_minESABlindWidth[Description],INDIRECT(_xlfn.CONCAT("T_minESABlindWidth[",i_idler,"]"))) -> 400 | S16: 0.4 | T16: 1.190971442 | V16: y
D17: 0.003332026953 | E17: 0.01011140962 | G17: =IF(P17<>"",IF(OR(input_idealSpringRate>_SpringData_L0!E17,input_idealSpringRate<_SpringData_L0!$D$4),"n",IF(AND(input_idealSpringRate<_SpringData_L0!E17,input_idealSpringRate>_SpringData_L0!D17*$B$12),"y","n")),"") ->  | H17: 16 | I17: Light | J17: 1.2 | K17: 20.2 | L17: 11 | M17: 204 | N17: 41 | O17: 0.3954338963 | P17: 0.009644729179 | Q17: 2330.935528 | R17: =_xlfn.XLOOKUP(I17,T_minESABlindWidth[Description],INDIRECT(_xlfn.CONCAT("T_minESABlindWidth[",i_idler,"]"))) -> 600 | S17: 0.6 | T17: 2.088562989 | V17: y
D18: 0.003538993368 | E18: 0.01099341011 | G18: =IF(P18<>"",IF(OR(input_idealSpringRate>_SpringData_L0!E18,input_idealSpringRate<_SpringData_L0!$D$4),"n",IF(AND(input_idealSpringRate<_SpringData_L0!E18,input_idealSpringRate>_SpringData_L0!D18*$B$12),"y","n")),"") ->  | H18: 15 | I18: Light | J18: 1.2 | K18: =J18+$AA$3 -> 20.2 | L18: 10 | M18: 186 | N18: 37 | O18: =IFERROR(($X$3*$J18^4*$N18)/(10.8*$M18*$K18*1000),"") -> 0.3913893325 | P18: =IFERROR(O18/N18,"") -> 0.01057809007 | Q18: =32000*$O18/(PI()*$J18^3) -> 2307.094331 | R18: =_xlfn.XLOOKUP(I18,T_minESABlindWidth[Description],INDIRECT(_xlfn.CONCAT("T_minESABlindWidth[",i_idler,"]"))) -> 600 | S18: =R18*0.001 -> 0.6 | T18: 2.067200818 | V18: y
A19: O_YesNo | D19: 0.00384769354 | E19: 0.01152544423 | F19: =IF(G19<>"",IF(islandFilter_option="yes",IF(AND(MATCH(I19,list_boosterDescription,0)>=MATCH(islandfilter_colMax,list_boosterIndex,0),MATCH(I19,list_boosterDescription,0)>=MATCH(islandfilter_rowMax,list_boosterIndex,0)),"y",""),"y"),"") ->  | G19: =IF(P19<>"",IF(OR(input_idealSpringRate>_SpringData_L0!E19,input_idealSpringRate<_SpringData_L0!$D$4),"n",IF(AND(input_idealSpringRate<_SpringData_L0!E19,input_idealSpringRate>_SpringData_L0!D19*$B$12),"y","n")),"") ->  | H19: 4 | I19: Mini | J19: 1 | K19: 20 | L19: 4 | M19: 84 | N19: 21 | O19: 0.2395833333 | P19: 0.01140873016 | Q19: 2440.375794 | R19: =_xlfn.XLOOKUP(I19,T_minESABlindWidth[Description],INDIRECT(_xlfn.CONCAT("T_minESABlindWidth[",i_idler,"]"))) -> 400 | S19: 0.4 | T19: 1.265407157 | V19: y
A20: Yes | D20: 0.00403390548 | E20: 0.01233606177 | G20: =IF(P20<>"",IF(OR(input_idealSpringRate>_SpringData_L0!E20,input_idealSpringRate<_SpringData_L0!$D$4),"n",IF(AND(input_idealSpringRate<_SpringData_L0!E20,input_idealSpringRate>_SpringData_L0!D20*$B$12),"y","n")),"") ->  | H20: 14 | I20: Light | J20: 1.2 | K20: 20.2 | L20: 9 | M20: 169 | N20: 34 | O20: 0.3958333822 | P20: 0.0116421583 | Q20: 2333.290349 | R20: =_xlfn.XLOOKUP(I20,T_minESABlindWidth[Description],INDIRECT(_xlfn.CONCAT("T_minESABlindWidth[",i_idler,"]"))) -> 600 | S20: 0.6 | T20: 2.090672953 | V20: y
A21: No | D21: 0.004317621621 | E21: 0.01377508363 | G21: =IF(P21<>"",IF(OR(input_idealSpringRate>_SpringData_L0!E21,input_idealSpringRate<_SpringData_L0!$D$4),"n",IF(AND(input_idealSpringRate<_SpringData_L0!E21,input_idealSpringRate>_SpringData_L0!D21*$B$12),"y","n")),"") ->  | H21: 13 | I21: Light | J21: 1.2 | K21: 20.2 | L21: 8 | M21: 151 | N21: 30 | O21: 0.3908989574 | P21: 0.01302996525 | Q21: 2304.203753 | R21: =_xlfn.XLOOKUP(I21,T_minESABlindWidth[Description],INDIRECT(_xlfn.CONCAT("T_minESABlindWidth[",i_idler,"]"))) -> 600 | S21: 0.6 | T21: 2.064610804 | V21: y
D22: 0.004821279272 | E22: 0.01465681061 | G22: =IF(P22<>"",IF(OR(input_idealSpringRate>_SpringData_L0!E22,input_idealSpringRate<_SpringData_L0!$D$4),"n",IF(AND(input_idealSpringRate<_SpringData_L0!E22,input_idealSpringRate>_SpringData_L0!D22*$B$12),"y","n")),"") ->  | H22: 3 | I22: Mini | J22: 1 | K22: 20 | L22: 3 | M22: 66 | N22: 17 | O22: 0.2468434343 | P22: 0.01452020202 | Q22: 2514.326576 | R22: =_xlfn.XLOOKUP(I22,T_minESABlindWidth[Description],INDIRECT(_xlfn.CONCAT("T_minESABlindWidth[",i_idler,"]"))) -> 400 | S22: 0.4 | T22: 1.303752829 | V22: y
D23: 0.005129883712 | E23: 0.01587741974 | G23: =IF(P23<>"",IF(OR(input_idealSpringRate>_SpringData_L0!E23,input_idealSpringRate<_SpringData_L0!$D$4),"n",IF(AND(input_idealSpringRate<_SpringData_L0!E23,input_idealSpringRate>_SpringData_L0!D23*$B$12),"y","n")),"") ->  | H23: 12 | I23: Light | J23: 1.2 | K23: 20.2 | L23: 7 | M23: 133 | N23: 26 | O23: 0.384628899 | P23: 0.01479341919 | Q23: 2267.244094 | R23: =_xlfn.XLOOKUP(I23,T_minESABlindWidth[Description],INDIRECT(_xlfn.CONCAT("T_minESABlindWidth[",i_idler,"]"))) -> 600 | S23: 0.6 | T23: 2.03149424 | V23: y
A24: O_CalcChart | D24: 0.005557096908 | E24: 0.01709314683 | G24: =IF(P24<>"",IF(OR(input_idealSpringRate>_SpringData_L0!E24,input_idealSpringRate<_SpringData_L0!$D$4),"n",IF(AND(input_idealSpringRate<_SpringData_L0!E24,input_idealSpringRate>_SpringData_L0!D24*$B$12),"y","n")),"") ->  | H24: 11 | I24: Light | J24: 1.2 | K24: 20.2 | L24: 6 | M24: 116 | N24: 21 | O24: 0.3561898259 | P24: 0.01696142028 | Q24: 2099.606351 | R24: =_xlfn.XLOOKUP(I24,T_minESABlindWidth[Description],INDIRECT(_xlfn.CONCAT("T_minESABlindWidth[",i_idler,"]"))) -> 600 | S24: 0.6 | T24: 1.881287604 | V24: y
A25: Calculator | D25: =IF(LEN(E24)>0,E24*$B$11,"") -> 0.005982601391 | E25: =IF(P25<>"",IF(AND(P25<>"",P25=""),P26*2,AVERAGE(P25:P26)),"") -> 0.01757950313 | F25: =IF(G25<>"",IF(islandFilter_option="yes",IF(AND(MATCH(I25,list_boosterDescription,0)>=MATCH(islandfilter_colMax,list_boosterIndex,0),MATCH(I25,list_boosterDescription,0)>=MATCH(islandfilter_rowMax,list_boosterIndex,0)),"y",""),"y"),"") ->  | G25: =IF(P25<>"",IF(OR(input_idealSpringRate>_SpringData_L0!E25,input_idealSpringRate<_SpringData_L0!$D$4),"n",IF(AND(input_idealSpringRate<_SpringData_L0!E25,input_idealSpringRate>_SpringData_L0!D25*$B$12),"y","n")),"") ->  | H25: 43 | I25: Medium | J25: 1.6 | K25: 20.6 | L25: 25 | M25: 354 | N25: 45 | O25: 0.7751193023 | P25: 0.01722487338 | Q25: 1927.563569 | R25: =_xlfn.XLOOKUP(I25,T_minESABlindWidth[Description],INDIRECT(_xlfn.CONCAT("T_minESABlindWidth[",i_idler,"]"))) -> 913 | S25: 0.913 | T25: 4.093947185 | V25: y
A26: Chart | D26: 0.006152826096 | E26: 0.01831922162 | F26: =IF(G26<>"",IF(islandFilter_option="yes",IF(AND(MATCH(I26,list_boosterDescription,0)>=MATCH(islandfilter_colMax,list_boosterIndex,0),MATCH(I26,list_boosterDescription,0)>=MATCH(islandfilter_rowMax,list_boosterIndex,0)),"y",""),"y"),"") ->  | G26: =IF(P26<>"",IF(OR(input_idealSpringRate>_SpringData_L0!E26,input_idealSpringRate<_SpringData_L0!$D$4),"n",IF(AND(input_idealSpringRate<_SpringData_L0!E26,input_idealSpringRate>_SpringData_L0!D26*$B$12),"y","n")),"") ->  | H26: 42 | I26: Medium | J26: 1.6 | K26: 20.6 | L26: 24 | M26: 340 | N26: 42 | O26: 0.7532335808 | P26: 0.01793413288 | Q26: 1873.138245 | R26: =_xlfn.XLOOKUP(I26,T_minESABlindWidth[Description],INDIRECT(_xlfn.CONCAT("T_minESABlindWidth[",i_idler,"]"))) -> 913 | S26: 0.913 | T26: 3.978353382 | V26: y
D27: 0.006411727567 | E27: 0.01909273853 | G27: =IF(P27<>"",IF(OR(input_idealSpringRate>_SpringData_L0!E27,input_idealSpringRate<_SpringData_L0!$D$4),"n",IF(AND(input_idealSpringRate<_SpringData_L0!E27,input_idealSpringRate>_SpringData_L0!D27*$B$12),"y","n")),"") ->  | H27: 41 | I27: Medium | J27: 1.6 | K27: 20.6 | L27: 23 | M27: 326 | N27: 40 | O27: 0.7481724145 | P27: 0.01870431036 | Q27: 1860.552157 | R27: =_xlfn.XLOOKUP(I27,T_minESABlindWidth[Description],INDIRECT(_xlfn.CONCAT("T_minESABlindWidth[",i_idler,"]"))) -> 913 | S27: 0.913 | T27: 3.951621822 | V27: y
A28: O_TrueFalse | D28: 0.006682458486 | E28: 0.01993724753 | G28: =IF(P28<>"",IF(OR(input_idealSpringRate>_SpringData_L0!E28,input_idealSpringRate<_SpringData_L0!$D$4),"n",IF(AND(input_idealSpringRate<_SpringData_L0!E28,input_idealSpringRate>_SpringData_L0!D28*$B$12),"y","n")),"") ->  | H28: 40 | I28: Medium | J28: 1.6 | K28: 20.6 | L28: 22 | M28: 313 | N28: 37 | O28: 0.720803168 | P28: 0.0194811667 | Q28: 1792.490425 | R28: =_xlfn.XLOOKUP(I28,T_minESABlindWidth[Description],INDIRECT(_xlfn.CONCAT("T_minESABlindWidth[",i_idler,"]"))) -> 913 | S28: 0.913 | T28: 3.807065689 | V28: y
A29: TRUE | D29: 0.006978036635 | E29: 0.02089421712 | G29: =IF(P29<>"",IF(OR(input_idealSpringRate>_SpringData_L0!E29,input_idealSpringRate<_SpringData_L0!$D$4),"n",IF(AND(input_idealSpringRate<_SpringData_L0!E29,input_idealSpringRate>_SpringData_L0!D29*$B$12),"y","n")),"") ->  | H29: 39 | I29: Medium | J29: 1.6 | K29: 20.6 | L29: 21 | M29: 299 | N29: 35 | O29: 0.7137664924 | P29: 0.02039332835 | Q29: 1774.991648 | R29: =_xlfn.XLOOKUP(I29,T_minESABlindWidth[Description],INDIRECT(_xlfn.CONCAT("T_minESABlindWidth[",i_idler,"]"))) -> 913 | S29: 0.913 | T29: 3.769900083 | V29: y
A30: FALSE | D30: 0.007312975992 | E30: 0.021947747 | G30: =IF(P30<>"",IF(OR(input_idealSpringRate>_SpringData_L0!E30,input_idealSpringRate<_SpringData_L0!$D$4),"n",IF(AND(input_idealSpringRate<_SpringData_L0!E30,input_idealSpringRate>_SpringData_L0!D30*$B$12),"y","n")),"") ->  | H30: 38 | I30: Medium | J30: 1.6 | K30: 20.6 | L30: 20 | M30: 285 | N30: 45 | O30: 0.9627797649 | P30: 0.02139510589 | Q30: 2394.236855 | R30: =_xlfn.XLOOKUP(I30,T_minESABlindWidth[Description],INDIRECT(_xlfn.CONCAT("T_minESABlindWidth[",i_idler,"]"))) -> 913 | S30: 0.913 | T30: 5.085113345 | V30: y
D31: 0.00768171145 | E31: 0.02311323915 | G31: =IF(P31<>"",IF(OR(input_idealSpringRate>_SpringData_L0!E31,input_idealSpringRate<_SpringData_L0!$D$4),"n",IF(AND(input_idealSpringRate<_SpringData_L0!E31,input_idealSpringRate>_SpringData_L0!D31*$B$12),"y","n")),"") ->  | H31: 37 | I31: Medium | J31: 1.6 | K31: 20.6 | L31: 19 | M31: 271 | N31: 42 | O31: 0.9450163006 | P31: 0.02250038811 | Q31: 2350.062743 | R31: =_xlfn.XLOOKUP(I31,T_minESABlindWidth[Description],INDIRECT(_xlfn.CONCAT("T_minESABlindWidth[",i_idler,"]"))) -> 913 | S31: 0.913 | T31: 4.991292066 | V31: y
D32: 0.008089633702 | E32: 0.02440955781 | G32: =IF(P32<>"",IF(OR(input_idealSpringRate>_SpringData_L0!E32,input_idealSpringRate<_SpringData_L0!$D$4),"n",IF(AND(input_idealSpringRate<_SpringData_L0!E32,input_idealSpringRate>_SpringData_L0!D32*$B$12),"y","n")),"") ->  | H32: 36 | I32: Medium | J32: 1.6 | K32: 20.6 | L32: 18 | M32: 257 | N32: 41 | O32: 0.9727696977 | P32: 0.02372609019 | Q32: 2419.079779 | R32: =_xlfn.XLOOKUP(I32,T_minESABlindWidth[Description],INDIRECT(_xlfn.CONCAT("T_minESABlindWidth[",i_idler,"]"))) -> 913 | S32: 0.913 | T32: 5.137877167 | V32: y
D33: 0.008543345232 | E33: 0.02580217614 | G33: =IF(P33<>"",IF(OR(input_idealSpringRate>_SpringData_L0!E33,input_idealSpringRate<_SpringData_L0!$D$4),"n",IF(AND(input_idealSpringRate<_SpringData_L0!E33,input_idealSpringRate>_SpringData_L0!D33*$B$12),"y","n")),"") ->  | H33: 35 | I33: Medium | J33: 1.6 | K33: 20.6 | L33: 17 | M33: 243 | N33: 38 | O33: 0.9535349661 | P33: 0.02509302542 | Q33: 2371.246926 | R33: =_xlfn.XLOOKUP(I33,T_minESABlindWidth[Description],INDIRECT(_xlfn.CONCAT("T_minESABlindWidth[",i_idler,"]"))) -> 913 | S33: 0.913 | T33: 5.036285096 | V33: y
D34: 0.00903076165 | E34: 0.02711421534 | G34: =IF(P34<>"",IF(OR(input_idealSpringRate>_SpringData_L0!E34,input_idealSpringRate<_SpringData_L0!$D$4),"n",IF(AND(input_idealSpringRate<_SpringData_L0!E34,input_idealSpringRate>_SpringData_L0!D34*$B$12),"y","n")),"") ->  | H34: 34 | I34: Medium | J34: 1.6 | K34: 20.6 | L34: 16 | M34: 230 | N34: 37 | O34: 0.9809190939 | P34: 0.02651132686 | Q34: 2439.345665 | R34: =_xlfn.XLOOKUP(I34,T_minESABlindWidth[Description],INDIRECT(_xlfn.CONCAT("T_minESABlindWidth[",i_idler,"]"))) -> 913 | S34: 0.913 | T34: 5.180919828 | V34: y
D35: 0.009489975368 | E35: 0.02797337871 | G35: =IF(P35<>"",IF(OR(input_idealSpringRate>_SpringData_L0!E35,input_idealSpringRate<_SpringData_L0!$D$4),"n",IF(AND(input_idealSpringRate<_SpringData_L0!E35,input_idealSpringRate>_SpringData_L0!D35*$B$12),"y","n")),"") ->  | H35: 72 | I35: Heavy | J35: 1.8 | K35: 20.8 | L35: 29 | M35: 349 | N35: 38 | O35: 1.053249945 | P35: 0.02771710381 | Q35: 1839.56033 | R35: =_xlfn.XLOOKUP(I35,T_minESABlindWidth[Description],INDIRECT(_xlfn.CONCAT("T_minESABlindWidth[",i_idler,"]"))) -> 1013 | S35: 1.013 | T35: 5.562949644 | V35: y | X35: 56 | Y35: 38
D36: 0.009790682548 | E36: 0.0284668583 | G36: =IF(P36<>"",IF(OR(input_idealSpringRate>_SpringData_L0!E36,input_idealSpringRate<_SpringData_L0!$D$4),"n",IF(AND(input_idealSpringRate<_SpringData_L0!E36,input_idealSpringRate>_SpringData_L0!D36*$B$12),"y","n")),"") ->  | H36: 33 | I36: Medium | J36: 1.6 | K36: 20.6 | L36: 15 | M36: 216 | N36: 35 | O36: 0.9880378761 | P36: 0.0282296536 | Q36: 2457.048624 | R36: =_xlfn.XLOOKUP(I36,T_minESABlindWidth[Description],INDIRECT(_xlfn.CONCAT("T_minESABlindWidth[",i_idler,"]"))) -> 913 | S36: 0.913 | T36: 5.218519096 | V36: y
D37: 0.009963400405 | E37: 0.02923398416 | G37: =IF(P37<>"",IF(OR(input_idealSpringRate>_SpringData_L0!E37,input_idealSpringRate<_SpringData_L0!$D$4),"n",IF(AND(input_idealSpringRate<_SpringData_L0!E37,input_idealSpringRate>_SpringData_L0!D37*$B$12),"y","n")),"") ->  | H37: 71 | I37: Heavy | J37: 1.8 | K37: 20.8 | L37: 28 | M37: 337 | N37: 48 | O37: 1.377795024 | P37: 0.028704063 | Q37: 2406.396583 | R37: =_xlfn.XLOOKUP(I37,T_minESABlindWidth[Description],INDIRECT(_xlfn.CONCAT("T_minESABlindWidth[",i_idler,"]"))) -> 1013 | S37: 1.013 | T37: 7.277099206 | V37: y | Y37: 38
D38: 0.01023189446 | E38: 0.02997503479 | G38: =IF(P38<>"",IF(OR(input_idealSpringRate>_SpringData_L0!E38,input_idealSpringRate<_SpringData_L0!$D$4),"n",IF(AND(input_idealSpringRate<_SpringData_L0!E38,input_idealSpringRate>_SpringData_L0!D38*$B$12),"y","n")),"") ->  | H38: 70 | I38: Heavy | J38: 1.8 | K38: 20.8 | L38: 27 | M38: 325 | N38: 37 | O38: 1.101264497 | P38: 0.02976390533 | Q38: 1923.420448 | R38: =_xlfn.XLOOKUP(I38,T_minESABlindWidth[Description],INDIRECT(_xlfn.CONCAT("T_minESABlindWidth[",i_idler,"]"))) -> 1013 | S38: 1.013 | T38: 5.816548077 | V38: y
D39: 0.01049126218 | E39: 0.03054558888 | G39: =IF(P39<>"",IF(OR(input_idealSpringRate>_SpringData_L0!E39,input_idealSpringRate<_SpringData_L0!$D$4),"n",IF(AND(input_idealSpringRate<_SpringData_L0!E39,input_idealSpringRate>_SpringData_L0!D39*$B$12),"y","n")),"") ->  | H39: 32 | I39: Medium | J39: 1.6 | K39: 20.6 | L39: 14 | M39: 202 | N39: 40 | O39: 1.20744657 | P39: 0.03018616425 | Q39: 3002.673283 | R39: =_xlfn.XLOOKUP(I39,T_minESABlindWidth[Description],INDIRECT(_xlfn.CONCAT("T_minESABlindWidth[",i_idler,"]"))) -> 913 | S39: 0.913 | T39: 6.377369872 | V39: y
D40: 0.01069095611 | E40: 0.0315210603 | G40: =IF(P40<>"",IF(OR(input_idealSpringRate>_SpringData_L0!E40,input_idealSpringRate<_SpringData_L0!$D$4),"n",IF(AND(input_idealSpringRate<_SpringData_L0!E40,input_idealSpringRate>_SpringData_L0!D40*$B$12),"y","n")),"") ->  | H40: 69 | I40: Heavy | J40: 1.8 | K40: 20.8 | L40: 26 | M40: 313 | N40: 38 | O40: 1.174390514 | P40: 0.03090501352 | Q40: 2051.139154 | R40: =_xlfn.XLOOKUP(I40,T_minESABlindWidth[Description],INDIRECT(_xlfn.CONCAT("T_minESABlindWidth[",i_idler,"]"))) -> 1013 | S40: 1.013 | T40: 6.202777718 | V40: y
D41: 0.0110323711 | E41: 0.03228558859 | G41: =IF(P41<>"",IF(OR(input_idealSpringRate>_SpringData_L0!E41,input_idealSpringRate<_SpringData_L0!$D$4),"n",IF(AND(input_idealSpringRate<_SpringData_L0!E41,input_idealSpringRate>_SpringData_L0!D41*$B$12),"y","n")),"") ->  | H41: 68 | I41: Heavy | J41: 1.8 | K41: 20.8 | L41: 25 | M41: 301 | N41: 36 | O41: 1.156935855 | P41: 0.03213710708 | Q41: 2020.653609 | R41: =_xlfn.XLOOKUP(I41,T_minESABlindWidth[Description],INDIRECT(_xlfn.CONCAT("T_minESABlindWidth[",i_idler,"]"))) -> 1013 | S41: 1.013 | T41: 6.110587456 | V41: y
D42: 0.01129995601 | E42: 0.03289508545 | G42: =IF(P42<>"",IF(OR(input_idealSpringRate>_SpringData_L0!E42,input_idealSpringRate<_SpringData_L0!$D$4),"n",IF(AND(input_idealSpringRate<_SpringData_L0!E42,input_idealSpringRate>_SpringData_L0!D42*$B$12),"y","n")),"") ->  | H42: 31 | I42: Medium | J42: 1.6 | K42: 20.6 | L42: 13 | M42: 188 | N42: 36 | O42: 1.167626523 | P42: 0.0324340701 | Q42: 2903.648951 | R42: =_xlfn.XLOOKUP(I42,T_minESABlindWidth[Description],INDIRECT(_xlfn.CONCAT("T_minESABlindWidth[",i_idler,"]"))) -> 913 | S42: 0.913 | T42: 6.167052355 | V42: y
D43: 0.01151327991 | E43: 0.03407601664 | G43: =IF(P43<>"",IF(OR(input_idealSpringRate>_SpringData_L0!E43,input_idealSpringRate<_SpringData_L0!$D$4),"n",IF(AND(input_idealSpringRate<_SpringData_L0!E43,input_idealSpringRate>_SpringData_L0!D43*$B$12),"y","n")),"") ->  | H43: 67 | I43: Heavy | J43: 1.8 | K43: 20.8 | L43: 24 | M43: 290 | N43: 37 | O43: 1.234175729 | P43: 0.0333561008 | Q43: 2155.557399 | R43: =_xlfn.XLOOKUP(I43,T_minESABlindWidth[Description],INDIRECT(_xlfn.CONCAT("T_minESABlindWidth[",i_idler,"]"))) -> 1013 | S43: 1.013 | T43: 6.518545259 | V43: y
D44: 0.01192660582 | E44: 0.0349198202 | G44: =IF(P44<>"",IF(OR(input_idealSpringRate>_SpringData_L0!E44,input_idealSpringRate<_SpringData_L0!$D$4),"n",IF(AND(input_idealSpringRate<_SpringData_L0!E44,input_idealSpringRate>_SpringData_L0!D44*$B$12),"y","n")),"") ->  | H44: 66 | I44: Heavy | J44: 1.8 | K44: 20.8 | L44: 23 | M44: 278 | N44: 34 | O44: 1.183061704 | P44: 0.03479593248 | Q44: 2066.283877 | R44: =_xlfn.XLOOKUP(I44,T_minESABlindWidth[Description],INDIRECT(_xlfn.CONCAT("T_minESABlindWidth[",i_idler,"]"))) -> 1013 | S44: 1.013 | T44: 6.248576342 | V44: y
D45: 0.01222193707 | E45: 0.03570469086 | G45: =IF(P45<>"",IF(OR(input_idealSpringRate>_SpringData_L0!E45,input_idealSpringRate<_SpringData_L0!$D$4),"n",IF(AND(input_idealSpringRate<_SpringData_L0!E45,input_idealSpringRate>_SpringData_L0!D45*$B$12),"y","n")),"") ->  | H45: 30 | I45: Medium | J45: 1.6 | K45: 20.6 | L45: 12 | M45: 174 | N45: 34 | O45: 1.191486069 | P45: 0.03504370792 | Q45: 2962.982774 | R45: =_xlfn.XLOOKUP(I45,T_minESABlindWidth[Description],INDIRECT(_xlfn.CONCAT("T_minESABlindWidth[",i_idler,"]"))) -> 913 | S45: 0.913 | T45: 6.293071304 | V45: y
D46: 0.0124966418 | E46: 0.03722470546 | F46: =IF(G46<>"",IF(islandFilter_option="yes",IF(AND(MATCH(I46,list_boosterDescription,0)>=MATCH(islandfilter_colMax,list_boosterIndex,0),MATCH(I46,list_boosterDescription,0)>=MATCH(islandfilter_rowMax,list_boosterIndex,0)),"y",""),"y"),"") ->  | G46: =IF(P46<>"",IF(OR(input_idealSpringRate>_SpringData_L0!E46,input_idealSpringRate<_SpringData_L0!$D$4),"n",IF(AND(input_idealSpringRate<_SpringData_L0!E46,input_idealSpringRate>_SpringData_L0!D46*$B$12),"y","n")),"") ->  | H46: 65 | I46: Heavy | J46: 1.8 | K46: 20.8 | L46: 22 | M46: 266 | N46: 39 | O46: 1.418261278 | P46: 0.0363656738 | Q46: 2477.073174 | R46: =_xlfn.XLOOKUP(I46,T_minESABlindWidth[Description],INDIRECT(_xlfn.CONCAT("T_minESABlindWidth[",i_idler,"]"))) -> 1013 | S46: 1.013 | T46: 7.490829798 | V46: y
D47: 0.01302864691 | E47: 0.03809688475 | G47: =IF(P47<>"",IF(OR(input_idealSpringRate>_SpringData_L0!E47,input_idealSpringRate<_SpringData_L0!$D$4),"n",IF(AND(input_idealSpringRate<_SpringData_L0!E47,input_idealSpringRate>_SpringData_L0!D47*$B$12),"y","n")),"") ->  | H47: 64 | I47: Heavy | J47: 1.8 | K47: 20.8 | L47: 21 | M47: 254 | N47: 39 | O47: 1.485265748 | P47: 0.03808373713 | Q47: 2594.100254 | R47: =_xlfn.XLOOKUP(I47,T_minESABlindWidth[Description],INDIRECT(_xlfn.CONCAT("T_minESABlindWidth[",i_idler,"]"))) -> 1013 | S47: 1.013 | T47: 7.844727269 | V47: y
D48: 0.01333390966 | E48: 0.03904110963 | G48: =IF(P48<>"",IF(OR(input_idealSpringRate>_SpringData_L0!E48,input_idealSpringRate<_SpringData_L0!$D$4),"n",IF(AND(input_idealSpringRate<_SpringData_L0!E48,input_idealSpringRate>_SpringData_L0!D48*$B$12),"y","n")),"") ->  | H48: 29 | I48: Medium | J48: 1.6 | K48: 20.6 | L48: 11 | M48: 160 | N48: 30 | O48: 1.143300971 | P48: 0.03811003236 | Q48: 2843.156265 | R48: =_xlfn.XLOOKUP(I48,T_minESABlindWidth[Description],INDIRECT(_xlfn.CONCAT("T_minESABlindWidth[",i_idler,"]"))) -> 913 | S48: 0.913 | T48: 6.038572097 | V48: y
D49: 0.01366438837 | E49: 0.04086830297 | G49: =IF(P49<>"",IF(OR(input_idealSpringRate>_SpringData_L0!E49,input_idealSpringRate<_SpringData_L0!$D$4),"n",IF(AND(input_idealSpringRate<_SpringData_L0!E49,input_idealSpringRate>_SpringData_L0!D49*$B$12),"y","n")),"") ->  | H49: 63 | I49: Heavy | J49: 1.8 | K49: 20.8 | L49: 20 | M49: 242 | N49: 36 | O49: 1.438998729 | P49: 0.0399721869 | Q49: 2513.292299 | R49: =_xlfn.XLOOKUP(I49,T_minESABlindWidth[Description],INDIRECT(_xlfn.CONCAT("T_minESABlindWidth[",i_idler,"]"))) -> 1013 | S49: 1.013 | T49: 7.600358778 | V49: y
D50: 0.01430390604 | E50: 0.0418200217 | G50: =IF(P50<>"",IF(OR(input_idealSpringRate>_SpringData_L0!E50,input_idealSpringRate<_SpringData_L0!$D$4),"n",IF(AND(input_idealSpringRate<_SpringData_L0!E50,input_idealSpringRate>_SpringData_L0!D50*$B$12),"y","n")),"") ->  | H50: 28 | I50: Medium | J50: 1.6 | K50: 20.6 | L50: 10 | M50: 146 | N50: 27 | O50: 1.127639314 | P50: 0.04176441903 | Q50: 2804.208919 | R50: =_xlfn.XLOOKUP(I50,T_minESABlindWidth[Description],INDIRECT(_xlfn.CONCAT("T_minESABlindWidth[",i_idler,"]"))) -> 913 | S50: 0.913 | T50: 5.955851931 | V50: y
D51: 0.0146370076 | E51: 0.04302290176 | G51: =IF(P51<>"",IF(OR(input_idealSpringRate>_SpringData_L0!E51,input_idealSpringRate<_SpringData_L0!$D$4),"n",IF(AND(input_idealSpringRate<_SpringData_L0!E51,input_idealSpringRate>_SpringData_L0!D51*$B$12),"y","n")),"") ->  | H51: 62 | I51: Heavy | J51: 1.8 | K51: 20.8 | L51: 19 | M51: 231 | N51: 35 | O51: 1.465646853 | P51: 0.04187562438 | Q51: 2559.834749 | R51: =_xlfn.XLOOKUP(I51,T_minESABlindWidth[Description],INDIRECT(_xlfn.CONCAT("T_minESABlindWidth[",i_idler,"]"))) -> 1013 | S51: 1.013 | T51: 7.741106163 | V51: y
D52: 0.01505801561 | E52: 0.0450084173 | G52: =IF(P52<>"",IF(OR(input_idealSpringRate>_SpringData_L0!E52,input_idealSpringRate<_SpringData_L0!$D$4),"n",IF(AND(input_idealSpringRate<_SpringData_L0!E52,input_idealSpringRate>_SpringData_L0!D52*$B$12),"y","n")),"") ->  | H52: 61 | I52: Heavy | J52: 1.8 | K52: 20.8 | L52: 18 | M52: 219 | N52: 34 | O52: 1.501786091 | P52: 0.04417017914 | Q52: 2622.953962 | R52: =_xlfn.XLOOKUP(I52,T_minESABlindWidth[Description],INDIRECT(_xlfn.CONCAT("T_minESABlindWidth[",i_idler,"]"))) -> 1013 | S52: 1.013 | T52: 7.931982753 | V52: y
D53: 0.01575294606 | E53: 0.04628871235 | G53: =IF(P53<>"",IF(OR(input_idealSpringRate>_SpringData_L0!E53,input_idealSpringRate<_SpringData_L0!$D$4),"n",IF(AND(input_idealSpringRate<_SpringData_L0!E53,input_idealSpringRate>_SpringData_L0!D53*$B$12),"y","n")),"") ->  | H53: 27 | I53: Medium | J53: 1.6 | K53: 20.6 | L53: 9 | M53: 133 | N53: 24 | O53: 1.100319731 | P53: 0.04584665547 | Q53: 2736.270691 | R53: =_xlfn.XLOOKUP(I53,T_minESABlindWidth[Description],INDIRECT(_xlfn.CONCAT("T_minESABlindWidth[",i_idler,"]"))) -> 913 | S53: 0.913 | T53: 5.811558109 | V53: y
D54: 0.01620104932 | E54: 0.04816863905 | G54: =IF(P54<>"",IF(OR(input_idealSpringRate>_SpringData_L0!E54,input_idealSpringRate<_SpringData_L0!$D$4),"n",IF(AND(input_idealSpringRate<_SpringData_L0!E54,input_idealSpringRate>_SpringData_L0!D54*$B$12),"y","n")),"") ->  | H54: 60 | I54: Heavy | J54: 1.8 | K54: 20.8 | L54: 17 | M54: 207 | N54: 33 | O54: 1.542115385 | P54: 0.04673076923 | Q54: 2693.391345 | R54: =_xlfn.XLOOKUP(I54,T_minESABlindWidth[Description],INDIRECT(_xlfn.CONCAT("T_minESABlindWidth[",i_idler,"]"))) -> 1013 | S54: 1.013 | T54: 8.144989963 | V54: y
D55: 0.01685902367 | E55: 0.05042344426 | G55: =IF(P55<>"",IF(OR(input_idealSpringRate>_SpringData_L0!E55,input_idealSpringRate<_SpringData_L0!$D$4),"n",IF(AND(input_idealSpringRate<_SpringData_L0!E55,input_idealSpringRate>_SpringData_L0!D55*$B$12),"y","n")),"") ->  | H55: 59 | I55: Heavy | J55: 1.8 | K55: 20.8 | L55: 16 | M55: 195 | N55: 31 | O55: 1.537801775 | P55: 0.04960650888 | Q55: 2685.857383 | R55: =_xlfn.XLOOKUP(I55,T_minESABlindWidth[Description],INDIRECT(_xlfn.CONCAT("T_minESABlindWidth[",i_idler,"]"))) -> 1013 | S55: 1.013 | T55: 8.122206774 | V55: y
D56: 0.01764820549 | E56: 0.05190624752 | G56: =IF(P56<>"",IF(OR(input_idealSpringRate>_SpringData_L0!E56,input_idealSpringRate<_SpringData_L0!$D$4),"n",IF(AND(input_idealSpringRate<_SpringData_L0!E56,input_idealSpringRate>_SpringData_L0!D56*$B$12),"y","n")),"") ->  | H56: 26 | I56: Medium | J56: 1.6 | K56: 20.6 | L56: 8 | M56: 119 | N56: 22 | O56: 1.127288352 | P56: 0.05124037965 | Q56: 2803.336149 | R56: =_xlfn.XLOOKUP(I56,T_minESABlindWidth[Description],INDIRECT(_xlfn.CONCAT("T_minESABlindWidth[",i_idler,"]"))) -> 913 | S56: 0.913 | T56: 5.953998258 | V56: y
D57: 0.01816718663 | E57: 0.05440602639 | G57: =IF(P57<>"",IF(OR(input_idealSpringRate>_SpringData_L0!E57,input_idealSpringRate<_SpringData_L0!$D$4),"n",IF(AND(input_idealSpringRate<_SpringData_L0!E57,input_idealSpringRate>_SpringData_L0!D57*$B$12),"y","n")),"") ->  | H57: 58 | I57: Heavy | J57: 1.8 | K57: 20.8 | L57: 15 | M57: 184 | N57: 29 | O57: 1.524591346 | P57: 0.05257211538 | Q57: 2662.784625 | R57: =_xlfn.XLOOKUP(I57,T_minESABlindWidth[Description],INDIRECT(_xlfn.CONCAT("T_minESABlindWidth[",i_idler,"]"))) -> 1013 | S57: 1.013 | T57: 8.052433259 | V57: y
D58: 0.01904210924 | E58: 0.05715618383 | G58: =IF(P58<>"",IF(OR(input_idealSpringRate>_SpringData_L0!E58,input_idealSpringRate<_SpringData_L0!$D$4),"n",IF(AND(input_idealSpringRate<_SpringData_L0!E58,input_idealSpringRate>_SpringData_L0!D58*$B$12),"y","n")),"") ->  | H58: 57 | I58: Heavy | J58: 1.8 | K58: 20.8 | L58: 14 | M58: 172 | N58: 27 | O58: 1.518478309 | P58: 0.05623993739 | Q58: 2652.107862 | R58: =_xlfn.XLOOKUP(I58,T_minESABlindWidth[Description],INDIRECT(_xlfn.CONCAT("T_minESABlindWidth[",i_idler,"]"))) -> 1013 | S58: 1.013 | T58: 8.020146036 | V58: y
D59: 0.02000466434 | E59: 0.05926518148 | G59: =IF(P59<>"",IF(OR(input_idealSpringRate>_SpringData_L0!E59,input_idealSpringRate<_SpringData_L0!$D$4),"n",IF(AND(input_idealSpringRate<_SpringData_L0!E59,input_idealSpringRate>_SpringData_L0!D59*$B$12),"y","n")),"") ->  | H59: 25 | I59: Medium | J59: 1.6 | K59: 20.6 | L59: 7 | M59: 105 | N59: 20 | O59: 1.161448605 | P59: 0.05807243027 | Q59: 2888.285729 | R59: =_xlfn.XLOOKUP(I59,T_minESABlindWidth[Description],INDIRECT(_xlfn.CONCAT("T_minESABlindWidth[",i_idler,"]"))) -> 913 | S59: 0.913 | T59: 6.134422448 | V59: y
D60: 0.02074281352 | E60: 0.06290892996 | G60: =IF(P60<>"",IF(OR(input_idealSpringRate>_SpringData_L0!E60,input_idealSpringRate<_SpringData_L0!$D$4),"n",IF(AND(input_idealSpringRate<_SpringData_L0!E60,input_idealSpringRate>_SpringData_L0!D60*$B$12),"y","n")),"") ->  | H60: 56 | I60: Heavy | J60: 1.8 | K60: 20.8 | L60: 13 | M60: 160 | N60: 26 | O60: 1.57190625 | P60: 0.06045793269 | Q60: 2745.422768 | R60: =_xlfn.XLOOKUP(I60,T_minESABlindWidth[Description],INDIRECT(_xlfn.CONCAT("T_minESABlindWidth[",i_idler,"]"))) -> 1013 | S60: 1.013 | T60: 8.30233636 | V60: y
D61: 0.02201812549 | E61: 0.06618328877 | G61: =IF(P61<>"",IF(OR(input_idealSpringRate>_SpringData_L0!E61,input_idealSpringRate<_SpringData_L0!$D$4),"n",IF(AND(input_idealSpringRate<_SpringData_L0!E61,input_idealSpringRate>_SpringData_L0!D61*$B$12),"y","n")),"") ->  | H61: 55 | I61: Heavy | J61: 1.8 | K61: 20.8 | L61: 12 | M61: 148 | N61: 23 | O61: 1.503278326 | P61: 0.06535992723 | Q61: 2625.560236 | R61: =_xlfn.XLOOKUP(I61,T_minESABlindWidth[Description],INDIRECT(_xlfn.CONCAT("T_minESABlindWidth[",i_idler,"]"))) -> 1013 | S61: 1.013 | T61: 7.939864294 | V61: y
D62: 0.02316415107 | E62: 0.06906681497 | G62: =IF(P62<>"",IF(OR(input_idealSpringRate>_SpringData_L0!E62,input_idealSpringRate<_SpringData_L0!$D$4),"n",IF(AND(input_idealSpringRate<_SpringData_L0!E62,input_idealSpringRate>_SpringData_L0!D62*$B$12),"y","n")),"") ->  | H62: 24 | I62: Medium | J62: 1.6 | K62: 20.6 | L62: 6 | M62: 91 | N62: 19 | O62: 1.273126356 | P62: 0.06700665031 | Q62: 3166.005511 | R62: =_xlfn.XLOOKUP(I62,T_minESABlindWidth[Description],INDIRECT(_xlfn.CONCAT("T_minESABlindWidth[",i_idler,"]"))) -> 913 | S62: 0.913 | T62: 6.72427076 | V62: y
D63: 0.02417338524 | E63: 0.07425656674 | G63: =IF(P63<>"",IF(OR(input_idealSpringRate>_SpringData_L0!E63,input_idealSpringRate<_SpringData_L0!$D$4),"n",IF(AND(input_idealSpringRate<_SpringData_L0!E63,input_idealSpringRate>_SpringData_L0!D63*$B$12),"y","n")),"") ->  | H63: 54 | I63: Heavy | J63: 1.8 | K63: 20.8 | L63: 11 | M63: 136 | N63: 21 | O63: 1.493666572 | P63: 0.07112697964 | Q63: 2608.772766 | R63: =_xlfn.XLOOKUP(I63,T_minESABlindWidth[Description],INDIRECT(_xlfn.CONCAT("T_minESABlindWidth[",i_idler,"]"))) -> 1013 | S63: 1.013 | T63: 7.889097898 | V63: y
D64: 0.02598979836 | E64: 0.07738615385 | G64: =IF(P64<>"",IF(OR(input_idealSpringRate>_SpringData_L0!E64,input_idealSpringRate<_SpringData_L0!$D$4),"n",IF(AND(input_idealSpringRate<_SpringData_L0!E64,input_idealSpringRate>_SpringData_L0!D64*$B$12),"y","n")),"") ->  | H64: 53 | I64: Heavy | J64: 1.8 | K64: 20.8 | L64: 10 | M64: 125 | N64: 19 | O64: 1.470336923 | P64: 0.07738615385 | Q64: 2568.02622 | R64: =_xlfn.XLOOKUP(I64,T_minESABlindWidth[Description],INDIRECT(_xlfn.CONCAT("T_minESABlindWidth[",i_idler,"]"))) -> 1013 | S64: 1.013 | T64: 7.765877703 | V64: y
D65: 0.02708515385 | G65: =IF(P65<>"",IF(OR(input_idealSpringRate>_SpringData_L0!E65,input_idealSpringRate<_SpringData_L0!$D$4),"n",IF(AND(input_idealSpringRate<_SpringData_L0!E65,input_idealSpringRate>_SpringData_L0!D65*$B$12),"y","n")),"") ->  | H65: 1 | I65: Mini | J65: 1 | K65: 20 | L65: 1 | M65: 29 | O65: 0 | Q65: 0 | R65: =_xlfn.XLOOKUP(I65,T_minESABlindWidth[Description],INDIRECT(_xlfn.CONCAT("T_minESABlindWidth[",i_idler,"]"))) -> 400 | S65: 0.4
G66: =IF(P66<>"",IF(OR(input_idealSpringRate>_SpringData_L0!E66,input_idealSpringRate<_SpringData_L0!$D$4),"n",IF(AND(input_idealSpringRate<_SpringData_L0!E66,input_idealSpringRate>_SpringData_L0!D66*$B$12),"y","n")),"") ->  | H66: 2 | I66: Mini | J66: 1 | K66: 20 | L66: 2 | M66: 47 | O66: 0 | Q66: 0 | R66: =_xlfn.XLOOKUP(I66,T_minESABlindWidth[Description],INDIRECT(_xlfn.CONCAT("T_minESABlindWidth[",i_idler,"]"))) -> 400 | S66: 0.4
G67: =IF(P67<>"",IF(OR(input_idealSpringRate>_SpringData_L0!E67,input_idealSpringRate<_SpringData_L0!$D$4),"n",IF(AND(input_idealSpringRate<_SpringData_L0!E67,input_idealSpringRate>_SpringData_L0!D67*$B$12),"y","n")),"") ->  | H67: 6 | I67: Light | J67: 1.2 | K67: 20.2 | L67: 1 | M67: 28 | O67: 0 | Q67: 0 | R67: =_xlfn.XLOOKUP(I67,T_minESABlindWidth[Description],INDIRECT(_xlfn.CONCAT("T_minESABlindWidth[",i_idler,"]"))) -> 600 | S67: 0.6
G68: =IF(P68<>"",IF(OR(input_idealSpringRate>_SpringData_L0!E68,input_idealSpringRate<_SpringData_L0!$D$4),"n",IF(AND(input_idealSpringRate<_SpringData_L0!E68,input_idealSpringRate>_SpringData_L0!D68*$B$12),"y","n")),"") ->  | H68: 7 | I68: Light | J68: 1.2 | K68: 20.2 | L68: 2 | M68: 45 | O68: 0 | Q68: 0 | R68: =_xlfn.XLOOKUP(I68,T_minESABlindWidth[Description],INDIRECT(_xlfn.CONCAT("T_minESABlindWidth[",i_idler,"]"))) -> 600 | S68: 0.6
G69: =IF(P69<>"",IF(OR(input_idealSpringRate>_SpringData_L0!E69,input_idealSpringRate<_SpringData_L0!$D$4),"n",IF(AND(input_idealSpringRate<_SpringData_L0!E69,input_idealSpringRate>_SpringData_L0!D69*$B$12),"y","n")),"") ->  | H69: 8 | I69: Light | J69: 1.2 | K69: 20.2 | L69: 3 | M69: 63 | O69: 0 | Q69: 0 | R69: =_xlfn.XLOOKUP(I69,T_minESABlindWidth[Description],INDIRECT(_xlfn.CONCAT("T_minESABlindWidth[",i_idler,"]"))) -> 600 | S69: 0.6
G70: =IF(P70<>"",IF(OR(input_idealSpringRate>_SpringData_L0!E70,input_idealSpringRate<_SpringData_L0!$D$4),"n",IF(AND(input_idealSpringRate<_SpringData_L0!E70,input_idealSpringRate>_SpringData_L0!D70*$B$12),"y","n")),"") ->  | H70: 9 | I70: Light | J70: 1.2 | K70: 20.2 | L70: 4 | M70: 81 | O70: 0 | Q70: 0 | R70: =_xlfn.XLOOKUP(I70,T_minESABlindWidth[Description],INDIRECT(_xlfn.CONCAT("T_minESABlindWidth[",i_idler,"]"))) -> 600 | S70: 0.6
G71: =IF(P71<>"",IF(OR(input_idealSpringRate>_SpringData_L0!E71,input_idealSpringRate<_SpringData_L0!$D$4),"n",IF(AND(input_idealSpringRate<_SpringData_L0!E71,input_idealSpringRate>_SpringData_L0!D71*$B$12),"y","n")),"") ->  | H71: 10 | I71: Light | J71: 1.2 | K71: 20.2 | L71: 5 | M71: 98 | O71: 0 | Q71: 0 | R71: =_xlfn.XLOOKUP(I71,T_minESABlindWidth[Description],INDIRECT(_xlfn.CONCAT("T_minESABlindWidth[",i_idler,"]"))) -> 600 | S71: 0.6
G72: =IF(P72<>"",IF(OR(input_idealSpringRate>_SpringData_L0!E72,input_idealSpringRate<_SpringData_L0!$D$4),"n",IF(AND(input_idealSpringRate<_SpringData_L0!E72,input_idealSpringRate>_SpringData_L0!D72*$B$12),"y","n")),"") ->  | H72: 19 | I72: Medium | J72: 1.6 | K72: 20.6 | L72: 1 | M72: 22 | O72: 0 | Q72: 0 | R72: =_xlfn.XLOOKUP(I72,T_minESABlindWidth[Description],INDIRECT(_xlfn.CONCAT("T_minESABlindWidth[",i_idler,"]"))) -> 913 | S72: 0.913
G73: =IF(P73<>"",IF(OR(input_idealSpringRate>_SpringData_L0!E73,input_idealSpringRate<_SpringData_L0!$D$4),"n",IF(AND(input_idealSpringRate<_SpringData_L0!E73,input_idealSpringRate>_SpringData_L0!D73*$B$12),"y","n")),"") ->  | H73: 20 | I73: Medium | J73: 1.6 | K73: 20.6 | L73: 2 | M73: 36 | O73: 0 | Q73: 0 | R73: =_xlfn.XLOOKUP(I73,T_minESABlindWidth[Description],INDIRECT(_xlfn.CONCAT("T_minESABlindWidth[",i_idler,"]"))) -> 913 | S73: 0.913
G74: =IF(P74<>"",IF(OR(input_idealSpringRate>_SpringData_L0!E74,input_idealSpringRate<_SpringData_L0!$D$4),"n",IF(AND(input_idealSpringRate<_SpringData_L0!E74,input_idealSpringRate>_SpringData_L0!D74*$B$12),"y","n")),"") ->  | H74: 21 | I74: Medium | J74: 1.6 | K74: 20.6 | L74: 3 | M74: 50 | O74: 0 | Q74: 0 | R74: =_xlfn.XLOOKUP(I74,T_minESABlindWidth[Description],INDIRECT(_xlfn.CONCAT("T_minESABlindWidth[",i_idler,"]"))) -> 913 | S74: 0.913
G75: =IF(P75<>"",IF(OR(input_idealSpringRate>_SpringData_L0!E75,input_idealSpringRate<_SpringData_L0!$D$4),"n",IF(AND(input_idealSpringRate<_SpringData_L0!E75,input_idealSpringRate>_SpringData_L0!D75*$B$12),"y","n")),"") ->  | H75: 22 | I75: Medium | J75: 1.6 | K75: 20.6 | L75: 4 | M75: 63 | O75: 0 | Q75: 0 | R75: =_xlfn.XLOOKUP(I75,T_minESABlindWidth[Description],INDIRECT(_xlfn.CONCAT("T_minESABlindWidth[",i_idler,"]"))) -> 913 | S75: 0.913
G76: =IF(P76<>"",IF(OR(input_idealSpringRate>_SpringData_L0!E76,input_idealSpringRate<_SpringData_L0!$D$4),"n",IF(AND(input_idealSpringRate<_SpringData_L0!E76,input_idealSpringRate>_SpringData_L0!D76*$B$12),"y","n")),"") ->  | H76: 23 | I76: Medium | J76: 1.6 | K76: 20.6 | L76: 5 | M76: 77 | O76: 0 | Q76: 0 | R76: =_xlfn.XLOOKUP(I76,T_minESABlindWidth[Description],INDIRECT(_xlfn.CONCAT("T_minESABlindWidth[",i_idler,"]"))) -> 913 | S76: 0.913
G77: =IF(P77<>"",IF(OR(input_idealSpringRate>_SpringData_L0!E77,input_idealSpringRate<_SpringData_L0!$D$4),"n",IF(AND(input_idealSpringRate<_SpringData_L0!E77,input_idealSpringRate>_SpringData_L0!D77*$B$12),"y","n")),"") ->  | H77: 44 | I77: Heavy | J77: 1.8 | K77: 20.8 | L77: 1 | M77: 19 | O77: 0 | Q77: 0 | R77: =_xlfn.XLOOKUP(I77,T_minESABlindWidth[Description],INDIRECT(_xlfn.CONCAT("T_minESABlindWidth[",i_idler,"]"))) -> 1013 | S77: 1.013
E78: =IF(P78<>"",IF(AND(P78<>"",P78=""),P79*2,AVERAGE(P78:P79)),"") ->  | F78: =IF(G78<>"",IF(islandFilter_option="yes",IF(AND(MATCH(I78,list_boosterDescription,0)>=MATCH(islandfilter_colMax,list_boosterIndex,0),MATCH(I78,list_boosterDescription,0)>=MATCH(islandfilter_rowMax,list_boosterIndex,0)),"y",""),"y"),"") ->  | G78: =IF(P78<>"",IF(OR(input_idealSpringRate>_SpringData_L0!E78,input_idealSpringRate<_SpringData_L0!$D$4),"n",IF(AND(input_idealSpringRate<_SpringData_L0!E78,input_idealSpringRate>_SpringData_L0!D78*$B$12),"y","n")),"") ->  | H78: 45 | I78: Heavy | J78: 1.8 | K78: 20.8 | L78: 2 | M78: 30 | O78: 0 | Q78: 0 | R78: =_xlfn.XLOOKUP(I78,T_minESABlindWidth[Description],INDIRECT(_xlfn.CONCAT("T_minESABlindWidth[",i_idler,"]"))) -> 1013 | S78: 1.013 | U78: =IFERROR(ABS((P78-$E$1)/$E$1),"") -> 
D79: =IF(LEN(E78)>0,E78*$B$11,"") ->  | G79: =IF(P79<>"",IF(OR(input_idealSpringRate>_SpringData_L0!E79,input_idealSpringRate<_SpringData_L0!$D$4),"n",IF(AND(input_idealSpringRate<_SpringData_L0!E79,input_idealSpringRate>_SpringData_L0!D79*$B$12),"y","n")),"") ->  | H79: 46 | I79: Heavy | J79: 1.8 | K79: =J79+$AA$3 -> 20.8 | L79: 3 | M79: 42 | O79: =IFERROR(($X$3*$J79^4*$N79)/(10.8*$M79*$K79*1000),"") -> 0 | P79: =IFERROR(O79/N79,"") ->  | Q79: =32000*$O79/(PI()*$J79^3) -> 0 | R79: =_xlfn.XLOOKUP(I79,T_minESABlindWidth[Description],INDIRECT(_xlfn.CONCAT("T_minESABlindWidth[",i_idler,"]"))) -> 1013 | S79: =R79*0.001 -> 1.013
G80: =IF(P80<>"",IF(OR(input_idealSpringRate>_SpringData_L0!E80,input_idealSpringRate<_SpringData_L0!$D$4),"n",IF(AND(input_idealSpringRate<_SpringData_L0!E80,input_idealSpringRate>_SpringData_L0!D80*$B$12),"y","n")),"") ->  | H80: 47 | I80: Heavy | J80: 1.8 | K80: 20.8 | L80: 4 | M80: 54 | O80: 0 | Q80: 0 | R80: =_xlfn.XLOOKUP(I80,T_minESABlindWidth[Description],INDIRECT(_xlfn.CONCAT("T_minESABlindWidth[",i_idler,"]"))) -> 1013 | S80: 1.013
G81: =IF(P81<>"",IF(OR(input_idealSpringRate>_SpringData_L0!E81,input_idealSpringRate<_SpringData_L0!$D$4),"n",IF(AND(input_idealSpringRate<_SpringData_L0!E81,input_idealSpringRate>_SpringData_L0!D81*$B$12),"y","n")),"") ->  | H81: 48 | I81: Heavy | J81: 1.8 | K81: 20.8 | L81: 5 | M81: 66 | O81: 0 | Q81: 0 | R81: =_xlfn.XLOOKUP(I81,T_minESABlindWidth[Description],INDIRECT(_xlfn.CONCAT("T_minESABlindWidth[",i_idler,"]"))) -> 1013 | S81: 1.013
G82: =IF(P82<>"",IF(OR(input_idealSpringRate>_SpringData_L0!E82,input_idealSpringRate<_SpringData_L0!$D$4),"n",IF(AND(input_idealSpringRate<_SpringData_L0!E82,input_idealSpringRate>_SpringData_L0!D82*$B$12),"y","n")),"") ->  | H82: 49 | I82: Heavy | J82: 1.8 | K82: 20.8 | L82: 6 | M82: 77 | O82: 0 | Q82: 0 | R82: =_xlfn.XLOOKUP(I82,T_minESABlindWidth[Description],INDIRECT(_xlfn.CONCAT("T_minESABlindWidth[",i_idler,"]"))) -> 1013 | S82: 1.013
G83: =IF(P83<>"",IF(OR(input_idealSpringRate>_SpringData_L0!E83,input_idealSpringRate<_SpringData_L0!$D$4),"n",IF(AND(input_idealSpringRate<_SpringData_L0!E83,input_idealSpringRate>_SpringData_L0!D83*$B$12),"y","n")),"") ->  | H83: 50 | I83: Heavy | J83: 1.8 | K83: 20.8 | L83: 7 | M83: 89 | O83: 0 | Q83: 0 | R83: =_xlfn.XLOOKUP(I83,T_minESABlindWidth[Description],INDIRECT(_xlfn.CONCAT("T_minESABlindWidth[",i_idler,"]"))) -> 1013 | S83: 1.013
G84: =IF(P84<>"",IF(OR(input_idealSpringRate>_SpringData_L0!E84,input_idealSpringRate<_SpringData_L0!$D$4),"n",IF(AND(input_idealSpringRate<_SpringData_L0!E84,input_idealSpringRate>_SpringData_L0!D84*$B$12),"y","n")),"") ->  | H84: 51 | I84: Heavy | J84: 1.8 | K84: 20.8 | L84: 8 | M84: 101 | O84: 0 | Q84: 0 | R84: =_xlfn.XLOOKUP(I84,T_minESABlindWidth[Description],INDIRECT(_xlfn.CONCAT("T_minESABlindWidth[",i_idler,"]"))) -> 1013 | S84: 1.013
G85: =IF(P85<>"",IF(OR(input_idealSpringRate>_SpringData_L0!E85,input_idealSpringRate<_SpringData_L0!$D$4),"n",IF(AND(input_idealSpringRate<_SpringData_L0!E85,input_idealSpringRate>_SpringData_L0!D85*$B$12),"y","n")),"") ->  | H85: 52 | I85: Heavy | J85: 1.8 | K85: 20.8 | L85: 9 | M85: 113 | O85: 0 | Q85: 0 | R85: =_xlfn.XLOOKUP(I85,T_minESABlindWidth[Description],INDIRECT(_xlfn.CONCAT("T_minESABlindWidth[",i_idler,"]"))) -> 1013 | S85: 1.013
G86: =IF(P86<>"",IF(OR(input_idealSpringRate>_SpringData_L0!E86,input_idealSpringRate<_SpringData_L0!$D$4),"n",IF(AND(input_idealSpringRate<_SpringData_L0!E86,input_idealSpringRate>_SpringData_L0!D86*$B$12),"y","n")),"") ->  | K86: 19 | S86: 0
G87: =IF(P87<>"",IF(OR(input_idealSpringRate>_SpringData_L0!E87,input_idealSpringRate<_SpringData_L0!$D$4),"n",IF(AND(input_idealSpringRate<_SpringData_L0!E87,input_idealSpringRate>_SpringData_L0!D87*$B$12),"y","n")),"") ->  | K87: 19 | S87: 0
G88: =IF(P88<>"",IF(OR(input_idealSpringRate>_SpringData_L0!E88,input_idealSpringRate<_SpringData_L0!$D$4),"n",IF(AND(input_idealSpringRate<_SpringData_L0!E88,input_idealSpringRate>_SpringData_L0!D88*$B$12),"y","n")),"") ->  | K88: 19 | S88: 0
G89: =IF(P89<>"",IF(OR(input_idealSpringRate>_SpringData_L0!E89,input_idealSpringRate<_SpringData_L0!$D$4),"n",IF(AND(input_idealSpringRate<_SpringData_L0!E89,input_idealSpringRate>_SpringData_L0!D89*$B$12),"y","n")),"") ->  | K89: 19 | S89: 0
G90: =IF(P90<>"",IF(OR(input_idealSpringRate>_SpringData_L0!E90,input_idealSpringRate<_SpringData_L0!$D$4),"n",IF(AND(input_idealSpringRate<_SpringData_L0!E90,input_idealSpringRate>_SpringData_L0!D90*$B$12),"y","n")),"") ->  | K90: 19 | S90: 0
G91: =IF(P91<>"",IF(OR(input_idealSpringRate>_SpringData_L0!E91,input_idealSpringRate<_SpringData_L0!$D$4),"n",IF(AND(input_idealSpringRate<_SpringData_L0!E91,input_idealSpringRate>_SpringData_L0!D91*$B$12),"y","n")),"") ->  | K91: 19 | S91: 0
G92: =IF(P92<>"",IF(OR(input_idealSpringRate>_SpringData_L0!E92,input_idealSpringRate<_SpringData_L0!$D$4),"n",IF(AND(input_idealSpringRate<_SpringData_L0!E92,input_idealSpringRate>_SpringData_L0!D92*$B$12),"y","n")),"") ->  | K92: 19 | S92: 0
G93: =IF(P93<>"",IF(OR(input_idealSpringRate>_SpringData_L0!E93,input_idealSpringRate<_SpringData_L0!$D$4),"n",IF(AND(input_idealSpringRate<_SpringData_L0!E93,input_idealSpringRate>_SpringData_L0!D93*$B$12),"y","n")),"") ->  | K93: 19 | S93: 0
G94: =IF(P94<>"",IF(OR(input_idealSpringRate>_SpringData_L0!E94,input_idealSpringRate<_SpringData_L0!$D$4),"n",IF(AND(input_idealSpringRate<_SpringData_L0!E94,input_idealSpringRate>_SpringData_L0!D94*$B$12),"y","n")),"") ->  | K94: 19 | S94: 0
G95: =IF(P95<>"",IF(OR(input_idealSpringRate>_SpringData_L0!E95,input_idealSpringRate<_SpringData_L0!$D$4),"n",IF(AND(input_idealSpringRate<_SpringData_L0!E95,input_idealSpringRate>_SpringData_L0!D95*$B$12),"y","n")),"") ->  | K95: 19 | S95: 0
G96: =IF(P96<>"",IF(OR(input_idealSpringRate>_SpringData_L0!E96,input_idealSpringRate<_SpringData_L0!$D$4),"n",IF(AND(input_idealSpringRate<_SpringData_L0!E96,input_idealSpringRate>_SpringData_L0!D96*$B$12),"y","n")),"") ->  | K96: 19 | S96: 0
G97: =IF(P97<>"",IF(OR(input_idealSpringRate>_SpringData_L0!E97,input_idealSpringRate<_SpringData_L0!$D$4),"n",IF(AND(input_idealSpringRate<_SpringData_L0!E97,input_idealSpringRate>_SpringData_L0!D97*$B$12),"y","n")),"") ->  | K97: 19 | S97: 0
G98: =IF(P98<>"",IF(OR(input_idealSpringRate>_SpringData_L0!E98,input_idealSpringRate<_SpringData_L0!$D$4),"n",IF(AND(input_idealSpringRate<_SpringData_L0!E98,input_idealSpringRate>_SpringData_L0!D98*$B$12),"y","n")),"") ->  | K98: 19 | S98: 0
G99: =IF(P99<>"",IF(OR(input_idealSpringRate>_SpringData_L0!E99,input_idealSpringRate<_SpringData_L0!$D$4),"n",IF(AND(input_idealSpringRate<_SpringData_L0!E99,input_idealSpringRate>_SpringData_L0!D99*$B$12),"y","n")),"") ->  | K99: 19 | S99: 0
G100: =IF(P100<>"",IF(OR(input_idealSpringRate>_SpringData_L0!E100,input_idealSpringRate<_SpringData_L0!$D$4),"n",IF(AND(input_idealSpringRate<_SpringData_L0!E100,input_idealSpringRate>_SpringData_L0!D100*$B$12),"y","n")),"") ->  | K100: 19 | S100: 0
G101: =IF(P101<>"",IF(OR(input_idealSpringRate>_SpringData_L0!E101,input_idealSpringRate<_SpringData_L0!$D$4),"n",IF(AND(input_idealSpringRate<_SpringData_L0!E101,input_idealSpringRate>_SpringData_L0!D101*$B$12),"y","n")),"") ->  | K101: 19 | S101: 0
G102: =IF(P102<>"",IF(OR(input_idealSpringRate>_SpringData_L0!E102,input_idealSpringRate<_SpringData_L0!$D$4),"n",IF(AND(input_idealSpringRate<_SpringData_L0!E102,input_idealSpringRate>_SpringData_L0!D102*$B$12),"y","n")),"") ->  | K102: 19 | S102: 0
G103: =IF(P103<>"",IF(OR(input_idealSpringRate>_SpringData_L0!E103,input_idealSpringRate<_SpringData_L0!$D$4),"n",IF(AND(input_idealSpringRate<_SpringData_L0!E103,input_idealSpringRate>_SpringData_L0!D103*$B$12),"y","n")),"") ->  | K103: 19 | S103: 0
G104: =IF(P104<>"",IF(OR(input_idealSpringRate>_SpringData_L0!E104,input_idealSpringRate<_SpringData_L0!$D$4),"n",IF(AND(input_idealSpringRate<_SpringData_L0!E104,input_idealSpringRate>_SpringData_L0!D104*$B$12),"y","n")),"") ->  | K104: 19 | S104: 0
G105: =IF(P105<>"",IF(OR(input_idealSpringRate>_SpringData_L0!E105,input_idealSpringRate<_SpringData_L0!$D$4),"n",IF(AND(input_idealSpringRate<_SpringData_L0!E105,input_idealSpringRate>_SpringData_L0!D105*$B$12),"y","n")),"") ->  | K105: 19 | S105: 0
G106: =IF(P106<>"",IF(OR(input_idealSpringRate>_SpringData_L0!E106,input_idealSpringRate<_SpringData_L0!$D$4),"n",IF(AND(input_idealSpringRate<_SpringData_L0!E106,input_idealSpringRate>_SpringData_L0!D106*$B$12),"y","n")),"") ->  | K106: 19 | S106: 0
G107: =IF(P107<>"",IF(OR(input_idealSpringRate>_SpringData_L0!E107,input_idealSpringRate<_SpringData_L0!$D$4),"n",IF(AND(input_idealSpringRate<_SpringData_L0!E107,input_idealSpringRate>_SpringData_L0!D107*$B$12),"y","n")),"") ->  | K107: 19 | S107: 0
G108: =IF(P108<>"",IF(OR(input_idealSpringRate>_SpringData_L0!E108,input_idealSpringRate<_SpringData_L0!$D$4),"n",IF(AND(input_idealSpringRate<_SpringData_L0!E108,input_idealSpringRate>_SpringData_L0!D108*$B$12),"y","n")),"") ->  | K108: 19 | S108: 0
G109: =IF(P109<>"",IF(OR(input_idealSpringRate>_SpringData_L0!E109,input_idealSpringRate<_SpringData_L0!$D$4),"n",IF(AND(input_idealSpringRate<_SpringData_L0!E109,input_idealSpringRate>_SpringData_L0!D109*$B$12),"y","n")),"") ->  | K109: 19 | S109: 0
F110: =IF(G110<>"",IF(islandFilter_option="yes",IF(AND(MATCH(I110,list_boosterDescription,0)>=MATCH(islandfilter_colMax,list_boosterIndex,0),MATCH(I110,list_boosterDescription,0)>=MATCH(islandfilter_rowMax,list_boosterIndex,0)),"y",""),"y"),"") ->  | G110: =IF(P110<>"",IF(OR(input_idealSpringRate>_SpringData_L0!E110,input_idealSpringRate<_SpringData_L0!$D$4),"n",IF(AND(input_idealSpringRate<_SpringData_L0!E110,input_idealSpringRate>_SpringData_L0!D110*$B$12),"y","n")),"") ->  | K110: 19 | S110: 0

Sheet _SpringData_L1 (hidden)
D1: FIRST LEVEL FILTER
A3: LOGIC 1
A4: Fudged Turns | B4: 5 | D4: Logic 1: midBlindTorque (with Fudged Turns) | G4: ↓
A5: Selection | D5: Turns @ Mid Blind (With Fudged Turns) | E5: Max Turns Required (Logic 1) | F5: Pre-Turns Required (Logic 1) | G5: Turns check | H5: =locHeader_modSpringData_L0 -> LL Spring Rate | I5: UL Spring Rate | J5: Local Switch | K5: Booster Rate Check | L5: Options | M5: Booster | N5: Wire ø (mm) | O5: mean coil ID | P5: Position | Q5: Number of coils | R5: Max Turns | S5: T_Max | T5: Nom. Spring Rate | U5: Bending stress (Mpa) | V5: Min blind width w idler(TBC) mm | W5: Min. Width (m) | X5: 38.6 | Y5: Rate Var % | Z5: Spring Flag | AA5: mod of Elast | AB5: 207000 | AC5: 0 | AD5: internal coil ID
A6: Input Blind Width | B6: =input_BlindWidth -> 1 | D6: =IF(AND(OFFSET(H6,0,$B$27-1)>0,OFFSET(H6,0,$B$27-1)<>""),logic1_FudgedTurns+$B$60/OFFSET(H6,0,$B$27-1),"") ->  | E6: =IF(D6<>"",D6+0.5*$B$61,"") ->  | F6: =IF(D6<>"",D6-0.5*input_totalBlindTurns,"") ->  | G6: =IF(E6<>"",IF(AND(E6<OFFSET(H6,0,$B$28-1),F6>0),"y","n"),"") ->  | H6: =_xlfn._xlws.FILTER(locTable_modSpringData_L0,(INDEX(locTable_modSpringData_L0,,B25)<loc_BlindWidth)*(INDEX(locTable_modSpringData_L0,,B26)="y")*(INDEX(locTable_modSpringData_L0,,B29)="y")*(INDEX(locTable_modSpringData_L0,,B30)="y")*(INDEX(locTable_modSpringData_L0,,B31)<=B20),"") -> 
A7: Input Blind Drop | B7: =input_BlindDrop -> 2
A8: Blind Width (mm) | B8: =Design_Width -> 0
A9: Blind Drop (mm) | B9: =Design_Drop -> 0
A12: Calculator Use
A13: Tube Turns = | B13: =(-Tube_OD+SQRT(Tube_OD^2-4*Fabric_Thickness*-loc_BlindDrop*1000/PI()))/(2*Fabric_Thickness) -> 
A14: Mid Blind Torque (Nm) = | B14: =(((g*(wb_Ballast_UnitMass*loc_BlindWidth+Fabric_Density*loc_BlindWidth*(_SpringData_L1!$B16))*((((_SpringData_L1!$B15*0.5)-Fabric_Thickness*($B13/2)))/1000)/1))/(1+SF_Lifting)) -> 
A15: Max Fabric Diameter (mm) = | B15: =((-Tube_OD+SQRT(Tube_OD^2-4*Fabric_Thickness*-loc_BlindDrop*1000/PI()))/(2*Fabric_Thickness)+i_pwa)*Fabric_Thickness*2+Tube_OD -> 
A16: Drop (m) @ Half Turns = | B16: =loc_BlindDrop-((PI()/1000)*((_SpringData_L1!B13/2)*Tube_OD+Fabric_Thickness*(_SpringData_L1!B13/2)^2)) -> 
A17: Ideal Spring Rate | B17: =ESA_IdealSpringRate -> 
A19: Chart Use
A20: Acceptable Rate Variation % | B20: 1.7
A23: Filter Header Location | B23: Col
A24: LL Spring Rate | B24: =MATCH(A24,locHeader_modSpringData_L0,0) -> 1
A25: Min. Width (m) | B25: 16
A26: Booster Rate Check | B26: 4
A27: Nom. Spring Rate | B27: 13
A28: Max Turns | B28: =MATCH(A28,locHeader_modSpringData_L0,0) -> 11
A29: Local Switch | B29: 3
A30: Spring Flag | B30: =MATCH(A30,locHeader_modSpringData_L0,0) -> 19
A31: Rate Var % | B31: =MATCH(A31,locHeader_modSpringData_L0,0) -> 18
A34: LocTable1 Table Size
A35: Column Count | B35: =COUNTA(D5:AC5) -> 26
A36: Row Count | B36: 103
D38: =IF(AND(OFFSET(H38,0,$B$27-1)>0,OFFSET(H38,0,$B$27-1)<>""),logic1_FudgedTurns+$B$60/OFFSET(H38,0,$B$27-1),"") ->  | E38: =IF(D38<>"",D38+0.5*$B$61,"") ->  | F38: =IF(D38<>"",D38-0.5*input_totalBlindTurns,"") ->  | G38: =IF(E38<>"",IF(AND(E38<OFFSET(H38,0,$B$28-1),F38>0),"y","n"),"") -> 
A39: Analysis - Torque Difference
A40: Selected Spring Rate, k | B40: =_SpringData_L2!E3 -> 0
A41: Recommended Pre Turn, t | B41: =o_BoosterPreTurn -> 0
A43: Blind Torque Coefficients
A44: a | B44: =blindtorque_a -> 
A45: b | B45: =OFFSET(blindtorque_a,,1) -> 0
A46: c | B46: =OFFSET(blindtorque_a,,2) -> 0
A48: Find Max Torque difference, Dmax
A49: D, Turning Point | B49: =(B40-B45)/(2*B44) -> 
A50: x | B50: D
A51: 0 | B51: =B46-(B41*B40) -> 0
A52: =B49 ->  | B52: =$B$44*A52^2+($B$45-$B$40)*A52+($B$46-$B$41*B40) -> 
A53: =B61 ->  | B53: =$B$44*A53^2+($B$45-$B$40)*A53+($B$46-$B$41*B40) -> 
A54: Max Torque diff, Dmax | B54: =MAX(ABS(B51:B53)) -> 
A57: Booster Selection Criteria
A59: Current
A60: Mid Blind Torque | B60: =o_midBlindTorque -> 
A61: Total Blind Turns Required | B61: =o_tubeTurns -> 
A63: Dev Purpose
A64: Mid Blind Torque
A65: Total Blind Turns Required | B65: =Rotations_Top_Max -> 
D70: =IF(AND(OFFSET(H70,0,$B$27-1)>0,OFFSET(H70,0,$B$27-1)<>""),logic1_FudgedTurns+$B$60/OFFSET(H70,0,$B$27-1),"") ->  | E70: =IF(D70<>"",D70+0.5*$B$61,"") ->  | F70: =IF(D70<>"",D70-0.5*input_totalBlindTurns,"") ->  | G70: =IF(E70<>"",IF(AND(E70<OFFSET(H70,0,$B$28-1),F70>0),"y","n"),"") -> 
D102: =IF(AND(OFFSET(H102,0,$B$27-1)>0,OFFSET(H102,0,$B$27-1)<>""),logic1_FudgedTurns+$B$60/OFFSET(H102,0,$B$27-1),"") ->  | E102: =IF(D102<>"",D102+0.5*$B$61,"") ->  | F102: =IF(D102<>"",D102-0.5*input_totalBlindTurns,"") ->  | G102: =IF(E102<>"",IF(AND(E102<OFFSET(H102,0,$B$28-1),F102>0),"y","n"),"") -> 

Sheet _SpringData_L2 (hidden)
D1: SPRING SELECTION
A2: Current Mode | B2: Calculator | F2: Header | G2: Location
D3: Spring rate | E3: =INDEX(locTable_modSpringData_L2,,G3) -> 0 | F3: Nom. Spring Rate | G3: =MATCH(F3,locHeader_modSpringData_L1,0) -> 17
D4: Spring # | E4: =INDEX(locTable_modSpringData_L2,,G4) -> 0 | F4: Options | G4: =MATCH(F4,locHeader_modSpringData_L1,0) -> 9
D5: Booster Type | E5: =IF(INDEX(locTable_modSpringData_L2,,G5)=0,"No suitable options.",INDEX(locTable_modSpringData_L2,,G5)) -> No suitable options. | F5: Booster | G5: =MATCH(F5,locHeader_modSpringData_L1,0) -> 10
D6: Position | E6: =INDEX(locTable_modSpringData_L2,,G6) -> 0 | F6: Position | G6: =MATCH(F6,locHeader_modSpringData_L1,0) -> 13
D7: Preturn required | E7: =INDEX(locTable_modSpringData_L2,,G7) -> 0 | F7: Pre-Turns Required (Logic 1) | G7: =MATCH(F7,locHeader_modSpringData_L1,0) -> 3
A8: FOR LOGIC 2/3 (WIP)
A9: Populate Blind Torque Profile | B9: FALSE | D9: =locHeader_modSpringData_L1 -> Turns @ Mid Blind (With Fudged Turns) | E9: Max Turns Required (Logic 1) | F9: Pre-Turns Required (Logic 1) | G9: Turns check | H9: LL Spring Rate | I9: UL Spring Rate | J9: Local Switch | K9: Booster Rate Check | L9: Options | M9: Booster | N9: Wire ø (mm) | O9: mean coil ID | P9: Position | Q9: Number of coils | R9: Max Turns | S9: T_Max | T9: Nom. Spring Rate | U9: Bending stress (Mpa) | V9: Min blind width w idler(TBC) mm | W9: Min. Width (m) | X9: 38.6 | Y9: Rate Var % | Z9: Spring Flag | AA9: mod of Elast | AB9: 207000 | AC9: 0
D10: =IF(i_Units="Metric",IF(i_Drop>dropLimitmm,"",D15),IF(i_Drop>dropLimitin,"",D15)) ->  | E10: =E15 -> 0 | F10: 0 | G10: 0 | H10: 0 | I10: 0 | J10: 0 | K10: 0 | L10: 0 | M10: 0 | N10: 0 | O10: 0 | P10: 0 | Q10: 0 | R10: 0 | S10: 0 | T10: 0 | U10: 0 | V10: 0 | W10: 0 | X10: 0 | Y10: 0 | Z10: 0 | AA10: 0 | AB10: 0 | AC10: 0 | AD10: 0 | AE10: 0 | AF10: 0
A11: FOR ISLAND FILTER
A12: Island Filter | B12: No
B14: user input | D14: =locHeader_modSpringData_L1 -> Turns @ Mid Blind (With Fudged Turns) | E14: Max Turns Required (Logic 1) | F14: Pre-Turns Required (Logic 1) | G14: Turns check | H14: LL Spring Rate | I14: UL Spring Rate | J14: Local Switch | K14: Booster Rate Check | L14: Options | M14: Booster | N14: Wire ø (mm) | O14: mean coil ID | P14: Position | Q14: Number of coils | R14: Max Turns | S14: T_Max | T14: Nom. Spring Rate | U14: Bending stress (Mpa) | V14: Min blind width w idler(TBC) mm | W14: Min. Width (m) | X14: 38.6 | Y14: Rate Var % | Z14: Spring Flag | AA14: mod of Elast | AB14: 207000 | AC14: 0
B15: calculator use | D15: =IF(OR(AND(i_Drop>dropLimitin,i_Units="Imperial"),AND(i_Drop>dropLimitmm,i_Units="Metric")),"",_xlfn._xlws.FILTER(locTable_modSpringData_L1,INDEX(locTable_modSpringData_L1,,B39)="y","")) -> 
B16: development use
A18: CALCULATOR/FILTER INPUTS
A19: Ideal Spring Rate | B19: =ESA_IdealSpringRate -> 
A20: Blind Width (m) | B20: 1
A21: Blind Drop (m) | B21: 2
A23: Blind Width (m) | B23: =calc_inputWidth -> 1
A24: Blind Drop (m) | B24: =calc_inputDrop -> 2
A26: Dev Purpose
A27: Ideal Spring Rate | B27: =input_idealSpringRate -> 
A28: Blind Torque @ Max Turns(Nm) | B28: =blindTorque_maxTurns -> 0
A31: DASHBOARD ONLY (Not used as Input)
A32: Mid Blind Torque | B32: =o_midBlindTorque -> 
A33: Total Blind Turns Required | B33: =o_tubeTurns -> 
A34: Ideal Spring Rate | B34: =_SpringData_L2!B19 -> 
A38: Filter Header Location | B38: Col
A39: Turns check | B39: =MATCH(A39,locHeader_modSpringData_L1,0) -> 4
A42: a | B42: b | C42: c
A43: =OFFSET(blindtorque_a,0,0,1,3) ->  | B43: 0 | C43: 0
A45: Drop Limit (mm) | B45: 3000
A46: Drop Limit (in) | B46: =B45/25.4 -> 118.1102362
A48: Added 22-Mar-2024
A49: Compatible Booster List | B49: =COUNTIF(_xlfn.ANCHORARRAY(A50),"<>"&0) -> 0
A50: =_xlfn.UNIQUE(M15:M119) -> 0 | B50: =_xlfn.XLOOKUP(A50,$M$15:$M$119,$T$15:$T$119,"") -> 
B51: 0
B52: 0
B53: 0
B54: 0
B55: 0
B56: 0
B57: 0
A59: Selected Booster Type | B59: Spring Rate
A60: =i_ESA_Booster -> 0 | B60: =_xlfn.XLOOKUP(A60,A50:A57,B50:B57,"") -> 
B62: Location | C62: Value
A63: Position | B63: =MATCH(A63,locHeader_modSpringData_L1,0) -> 13 | C63: =_xlfn.XLOOKUP($B$60,OFFSET(locTable_modSpringData_L2_all,0,$B$65-1,,1),OFFSET(locTable_modSpringData_L2_all,0,B63-1,,1),"") ->  | D63: o_BoosterPosition2
A64: Pre-Turns Required (Logic 1) | B64: =MATCH(A64,locHeader_modSpringData_L1,0) -> 3 | C64: =_xlfn.XLOOKUP($B$60,OFFSET(locTable_modSpringData_L2_all,0,$B$65-1,,1),OFFSET(locTable_modSpringData_L2_all,0,B64-1,,1),"") ->  | D64: o_BoosterPreTurn2
A65: Nom. Spring Rate | B65: =MATCH(A65,locHeader_modSpringData_L1,0) -> 17 | C65: =_xlfn.XLOOKUP(B62,OFFSET(locTable_modSpringData_L2_all,0,B67-1,,1),OFFSET(locTable_modSpringData_L2_all,0,B65-1,,1),"") -> 
A66: =L_CompatibleESABooster -> 

Sheet _FabricList (hidden)
N1: HIDE
B2: Description | C2: Thickness (mm) | D2: Density (gsm) | E2: Thickness (in) | F2: Density (oz/yd²) | G2: Roll Width (in) | H2: Roll Width (mm) | J2: Railroad | K2: Region | N2: =COUNTA(_xlfn.ANCHORARRAY(P4)) -> 82
B3: Description | C3: Thickness_Metric | D3: Density_Metric | E3: Thickness_Imperial | F3: Density_Imperial | G3: RollWidth_Imperial | H3: RollWidth_Metric | I3: RRYesNo | J3: RR | K3: Region | L3: SearchReturn | M3: RegionReturn | P3: L_FabricSearchList
B4: =z_AvgFabric -> _Average Fabric | C4: 0.65 | D4: 400 | E4: =T_Fabric[[#This Row],[Thickness_Metric]]/25.4 -> 0.02559055118 | F4: =T_Fabric[[#This Row],[Density_Metric]]/33.90574744 -> 11.79740988 | G4: - | H4: - | I4: - | J4: - | K4: Global | L4: =IF(AND(i_Fabric<>"",i_Fabric=T_Fabric[[#This Row],[Description]]),1,0) -> 0 | M4: =IF(i_Region="Global",1,IF(OR(i_Region=T_Fabric[[#This Row],[Region]],T_Fabric[[#This Row],[Region]]="Global"),1,0)) -> 1 | O4: =_xlfn._xlws.SORT(_xlfn._xlws.FILTER(T_Fabric[Description],T_Fabric[RegionReturn],"Not Found")) ->  | P4: =IF(o_FabricMatch="Yes",_xlfn._xlws.SORT(_xlfn._xlws.FILTER($O$4:$O$100,LEN($O$4:$O$100)>1)),_xlfn._xlws.SORT(_xlfn._xlws.FILTER($O$4:$O$100,ISNUMBER(SEARCH(i_Fabric,$O$4:$O$100)),"Not Found"))) -> _Average Fabric
B5: =z_CustomFData -> _Custom Fabric Data | C5: =IF(i_Units="Imperial",i_FThickness_Custom*25.4,i_FThickness_Custom) -> 0 | D5: =IF(i_Units="imperial",i_Fdensity_Custom*33.90574744,i_Fdensity_Custom) -> 0 | E5: =IF(i_Units="Metric",i_FThickness_Custom/25.4,i_FThickness_Custom) -> 0 | F5: =IF(i_Units="Metric",T_Fabric[[#This Row],[Density_Metric]]/33.90574744,i_Fdensity_Custom) -> 0 | G5: - | H5: - | I5: - | J5: - | K5: Global | L5: =IF(AND(i_Fabric<>"",i_Fabric=T_Fabric[[#This Row],[Description]]),1,0) -> 0 | M5: =IF(i_Region="Global",1,IF(OR(i_Region=T_Fabric[[#This Row],[Region]],T_Fabric[[#This Row],[Region]]="Global"),1,0)) -> 1 | P5: _Custom Fabric Data
B6: Kleenscreen 1% | C6: 0.6 | D6: 483 | E6: =T_Fabric[[#This Row],[Thickness_Metric]]/25.4 -> 0.02362204724 | F6: =T_Fabric[[#This Row],[Density_Metric]]/33.90574744 -> 14.24537244 | G6: 118 | H6: =ROUND((T_Fabric[[#This Row],[RollWidth_Imperial]]*25.4)/1000,2)*1000 -> 3000 | I6: No | J6: =z_Fabric_RR_No -> Fabric cannot be railroaded. | K6: US | L6: =IF(AND(i_Fabric<>"",i_Fabric=T_Fabric[[#This Row],[Description]]),1,0) -> 0 | M6: =IF(i_Region="Global",1,IF(OR(i_Region=T_Fabric[[#This Row],[Region]],T_Fabric[[#This Row],[Region]]="Global"),1,0)) -> 1 | P6: 3000 HT 3%
B7: Kleenscreen 3% | C7: 0.56 | D7: 475 | E7: =T_Fabric[[#This Row],[Thickness_Metric]]/25.4 -> 0.02204724409 | F7: =T_Fabric[[#This Row],[Density_Metric]]/33.90574744 -> 14.00942424 | G7: 118 | H7: =ROUND((T_Fabric[[#This Row],[RollWidth_Imperial]]*25.4)/1000,2)*1000 -> 3000 | I7: No | J7: =z_Fabric_RR_No -> Fabric cannot be railroaded. | K7: US | L7: =IF(AND(i_Fabric<>"",i_Fabric=T_Fabric[[#This Row],[Description]]),1,0) -> 0 | M7: =IF(i_Region="Global",1,IF(OR(i_Region=T_Fabric[[#This Row],[Region]],T_Fabric[[#This Row],[Region]]="Global"),1,0)) -> 1 | P7: 3000 HT 5%
B8: Kleenscreen 5% | C8: 0.56 | D8: 445 | E8: =T_Fabric[[#This Row],[Thickness_Metric]]/25.4 -> 0.02204724409 | F8: =T_Fabric[[#This Row],[Density_Metric]]/33.90574744 -> 13.1246185 | G8: 118 | H8: =ROUND((T_Fabric[[#This Row],[RollWidth_Imperial]]*25.4)/1000,2)*1000 -> 3000 | I8: No | J8: =z_Fabric_RR_Yes -> Fabric can be railroaded. | K8: Global | L8: =IF(AND(i_Fabric<>"",i_Fabric=T_Fabric[[#This Row],[Description]]),1,0) -> 0 | M8: =IF(i_Region="Global",1,IF(OR(i_Region=T_Fabric[[#This Row],[Region]],T_Fabric[[#This Row],[Region]]="Global"),1,0)) -> 1 | P8: 3000 NET 1%
B9: 3000 NET Privacy | C9: 0.68 | D9: 518 | E9: =T_Fabric[[#This Row],[Thickness_Metric]]/25.4 -> 0.02677165354 | F9: =T_Fabric[[#This Row],[Density_Metric]]/33.90574744 -> 15.2776458 | G9: 118 | H9: =ROUND((T_Fabric[[#This Row],[RollWidth_Imperial]]*25.4)/1000,2)*1000 -> 3000 | I9: Yes | J9: =z_Fabric_RR_Yes -> Fabric can be railroaded. | K9: US | L9: =IF(AND(i_Fabric<>"",i_Fabric=T_Fabric[[#This Row],[Description]]),1,0) -> 0 | M9: =IF(i_Region="Global",1,IF(OR(i_Region=T_Fabric[[#This Row],[Region]],T_Fabric[[#This Row],[Region]]="Global"),1,0)) -> 1 | P9: 3000 NET 10%
B10: 3000 NET 1% | C10: 0.68 | D10: 518 | E10: =T_Fabric[[#This Row],[Thickness_Metric]]/25.4 -> 0.02677165354 | F10: =T_Fabric[[#This Row],[Density_Metric]]/33.90574744 -> 15.2776458 | G10: 118 | H10: =ROUND((T_Fabric[[#This Row],[RollWidth_Imperial]]*25.4)/1000,2)*1000 -> 3000 | I10: Yes | J10: =z_Fabric_RR_Yes -> Fabric can be railroaded. | K10: US | L10: =IF(AND(i_Fabric<>"",i_Fabric=T_Fabric[[#This Row],[Description]]),1,0) -> 0 | M10: =IF(i_Region="Global",1,IF(OR(i_Region=T_Fabric[[#This Row],[Region]],T_Fabric[[#This Row],[Region]]="Global"),1,0)) -> 1 | P10: 3000 NET 3%
B11: 3000 NET 3% | C11: 0.57 | D11: 445 | E11: =T_Fabric[[#This Row],[Thickness_Metric]]/25.4 -> 0.02244094488 | F11: =T_Fabric[[#This Row],[Density_Metric]]/33.90574744 -> 13.1246185 | G11: 118 | H11: =ROUND((T_Fabric[[#This Row],[RollWidth_Imperial]]*25.4)/1000,2)*1000 -> 3000 | I11: Yes | J11: =z_Fabric_RR_Yes -> Fabric can be railroaded. | K11: US | L11: =IF(AND(i_Fabric<>"",i_Fabric=T_Fabric[[#This Row],[Description]]),1,0) -> 0 | M11: =IF(i_Region="Global",1,IF(OR(i_Region=T_Fabric[[#This Row],[Region]],T_Fabric[[#This Row],[Region]]="Global"),1,0)) -> 1 | P11: 3000 NET 5%
B12: 3000 NET 5% | C12: 0.55 | D12: 420 | E12: =T_Fabric[[#This Row],[Thickness_Metric]]/25.4 -> 0.02165354331 | F12: =T_Fabric[[#This Row],[Density_Metric]]/33.90574744 -> 12.38728038 | G12: 118 | H12: =ROUND((T_Fabric[[#This Row],[RollWidth_Imperial]]*25.4)/1000,2)*1000 -> 3000 | I12: Yes | J12: =z_Fabric_RR_Yes -> Fabric can be railroaded. | K12: US | L12: =IF(AND(i_Fabric<>"",i_Fabric=T_Fabric[[#This Row],[Description]]),1,0) -> 0 | M12: =IF(i_Region="Global",1,IF(OR(i_Region=T_Fabric[[#This Row],[Region]],T_Fabric[[#This Row],[Region]]="Global"),1,0)) -> 1 | P12: 3000 NET Privacy
B13: 3000 NET 10% | C13: 0.52 | D13: 385 | E13: =T_Fabric[[#This Row],[Thickness_Metric]]/25.4 -> 0.02047244094 | F13: =T_Fabric[[#This Row],[Density_Metric]]/33.90574744 -> 11.35500701 | G13: 118 | H13: =ROUND((T_Fabric[[#This Row],[RollWidth_Imperial]]*25.4)/1000,2)*1000 -> 3000 | I13: Yes | J13: =z_Fabric_RR_No -> Fabric cannot be railroaded. | K13: US | L13: =IF(AND(i_Fabric<>"",i_Fabric=T_Fabric[[#This Row],[Description]]),1,0) -> 0 | M13: =IF(i_Region="Global",1,IF(OR(i_Region=T_Fabric[[#This Row],[Region]],T_Fabric[[#This Row],[Region]]="Global"),1,0)) -> 1 | P13: 3000 RR
B14: 4000 NET 3% | C14: 0.75 | D14: 545 | E14: =T_Fabric[[#This Row],[Thickness_Metric]]/25.4 -> 0.02952755906 | F14: =T_Fabric[[#This Row],[Density_Metric]]/33.90574744 -> 16.07397097 | G14: 118 | H14: =ROUND((T_Fabric[[#This Row],[RollWidth_Imperial]]*25.4)/1000,2)*1000 -> 3000 | I14: Yes | J14: =z_Fabric_RR_No -> Fabric cannot be railroaded. | K14: US | L14: =IF(AND(i_Fabric<>"",i_Fabric=T_Fabric[[#This Row],[Description]]),1,0) -> 0 | M14: =IF(i_Region="Global",1,IF(OR(i_Region=T_Fabric[[#This Row],[Region]],T_Fabric[[#This Row],[Region]]="Global"),1,0)) -> 1 | P14: 4000 L
B15: 4000 NET 5% | C15: 0.7 | D15: 520 | E15: =T_Fabric[[#This Row],[Thickness_Metric]]/25.4 -> 0.02755905512 | F15: =T_Fabric[[#This Row],[Density_Metric]]/33.90574744 -> 15.33663285 | G15: 118 | H15: =ROUND((T_Fabric[[#This Row],[RollWidth_Imperial]]*25.4)/1000,2)*1000 -> 3000 | I15: Yes | J15: =z_Fabric_RR_Yes -> Fabric can be railroaded. | K15: US | L15: =IF(AND(i_Fabric<>"",i_Fabric=T_Fabric[[#This Row],[Description]]),1,0) -> 0 | M15: =IF(i_Region="Global",1,IF(OR(i_Region=T_Fabric[[#This Row],[Region]],T_Fabric[[#This Row],[Region]]="Global"),1,0)) -> 1 | P15: 4000 NET 3%
B16: 3000 HT 3% | C16: 0.6 | D16: 415 | E16: =T_Fabric[[#This Row],[Thickness_Metric]]/25.4 -> 0.02362204724 | F16: =T_Fabric[[#This Row],[Density_Metric]]/33.90574744 -> 12.23981276 | G16: 98.4 | H16: =ROUND((T_Fabric[[#This Row],[RollWidth_Imperial]]*25.4)/1000,2)*1000 -> 2500 | I16: No | J16: =z_Fabric_RR_Yes -> Fabric can be railroaded. | K16: US | L16: =IF(AND(i_Fabric<>"",i_Fabric=T_Fabric[[#This Row],[Description]]),1,0) -> 0 | M16: =IF(i_Region="Global",1,IF(OR(i_Region=T_Fabric[[#This Row],[Region]],T_Fabric[[#This Row],[Region]]="Global"),1,0)) -> 1 | P16: 4000 NET 5%
B17: 3000 HT 5% | C17: 0.5 | D17: 395 | E17: =T_Fabric[[#This Row],[Thickness_Metric]]/25.4 -> 0.01968503937 | F17: =T_Fabric[[#This Row],[Density_Metric]]/33.90574744 -> 11.64994226 | G17: 98.4 | H17: =ROUND((T_Fabric[[#This Row],[RollWidth_Imperial]]*25.4)/1000,2)*1000 -> 2500 | I17: No | J17: =z_Fabric_RR_No -> Fabric cannot be railroaded. | K17: US | L17: =IF(AND(i_Fabric<>"",i_Fabric=T_Fabric[[#This Row],[Description]]),1,0) -> 0 | M17: =IF(i_Region="Global",1,IF(OR(i_Region=T_Fabric[[#This Row],[Region]],T_Fabric[[#This Row],[Region]]="Global"),1,0)) -> 1 | P17: 4700 P
B18: 3000 RR | C18: 0.57 | D18: 425 | E18: =T_Fabric[[#This Row],[Thickness_Metric]]/25.4 -> 0.02244094488 | F18: =T_Fabric[[#This Row],[Density_Metric]]/33.90574744 -> 12.534748 | G18: 98.4 | H18: =ROUND((T_Fabric[[#This Row],[RollWidth_Imperial]]*25.4)/1000,2)*1000 -> 2500 | I18: No | J18: =z_Fabric_RR_Yes -> Fabric can be railroaded. | K18: US | L18: =IF(AND(i_Fabric<>"",i_Fabric=T_Fabric[[#This Row],[Description]]),1,0) -> 0 | M18: =IF(i_Region="Global",1,IF(OR(i_Region=T_Fabric[[#This Row],[Region]],T_Fabric[[#This Row],[Region]]="Global"),1,0)) -> 1 | P18: Ambient
B19: 4700 P | C19: 0.9 | D19: 630 | E19: =T_Fabric[[#This Row],[Thickness_Metric]]/25.4 -> 0.03543307087 | F19: =T_Fabric[[#This Row],[Density_Metric]]/33.90574744 -> 18.58092057 | G19: 98.4 | H19: =ROUND((T_Fabric[[#This Row],[RollWidth_Imperial]]*25.4)/1000,2)*1000 -> 2500 | I19: No | J19: Fabric can be railroaded. | K19: US | L19: =IF(AND(i_Fabric<>"",i_Fabric=T_Fabric[[#This Row],[Description]]),1,0) -> 0 | M19: =IF(i_Region="Global",1,IF(OR(i_Region=T_Fabric[[#This Row],[Region]],T_Fabric[[#This Row],[Region]]="Global"),1,0)) -> 1 | O19: _Average Fabric | P19: Ambient Renew 1%
B20: View R | C20: 0.83 | D20: 455 | E20: =T_Fabric[[#This Row],[Thickness_Metric]]/25.4 -> 0.03267716535 | F20: =T_Fabric[[#This Row],[Density_Metric]]/33.90574744 -> 13.41955374 | G20: 98.4 | H20: =ROUND((T_Fabric[[#This Row],[RollWidth_Imperial]]*25.4)/1000,2)*1000 -> 2500 | I20: No | J20: Fabric can be railroaded. | K20: US | L20: =IF(AND(i_Fabric<>"",i_Fabric=T_Fabric[[#This Row],[Description]]),1,0) -> 0 | M20: =IF(i_Region="Global",1,IF(OR(i_Region=T_Fabric[[#This Row],[Region]],T_Fabric[[#This Row],[Region]]="Global"),1,0)) -> 1 | O20: _Custom Fabric Data | P20: Ambient Renew 5%
B21: 4000 L | C21: 0.65 | D21: 445 | E21: =T_Fabric[[#This Row],[Thickness_Metric]]/25.4 -> 0.02559055118 | F21: =T_Fabric[[#This Row],[Density_Metric]]/33.90574744 -> 13.1246185 | G21: 98.4 | H21: =ROUND((T_Fabric[[#This Row],[RollWidth_Imperial]]*25.4)/1000,2)*1000 -> 2500 | I21: No | J21: Fabric can be railroaded. | K21: US | L21: =IF(AND(i_Fabric<>"",i_Fabric=T_Fabric[[#This Row],[Description]]),1,0) -> 0 | M21: =IF(i_Region="Global",1,IF(OR(i_Region=T_Fabric[[#This Row],[Region]],T_Fabric[[#This Row],[Region]]="Global"),1,0)) -> 1 | O21: 3000 HT 3% | P21: Anzio
B22: SilverScreen 2% | C22: 0.5 | D22: 400 | E22: =T_Fabric[[#This Row],[Thickness_Metric]]/25.4 -> 0.01968503937 | F22: =T_Fabric[[#This Row],[Density_Metric]]/33.90574744 -> 11.79740988 | G22: 94 | H22: =ROUND((T_Fabric[[#This Row],[RollWidth_Imperial]]*25.4)/1000,2)*1000 -> 2390 | I22: No | J22: Fabric can be railroaded. | K22: US | L22: =IF(AND(i_Fabric<>"",i_Fabric=T_Fabric[[#This Row],[Description]]),1,0) -> 0 | M22: =IF(i_Region="Global",1,IF(OR(i_Region=T_Fabric[[#This Row],[Region]],T_Fabric[[#This Row],[Region]]="Global"),1,0)) -> 1 | O22: 3000 HT 5% | P22: Avesta
B23: SilverScreen 4% | C23: 0.5 | D23: 400 | E23: =T_Fabric[[#This Row],[Thickness_Metric]]/25.4 -> 0.01968503937 | F23: =T_Fabric[[#This Row],[Density_Metric]]/33.90574744 -> 11.79740988 | G23: 110 | H23: =ROUND((T_Fabric[[#This Row],[RollWidth_Imperial]]*25.4)/1000,2)*1000 -> 2790 | I23: No | J23: Fabric can be railroaded. | K23: US | L23: =IF(AND(i_Fabric<>"",i_Fabric=T_Fabric[[#This Row],[Description]]),1,0) -> 0 | M23: =IF(i_Region="Global",1,IF(OR(i_Region=T_Fabric[[#This Row],[Region]],T_Fabric[[#This Row],[Region]]="Global"),1,0)) -> 1 | O23: 3000 NET 1% | P23: Avesta Blackout
B24: OmniaScreen | C24: 0.55 | D24: 440 | E24: =T_Fabric[[#This Row],[Thickness_Metric]]/25.4 -> 0.02165354331 | F24: =T_Fabric[[#This Row],[Density_Metric]]/33.90574744 -> 12.97715087 | G24: 110 | H24: =ROUND((T_Fabric[[#This Row],[RollWidth_Imperial]]*25.4)/1000,2)*1000 -> 2790 | I24: Yes | J24: =z_Fabric_RR_No -> Fabric cannot be railroaded. | K24: US | L24: =IF(AND(i_Fabric<>"",i_Fabric=T_Fabric[[#This Row],[Description]]),1,0) -> 0 | M24: =IF(i_Region="Global",1,IF(OR(i_Region=T_Fabric[[#This Row],[Region]],T_Fabric[[#This Row],[Region]]="Global"),1,0)) -> 1 | O24: 3000 NET 10% | P24: Balmoral Blackout
B25: EnviroScreen | C25: 0.5 | D25: 250 | E25: =T_Fabric[[#This Row],[Thickness_Metric]]/25.4 -> 0.01968503937 | F25: =T_Fabric[[#This Row],[Density_Metric]]/33.90574744 -> 7.373381178 | G25: 94 | H25: =ROUND((T_Fabric[[#This Row],[RollWidth_Imperial]]*25.4)/1000,2)*1000 -> 2390 | I25: No | J25: =z_Fabric_RR_No -> Fabric cannot be railroaded. | K25: Global | L25: =IF(AND(i_Fabric<>"",i_Fabric=T_Fabric[[#This Row],[Description]]),1,0) -> 0 | M25: =IF(i_Region="Global",1,IF(OR(i_Region=T_Fabric[[#This Row],[Region]],T_Fabric[[#This Row],[Region]]="Global"),1,0)) -> 1 | O25: 3000 NET 3% | P25: Balmoral Light Filtering
B26: Ambient Renew 1% | C26: 0.54 | D26: 400 | E26: =T_Fabric[[#This Row],[Thickness_Metric]]/25.4 -> 0.02125984252 | F26: =T_Fabric[[#This Row],[Density_Metric]]/33.90574744 -> 11.79740988 | G26: 118 | H26: =ROUND((T_Fabric[[#This Row],[RollWidth_Imperial]]*25.4)/1000,2)*1000 -> 3000 | I26: Yes | J26: =z_Fabric_RR_Yes -> Fabric can be railroaded. | K26: US | L26: =IF(AND(i_Fabric<>"",i_Fabric=T_Fabric[[#This Row],[Description]]),1,0) -> 0 | M26: =IF(i_Region="Global",1,IF(OR(i_Region=T_Fabric[[#This Row],[Region]],T_Fabric[[#This Row],[Region]]="Global"),1,0)) -> 1 | O26: 3000 NET 5% | P26: Barbados
B27: Ambient Renew 5% | C27: 0.48 | D27: 305 | E27: =T_Fabric[[#This Row],[Thickness_Metric]]/25.4 -> 0.0188976378 | F27: =T_Fabric[[#This Row],[Density_Metric]]/33.90574744 -> 8.995525037 | G27: 118 | H27: =ROUND((T_Fabric[[#This Row],[RollWidth_Imperial]]*25.4)/1000,2)*1000 -> 3000 | I27: Yes | J27: =z_Fabric_RR_Yes -> Fabric can be railroaded. | K27: US | L27: =IF(AND(i_Fabric<>"",i_Fabric=T_Fabric[[#This Row],[Description]]),1,0) -> 0 | M27: =IF(i_Region="Global",1,IF(OR(i_Region=T_Fabric[[#This Row],[Region]],T_Fabric[[#This Row],[Region]]="Global"),1,0)) -> 1 | O27: 3000 NET Privacy | P27: Chambray
B28: Ambient | C28: 0.53 | D28: 318 | E28: =T_Fabric[[#This Row],[Thickness_Metric]]/25.4 -> 0.02086614173 | F28: =T_Fabric[[#This Row],[Density_Metric]]/33.90574744 -> 9.378940858 | G28: 118 | H28: =ROUND((T_Fabric[[#This Row],[RollWidth_Imperial]]*25.4)/1000,2)*1000 -> 3000 | I28: Yes | J28: =z_Fabric_RR_No -> Fabric cannot be railroaded. | K28: US | L28: =IF(AND(i_Fabric<>"",i_Fabric=T_Fabric[[#This Row],[Description]]),1,0) -> 0 | M28: =IF(i_Region="Global",1,IF(OR(i_Region=T_Fabric[[#This Row],[Region]],T_Fabric[[#This Row],[Region]]="Global"),1,0)) -> 1 | O28: 3000 RR | P28: Chenille
B29: Anzio | C29: 0.4 | D29: 220 | E29: =T_Fabric[[#This Row],[Thickness_Metric]]/25.4 -> 0.0157480315 | F29: =T_Fabric[[#This Row],[Density_Metric]]/33.90574744 -> 6.488575437 | G29: 92.5 | H29: =ROUND((T_Fabric[[#This Row],[RollWidth_Imperial]]*25.4)/1000,2)*1000 -> 2350 | I29: Yes | J29: =z_Fabric_RR_Yes -> Fabric can be railroaded. | K29: US | L29: =IF(AND(i_Fabric<>"",i_Fabric=T_Fabric[[#This Row],[Description]]),1,0) -> 0 | M29: =IF(i_Region="Global",1,IF(OR(i_Region=T_Fabric[[#This Row],[Region]],T_Fabric[[#This Row],[Region]]="Global"),1,0)) -> 1 | O29: 4000 L | P29: Dakota
B30: Mesa Light Filtering | C30: 0.48 | D30: 235 | E30: =T_Fabric[[#This Row],[Thickness_Metric]]/25.4 -> 0.0188976378 | F30: =T_Fabric[[#This Row],[Density_Metric]]/33.90574744 -> 6.930978307 | G30: 118 | H30: =ROUND((T_Fabric[[#This Row],[RollWidth_Imperial]]*25.4)/1000,2)*1000 -> 3000 | I30: No | J30: =z_Fabric_RR_No -> Fabric cannot be railroaded. | K30: US | L30: =IF(AND(i_Fabric<>"",i_Fabric=T_Fabric[[#This Row],[Description]]),1,0) -> 0 | M30: =IF(i_Region="Global",1,IF(OR(i_Region=T_Fabric[[#This Row],[Region]],T_Fabric[[#This Row],[Region]]="Global"),1,0)) -> 1 | O30: 4000 NET 3% | P30: EnviroScreen
B31: Mesa Blackout | C31: 0.47 | D31: 410 | E31: =T_Fabric[[#This Row],[Thickness_Metric]]/25.4 -> 0.01850393701 | F31: =T_Fabric[[#This Row],[Density_Metric]]/33.90574744 -> 12.09234513 | G31: 118 | H31: =ROUND((T_Fabric[[#This Row],[RollWidth_Imperial]]*25.4)/1000,2)*1000 -> 3000 | I31: No | J31: =z_Fabric_RR_No -> Fabric cannot be railroaded. | K31: US | L31: =IF(AND(i_Fabric<>"",i_Fabric=T_Fabric[[#This Row],[Description]]),1,0) -> 0 | M31: =IF(i_Region="Global",1,IF(OR(i_Region=T_Fabric[[#This Row],[Region]],T_Fabric[[#This Row],[Region]]="Global"),1,0)) -> 1 | O31: 4000 NET 5% | P31: Falun
B32: Mesa Façade Blackout | C32: 0.47 | D32: 410 | E32: =T_Fabric[[#This Row],[Thickness_Metric]]/25.4 -> 0.01850393701 | F32: =T_Fabric[[#This Row],[Density_Metric]]/33.90574744 -> 12.09234513 | G32: 118 | H32: =ROUND((T_Fabric[[#This Row],[RollWidth_Imperial]]*25.4)/1000,2)*1000 -> 3000 | I32: No | J32: =z_Fabric_RR_No -> Fabric cannot be railroaded. | K32: US | L32: =IF(AND(i_Fabric<>"",i_Fabric=T_Fabric[[#This Row],[Description]]),1,0) -> 0 | M32: =IF(i_Region="Global",1,IF(OR(i_Region=T_Fabric[[#This Row],[Region]],T_Fabric[[#This Row],[Region]]="Global"),1,0)) -> 1 | O32: 4700 P | P32: Focus
B33: Tempe | C33: 0.4 | D33: 400 | E33: =T_Fabric[[#This Row],[Thickness_Metric]]/25.4 -> 0.0157480315 | F33: =T_Fabric[[#This Row],[Density_Metric]]/33.90574744 -> 11.79740988 | G33: 118 | H33: =ROUND((T_Fabric[[#This Row],[RollWidth_Imperial]]*25.4)/1000,2)*1000 -> 3000 | I33: No | J33: =z_Fabric_RR_Yes -> Fabric can be railroaded. | K33: US | L33: =IF(AND(i_Fabric<>"",i_Fabric=T_Fabric[[#This Row],[Description]]),1,0) -> 0 | M33: =IF(i_Region="Global",1,IF(OR(i_Region=T_Fabric[[#This Row],[Region]],T_Fabric[[#This Row],[Region]]="Global"),1,0)) -> 1 | O33: Ambient | P33: Gala
B34: Verona | C34: 0.4 | D34: 180 | E34: =T_Fabric[[#This Row],[Thickness_Metric]]/25.4 -> 0.0157480315 | F34: =T_Fabric[[#This Row],[Density_Metric]]/33.90574744 -> 5.308834448 | G34: 92.5 | H34: =ROUND((T_Fabric[[#This Row],[RollWidth_Imperial]]*25.4)/1000,2)*1000 -> 2350 | I34: Yes | J34: =z_Fabric_RR_No -> Fabric cannot be railroaded. | K34: US | L34: =IF(AND(i_Fabric<>"",i_Fabric=T_Fabric[[#This Row],[Description]]),1,0) -> 0 | M34: =IF(i_Region="Global",1,IF(OR(i_Region=T_Fabric[[#This Row],[Region]],T_Fabric[[#This Row],[Region]]="Global"),1,0)) -> 1 | O34: Ambient Renew 1% | P34: Jersey Blackout
B35: Milano | C35: 0.4 | D35: 170 | E35: =T_Fabric[[#This Row],[Thickness_Metric]]/25.4 -> 0.0157480315 | F35: =T_Fabric[[#This Row],[Density_Metric]]/33.90574744 -> 5.013899201 | G35: 92.5 | H35: =ROUND((T_Fabric[[#This Row],[RollWidth_Imperial]]*25.4)/1000,2)*1000 -> 2350 | I35: Yes | J35: =z_Fabric_RR_No -> Fabric cannot be railroaded. | K35: US | L35: =IF(AND(i_Fabric<>"",i_Fabric=T_Fabric[[#This Row],[Description]]),1,0) -> 0 | M35: =IF(i_Region="Global",1,IF(OR(i_Region=T_Fabric[[#This Row],[Region]],T_Fabric[[#This Row],[Region]]="Global"),1,0)) -> 1 | O35: Ambient Renew 5% | P35: Jersey Light Filtering
B36: Torino | C36: 0.5 | D36: 350 | E36: =T_Fabric[[#This Row],[Thickness_Metric]]/25.4 -> 0.01968503937 | F36: =T_Fabric[[#This Row],[Density_Metric]]/33.90574744 -> 10.32273365 | G36: 92.5 | H36: =ROUND((T_Fabric[[#This Row],[RollWidth_Imperial]]*25.4)/1000,2)*1000 -> 2350 | I36: Yes | J36: =z_Fabric_RR_No -> Fabric cannot be railroaded. | K36: US | L36: =IF(AND(i_Fabric<>"",i_Fabric=T_Fabric[[#This Row],[Description]]),1,0) -> 0 | M36: =IF(i_Region="Global",1,IF(OR(i_Region=T_Fabric[[#This Row],[Region]],T_Fabric[[#This Row],[Region]]="Global"),1,0)) -> 1 | O36: Anzio | P36: Karuna
B37: Panama | C37: 0.4 | D37: 280 | E37: =T_Fabric[[#This Row],[Thickness_Metric]]/25.4 -> 0.0157480315 | F37: =T_Fabric[[#This Row],[Density_Metric]]/33.90574744 -> 8.258186919 | G37: 92.5 | H37: =ROUND((T_Fabric[[#This Row],[RollWidth_Imperial]]*25.4)/1000,2)*1000 -> 2350 | I37: Yes | J37: =z_Fabric_RR_Yes -> Fabric can be railroaded. | K37: US | L37: =IF(AND(i_Fabric<>"",i_Fabric=T_Fabric[[#This Row],[Description]]),1,0) -> 0 | M37: =IF(i_Region="Global",1,IF(OR(i_Region=T_Fabric[[#This Row],[Region]],T_Fabric[[#This Row],[Region]]="Global"),1,0)) -> 1 | O37: Avesta | P37: Kew
B38: Chambray | C38: 0.4 | D38: 180 | E38: =T_Fabric[[#This Row],[Thickness_Metric]]/25.4 -> 0.0157480315 | F38: =T_Fabric[[#This Row],[Density_Metric]]/33.90574744 -> 5.308834448 | G38: 78.7 | H38: =ROUND((T_Fabric[[#This Row],[RollWidth_Imperial]]*25.4)/1000,2)*1000 -> 2000 | I38: Yes | J38: =z_Fabric_RR_Yes -> Fabric can be railroaded. | K38: US | L38: =IF(AND(i_Fabric<>"",i_Fabric=T_Fabric[[#This Row],[Description]]),1,0) -> 0 | M38: =IF(i_Region="Global",1,IF(OR(i_Region=T_Fabric[[#This Row],[Region]],T_Fabric[[#This Row],[Region]]="Global"),1,0)) -> 1 | O38: Avesta Blackout | P38: Kleenscreen 1%
B39: Stickan | C39: 0.4 | D39: 180 | E39: =T_Fabric[[#This Row],[Thickness_Metric]]/25.4 -> 0.0157480315 | F39: =T_Fabric[[#This Row],[Density_Metric]]/33.90574744 -> 5.308834448 | G39: 78.7 | H39: =ROUND((T_Fabric[[#This Row],[RollWidth_Imperial]]*25.4)/1000,2)*1000 -> 2000 | I39: Yes | J39: =z_Fabric_RR_No -> Fabric cannot be railroaded. | K39: US | L39: =IF(AND(i_Fabric<>"",i_Fabric=T_Fabric[[#This Row],[Description]]),1,0) -> 0 | M39: =IF(i_Region="Global",1,IF(OR(i_Region=T_Fabric[[#This Row],[Region]],T_Fabric[[#This Row],[Region]]="Global"),1,0)) -> 1 | O39: Balmoral Blackout | P39: Kleenscreen 3%
B40: Chenille | C40: 0.65 | D40: 150 | E40: =T_Fabric[[#This Row],[Thickness_Metric]]/25.4 -> 0.02559055118 | F40: =T_Fabric[[#This Row],[Density_Metric]]/33.90574744 -> 4.424028707 | G40: 78.7 | H40: =ROUND((T_Fabric[[#This Row],[RollWidth_Imperial]]*25.4)/1000,2)*1000 -> 2000 | I40: Yes | J40: =z_Fabric_RR_No -> Fabric cannot be railroaded. | K40: US | L40: =IF(AND(i_Fabric<>"",i_Fabric=T_Fabric[[#This Row],[Description]]),1,0) -> 0 | M40: =IF(i_Region="Global",1,IF(OR(i_Region=T_Fabric[[#This Row],[Region]],T_Fabric[[#This Row],[Region]]="Global"),1,0)) -> 1 | O40: Balmoral Light Filtering | P40: Kleenscreen 5%
B41: Trento | C41: 0.6 | D41: 310 | E41: =T_Fabric[[#This Row],[Thickness_Metric]]/25.4 -> 0.02362204724 | F41: =T_Fabric[[#This Row],[Density_Metric]]/33.90574744 -> 9.142992661 | G41: 78.7 | H41: =ROUND((T_Fabric[[#This Row],[RollWidth_Imperial]]*25.4)/1000,2)*1000 -> 2000 | I41: Yes | J41: =z_Fabric_RR_Yes -> Fabric can be railroaded. | K41: US | L41: =IF(AND(i_Fabric<>"",i_Fabric=T_Fabric[[#This Row],[Description]]),1,0) -> 0 | M41: =IF(i_Region="Global",1,IF(OR(i_Region=T_Fabric[[#This Row],[Region]],T_Fabric[[#This Row],[Region]]="Global"),1,0)) -> 1 | O41: Barbados | P41: Kleenscreen Blackout
B42: Vigo | C42: 0.65 | D42: 430 | E42: =T_Fabric[[#This Row],[Thickness_Metric]]/25.4 -> 0.02559055118 | F42: =T_Fabric[[#This Row],[Density_Metric]]/33.90574744 -> 12.68221563 | G42: 78.7 | H42: =ROUND((T_Fabric[[#This Row],[RollWidth_Imperial]]*25.4)/1000,2)*1000 -> 2000 | I42: Yes | J42: =z_Fabric_RR_No -> Fabric cannot be railroaded. | K42: US | L42: =IF(AND(i_Fabric<>"",i_Fabric=T_Fabric[[#This Row],[Description]]),1,0) -> 0 | M42: =IF(i_Region="Global",1,IF(OR(i_Region=T_Fabric[[#This Row],[Region]],T_Fabric[[#This Row],[Region]]="Global"),1,0)) -> 1 | O42: Chambray | P42: Largo Blackout
B43: Romana | C43: 0.5 | D43: 270 | E43: =T_Fabric[[#This Row],[Thickness_Metric]]/25.4 -> 0.01968503937 | F43: =T_Fabric[[#This Row],[Density_Metric]]/33.90574744 -> 7.963251672 | G43: 78.7 | H43: =ROUND((T_Fabric[[#This Row],[RollWidth_Imperial]]*25.4)/1000,2)*1000 -> 2000 | I43: Yes | J43: =z_Fabric_RR_Yes -> Fabric can be railroaded. | K43: US | L43: =IF(AND(i_Fabric<>"",i_Fabric=T_Fabric[[#This Row],[Description]]),1,0) -> 0 | M43: =IF(i_Region="Global",1,IF(OR(i_Region=T_Fabric[[#This Row],[Region]],T_Fabric[[#This Row],[Region]]="Global"),1,0)) -> 1 | O43: Chenille | P43: Largo Translucent
B44: Tarifa | C44: 0.5 | D44: 270 | E44: =T_Fabric[[#This Row],[Thickness_Metric]]/25.4 -> 0.01968503937 | F44: =T_Fabric[[#This Row],[Density_Metric]]/33.90574744 -> 7.963251672 | G44: 78.7 | H44: =ROUND((T_Fabric[[#This Row],[RollWidth_Imperial]]*25.4)/1000,2)*1000 -> 2000 | I44: Yes | J44: =z_Fabric_RR_Yes -> Fabric can be railroaded. | K44: US | L44: =IF(AND(i_Fabric<>"",i_Fabric=T_Fabric[[#This Row],[Description]]),1,0) -> 0 | M44: =IF(i_Region="Global",1,IF(OR(i_Region=T_Fabric[[#This Row],[Region]],T_Fabric[[#This Row],[Region]]="Global"),1,0)) -> 1 | O44: Dakota | P44: Largo Transparent
B45: Villach | C45: 0.45 | D45: 225 | E45: =T_Fabric[[#This Row],[Thickness_Metric]]/25.4 -> 0.01771653543 | F45: =T_Fabric[[#This Row],[Density_Metric]]/33.90574744 -> 6.63604306 | G45: 78.7 | H45: =ROUND((T_Fabric[[#This Row],[RollWidth_Imperial]]*25.4)/1000,2)*1000 -> 2000 | I45: Yes | J45: =z_Fabric_RR_No -> Fabric cannot be railroaded. | K45: US | L45: =IF(AND(i_Fabric<>"",i_Fabric=T_Fabric[[#This Row],[Description]]),1,0) -> 0 | M45: =IF(i_Region="Global",1,IF(OR(i_Region=T_Fabric[[#This Row],[Region]],T_Fabric[[#This Row],[Region]]="Global"),1,0)) -> 1 | O45: EnviroScreen | P45: Lugo
B46: Soria Blackout | C46: 0.6 | D46: 400 | E46: =T_Fabric[[#This Row],[Thickness_Metric]]/25.4 -> 0.02362204724 | F46: =T_Fabric[[#This Row],[Density_Metric]]/33.90574744 -> 11.79740988 | G46: 78.7 | H46: =ROUND((T_Fabric[[#This Row],[RollWidth_Imperial]]*25.4)/1000,2)*1000 -> 2000 | I46: Yes | J46: =z_Fabric_RR_Yes -> Fabric can be railroaded. | K46: US | L46: =IF(AND(i_Fabric<>"",i_Fabric=T_Fabric[[#This Row],[Description]]),1,0) -> 0 | M46: =IF(i_Region="Global",1,IF(OR(i_Region=T_Fabric[[#This Row],[Region]],T_Fabric[[#This Row],[Region]]="Global"),1,0)) -> 1 | O46: Falun | P46: Mandal
B47: Santiago | C47: 0.45 | D47: 210 | E47: =T_Fabric[[#This Row],[Thickness_Metric]]/25.4 -> 0.01771653543 | F47: =T_Fabric[[#This Row],[Density_Metric]]/33.90574744 -> 6.19364019 | G47: 78.7 | H47: =ROUND((T_Fabric[[#This Row],[RollWidth_Imperial]]*25.4)/1000,2)*1000 -> 2000 | I47: Yes | J47: =z_Fabric_RR_No -> Fabric cannot be railroaded. | K47: US | L47: =IF(AND(i_Fabric<>"",i_Fabric=T_Fabric[[#This Row],[Description]]),1,0) -> 0 | M47: =IF(i_Region="Global",1,IF(OR(i_Region=T_Fabric[[#This Row],[Region]],T_Fabric[[#This Row],[Region]]="Global"),1,0)) -> 1 | O47: Focus | P47: Mesa Blackout
B48: Avesta | C48: 0.75 | D48: 370 | E48: =T_Fabric[[#This Row],[Thickness_Metric]]/25.4 -> 0.02952755906 | F48: =T_Fabric[[#This Row],[Density_Metric]]/33.90574744 -> 10.91260414 | G48: 80.7 | H48: =ROUND((T_Fabric[[#This Row],[RollWidth_Imperial]]*25.4)/1000,2)*1000 -> 2050 | I48: Yes | J48: =z_Fabric_RR_Yes -> Fabric can be railroaded. | K48: US | L48: =IF(AND(i_Fabric<>"",i_Fabric=T_Fabric[[#This Row],[Description]]),1,0) -> 0 | M48: =IF(i_Region="Global",1,IF(OR(i_Region=T_Fabric[[#This Row],[Region]],T_Fabric[[#This Row],[Region]]="Global"),1,0)) -> 1 | O48: Gala | P48: Mesa Façade Blackout
B49: Avesta Blackout | C49: 0.9 | D49: 500 | E49: =T_Fabric[[#This Row],[Thickness_Metric]]/25.4 -> 0.03543307087 | F49: =T_Fabric[[#This Row],[Density_Metric]]/33.90574744 -> 14.74676236 | G49: 80.7 | H49: =ROUND((T_Fabric[[#This Row],[RollWidth_Imperial]]*25.4)/1000,2)*1000 -> 2050 | I49: Yes | J49: =z_Fabric_RR_Yes -> Fabric can be railroaded. | K49: US | L49: =IF(AND(i_Fabric<>"",i_Fabric=T_Fabric[[#This Row],[Description]]),1,0) -> 0 | M49: =IF(i_Region="Global",1,IF(OR(i_Region=T_Fabric[[#This Row],[Region]],T_Fabric[[#This Row],[Region]]="Global"),1,0)) -> 1 | O49: Jersey Blackout | P49: Mesa Light Filtering
B50: Vista Blackout | C50: 0.53 | D50: 378 | E50: =T_Fabric[[#This Row],[Thickness_Metric]]/25.4 -> 0.02086614173 | F50: =T_Fabric[[#This Row],[Density_Metric]]/33.90574744 -> 11.14855234 | G50: 110 | H50: =ROUND((T_Fabric[[#This Row],[RollWidth_Imperial]]*25.4)/1000,2)*1000 -> 2790 | I50: No | J50: =z_Fabric_RR_Yes -> Fabric can be railroaded. | K50: US | L50: =IF(AND(i_Fabric<>"",i_Fabric=T_Fabric[[#This Row],[Description]]),1,0) -> 0 | M50: =IF(i_Region="Global",1,IF(OR(i_Region=T_Fabric[[#This Row],[Region]],T_Fabric[[#This Row],[Region]]="Global"),1,0)) -> 1 | O50: Jersey Light Filtering | P50: Metroshade Blackout
B51: Mandal | C51: 0.3 | D51: 130 | E51: =T_Fabric[[#This Row],[Thickness_Metric]]/25.4 -> 0.01181102362 | F51: =T_Fabric[[#This Row],[Density_Metric]]/33.90574744 -> 3.834158213 | G51: 78.7 | H51: =ROUND((T_Fabric[[#This Row],[RollWidth_Imperial]]*25.4)/1000,2)*1000 -> 2000 | I51: Yes | J51: =z_Fabric_RR_Yes -> Fabric can be railroaded. | K51: US | L51: =IF(AND(i_Fabric<>"",i_Fabric=T_Fabric[[#This Row],[Description]]),1,0) -> 0 | M51: =IF(i_Region="Global",1,IF(OR(i_Region=T_Fabric[[#This Row],[Region]],T_Fabric[[#This Row],[Region]]="Global"),1,0)) -> 1 | O51: Karuna | P51: Metroshade Light Filtering
B52: Karuna | C52: 0.55 | D52: 190 | E52: =T_Fabric[[#This Row],[Thickness_Metric]]/25.4 -> 0.02165354331 | F52: =T_Fabric[[#This Row],[Density_Metric]]/33.90574744 -> 5.603769695 | G52: 78.7 | H52: =ROUND((T_Fabric[[#This Row],[RollWidth_Imperial]]*25.4)/1000,2)*1000 -> 2000 | I52: Yes | J52: =z_Fabric_RR_No -> Fabric cannot be railroaded. | K52: US | L52: =IF(AND(i_Fabric<>"",i_Fabric=T_Fabric[[#This Row],[Description]]),1,0) -> 0 | M52: =IF(i_Region="Global",1,IF(OR(i_Region=T_Fabric[[#This Row],[Region]],T_Fabric[[#This Row],[Region]]="Global"),1,0)) -> 1 | O52: Kew | P52: Milano
B53: Lugo | C53: 0.3 | D53: 140 | E53: =T_Fabric[[#This Row],[Thickness_Metric]]/25.4 -> 0.01181102362 | F53: =T_Fabric[[#This Row],[Density_Metric]]/33.90574744 -> 4.12909346 | G53: 78.7 | H53: =ROUND((T_Fabric[[#This Row],[RollWidth_Imperial]]*25.4)/1000,2)*1000 -> 2000 | I53: Yes | J53: =z_Fabric_RR_Yes -> Fabric can be railroaded. | K53: US | L53: =IF(AND(i_Fabric<>"",i_Fabric=T_Fabric[[#This Row],[Description]]),1,0) -> 0 | M53: =IF(i_Region="Global",1,IF(OR(i_Region=T_Fabric[[#This Row],[Region]],T_Fabric[[#This Row],[Region]]="Global"),1,0)) -> 1 | O53: Kleenscreen 1% | P53: OmniaScreen
B54: Falun | C54: 0.3 | D54: 160 | E54: =T_Fabric[[#This Row],[Thickness_Metric]]/25.4 -> 0.01181102362 | F54: =T_Fabric[[#This Row],[Density_Metric]]/33.90574744 -> 4.718963954 | G54: 78.7 | H54: =ROUND((T_Fabric[[#This Row],[RollWidth_Imperial]]*25.4)/1000,2)*1000 -> 2000 | I54: Yes | J54: =z_Fabric_RR_Yes -> Fabric can be railroaded. | K54: US | L54: =IF(AND(i_Fabric<>"",i_Fabric=T_Fabric[[#This Row],[Description]]),1,0) -> 0 | M54: =IF(i_Region="Global",1,IF(OR(i_Region=T_Fabric[[#This Row],[Region]],T_Fabric[[#This Row],[Region]]="Global"),1,0)) -> 1 | O54: Kleenscreen 3% | P54: One Block
B55: Largo Transparent | C55: 0.35 | D55: 125 | E55: =T_Fabric[[#This Row],[Thickness_Metric]]/25.4 -> 0.01377952756 | F55: =T_Fabric[[#This Row],[Density_Metric]]/33.90574744 -> 3.686690589 | G55: 114 | H55: =ROUND((T_Fabric[[#This Row],[RollWidth_Imperial]]*25.4)/1000,2)*1000 -> 2900 | I55: No | J55: =z_Fabric_RR_Yes -> Fabric can be railroaded. | K55: US | L55: =IF(AND(i_Fabric<>"",i_Fabric=T_Fabric[[#This Row],[Description]]),1,0) -> 0 | M55: =IF(i_Region="Global",1,IF(OR(i_Region=T_Fabric[[#This Row],[Region]],T_Fabric[[#This Row],[Region]]="Global"),1,0)) -> 1 | O55: Kleenscreen 5% | P55: One Screen
B56: Largo Translucent | C56: 0.4 | D56: 191 | E56: =T_Fabric[[#This Row],[Thickness_Metric]]/25.4 -> 0.0157480315 | F56: =T_Fabric[[#This Row],[Density_Metric]]/33.90574744 -> 5.63326322 | G56: 114 | H56: =ROUND((T_Fabric[[#This Row],[RollWidth_Imperial]]*25.4)/1000,2)*1000 -> 2900 | I56: No | J56: =z_Fabric_RR_No -> Fabric cannot be railroaded. | K56: US | L56: =IF(AND(i_Fabric<>"",i_Fabric=T_Fabric[[#This Row],[Description]]),1,0) -> 0 | M56: =IF(i_Region="Global",1,IF(OR(i_Region=T_Fabric[[#This Row],[Region]],T_Fabric[[#This Row],[Region]]="Global"),1,0)) -> 1 | O56: Kleenscreen Blackout | P56: Panama
B57: Largo Blackout | C57: 0.6 | D57: 395 | E57: =T_Fabric[[#This Row],[Thickness_Metric]]/25.4 -> 0.02362204724 | F57: =T_Fabric[[#This Row],[Density_Metric]]/33.90574744 -> 11.64994226 | G57: 114 | H57: =ROUND((T_Fabric[[#This Row],[RollWidth_Imperial]]*25.4)/1000,2)*1000 -> 2900 | I57: No | J57: =z_Fabric_RR_Yes -> Fabric can be railroaded. | K57: US | L57: =IF(AND(i_Fabric<>"",i_Fabric=T_Fabric[[#This Row],[Description]]),1,0) -> 0 | M57: =IF(i_Region="Global",1,IF(OR(i_Region=T_Fabric[[#This Row],[Region]],T_Fabric[[#This Row],[Region]]="Global"),1,0)) -> 1 | O57: Largo Blackout | P57: Positano
B58: Balmoral Light Filtering | C58: 0.55 | D58: 220 | E58: =T_Fabric[[#This Row],[Thickness_Metric]]/25.4 -> 0.02165354331 | F58: =T_Fabric[[#This Row],[Density_Metric]]/33.90574744 -> 6.488575437 | G58: 118 | H58: =ROUND((T_Fabric[[#This Row],[RollWidth_Imperial]]*25.4)/1000,2)*1000 -> 3000 | I58: No | J58: =z_Fabric_RR_Yes -> Fabric can be railroaded. | K58: Global | L58: =IF(AND(i_Fabric<>"",i_Fabric=T_Fabric[[#This Row],[Description]]),1,0) -> 0 | M58: =IF(i_Region="Global",1,IF(OR(i_Region=T_Fabric[[#This Row],[Region]],T_Fabric[[#This Row],[Region]]="Global"),1,0)) -> 1 | O58: Largo Translucent | P58: Riviera Blockout
B59: Balmoral Blackout | C59: 0.6 | D59: 390 | E59: =T_Fabric[[#This Row],[Thickness_Metric]]/25.4 -> 0.02362204724 | F59: =T_Fabric[[#This Row],[Density_Metric]]/33.90574744 -> 11.50247464 | G59: 118 | H59: =ROUND((T_Fabric[[#This Row],[RollWidth_Imperial]]*25.4)/1000,2)*1000 -> 3000 | I59: No | J59: =z_Fabric_RR_No -> Fabric cannot be railroaded. | K59: Global | L59: =IF(AND(i_Fabric<>"",i_Fabric=T_Fabric[[#This Row],[Description]]),1,0) -> 0 | M59: =IF(i_Region="Global",1,IF(OR(i_Region=T_Fabric[[#This Row],[Region]],T_Fabric[[#This Row],[Region]]="Global"),1,0)) -> 1 | O59: Largo Transparent | P59: Riviera Light Filtering
B60: Jersey Light Filtering | C60: 0.63 | D60: 260 | E60: =T_Fabric[[#This Row],[Thickness_Metric]]/25.4 -> 0.02480314961 | F60: =T_Fabric[[#This Row],[Density_Metric]]/33.90574744 -> 7.668316425 | G60: 118 | H60: =ROUND((T_Fabric[[#This Row],[RollWidth_Imperial]]*25.4)/1000,2)*1000 -> 3000 | I60: No | J60: =z_Fabric_RR_No -> Fabric cannot be railroaded. | K60: Global | L60: =IF(AND(i_Fabric<>"",i_Fabric=T_Fabric[[#This Row],[Description]]),1,0) -> 0 | M60: =IF(i_Region="Global",1,IF(OR(i_Region=T_Fabric[[#This Row],[Region]],T_Fabric[[#This Row],[Region]]="Global"),1,0)) -> 1 | O60: Lugo | P60: Romana
B61: Jersey Blackout | C61: 0.72 | D61: 450 | E61: =T_Fabric[[#This Row],[Thickness_Metric]]/25.4 -> 0.02834645669 | F61: =T_Fabric[[#This Row],[Density_Metric]]/33.90574744 -> 13.27208612 | G61: 118 | H61: =ROUND((T_Fabric[[#This Row],[RollWidth_Imperial]]*25.4)/1000,2)*1000 -> 3000 | I61: No | J61: =z_Fabric_RR_No -> Fabric cannot be railroaded. | K61: Global | L61: =IF(AND(i_Fabric<>"",i_Fabric=T_Fabric[[#This Row],[Description]]),1,0) -> 0 | M61: =IF(i_Region="Global",1,IF(OR(i_Region=T_Fabric[[#This Row],[Region]],T_Fabric[[#This Row],[Region]]="Global"),1,0)) -> 1 | O61: Mandal | P61: Sanctuary
B62: Sanctuary | C62: 0.6 | D62: 430 | E62: =T_Fabric[[#This Row],[Thickness_Metric]]/25.4 -> 0.02362204724 | F62: =T_Fabric[[#This Row],[Density_Metric]]/33.90574744 -> 12.68221563 | G62: 118 | H62: =ROUND((T_Fabric[[#This Row],[RollWidth_Imperial]]*25.4)/1000,2)*1000 -> 3000 | I62: No | J62: =z_Fabric_RR_No -> Fabric cannot be railroaded. | K62: Global | L62: =IF(AND(i_Fabric<>"",i_Fabric=T_Fabric[[#This Row],[Description]]),1,0) -> 0 | M62: =IF(i_Region="Global",1,IF(OR(i_Region=T_Fabric[[#This Row],[Region]],T_Fabric[[#This Row],[Region]]="Global"),1,0)) -> 1 | O62: Mesa Blackout | P62: Santiago
B63: X-Weave 5% | C63: 0.82 | D63: 530 | E63: =T_Fabric[[#This Row],[Thickness_Metric]]/25.4 -> 0.03228346457 | F63: =T_Fabric[[#This Row],[Density_Metric]]/33.90574744 -> 15.6315681 | G63: 126 | H63: =ROUND((T_Fabric[[#This Row],[RollWidth_Imperial]]*25.4)/1000,2)*1000 -> 3200 | I63: Yes | J63: =z_Fabric_RR_Yes -> Fabric can be railroaded. | K63: US | L63: =IF(AND(i_Fabric<>"",i_Fabric=T_Fabric[[#This Row],[Description]]),1,0) -> 0 | M63: =IF(i_Region="Global",1,IF(OR(i_Region=T_Fabric[[#This Row],[Region]],T_Fabric[[#This Row],[Region]]="Global"),1,0)) -> 1 | O63: Mesa Façade Blackout | P63: Serengetti Blackout
B64: X-Weave 10% | C64: 0.68 | D64: 470 | E64: =T_Fabric[[#This Row],[Thickness_Metric]]/25.4 -> 0.02677165354 | F64: =T_Fabric[[#This Row],[Density_Metric]]/33.90574744 -> 13.86195661 | G64: 126 | H64: =ROUND((T_Fabric[[#This Row],[RollWidth_Imperial]]*25.4)/1000,2)*1000 -> 3200 | I64: Yes | J64: =z_Fabric_RR_Yes -> Fabric can be railroaded. | K64: US | L64: =IF(AND(i_Fabric<>"",i_Fabric=T_Fabric[[#This Row],[Description]]),1,0) -> 0 | M64: =IF(i_Region="Global",1,IF(OR(i_Region=T_Fabric[[#This Row],[Region]],T_Fabric[[#This Row],[Region]]="Global"),1,0)) -> 1 | O64: Mesa Light Filtering | P64: Serengetti Light Filtering
B65: Dakota | C65: 0.72 | D65: 413 | E65: =T_Fabric[[#This Row],[Thickness_Metric]]/25.4 -> 0.02834645669 | F65: =T_Fabric[[#This Row],[Density_Metric]]/33.90574744 -> 12.18082571 | G65: 118 | H65: =ROUND((T_Fabric[[#This Row],[RollWidth_Imperial]]*25.4)/1000,2)*1000 -> 3000 | I65: No | J65: =z_Fabric_RR_No -> Fabric cannot be railroaded. | K65: AU | L65: =IF(AND(i_Fabric<>"",i_Fabric=T_Fabric[[#This Row],[Description]]),1,0) -> 0 | M65: =IF(i_Region="Global",1,IF(OR(i_Region=T_Fabric[[#This Row],[Region]],T_Fabric[[#This Row],[Region]]="Global"),1,0)) -> 1 | O65: Metroshade Blackout | P65: SilverScreen 2%
B66: Focus | C66: 0.4 | D66: 400 | E66: =T_Fabric[[#This Row],[Thickness_Metric]]/25.4 -> 0.0157480315 | F66: =T_Fabric[[#This Row],[Density_Metric]]/33.90574744 -> 11.79740988 | G66: 118 | H66: =ROUND((T_Fabric[[#This Row],[RollWidth_Imperial]]*25.4)/1000,2)*1000 -> 3000 | I66: No | J66: Fabric cannot be railroaded. | K66: AU | L66: =IF(AND(i_Fabric<>"",i_Fabric=T_Fabric[[#This Row],[Description]]),1,0) -> 0 | M66: =IF(i_Region="Global",1,IF(OR(i_Region=T_Fabric[[#This Row],[Region]],T_Fabric[[#This Row],[Region]]="Global"),1,0)) -> 1 | O66: Metroshade Light Filtering | P66: SilverScreen 4%
B67: Gala | C67: 0.69 | D67: 460 | E67: =T_Fabric[[#This Row],[Thickness_Metric]]/25.4 -> 0.02716535433 | F67: =T_Fabric[[#This Row],[Density_Metric]]/33.90574744 -> 13.56702137 | G67: 118 | H67: =ROUND((T_Fabric[[#This Row],[RollWidth_Imperial]]*25.4)/1000,2)*1000 -> 3000 | I67: No | J67: Fabric cannot be railroaded. | K67: AU | L67: =IF(AND(i_Fabric<>"",i_Fabric=T_Fabric[[#This Row],[Description]]),1,0) -> 0 | M67: =IF(i_Region="Global",1,IF(OR(i_Region=T_Fabric[[#This Row],[Region]],T_Fabric[[#This Row],[Region]]="Global"),1,0)) -> 1 | O67: Milano | P67: Solar View
B68: Barbados | C68: 0.53 | D68: 378 | E68: =T_Fabric[[#This Row],[Thickness_Metric]]/25.4 -> 0.02086614173 | F68: =T_Fabric[[#This Row],[Density_Metric]]/33.90574744 -> 11.14855234 | G68: 110 | H68: =ROUND((T_Fabric[[#This Row],[RollWidth_Imperial]]*25.4)/1000,2)*1000 -> 2790 | I68: No | J68: Fabric cannot be railroaded. | K68: AU | L68: =IF(AND(i_Fabric<>"",i_Fabric=T_Fabric[[#This Row],[Description]]),1,0) -> 0 | M68: =IF(i_Region="Global",1,IF(OR(i_Region=T_Fabric[[#This Row],[Region]],T_Fabric[[#This Row],[Region]]="Global"),1,0)) -> 1 | O68: OmniaScreen | P68: Solitaire
B69: Kew | C69: 0.47 | D69: 433 | E69: =T_Fabric[[#This Row],[Thickness_Metric]]/25.4 -> 0.01850393701 | F69: =T_Fabric[[#This Row],[Density_Metric]]/33.90574744 -> 12.7706962 | G69: 118 | H69: =ROUND((T_Fabric[[#This Row],[RollWidth_Imperial]]*25.4)/1000,2)*1000 -> 3000 | I69: No | J69: Fabric cannot be railroaded. | K69: AU | L69: =IF(AND(i_Fabric<>"",i_Fabric=T_Fabric[[#This Row],[Description]]),1,0) -> 0 | M69: =IF(i_Region="Global",1,IF(OR(i_Region=T_Fabric[[#This Row],[Region]],T_Fabric[[#This Row],[Region]]="Global"),1,0)) -> 1 | O69: One Block | P69: Soria Blackout
B70: Metroshade Blackout | C70: 0.55 | D70: 400 | E70: =T_Fabric[[#This Row],[Thickness_Metric]]/25.4 -> 0.02165354331 | F70: =T_Fabric[[#This Row],[Density_Metric]]/33.90574744 -> 11.79740988 | G70: 118 | H70: =ROUND((T_Fabric[[#This Row],[RollWidth_Imperial]]*25.4)/1000,2)*1000 -> 3000 | I70: No | J70: Fabric cannot be railroaded. | K70: AU | L70: =IF(AND(i_Fabric<>"",i_Fabric=T_Fabric[[#This Row],[Description]]),1,0) -> 0 | M70: =IF(i_Region="Global",1,IF(OR(i_Region=T_Fabric[[#This Row],[Region]],T_Fabric[[#This Row],[Region]]="Global"),1,0)) -> 1 | O70: One Screen | P70: Stickan
B71: Metroshade Light Filtering | C71: 0.5 | D71: 260 | E71: =T_Fabric[[#This Row],[Thickness_Metric]]/25.4 -> 0.01968503937 | F71: =T_Fabric[[#This Row],[Density_Metric]]/33.90574744 -> 7.668316425 | G71: 118 | H71: =ROUND((T_Fabric[[#This Row],[RollWidth_Imperial]]*25.4)/1000,2)*1000 -> 3000 | I71: No | J71: Fabric cannot be railroaded. | K71: AU | L71: =IF(AND(i_Fabric<>"",i_Fabric=T_Fabric[[#This Row],[Description]]),1,0) -> 0 | M71: =IF(i_Region="Global",1,IF(OR(i_Region=T_Fabric[[#This Row],[Region]],T_Fabric[[#This Row],[Region]]="Global"),1,0)) -> 1 | O71: Panama | P71: Tarifa
B72: One Block | C72: 0.29 | D72: 290 | E72: =T_Fabric[[#This Row],[Thickness_Metric]]/25.4 -> 0.01141732283 | F72: =T_Fabric[[#This Row],[Density_Metric]]/33.90574744 -> 8.553122166 | G72: 118 | H72: =ROUND((T_Fabric[[#This Row],[RollWidth_Imperial]]*25.4)/1000,2)*1000 -> 3000 | I72: No | J72: Fabric cannot be railroaded. | K72: AU | L72: =IF(AND(i_Fabric<>"",i_Fabric=T_Fabric[[#This Row],[Description]]),1,0) -> 0 | M72: =IF(i_Region="Global",1,IF(OR(i_Region=T_Fabric[[#This Row],[Region]],T_Fabric[[#This Row],[Region]]="Global"),1,0)) -> 1 | O72: Positano | P72: Tempe
B73: One Screen | C73: 0.57 | D73: 400 | E73: =T_Fabric[[#This Row],[Thickness_Metric]]/25.4 -> 0.02244094488 | F73: =T_Fabric[[#This Row],[Density_Metric]]/33.90574744 -> 11.79740988 | G73: 118 | H73: =ROUND((T_Fabric[[#This Row],[RollWidth_Imperial]]*25.4)/1000,2)*1000 -> 3000 | I73: No | J73: Fabric cannot be railroaded. | K73: AU | L73: =IF(AND(i_Fabric<>"",i_Fabric=T_Fabric[[#This Row],[Description]]),1,0) -> 0 | M73: =IF(i_Region="Global",1,IF(OR(i_Region=T_Fabric[[#This Row],[Region]],T_Fabric[[#This Row],[Region]]="Global"),1,0)) -> 1 | O73: Riviera Blockout | P73: Torino
B74: Positano | C74: 0.64 | D74: 411 | E74: =T_Fabric[[#This Row],[Thickness_Metric]]/25.4 -> 0.02519685039 | F74: =T_Fabric[[#This Row],[Density_Metric]]/33.90574744 -> 12.12183866 | G74: 118 | H74: =ROUND((T_Fabric[[#This Row],[RollWidth_Imperial]]*25.4)/1000,2)*1000 -> 3000 | I74: No | J74: Fabric cannot be railroaded. | K74: AU | L74: =IF(AND(i_Fabric<>"",i_Fabric=T_Fabric[[#This Row],[Description]]),1,0) -> 0 | M74: =IF(i_Region="Global",1,IF(OR(i_Region=T_Fabric[[#This Row],[Region]],T_Fabric[[#This Row],[Region]]="Global"),1,0)) -> 1 | O74: Riviera Light Filtering | P74: Trento
B75: Serengetti Blackout | C75: 0.7 | D75: 430 | E75: =T_Fabric[[#This Row],[Thickness_Metric]]/25.4 -> 0.02755905512 | F75: =T_Fabric[[#This Row],[Density_Metric]]/33.90574744 -> 12.68221563 | G75: 118 | H75: =ROUND((T_Fabric[[#This Row],[RollWidth_Imperial]]*25.4)/1000,2)*1000 -> 3000 | I75: No | J75: Fabric cannot be railroaded. | K75: AU | L75: =IF(AND(i_Fabric<>"",i_Fabric=T_Fabric[[#This Row],[Description]]),1,0) -> 0 | M75: =IF(i_Region="Global",1,IF(OR(i_Region=T_Fabric[[#This Row],[Region]],T_Fabric[[#This Row],[Region]]="Global"),1,0)) -> 1 | O75: Romana | P75: Tusk Block Out
B76: Serengetti Light Filtering | C76: 0.6 | D76: 260 | E76: =T_Fabric[[#This Row],[Thickness_Metric]]/25.4 -> 0.02362204724 | F76: =T_Fabric[[#This Row],[Density_Metric]]/33.90574744 -> 7.668316425 | G76: 118 | H76: =ROUND((T_Fabric[[#This Row],[RollWidth_Imperial]]*25.4)/1000,2)*1000 -> 3000 | I76: No | J76: Fabric cannot be railroaded. | K76: AU | L76: =IF(AND(i_Fabric<>"",i_Fabric=T_Fabric[[#This Row],[Description]]),1,0) -> 0 | M76: =IF(i_Region="Global",1,IF(OR(i_Region=T_Fabric[[#This Row],[Region]],T_Fabric[[#This Row],[Region]]="Global"),1,0)) -> 1 | O76: Sanctuary | P76: Tusk Light Filtering
B77: Solar View | C77: 0.75 | D77: 530 | E77: =T_Fabric[[#This Row],[Thickness_Metric]]/25.4 -> 0.02952755906 | F77: =T_Fabric[[#This Row],[Density_Metric]]/33.90574744 -> 15.6315681 | G77: 118 | H77: =ROUND((T_Fabric[[#This Row],[RollWidth_Imperial]]*25.4)/1000,2)*1000 -> 3000 | I77: No | J77: Fabric cannot be railroaded. | K77: AU | L77: =IF(AND(i_Fabric<>"",i_Fabric=T_Fabric[[#This Row],[Description]]),1,0) -> 0 | M77: =IF(i_Region="Global",1,IF(OR(i_Region=T_Fabric[[#This Row],[Region]],T_Fabric[[#This Row],[Region]]="Global"),1,0)) -> 1 | O77: Santiago | P77: Verona
B78: Solitaire | C78: 0.3 | D78: 280 | E78: =T_Fabric[[#This Row],[Thickness_Metric]]/25.4 -> 0.01181102362 | F78: =T_Fabric[[#This Row],[Density_Metric]]/33.90574744 -> 8.258186919 | G78: 118 | H78: =ROUND((T_Fabric[[#This Row],[RollWidth_Imperial]]*25.4)/1000,2)*1000 -> 3000 | I78: No | J78: Fabric cannot be railroaded. | K78: AU | L78: =IF(AND(i_Fabric<>"",i_Fabric=T_Fabric[[#This Row],[Description]]),1,0) -> 0 | M78: =IF(i_Region="Global",1,IF(OR(i_Region=T_Fabric[[#This Row],[Region]],T_Fabric[[#This Row],[Region]]="Global"),1,0)) -> 1 | O78: Serengetti Blackout | P78: View R
B79: Tusk Block Out | C79: 0.43 | D79: 360 | E79: =T_Fabric[[#This Row],[Thickness_Metric]]/25.4 -> 0.01692913386 | F79: =T_Fabric[[#This Row],[Density_Metric]]/33.90574744 -> 10.6176689 | G79: 118 | H79: =ROUND((T_Fabric[[#This Row],[RollWidth_Imperial]]*25.4)/1000,2)*1000 -> 3000 | I79: No | J79: Fabric cannot be railroaded. | K79: US | L79: =IF(AND(i_Fabric<>"",i_Fabric=T_Fabric[[#This Row],[Description]]),1,0) -> 0 | M79: =IF(i_Region="Global",1,IF(OR(i_Region=T_Fabric[[#This Row],[Region]],T_Fabric[[#This Row],[Region]]="Global"),1,0)) -> 1 | O79: Serengetti Light Filtering | P79: Vigo
B80: Tusk Light Filtering | C80: 0.3 | D80: 170 | E80: =T_Fabric[[#This Row],[Thickness_Metric]]/25.4 -> 0.01181102362 | F80: =T_Fabric[[#This Row],[Density_Metric]]/33.90574744 -> 5.013899201 | G80: 118 | H80: =ROUND((T_Fabric[[#This Row],[RollWidth_Imperial]]*25.4)/1000,2)*1000 -> 3000 | I80: No | J80: Fabric cannot be railroaded. | K80: US | L80: =IF(AND(i_Fabric<>"",i_Fabric=T_Fabric[[#This Row],[Description]]),1,0) -> 0 | M80: =IF(i_Region="Global",1,IF(OR(i_Region=T_Fabric[[#This Row],[Region]],T_Fabric[[#This Row],[Region]]="Global"),1,0)) -> 1 | O80: SilverScreen 2% | P80: Villach
B81: Vivid Block | C81: 0.38 | D81: 350 | E81: =T_Fabric[[#This Row],[Thickness_Metric]]/25.4 -> 0.01496062992 | F81: =T_Fabric[[#This Row],[Density_Metric]]/33.90574744 -> 10.32273365 | G81: 118 | H81: =ROUND((T_Fabric[[#This Row],[RollWidth_Imperial]]*25.4)/1000,2)*1000 -> 3000 | I81: No | J81: Fabric cannot be railroaded. | K81: AU | L81: =IF(AND(i_Fabric<>"",i_Fabric=T_Fabric[[#This Row],[Description]]),1,0) -> 0 | M81: =IF(i_Region="Global",1,IF(OR(i_Region=T_Fabric[[#This Row],[Region]],T_Fabric[[#This Row],[Region]]="Global"),1,0)) -> 1 | O81: SilverScreen 4% | P81: Vista Blackout
B82: Vivid Shade | C82: 0.63 | D82: 425 | E82: =T_Fabric[[#This Row],[Thickness_Metric]]/25.4 -> 0.02480314961 | F82: =T_Fabric[[#This Row],[Density_Metric]]/33.90574744 -> 12.534748 | G82: 118 | H82: =ROUND((T_Fabric[[#This Row],[RollWidth_Imperial]]*25.4)/1000,2)*1000 -> 3000 | I82: No | J82: Fabric cannot be railroaded. | K82: AU | L82: =IF(AND(i_Fabric<>"",i_Fabric=T_Fabric[[#This Row],[Description]]),1,0) -> 0 | M82: =IF(i_Region="Global",1,IF(OR(i_Region=T_Fabric[[#This Row],[Region]],T_Fabric[[#This Row],[Region]]="Global"),1,0)) -> 1 | O82: Solar View | P82: Vivid Block
B83: Riviera Blockout | C83: 0.65 | D83: 360 | E83: =T_Fabric[[#This Row],[Thickness_Metric]]/25.4 -> 0.02559055118 | F83: =T_Fabric[[#This Row],[Density_Metric]]/33.90574744 -> 10.6176689 | G83: 118 | H83: =ROUND((T_Fabric[[#This Row],[RollWidth_Imperial]]*25.4)/1000,2)*1000 -> 3000 | I83: No | J83: Fabric cannot be railroaded. | K83: AU | L83: =IF(AND(i_Fabric<>"",i_Fabric=T_Fabric[[#This Row],[Description]]),1,0) -> 0 | M83: =IF(i_Region="Global",1,IF(OR(i_Region=T_Fabric[[#This Row],[Region]],T_Fabric[[#This Row],[Region]]="Global"),1,0)) -> 1 | O83: Solitaire | P83: Vivid Shade
B84: Riviera Light Filtering | C84: 0.45 | D84: 210 | E84: =T_Fabric[[#This Row],[Thickness_Metric]]/25.4 -> 0.01771653543 | F84: =T_Fabric[[#This Row],[Density_Metric]]/33.90574744 -> 6.19364019 | G84: 118 | H84: =ROUND((T_Fabric[[#This Row],[RollWidth_Imperial]]*25.4)/1000,2)*1000 -> 3000 | I84: No | J84: Fabric cannot be railroaded. | K84: AU | L84: =IF(AND(i_Fabric<>"",i_Fabric=T_Fabric[[#This Row],[Description]]),1,0) -> 0 | M84: =IF(i_Region="Global",1,IF(OR(i_Region=T_Fabric[[#This Row],[Region]],T_Fabric[[#This Row],[Region]]="Global"),1,0)) -> 1 | O84: Soria Blackout | P84: X-Weave 10%
B85: Kleenscreen Blackout | C85: 0.69 | D85: 575 | E85: =T_Fabric[[#This Row],[Thickness_Metric]]/25.4 -> 0.02716535433 | F85: =T_Fabric[[#This Row],[Density_Metric]]/33.90574744 -> 16.95877671 | G85: 118 | H85: 3000 | I85: No | J85: Fabric cannot be railroaded. | K85: Global | L85: =IF(AND(i_Fabric<>"",i_Fabric=T_Fabric[[#This Row],[Description]]),1,0) -> 0 | M85: =IF(i_Region="Global",1,IF(OR(i_Region=T_Fabric[[#This Row],[Region]],T_Fabric[[#This Row],[Region]]="Global"),1,0)) -> 1 | O85: Stickan | P85: X-Weave 5%
B86: =IF('4. Custom Fabric'!C4="","",'4. Custom Fabric'!C4) ->  | C86: ='4. Custom Fabric'!D4 -> 0 | D86: ='4. Custom Fabric'!E4 -> 0 | E86: ='4. Custom Fabric'!F4 -> 0 | F86: ='4. Custom Fabric'!G4 -> 0 | G86: - | H86: - | I86: - | J86: - | K86: Global | L86: =IF(AND(i_Fabric<>"",i_Fabric=T_Fabric[[#This Row],[Description]]),1,0) -> 0 | M86: =IF(i_Region="Global",1,IF(OR(i_Region=T_Fabric[[#This Row],[Region]],T_Fabric[[#This Row],[Region]]="Global"),1,0)) -> 1 | O86: Tarifa
B87: =IF('4. Custom Fabric'!C5="","",'4. Custom Fabric'!C5) ->  | C87: ='4. Custom Fabric'!D5 -> 0 | D87: ='4. Custom Fabric'!E5 -> 0 | E87: ='4. Custom Fabric'!F5 -> 0 | F87: ='4. Custom Fabric'!G5 -> 0 | G87: - | H87: - | I87: - | J87: - | K87: Global | L87: =IF(AND(i_Fabric<>"",i_Fabric=T_Fabric[[#This Row],[Description]]),1,0) -> 0 | M87: =IF(i_Region="Global",1,IF(OR(i_Region=T_Fabric[[#This Row],[Region]],T_Fabric[[#This Row],[Region]]="Global"),1,0)) -> 1 | O87: Tempe
B88: =IF('4. Custom Fabric'!C6="","",'4. Custom Fabric'!C6) ->  | C88: ='4. Custom Fabric'!D6 -> 0 | D88: ='4. Custom Fabric'!E6 -> 0 | E88: ='4. Custom Fabric'!F6 -> 0 | F88: ='4. Custom Fabric'!G6 -> 0 | G88: - | H88: - | I88: - | J88: - | K88: Global | L88: =IF(AND(i_Fabric<>"",i_Fabric=T_Fabric[[#This Row],[Description]]),1,0) -> 0 | M88: =IF(i_Region="Global",1,IF(OR(i_Region=T_Fabric[[#This Row],[Region]],T_Fabric[[#This Row],[Region]]="Global"),1,0)) -> 1 | O88: Torino
B89: =IF('4. Custom Fabric'!C7="","",'4. Custom Fabric'!C7) ->  | C89: ='4. Custom Fabric'!D7 -> 0 | D89: ='4. Custom Fabric'!E7 -> 0 | E89: ='4. Custom Fabric'!F7 -> 0 | F89: ='4. Custom Fabric'!G7 -> 0 | G89: - | H89: - | I89: - | J89: - | K89: Global | L89: =IF(AND(i_Fabric<>"",i_Fabric=T_Fabric[[#This Row],[Description]]),1,0) -> 0 | M89: =IF(i_Region="Global",1,IF(OR(i_Region=T_Fabric[[#This Row],[Region]],T_Fabric[[#This Row],[Region]]="Global"),1,0)) -> 1 | O89: Trento
B90: =IF('4. Custom Fabric'!C8="","",'4. Custom Fabric'!C8) ->  | C90: ='4. Custom Fabric'!D8 -> 0 | D90: ='4. Custom Fabric'!E8 -> 0 | E90: ='4. Custom Fabric'!F8 -> 0 | F90: ='4. Custom Fabric'!G8 -> 0 | G90: - | H90: - | I90: - | J90: - | K90: Global | L90: =IF(AND(i_Fabric<>"",i_Fabric=T_Fabric[[#This Row],[Description]]),1,0) -> 0 | M90: =IF(i_Region="Global",1,IF(OR(i_Region=T_Fabric[[#This Row],[Region]],T_Fabric[[#This Row],[Region]]="Global"),1,0)) -> 1 | O90: Tusk Block Out
B91: =IF('4. Custom Fabric'!C9="","",'4. Custom Fabric'!C9) ->  | C91: ='4. Custom Fabric'!D9 -> 0 | D91: ='4. Custom Fabric'!E9 -> 0 | E91: ='4. Custom Fabric'!F9 -> 0 | F91: ='4. Custom Fabric'!G9 -> 0 | G91: - | H91: - | I91: - | J91: - | K91: Global | L91: =IF(AND(i_Fabric<>"",i_Fabric=T_Fabric[[#This Row],[Description]]),1,0) -> 0 | M91: =IF(i_Region="Global",1,IF(OR(i_Region=T_Fabric[[#This Row],[Region]],T_Fabric[[#This Row],[Region]]="Global"),1,0)) -> 1 | O91: Tusk Light Filtering
B92: =IF('4. Custom Fabric'!C10="","",'4. Custom Fabric'!C10) ->  | C92: ='4. Custom Fabric'!D10 -> 0 | D92: ='4. Custom Fabric'!E10 -> 0 | E92: ='4. Custom Fabric'!F10 -> 0 | F92: ='4. Custom Fabric'!G10 -> 0 | G92: - | H92: - | I92: - | J92: - | K92: Global | L92: =IF(AND(i_Fabric<>"",i_Fabric=T_Fabric[[#This Row],[Description]]),1,0) -> 0 | M92: =IF(i_Region="Global",1,IF(OR(i_Region=T_Fabric[[#This Row],[Region]],T_Fabric[[#This Row],[Region]]="Global"),1,0)) -> 1 | O92: Verona
B93: =IF('4. Custom Fabric'!C11="","",'4. Custom Fabric'!C11) ->  | C93: ='4. Custom Fabric'!D11 -> 0 | D93: ='4. Custom Fabric'!E11 -> 0 | E93: ='4. Custom Fabric'!F11 -> 0 | F93: ='4. Custom Fabric'!G11 -> 0 | G93: - | H93: - | I93: - | J93: - | K93: Global | L93: =IF(AND(i_Fabric<>"",i_Fabric=T_Fabric[[#This Row],[Description]]),1,0) -> 0 | M93: =IF(i_Region="Global",1,IF(OR(i_Region=T_Fabric[[#This Row],[Region]],T_Fabric[[#This Row],[Region]]="Global"),1,0)) -> 1 | O93: View R
B94: =IF('4. Custom Fabric'!C12="","",'4. Custom Fabric'!C12) ->  | C94: ='4. Custom Fabric'!D12 -> 0 | D94: ='4. Custom Fabric'!E12 -> 0 | E94: ='4. Custom Fabric'!F12 -> 0 | F94: ='4. Custom Fabric'!G12 -> 0 | G94: - | H94: - | I94: - | J94: - | K94: Global | L94: =IF(AND(i_Fabric<>"",i_Fabric=T_Fabric[[#This Row],[Description]]),1,0) -> 0 | M94: =IF(i_Region="Global",1,IF(OR(i_Region=T_Fabric[[#This Row],[Region]],T_Fabric[[#This Row],[Region]]="Global"),1,0)) -> 1 | O94: Vigo
B95: =IF('4. Custom Fabric'!C13="","",'4. Custom Fabric'!C13) ->  | C95: ='4. Custom Fabric'!D13 -> 0 | D95: ='4. Custom Fabric'!E13 -> 0 | E95: ='4. Custom Fabric'!F13 -> 0 | F95: ='4. Custom Fabric'!G13 -> 0 | G95: - | H95: - | I95: - | J95: - | K95: Global | L95: =IF(AND(i_Fabric<>"",i_Fabric=T_Fabric[[#This Row],[Description]]),1,0) -> 0 | M95: =IF(i_Region="Global",1,IF(OR(i_Region=T_Fabric[[#This Row],[Region]],T_Fabric[[#This Row],[Region]]="Global"),1,0)) -> 1 | O95: Villach
B96: =IF('4. Custom Fabric'!C14="","",'4. Custom Fabric'!C14) ->  | C96: ='4. Custom Fabric'!D14 -> 0 | D96: ='4. Custom Fabric'!E14 -> 0 | E96: ='4. Custom Fabric'!F14 -> 0 | F96: ='4. Custom Fabric'!G14 -> 0 | G96: - | H96: - | I96: - | J96: - | K96: Global | L96: =IF(AND(i_Fabric<>"",i_Fabric=T_Fabric[[#This Row],[Description]]),1,0) -> 0 | M96: =IF(i_Region="Global",1,IF(OR(i_Region=T_Fabric[[#This Row],[Region]],T_Fabric[[#This Row],[Region]]="Global"),1,0)) -> 1 | O96: Vista Blackout
B97: =IF('4. Custom Fabric'!C15="","",'4. Custom Fabric'!C15) ->  | C97: ='4. Custom Fabric'!D15 -> 0 | D97: ='4. Custom Fabric'!E15 -> 0 | E97: ='4. Custom Fabric'!F15 -> 0 | F97: ='4. Custom Fabric'!G15 -> 0 | G97: - | H97: - | I97: - | J97: - | K97: Global | L97: =IF(AND(i_Fabric<>"",i_Fabric=T_Fabric[[#This Row],[Description]]),1,0) -> 0 | M97: =IF(i_Region="Global",1,IF(OR(i_Region=T_Fabric[[#This Row],[Region]],T_Fabric[[#This Row],[Region]]="Global"),1,0)) -> 1 | O97: Vivid Block
B98: =IF('4. Custom Fabric'!C16="","",'4. Custom Fabric'!C16) ->  | C98: ='4. Custom Fabric'!D16 -> 0 | D98: ='4. Custom Fabric'!E16 -> 0 | E98: ='4. Custom Fabric'!F16 -> 0 | F98: ='4. Custom Fabric'!G16 -> 0 | G98: - | H98: - | I98: - | J98: - | K98: Global | L98: =IF(AND(i_Fabric<>"",i_Fabric=T_Fabric[[#This Row],[Description]]),1,0) -> 0 | M98: =IF(i_Region="Global",1,IF(OR(i_Region=T_Fabric[[#This Row],[Region]],T_Fabric[[#This Row],[Region]]="Global"),1,0)) -> 1 | O98: Vivid Shade
B99: =IF('4. Custom Fabric'!C17="","",'4. Custom Fabric'!C17) ->  | C99: ='4. Custom Fabric'!D17 -> 0 | D99: ='4. Custom Fabric'!E17 -> 0 | E99: ='4. Custom Fabric'!F17 -> 0 | F99: ='4. Custom Fabric'!G17 -> 0 | G99: - | H99: - | I99: - | J99: - | K99: Global | L99: =IF(AND(i_Fabric<>"",i_Fabric=T_Fabric[[#This Row],[Description]]),1,0) -> 0 | M99: =IF(i_Region="Global",1,IF(OR(i_Region=T_Fabric[[#This Row],[Region]],T_Fabric[[#This Row],[Region]]="Global"),1,0)) -> 1 | O99: X-Weave 10%
B100: =IF('4. Custom Fabric'!C18="","",'4. Custom Fabric'!C18) ->  | C100: ='4. Custom Fabric'!D18 -> 0 | D100: ='4. Custom Fabric'!E18 -> 0 | E100: ='4. Custom Fabric'!F18 -> 0 | F100: ='4. Custom Fabric'!G18 -> 0 | G100: - | H100: - | I100: - | J100: - | K100: Global | L100: =IF(AND(i_Fabric<>"",i_Fabric=T_Fabric[[#This Row],[Description]]),1,0) -> 0 | M100: =IF(i_Region="Global",1,IF(OR(i_Region=T_Fabric[[#This Row],[Region]],T_Fabric[[#This Row],[Region]]="Global"),1,0)) -> 1 | O100: X-Weave 5%

Sheet _Dictionary (hidden)
E1: AU ENGLISH | F1: US ENGLISH (Setup tbc) - base it off region selection
B2: NamedRange | C2: Output | E2: English | F2: Column2 | G2: Español | H2: Français
B3: z_Title | C3: =INDEX(T_Dictionary[#This Row],,MATCH(i_Language,T_Dictionary[#Headers],0)) -> Roller Shade Calculator | E3: Roller Shade Calculator
B4: z_FabricSearch | C4: =INDEX(T_Dictionary[#This Row],,MATCH(i_Language,T_Dictionary[#Headers],0)) -> Fabric Search | E4: Fabric Search | G4: Búsqueda de telas
B5: z_SelectFabric | C5: =INDEX(T_Dictionary[#This Row],,MATCH(i_Language,T_Dictionary[#Headers],0)) -> Select Fabric | E5: Select Fabric | G5: Seleccionar tela
B6: z_FabricDensity | C6: =INDEX(T_Dictionary[#This Row],,MATCH(i_Language,T_Dictionary[#Headers],0)) -> Fabric Density | E6: Fabric Density | G6: Densidad de la tela
B7: z_FabricThickness | C7: =INDEX(T_Dictionary[#This Row],,MATCH(i_Language,T_Dictionary[#Headers],0)) -> Fabric Thickness | E7: Fabric Thickness | G7: Espesor de la tela
B8: z_Drop | C8: =INDEX(T_Dictionary[#This Row],,MATCH(i_Language,T_Dictionary[#Headers],0)) -> DROP | E8: DROP
B9: z_Width | C9: =INDEX(T_Dictionary[#This Row],,MATCH(i_Language,T_Dictionary[#Headers],0)) -> WIDTH | E9: WIDTH
B10: z_Fabric | C10: =INDEX(T_Dictionary[#This Row],,MATCH(i_Language,T_Dictionary[#Headers],0)) -> Fabric | E10: Fabric
B11: z_Density | C11: =INDEX(T_Dictionary[#This Row],,MATCH(i_Language,T_Dictionary[#Headers],0)) -> Density | E11: Density
B12: z_Thickness | C12: =INDEX(T_Dictionary[#This Row],,MATCH(i_Language,T_Dictionary[#Headers],0)) -> Thickness | E12: Thickness
B13: z_inputWidth | C13: =INDEX(T_Dictionary[#This Row],,MATCH(i_Language,T_Dictionary[#Headers],0)) -> Input Width | E13: Input Width
B14: z_inputDrop | C14: =INDEX(T_Dictionary[#This Row],,MATCH(i_Language,T_Dictionary[#Headers],0)) -> Input Drop | E14: Input Drop
B15: z_selectwb | C15: =INDEX(T_Dictionary[#This Row],,MATCH(i_Language,T_Dictionary[#Headers],0)) -> Select Weight Bar | E15: Select Weight Bar
B16: z_selectBallast | C16: =INDEX(T_Dictionary[#This Row],,MATCH(i_Language,T_Dictionary[#Headers],0)) -> Select Ballast | E16: Select Ballast
B17: z_wbBallastWeight | C17: =INDEX(T_Dictionary[#This Row],,MATCH(i_Language,T_Dictionary[#Headers],0)) -> Weight Bar + Ballast Total Weight | E17: Weight Bar + Ballast Total Weight
B18: z_selectTube | C18: =INDEX(T_Dictionary[#This Row],,MATCH(i_Language,T_Dictionary[#Headers],0)) -> Select Tube | E18: Select Tube
B19: z_RecTube | C19: =INDEX(T_Dictionary[#This Row],,MATCH(i_Language,T_Dictionary[#Headers],0)) -> Suggested Tube | E19: Suggested Tube
B20: z_SelectControlType | C20: =INDEX(T_Dictionary[#This Row],,MATCH(i_Language,T_Dictionary[#Headers],0)) -> Select Control Type | E20: Select Control Type
B21: z_selectControl | C21: =INDEX(T_Dictionary[#This Row],,MATCH(i_Language,T_Dictionary[#Headers],0)) -> Select Control | E21: Select Control
B22: z_selectBracket | C22: =INDEX(T_Dictionary[#This Row],,MATCH(i_Language,T_Dictionary[#Headers],0)) -> Select Top Hardware System | E22: Select Top Hardware System
B23: z_TubeAdaptor | C23: =INDEX(T_Dictionary[#This Row],,MATCH(i_Language,T_Dictionary[#Headers],0)) -> Tube Adaptor | E23: Tube Adaptor
B24: z_MotorRPM | C24: =INDEX(T_Dictionary[#This Row],,MATCH(i_Language,T_Dictionary[#Headers],0)) -> Enter Custom Motor rpm | E24: Enter Custom Motor rpm
B25: z_SelectBooster | C25: =INDEX(T_Dictionary[#This Row],,MATCH(i_Language,T_Dictionary[#Headers],0)) -> Select Booster | E25: Select Booster
B26: z_boosterPreturns | C26: =INDEX(T_Dictionary[#This Row],,MATCH(i_Language,T_Dictionary[#Headers],0)) -> Booster Pre-turns | E26: Booster Pre-turns
B27: z_MaxBoosterPreturns | C27: =INDEX(T_Dictionary[#This Row],,MATCH(i_Language,T_Dictionary[#Headers],0)) -> Max Booster Pre-turns | E27: Max Booster Pre-turns
B28: z_ReferCatalogue | C28: =INDEX(T_Dictionary[#This Row],,MATCH(i_Language,T_Dictionary[#Headers],0)) -> Refer Catalogue | E28: Refer Catalogue
B29: z_ShadeTorque | C29: =INDEX(T_Dictionary[#This Row],,MATCH(i_Language,T_Dictionary[#Headers],0)) -> Shade Torque | E29: Shade Torque
C30: =INDEX(T_Dictionary[#This Row],,MATCH(i_Language,T_Dictionary[#Headers],0)) -> 0
C31: =INDEX(T_Dictionary[#This Row],,MATCH(i_Language,T_Dictionary[#Headers],0)) -> 0
C32: =INDEX(T_Dictionary[#This Row],,MATCH(i_Language,T_Dictionary[#Headers],0)) -> 0
B33: z_wbunitmass | C33: =INDEX(T_Dictionary[#This Row],,MATCH(i_Language,T_Dictionary[#Headers],0)) -> Weight Bar Unit Mass | E33: Weight Bar Unit Mass
B34: z_fabricwbmass | C34: =INDEX(T_Dictionary[#This Row],,MATCH(i_Language,T_Dictionary[#Headers],0)) -> Fabric + Weight Bar Mass | E34: Fabric + Weight Bar Mass | K34: ="Fabric+Weight Bar Mass"&IF(o_LinkActive="Yes"," For All Shades","")
B35: z_fabricwbtubemass | C35: =INDEX(T_Dictionary[#This Row],,MATCH(i_Language,T_Dictionary[#Headers],0)) -> Fabric + Weight Bar + Tube Mass | E35: Fabric + Weight Bar + Tube Mass
B36: z_TubeRotations | C36: =INDEX(T_Dictionary[#This Row],,MATCH(i_Language,T_Dictionary[#Headers],0)) -> # Tube Rotations | E36: # Tube Rotations
B37: z_rollDiameter | C37: =INDEX(T_Dictionary[#This Row],,MATCH(i_Language,T_Dictionary[#Headers],0)) -> Fabric Roll Diameter | E37: Fabric Roll Diameter
B38: z_CassetteRollDia | C38: =INDEX(T_Dictionary[#This Row],,MATCH(i_Language,T_Dictionary[#Headers],0)) -> Roll Diameter required of top hardware | E38: Roll Diameter required of top hardware
B39: z_TubeDeflection | C39: =INDEX(T_Dictionary[#This Row],,MATCH(i_Language,T_Dictionary[#Headers],0)) -> Tube Deflection | E39: ="Tube Deflection"&IF(o_LinkActive="Yes"," For Shade 1","") -> Tube Deflection
B40: z_MotorDropS | C40: =INDEX(T_Dictionary[#This Row],,MATCH(i_Language,T_Dictionary[#Headers],0)) -> Motor Run Time for Drop | E40: Motor Run Time for Drop
B41: z_ControlCapacity | C41: =INDEX(T_Dictionary[#This Row],,MATCH(i_Language,T_Dictionary[#Headers],0)) -> Control Holding Capacity | E41: Control Holding Capacity
B42: z_UserEffortLift | C42: =INDEX(T_Dictionary[#This Row],,MATCH(i_Language,T_Dictionary[#Headers],0)) -> User Effort (Lifting) | E42: User Effort (Lifting)
B43: z_UserEffortLowering | C43: =INDEX(T_Dictionary[#This Row],,MATCH(i_Language,T_Dictionary[#Headers],0)) -> User Effort (Lowering) | E43: User Effort (Lowering)
B44: z_ChainLength | C44: =INDEX(T_Dictionary[#This Row],,MATCH(i_Language,T_Dictionary[#Headers],0)) -> Min. Chain Length for Ball stop | E44: Min. Chain Length for Ball stop
B45: z_ChainLoopLength | C45: =INDEX(T_Dictionary[#This Row],,MATCH(i_Language,T_Dictionary[#Headers],0)) -> Loop Length | E45: Loop Length
C46: =INDEX(T_Dictionary[#This Row],,MATCH(i_Language,T_Dictionary[#Headers],0)) -> 0
C47: =INDEX(T_Dictionary[#This Row],,MATCH(i_Language,T_Dictionary[#Headers],0)) -> 0
B48: z_Units | C48: =INDEX(T_Dictionary[#This Row],,MATCH(i_Language,T_Dictionary[#Headers],0)) -> Units | E48: Units
B49: z_Language | C49: =INDEX(T_Dictionary[#This Row],,MATCH(i_Language,T_Dictionary[#Headers],0)) -> Language | E49: Language
B50: z_Region | C50: =INDEX(T_Dictionary[#This Row],,MATCH(i_Language,T_Dictionary[#Headers],0)) -> Region | E50: Region
B51: z_lastUpdate | C51: =INDEX(T_Dictionary[#This Row],,MATCH(i_Language,T_Dictionary[#Headers],0)) -> Release | E51: Release
B52: z_Outputs | C52: =INDEX(T_Dictionary[#This Row],,MATCH(i_Language,T_Dictionary[#Headers],0)) -> OUTPUTS | E52: OUTPUTS
B53: z_Inputs | C53: =INDEX(T_Dictionary[#This Row],,MATCH(i_Language,T_Dictionary[#Headers],0)) -> INPUTS | E53: INPUTS
B54: z_FabricNotes | C54: =INDEX(T_Dictionary[#This Row],,MATCH(i_Language,T_Dictionary[#Headers],0)) -> FABRIC NOTES | E54: FABRIC NOTES
B55: z_seconds | C55: =INDEX(T_Dictionary[#This Row],,MATCH(i_Language,T_Dictionary[#Headers],0)) -> seconds | E55: seconds | G55: segundos
B56: z_Turns | C56: =INDEX(T_Dictionary[#This Row],,MATCH(i_Language,T_Dictionary[#Headers],0)) -> turns | E56: turns
B58: z_SelectaControl | C58: =INDEX(T_Dictionary[#This Row],,MATCH(i_Language,T_Dictionary[#Headers],0)) -> Select a Control. | E58: Select a Control.
B59: z_CustomEntry | C59: =INDEX(T_Dictionary[#This Row],,MATCH(i_Language,T_Dictionary[#Headers],0)) -> #Custom Entry | E59: #Custom Entry | G59: spanish custom entry
B60: z_EnterValue | C60: =INDEX(T_Dictionary[#This Row],,MATCH(i_Language,T_Dictionary[#Headers],0)) -> Enter value | E60: Enter value
B61: z_AvgFabric | C61: =INDEX(T_Dictionary[#This Row],,MATCH(i_Language,T_Dictionary[#Headers],0)) -> _Average Fabric | E61: _Average Fabric
B62: z_ESA_BoosterType | C62: =INDEX(T_Dictionary[#This Row],,MATCH(i_Language,T_Dictionary[#Headers],0)) -> Booster Type | E62: Booster Type | F62: Booster Type | G62: spanish Booster Type
B63: z_ESA_Position | C63: =INDEX(T_Dictionary[#This Row],,MATCH(i_Language,T_Dictionary[#Headers],0)) -> Booster Position | E63: Booster Position | F63: Booster Position | G63: spanish Booster Position
B64: z_ESA_preTurn | C64: =INDEX(T_Dictionary[#This Row],,MATCH(i_Language,T_Dictionary[#Headers],0)) -> Booster Pre-turns | E64: Booster Pre-turns | F64: Booster Pre-turns | G64: spanish Booster Pre-turns
B65: z_ESA | C65: Easy Spring Air | E65: Easy Spring Air | F65: Easy Spring Air | G65: spanishESA
B66: z_Clutch | C66: =INDEX(T_Dictionary[#This Row],,MATCH(i_Language,T_Dictionary[#Headers],0)) -> Clutch | E66: Clutch | G66: SpanishClutch
B67: z_Motor | C67: =INDEX(T_Dictionary[#This Row],,MATCH(i_Language,T_Dictionary[#Headers],0)) -> Motor | E67: Motor | G67: SpanishMotor
B68: z_TopHardware | C68: =INDEX(T_Dictionary[#This Row],,MATCH(i_Language,T_Dictionary[#Headers],0)) -> Top Hardware | E68: Top Hardware
B69: z_Tube | C69: =INDEX(T_Dictionary[#This Row],,MATCH(i_Language,T_Dictionary[#Headers],0)) -> Tube | E69: Tube
B70: z_WeightBar | C70: =INDEX(T_Dictionary[#This Row],,MATCH(i_Language,T_Dictionary[#Headers],0)) -> Weight Bar | E70: Weight Bar
B71: z_Ballast | C71: =INDEX(T_Dictionary[#This Row],,MATCH(i_Language,T_Dictionary[#Headers],0)) -> Ballast | E71: Ballast
B72: z_Control | C72: =INDEX(T_Dictionary[#This Row],,MATCH(i_Language,T_Dictionary[#Headers],0)) -> Control | E72: Control
B73: z_CustomWeight | C73: =INDEX(T_Dictionary[#This Row],,MATCH(i_Language,T_Dictionary[#Headers],0)) -> Custom Weight | E73: Custom Weight
B74: z_CustomFabDensity | C74: =INDEX(T_Dictionary[#This Row],,MATCH(i_Language,T_Dictionary[#Headers],0)) -> Custom Fabric Density | E74: Custom Fabric Density
B75: z_CustomFabThickness | C75: =INDEX(T_Dictionary[#This Row],,MATCH(i_Language,T_Dictionary[#Headers],0)) -> Custom Fabric Thickness | E75: Custom Fabric Thickness
B76: z_Metric | C76: =INDEX(T_Dictionary[#This Row],,MATCH(i_Language,T_Dictionary[#Headers],0)) -> Metric | E76: Metric | G76: Métrico
B77: z_Imperial | C77: =INDEX(T_Dictionary[#This Row],,MATCH(i_Language,T_Dictionary[#Headers],0)) -> Imperial | E77: Imperial | G77: Imperial
B78: z_None | C78: =INDEX(T_Dictionary[#This Row],,MATCH(i_Language,T_Dictionary[#Headers],0)) -> None | E78: None
B79: z_Yes | C79: =INDEX(T_Dictionary[#This Row],,MATCH(i_Language,T_Dictionary[#Headers],0)) -> Yes | E79: Yes
B80: z_No | C80: =INDEX(T_Dictionary[#This Row],,MATCH(i_Language,T_Dictionary[#Headers],0)) -> No | E80: No
B81: z_Show | C81: =INDEX(T_Dictionary[#This Row],,MATCH(i_Language,T_Dictionary[#Headers],0)) -> Show | E81: Show | G81: spanishshow
B82: z_Hide | C82: =INDEX(T_Dictionary[#This Row],,MATCH(i_Language,T_Dictionary[#Headers],0)) -> Hide | E82: Hide | G82: spanishhide
B83: z_Global | C83: =INDEX(T_Dictionary[#This Row],,MATCH(i_Language,T_Dictionary[#Headers],0)) -> Global | E83: Global
B84: z_NoteFabric | C84: =INDEX(T_Dictionary[#This Row],,MATCH(i_Language,T_Dictionary[#Headers],0)) -> Type text here to filter fabric dropdown list. | E84: Type text here to filter fabric dropdown list.
B85: z_NoteSelect | C85: =INDEX(T_Dictionary[#This Row],,MATCH(i_Language,T_Dictionary[#Headers],0)) -> Select from dropdown list. | E85: Select from dropdown list.
B86: z_ProductOptionsText1 | C86: =INDEX(T_Dictionary[#This Row],,MATCH(i_Language,T_Dictionary[#Headers],0)) -> Put an 'X' in the hide column to remove from dropdown options. | E86: Put an 'X' in the hide column to remove from dropdown options.
B87: z_NoOptions | C87: =INDEX(T_Dictionary[#This Row],,MATCH(i_Language,T_Dictionary[#Headers],0)) -> No suitable options. | E87: No suitable options. | H87: no options french
B88: z_Fabric_RR_Yes | C88: =INDEX(T_Dictionary[#This Row],,MATCH(i_Language,T_Dictionary[#Headers],0)) -> Fabric can be railroaded. | E88: Fabric can be railroaded.
B89: z_Fabric_RR_No | C89: =INDEX(T_Dictionary[#This Row],,MATCH(i_Language,T_Dictionary[#Headers],0)) -> Fabric cannot be railroaded. | E89: Fabric cannot be railroaded.
B90: z_FabricWidth | C90: =INDEX(T_Dictionary[#This Row],,MATCH(i_Language,T_Dictionary[#Headers],0)) -> Fabric roll width | E90: Fabric roll width
B91: z_NoData | C91: =INDEX(T_Dictionary[#This Row],,MATCH(i_Language,T_Dictionary[#Headers],0)) -> No Data. | E91: No Data.
B92: z_motorRunTimes | C92: =INDEX(T_Dictionary[#This Row],,MATCH(i_Language,T_Dictionary[#Headers],0)) -> Motor Run Time (s) | E92: Motor Run Time (s)
B93: z_TableSetup | C93: =INDEX(T_Dictionary[#This Row],,MATCH(i_Language,T_Dictionary[#Headers],0)) -> TABLE SETUP | E93: TABLE SETUP
B94: z_WidthStart | C94: =INDEX(T_Dictionary[#This Row],,MATCH(i_Language,T_Dictionary[#Headers],0)) -> Width Start | E94: Width Start
B95: z_WidthIncrement | C95: =INDEX(T_Dictionary[#This Row],,MATCH(i_Language,T_Dictionary[#Headers],0)) -> Width Increment | E95: Width Increment
B96: z_DropStart | C96: =INDEX(T_Dictionary[#This Row],,MATCH(i_Language,T_Dictionary[#Headers],0)) -> Drop Start | E96: Drop Start
B97: z_DropIncrement | C97: =INDEX(T_Dictionary[#This Row],,MATCH(i_Language,T_Dictionary[#Headers],0)) -> Drop Increment | E97: Drop Increment
B98: z_ChartNote1 | C98: =INDEX(T_Dictionary[#This Row],,MATCH(i_Language,T_Dictionary[#Headers],0)) -> Allowable tube deflection & within control capacity | E98: Allowable tube deflection & within control capacity
B99: z_ChartNote2 | C99: =INDEX(T_Dictionary[#This Row],,MATCH(i_Language,T_Dictionary[#Headers],0)) -> Allowable tube deflection outside of control capacity | E99: Allowable tube deflection outside of control capacity
B100: z_ChartNote3 | C100: =INDEX(T_Dictionary[#This Row],,MATCH(i_Language,T_Dictionary[#Headers],0)) -> Control Capacity Only (excluding tube deflection, user effort & other factors) | E100: Control Capacity Only (excluding tube deflection, user effort & other factors)
B101: z_ChartNote4 | C101: =INDEX(T_Dictionary[#This Row],,MATCH(i_Language,T_Dictionary[#Headers],0)) -> Control Capacity with spring assist (if selected) | E101: Control Capacity with spring assist (if selected)
B102: z_BktRollDiameter | C102: =INDEX(T_Dictionary[#This Row],,MATCH(i_Language,T_Dictionary[#Headers],0)) -> Bracket Max Roll Diameter | E102: Bracket Max Roll Diameter
B103: z_CustomFData | C103: =INDEX(T_Dictionary[#This Row],,MATCH(i_Language,T_Dictionary[#Headers],0)) -> _Custom Fabric Data | E103: _Custom Fabric Data | G103: spanishcustomfdata
B104: z_CustomWBData | C104: =INDEX(T_Dictionary[#This Row],,MATCH(i_Language,T_Dictionary[#Headers],0)) -> _Custom Weight Bar Data | E104: _Custom Weight Bar Data
B105: z_FinishInputs | C105: =INDEX(T_Dictionary[#This Row],,MATCH(i_Language,T_Dictionary[#Headers],0)) -> Complete inputs for recommendation. | E105: Complete inputs for recommendation.
B106: z_NoteSelectTube | C106: Select Tube
B107: z_minSystemWidth | C107: Refer to Product Spec for minimum System widths

Sheet _Parameters (hidden)
AG2: L_Units | AH2: L_Language | AI2: YesNo | AJ2: Region | AK2: L_SheetStatus | AL2: ShowHide | AQ2: DocumentName | AR2: CurrentVersion
B3: GENERAL LIMITS | R3: &" ("&ROUND((C29-(Booster_k*(@Tube_Rotations/2)))/Booster_k,2)&")" | V3: Index | W3: Metric | X3: Imperial | Y3: Factor | AA3: Conversion factors: | AG3: =z_Metric -> Metric | AH3: English | AI3: Yes | AJ3: Global | AK3: Development | AL3: =z_Show -> Show | AQ3: RollerShadeCalculator | AR3: 1.19
B4: User Effort | C4: =5*IF(i_Units="Metric",1,INDEX(T_Units[Factor],MATCH("kg",T_Units[Metric],0))) -> 5 | D4: =INDEX(INDIRECT("T_Units["&i_Units&"]"),MATCH("kg",T_Units[Metric],0)) -> kg | V4: 1 | W4: mm | X4: in | Y4: =1/25.4 -> 0.03937007874 | AA4: 1 lb = | AB4: 0.45359237 | AC4: kg | AG4: =z_Imperial -> Imperial | AH4: Español | AI4: No | AJ4: AU | AK4: Release | AL4: =z_Hide -> Hide
B5: User Effort2 | R5: REFERENCE DATA | V5: 2 | W5: kg | X5: lb | Y5: 2.20462262 | AA5: 1 kg= | AB5: 2.20462262 | AC5: lb | AH5: Français | AJ5: US | AK5: Release - FFA
B6: Tube Deflection Limit | C6: =i_TubeDeflectionLimit*10 -> 1.05 | D6: mm/m | H6: =i_Fdensity_Custom -> 0 | R6: Tube 1 | V6: 3 | W6: Nm | X6: lb·ft | Y6: 0.74 | AA6: 1 m= | AB6: 1.0936133 | AC6: yd
B7: Tube Deflection Limit 2 | C7: =Deflection_limit -> 1.05 | D7: mm/m | R7: =i_Tube -> 0 | V7: 4 | W7: g/m² | X7: oz/yd² | Y7: =1/33.90574744 -> 0.02949352471 | AA7: 1 yd= | AB7: 0.9144 | AC7: m
B8: Tube Deflection Limit 3 | C8: =Deflection_Limit2 -> 1.05 | D8: mm/m | R8: Tube OD | S8: =INDEX(Tube_Lookup,MATCH(i_Tube,Tube_Description,0),MATCH("Tube OD",Tube_Headers,0)) ->  | T8: mm | V8: 5 | W8: g/m | X8: lb/ft | Y8: 0.000671969 | AA8: 1 inch | AB8: 25.4 | AC8: mm
B9: Booster Charts Safety Factor | C9: 0 | D9: Turns | R9: I_Min | S9: =INDEX(Tube_Lookup,MATCH(i_Tube,Tube_Description,0),MATCH("I_Min",Tube_Headers,0)) ->  | T9: mm⁴ | V9: 6 | W9: kg/m | X9: lb/ft | Y9: 0.671969 | AA9: 1mm | AB9: 0.039370079 | AC9: inch
B10: Zipscreen Deflection Allowance | C10: 4 | D10: mm/m | R10: IE | S10: =INDEX(Tube_Lookup,MATCH(i_Tube,Tube_Description,0),MATCH("EI",Tube_Headers,0)) ->  | T10: Nm² | V10: 7 | W10: m | X10: ft | Y10: 3.28084 | AA10: 1 yd= | AB10: 36 | AC10: inches
R11: Unit Mass | S11: =INDEX(Tube_Lookup,MATCH(i_Tube,Tube_Description,0),MATCH("Mass/m",Tube_Headers,0)) ->  | T11: kg/m | V11: 8 | AA11: 1 oz, ounce= | AB11: 28.3495231 | AC11: g
B12: SHADE 1 / ALL SHADES | F12: SHADE 1 ONLY | I12: SHADE 2 | L12: SHADE 3 | N12: =Design_Width+Design_Width2+Design_Width3 -> 0 | O12: m | P12: Design_Width_Total | R12: Max Area | S12: =INDEX(Tube_Lookup,MATCH(i_Tube,Tube_Description,0),MATCH("Max Area",Tube_Headers,0)) ->  | T12: m² | V12: 9 | AA12: 1 g | AB12: 0.035273962 | AC12: oz | AJ12: 2023-04-21
B13: Design Width (Converted) | C13: =IF(i_Units="Metric",i_width/1000,CONVERT(i_width,"in","m")) -> 0 | D13: m | I13: =IF(i_Units="Metric",i_width2/1000,CONVERT(i_width2,"in","m")) -> 0 | J13: m | L13: =IF(i_Units="Metric",i_width3/1000,CONVERT(i_width3,"in","m")) -> 0 | M13: m | N13: =MAX(Design_Width,Design_Width2,Design_Width3) -> 0 | O13: m | P13: Design_width_max | R13: Total Mass | S13: =INDEX(Tube_Lookup,MATCH(i_Tube,Tube_Description,0),MATCH("Mass/m",Tube_Headers,0))*Design_Width ->  | T13: kg | AA13: lb/yd -> kg/m = | AB13: 0.496054648 | AG13: Category | AH13: Internal | AJ13: L_ControlType moved to dynamic list driven by region
B14: Design Drop (Converted) | C14: =IF(i_Units="Metric",i_Drop/1000,CONVERT(i_Drop,"in","m")) -> 0 | D14: m | R14: Max Length | S14: =IFERROR(INDEX(Tube_Lookup,MATCH(i_Tube,Tube_Description,0),MATCH("MaxLength",Tube_Headers,0)),"") ->  | T14: m | AA14: oz/yd² -> g/m²= | AB14: 33.90574744
A15: =IFERROR(INDEX(T_Fabric[Density_Metric],MATCH(i_Fabric,T_Fabric[Description],0))/1000,"") ->  | B15: Fabric Density | C15: =IFERROR(IF(i_Fdensity_Custom<>"",i_Fdensity_Custom/1000*IF(i_units_Out="Metric",1,1/INDEX(T_Units[Factor],MATCH("g/m²",T_Units[Metric],0))),INDEX(T_Fabric[Density_Metric],MATCH(i_Fabric,T_Fabric[Description],0))/1000),"") ->  | D15: kg/m² | AA15: 1 lb/ft | AB15: 1488.16394 | AC15: g/m
A16: =IFERROR(INDEX(T_Fabric[Thickness_Metric],MATCH(i_Fabric,T_Fabric[Description],0)),"") ->  | B16: Fabric Thickness | C16: =IFERROR(IF(i_FThickness_Custom<>"",i_FThickness_Custom/IF(i_units_Out="Metric",1,INDEX(T_Units[Factor],MATCH("mm",T_Units[Metric],0))),INDEX(T_Fabric[Thickness_Metric],MATCH(i_Fabric,T_Fabric[Description],0))),"") ->  | D16: mm | R16: Tube 2 | AA16: 1 g/m | AB16: 0.000671968975 | AC16: lb/ft
B17: o_FabricCustom | C17: =IF(OR(i_Fdensity_Custom<>"",i_FThickness_Custom<>""),"True","False") -> False | R17: =i_tube2 ->  | AA17: 1 GPa | AB17: 145037.7377 | AC17: psi | AG17: English Outputs for formulas
